Workbook

Sheet AVISO LEGAL
H2: Fecha de actualización: | J2: 2019-02-11
J23: www.ree.es

Sheet Renovable mes nacional
O1: 13
M3: Concepto
M4: Sistema eléctrico
M5: Horizonte temporal
M6: Periodo
C8: Ene. | D8: Feb. | E8: Mar. | F8: Abr. | G8: May. | H8: Jun. | I8: Jul. | J8: Ago. | K8: Sep. | L8: Oct. | M8: Nov. | N8: Dic. | O8: =OFFSET(Año!B19,($O$1-1),0) -> 2019
B10: Hidráulica (2) | C10: =OFFSET(Renovable!C32,0,($O$1-1)*12) -> 2126.073083 | D10: =OFFSET(Renovable!D32,0,($O$1-1)*12) -> - | E10: =OFFSET(Renovable!E32,0,($O$1-1)*12) -> - | F10: =OFFSET(Renovable!F32,0,($O$1-1)*12) -> - | G10: =OFFSET(Renovable!G32,0,($O$1-1)*12) -> - | H10: =OFFSET(Renovable!H32,0,($O$1-1)*12) -> - | I10: =OFFSET(Renovable!I32,0,($O$1-1)*12) -> - | J10: =OFFSET(Renovable!J32,0,($O$1-1)*12) -> - | K10: =OFFSET(Renovable!K32,0,($O$1-1)*12) -> - | L10: =OFFSET(Renovable!L32,0,($O$1-1)*12) -> - | M10: =OFFSET(Renovable!M32,0,($O$1-1)*12) -> - | N10: =OFFSET(Renovable!N32,0,($O$1-1)*12) -> - | O10: =IF(SUM(C10:N10)=0,"-",SUM(C10:N10)) -> 2126.073083
B11: Hidroeólica | C11: =OFFSET(Renovable!C33,0,($O$1-1)*12) -> 1.109656 | D11: =OFFSET(Renovable!D33,0,($O$1-1)*12) -> - | E11: =OFFSET(Renovable!E33,0,($O$1-1)*12) -> - | F11: =OFFSET(Renovable!F33,0,($O$1-1)*12) -> - | G11: =OFFSET(Renovable!G33,0,($O$1-1)*12) -> - | H11: =OFFSET(Renovable!H33,0,($O$1-1)*12) -> - | I11: =OFFSET(Renovable!I33,0,($O$1-1)*12) -> - | J11: =OFFSET(Renovable!J33,0,($O$1-1)*12) -> - | K11: =OFFSET(Renovable!K33,0,($O$1-1)*12) -> - | L11: =OFFSET(Renovable!L33,0,($O$1-1)*12) -> - | M11: =OFFSET(Renovable!M33,0,($O$1-1)*12) -> - | N11: =OFFSET(Renovable!N33,0,($O$1-1)*12) -> - | O11: 1.109656
B12: Eólica | C12: =OFFSET(Renovable!C34,0,($O$1-1)*12) -> 6027.128519 | D12: =OFFSET(Renovable!D34,0,($O$1-1)*12) -> - | E12: =OFFSET(Renovable!E34,0,($O$1-1)*12) -> - | F12: =OFFSET(Renovable!F34,0,($O$1-1)*12) -> - | G12: =OFFSET(Renovable!G34,0,($O$1-1)*12) -> - | H12: =OFFSET(Renovable!H34,0,($O$1-1)*12) -> - | I12: =OFFSET(Renovable!I34,0,($O$1-1)*12) -> - | J12: =OFFSET(Renovable!J34,0,($O$1-1)*12) -> - | K12: =OFFSET(Renovable!K34,0,($O$1-1)*12) -> - | L12: =OFFSET(Renovable!L34,0,($O$1-1)*12) -> - | M12: =OFFSET(Renovable!M34,0,($O$1-1)*12) -> - | N12: =OFFSET(Renovable!N34,0,($O$1-1)*12) -> - | O12: 6027.128519
B13: Solar fotovoltaica | C13: =OFFSET(Renovable!C35,0,($O$1-1)*12) -> 501.505987 | D13: =OFFSET(Renovable!D35,0,($O$1-1)*12) -> - | E13: =OFFSET(Renovable!E35,0,($O$1-1)*12) -> - | F13: =OFFSET(Renovable!F35,0,($O$1-1)*12) -> - | G13: =OFFSET(Renovable!G35,0,($O$1-1)*12) -> - | H13: =OFFSET(Renovable!H35,0,($O$1-1)*12) -> - | I13: =OFFSET(Renovable!I35,0,($O$1-1)*12) -> - | J13: =OFFSET(Renovable!J35,0,($O$1-1)*12) -> - | K13: =OFFSET(Renovable!K35,0,($O$1-1)*12) -> - | L13: =OFFSET(Renovable!L35,0,($O$1-1)*12) -> - | M13: =OFFSET(Renovable!M35,0,($O$1-1)*12) -> - | N13: =OFFSET(Renovable!N35,0,($O$1-1)*12) -> - | O13: 501.505987
B14: Solar térmica | C14: =OFFSET(Renovable!C36,0,($O$1-1)*12) -> 166.150133 | D14: =OFFSET(Renovable!D36,0,($O$1-1)*12) -> - | E14: =OFFSET(Renovable!E36,0,($O$1-1)*12) -> - | F14: =OFFSET(Renovable!F36,0,($O$1-1)*12) -> - | G14: =OFFSET(Renovable!G36,0,($O$1-1)*12) -> - | H14: =OFFSET(Renovable!H36,0,($O$1-1)*12) -> - | I14: =OFFSET(Renovable!I36,0,($O$1-1)*12) -> - | J14: =OFFSET(Renovable!J36,0,($O$1-1)*12) -> - | K14: =OFFSET(Renovable!K36,0,($O$1-1)*12) -> - | L14: =OFFSET(Renovable!L36,0,($O$1-1)*12) -> - | M14: =OFFSET(Renovable!M36,0,($O$1-1)*12) -> - | N14: =OFFSET(Renovable!N36,0,($O$1-1)*12) -> - | O14: 166.150133
B15: Térmica renovable (3)/Otras renovables (4) | C15: =OFFSET(Renovable!C37,0,($O$1-1)*12) -> 304.464799 | D15: =OFFSET(Renovable!D37,0,($O$1-1)*12) -> - | E15: =OFFSET(Renovable!E37,0,($O$1-1)*12) -> - | F15: =OFFSET(Renovable!F37,0,($O$1-1)*12) -> - | G15: =OFFSET(Renovable!G37,0,($O$1-1)*12) -> - | H15: =OFFSET(Renovable!H37,0,($O$1-1)*12) -> - | I15: =OFFSET(Renovable!I37,0,($O$1-1)*12) -> - | J15: =OFFSET(Renovable!J37,0,($O$1-1)*12) -> - | K15: =OFFSET(Renovable!K37,0,($O$1-1)*12) -> - | L15: =OFFSET(Renovable!L37,0,($O$1-1)*12) -> - | M15: =OFFSET(Renovable!M37,0,($O$1-1)*12) -> - | N15: =OFFSET(Renovable!N37,0,($O$1-1)*12) -> - | O15: =IF(SUM(C15:N15)=0,"-",SUM(C15:N15)) -> 304.464799
B16: Residuos renovables (5) | C16: =OFFSET(Renovable!C38,0,($O$1-1)*12) -> 73.6136095 | D16: =OFFSET(Renovable!D38,0,($O$1-1)*12) -> - | E16: =OFFSET(Renovable!E38,0,($O$1-1)*12) -> - | F16: =OFFSET(Renovable!F38,0,($O$1-1)*12) -> - | G16: =OFFSET(Renovable!G38,0,($O$1-1)*12) -> - | H16: =OFFSET(Renovable!H38,0,($O$1-1)*12) -> - | I16: =OFFSET(Renovable!I38,0,($O$1-1)*12) -> - | J16: =OFFSET(Renovable!J38,0,($O$1-1)*12) -> - | K16: =OFFSET(Renovable!K38,0,($O$1-1)*12) -> - | L16: =OFFSET(Renovable!L38,0,($O$1-1)*12) -> - | M16: =OFFSET(Renovable!M38,0,($O$1-1)*12) -> - | N16: =OFFSET(Renovable!N38,0,($O$1-1)*12) -> - | O16: =IF(SUM(C16:N16)=0,"-",SUM(C16:N16)) -> 73.6136095
B17: Generación renovable | C17: =IF(SUM(C10:C16)=0,"-",SUM(C10:C16)) -> 9200.045787 | D17: =IF(SUM(D10:D16)=0,"-",SUM(D10:D16)) -> - | E17: - | F17: - | G17: - | H17: - | I17: - | J17: - | K17: =IF(SUM(K10:K16)=0,"-",SUM(K10:K16)) -> - | L17: - | M17: - | N17: - | O17: =IF(SUM(C17:N17)=0,"-",SUM(C17:N17)) -> 9200.045787
B18: (1) Asignación de unidades de producción según combustible principal.
B19: (2) No incluye la generación bombeo.
B20: (3) Incluye residuos hasta el 31/12/2014.
B21: (4) Otras renovables incluyen biogás, biomasa, hidráulica marina y geotérmica.
B22: (5) El 50% de la generación procedente de residuos sólidos urbanos se considera renovable.

Sheet Renovable año nacional
J1: 2
H3: Concepto
H4: Sistema eléctrico
H5: Horizonte temporal
H6: Periodo
C8: =OFFSET(Renovable!C70,0,($J$1-1)*8) -> 2015 | D8: =OFFSET(Renovable!D70,0,($J$1-1)*8) -> 2016 | E8: =OFFSET(Renovable!E70,0,($J$1-1)*8) -> 2017 | F8: =OFFSET(Renovable!F70,0,($J$1-1)*8) -> 2018 | G8: =OFFSET(Renovable!G70,0,($J$1-1)*8) -> 2019 | H8: =OFFSET(Renovable!H70,0,($J$1-1)*8) -> 2020 | I8: =OFFSET(Renovable!I70,0,($J$1-1)*8) -> 2021 | J8: =OFFSET(Renovable!J70,0,($J$1-1)*8) -> 2022
B10: Hidráulica (2) | C10: =OFFSET(Renovable!C71,0,($J$1-1)*8) -> 28382.57996 | D10: =OFFSET(Renovable!D71,0,($J$1-1)*8) -> 36114.88833 | E10: =OFFSET(Renovable!E71,0,($J$1-1)*8) -> 18450.61875 | F10: =OFFSET(Renovable!F71,0,($J$1-1)*8) -> 34100.07269 | G10: =OFFSET(Renovable!G71,0,($J$1-1)*8) -> 2126.073083 | H10: =OFFSET(Renovable!H71,0,($J$1-1)*8) -> - | I10: =OFFSET(Renovable!I71,0,($J$1-1)*8) -> - | J10: =OFFSET(Renovable!J71,0,($J$1-1)*8) -> -
B11: Hidroeólica | C11: =OFFSET(Renovable!C72,0,($J$1-1)*8) -> 8.207424 | D11: =OFFSET(Renovable!D72,0,($J$1-1)*8) -> 17.891936 | E11: =OFFSET(Renovable!E72,0,($J$1-1)*8) -> 20.233057 | F11: =OFFSET(Renovable!F72,0,($J$1-1)*8) -> 23.655544 | G11: =OFFSET(Renovable!G72,0,($J$1-1)*8) -> 1.109656 | H11: =OFFSET(Renovable!H72,0,($J$1-1)*8) -> - | I11: =OFFSET(Renovable!I72,0,($J$1-1)*8) -> - | J11: =OFFSET(Renovable!J72,0,($J$1-1)*8) -> -
B12: Eólica | C12: =OFFSET(Renovable!C73,0,($J$1-1)*8) -> 48117.88752 | D12: =OFFSET(Renovable!D73,0,($J$1-1)*8) -> 47696.66031 | E12: =OFFSET(Renovable!E73,0,($J$1-1)*8) -> 47906.95556 | F12: =OFFSET(Renovable!F73,0,($J$1-1)*8) -> 49526.05593 | G12: =OFFSET(Renovable!G73,0,($J$1-1)*8) -> 6027.128519 | H12: =OFFSET(Renovable!H73,0,($J$1-1)*8) -> - | I12: =OFFSET(Renovable!I73,0,($J$1-1)*8) -> - | J12: =OFFSET(Renovable!J73,0,($J$1-1)*8) -> -
B13: Solar fotovoltaica | C13: =OFFSET(Renovable!C74,0,($J$1-1)*8) -> 8243.560905 | D13: =OFFSET(Renovable!D74,0,($J$1-1)*8) -> 7977.467185 | E13: =OFFSET(Renovable!E74,0,($J$1-1)*8) -> 8397.752693 | F13: =OFFSET(Renovable!F74,0,($J$1-1)*8) -> 7746.683917 | G13: =OFFSET(Renovable!G74,0,($J$1-1)*8) -> 501.505987 | H13: =OFFSET(Renovable!H74,0,($J$1-1)*8) -> - | I13: =OFFSET(Renovable!I74,0,($J$1-1)*8) -> - | J13: =OFFSET(Renovable!J74,0,($J$1-1)*8) -> -
B14: Solar térmica | C14: =OFFSET(Renovable!C75,0,($J$1-1)*8) -> 5085.235514 | D14: =OFFSET(Renovable!D75,0,($J$1-1)*8) -> 5071.201702 | E14: =OFFSET(Renovable!E75,0,($J$1-1)*8) -> 5347.952465 | F14: =OFFSET(Renovable!F75,0,($J$1-1)*8) -> 4424.328609 | G14: =OFFSET(Renovable!G75,0,($J$1-1)*8) -> 166.150133 | H14: =OFFSET(Renovable!H75,0,($J$1-1)*8) -> - | I14: =OFFSET(Renovable!I75,0,($J$1-1)*8) -> - | J14: =OFFSET(Renovable!J75,0,($J$1-1)*8) -> -
B15: Térmica renovable (3)/Otras renovables (4) | C15: =OFFSET(Renovable!C76,0,($J$1-1)*8) -> 3432.591921 | D15: =OFFSET(Renovable!D76,0,($J$1-1)*8) -> 3425.664828 | E15: =OFFSET(Renovable!E76,0,($J$1-1)*8) -> 3610.347882 | F15: =OFFSET(Renovable!F76,0,($J$1-1)*8) -> 3556.382213 | G15: =OFFSET(Renovable!G76,0,($J$1-1)*8) -> 304.464799 | H15: =OFFSET(Renovable!H76,0,($J$1-1)*8) -> - | I15: =OFFSET(Renovable!I76,0,($J$1-1)*8) -> - | J15: =OFFSET(Renovable!J76,0,($J$1-1)*8) -> -
B16: Residuos renovables (5) | C16: =OFFSET(Renovable!C77,0,($J$1-1)*8) -> 818.0497025 | D16: =OFFSET(Renovable!D77,0,($J$1-1)*8) -> 785.3950295 | E16: =OFFSET(Renovable!E77,0,($J$1-1)*8) -> 877.006087 | F16: =OFFSET(Renovable!F77,0,($J$1-1)*8) -> 874.075245 | G16: =OFFSET(Renovable!G77,0,($J$1-1)*8) -> 73.6136095 | H16: =OFFSET(Renovable!H77,0,($J$1-1)*8) -> - | I16: =OFFSET(Renovable!I77,0,($J$1-1)*8) -> - | J16: =OFFSET(Renovable!J77,0,($J$1-1)*8) -> -
B17: Generación renovable | C17: =IF(SUM(C10:C16)=0,"-",SUM(C10:C16)) -> 94088.11295 | D17: =IF(SUM(D10:D16)=0,"-",SUM(D10:D16)) -> 101089.1693 | E17: 84610.8665 | F17: 100251.2542 | G17: 9200.045787 | H17: - | I17: - | J17: -
B18: (1) Asignación de unidades de producción según combustible principal.
B19: (2) No incluye la generación bombeo.
B20: (3) Incluye residuos hasta el 31/12/2014.
B21: (4) Otras renovables incluyen biogás, biomasa, hidráulica marina y geotérmica.
B22: (5) El 50% de la generación procedente de residuos sólidos urbanos se considera renovable.
B23: =IF(J1=1,"",IF(MONTH('AVISO LEGAL'!J2)=1,CONCATENATE(" Para el año ",YEAR('AVISO LEGAL'!J2)-1, " valores acumulados hasta ",TEXT('AVISO LEGAL'!J2-30,"mmmm")," de ",YEAR('AVISO LEGAL'!J2)-1,"."),CONCATENATE(" Para el año ",YEAR('AVISO LEGAL'!J2), " valores acumulados hasta ",TEXT('AVISO LEGAL'!J2-30,"mmmm")," de ",YEAR('AVISO LEGAL'!J2),"."))) -> Para el año 2019 valores acumulados hasta enero de 2019.

Sheet Renovable mes Peninsular
O1: 30
M3: Concepto
M4: Sistema eléctrico
M5: Horizonte temporal
M6: Periodo
C8: Ene. | D8: Feb. | E8: Mar. | F8: Abr. | G8: May. | H8: Jun. | I8: Jul. | J8: Ago. | K8: Sep. | L8: Oct. | M8: Nov. | N8: Dic. | O8: =OFFSET(Año!B2,($O$1-1),0) -> 2019
B10: Hidráulica (2) | C10: =OFFSET(Renovable!C3,0,($O$1-1)*12) -> 2125.780167 | D10: =OFFSET(Renovable!D3,0,($O$1-1)*12) -> - | E10: =OFFSET(Renovable!E3,0,($O$1-1)*12) -> - | F10: =OFFSET(Renovable!F3,0,($O$1-1)*12) -> - | G10: =OFFSET(Renovable!G3,0,($O$1-1)*12) -> - | H10: =OFFSET(Renovable!H3,0,($O$1-1)*12) -> - | I10: =OFFSET(Renovable!I3,0,($O$1-1)*12) -> - | J10: =OFFSET(Renovable!J3,0,($O$1-1)*12) -> - | K10: =OFFSET(Renovable!K3,0,($O$1-1)*12) -> - | L10: =OFFSET(Renovable!L3,0,($O$1-1)*12) -> - | M10: =OFFSET(Renovable!M3,0,($O$1-1)*12) -> - | N10: =OFFSET(Renovable!N3,0,($O$1-1)*12) -> - | O10: =IF(SUM(C10:N10)=0,"-",SUM(C10:N10)) -> 2125.780167
B11: Eólica | C11: =OFFSET(Renovable!C4,0,($O$1-1)*12) -> 5970.541017 | D11: =OFFSET(Renovable!D4,0,($O$1-1)*12) -> - | E11: =OFFSET(Renovable!E4,0,($O$1-1)*12) -> - | F11: =OFFSET(Renovable!F4,0,($O$1-1)*12) -> - | G11: =OFFSET(Renovable!G4,0,($O$1-1)*12) -> - | H11: =OFFSET(Renovable!H4,0,($O$1-1)*12) -> - | I11: =OFFSET(Renovable!I4,0,($O$1-1)*12) -> - | J11: =OFFSET(Renovable!J4,0,($O$1-1)*12) -> - | K11: =OFFSET(Renovable!K4,0,($O$1-1)*12) -> - | L11: =OFFSET(Renovable!L4,0,($O$1-1)*12) -> - | M11: =OFFSET(Renovable!M4,0,($O$1-1)*12) -> - | N11: =OFFSET(Renovable!N4,0,($O$1-1)*12) -> - | O11: 5970.541017
B12: Solar fotovoltaica | C12: =OFFSET(Renovable!C5,0,($O$1-1)*12) -> 476.807724 | D12: =OFFSET(Renovable!D5,0,($O$1-1)*12) -> - | E12: =OFFSET(Renovable!E5,0,($O$1-1)*12) -> - | F12: =OFFSET(Renovable!F5,0,($O$1-1)*12) -> - | G12: =OFFSET(Renovable!G5,0,($O$1-1)*12) -> - | H12: =OFFSET(Renovable!H5,0,($O$1-1)*12) -> - | I12: =OFFSET(Renovable!I5,0,($O$1-1)*12) -> - | J12: =OFFSET(Renovable!J5,0,($O$1-1)*12) -> - | K12: =OFFSET(Renovable!K5,0,($O$1-1)*12) -> - | L12: =OFFSET(Renovable!L5,0,($O$1-1)*12) -> - | M12: =OFFSET(Renovable!M5,0,($O$1-1)*12) -> - | N12: =OFFSET(Renovable!N5,0,($O$1-1)*12) -> - | O12: 476.807724
B13: Solar térmica | C13: =OFFSET(Renovable!C6,0,($O$1-1)*12) -> 166.150133 | D13: =OFFSET(Renovable!D6,0,($O$1-1)*12) -> - | E13: =OFFSET(Renovable!E6,0,($O$1-1)*12) -> - | F13: =OFFSET(Renovable!F6,0,($O$1-1)*12) -> - | G13: =OFFSET(Renovable!G6,0,($O$1-1)*12) -> - | H13: =OFFSET(Renovable!H6,0,($O$1-1)*12) -> - | I13: =OFFSET(Renovable!I6,0,($O$1-1)*12) -> - | J13: =OFFSET(Renovable!J6,0,($O$1-1)*12) -> - | K13: =OFFSET(Renovable!K6,0,($O$1-1)*12) -> - | L13: =OFFSET(Renovable!L6,0,($O$1-1)*12) -> - | M13: =OFFSET(Renovable!M6,0,($O$1-1)*12) -> - | N13: =OFFSET(Renovable!N6,0,($O$1-1)*12) -> - | O13: 166.150133
B14: Térmica renovable (3)/Otras renovables (4) | C14: =OFFSET(Renovable!C7,0,($O$1-1)*12) -> 303.393827 | D14: =OFFSET(Renovable!D7,0,($O$1-1)*12) -> - | E14: =OFFSET(Renovable!E7,0,($O$1-1)*12) -> - | F14: =OFFSET(Renovable!F7,0,($O$1-1)*12) -> - | G14: =OFFSET(Renovable!G7,0,($O$1-1)*12) -> - | H14: =OFFSET(Renovable!H7,0,($O$1-1)*12) -> - | I14: =OFFSET(Renovable!I7,0,($O$1-1)*12) -> - | J14: =OFFSET(Renovable!J7,0,($O$1-1)*12) -> - | K14: =OFFSET(Renovable!K7,0,($O$1-1)*12) -> - | L14: =OFFSET(Renovable!L7,0,($O$1-1)*12) -> - | M14: =OFFSET(Renovable!M7,0,($O$1-1)*12) -> - | N14: =OFFSET(Renovable!N7,0,($O$1-1)*12) -> - | O14: 303.393827
B15: Residuos renovables (5) | C15: =OFFSET(Renovable!C8,0,($O$1-1)*12) -> 63.503646 | D15: =OFFSET(Renovable!D8,0,($O$1-1)*12) -> - | E15: =OFFSET(Renovable!E8,0,($O$1-1)*12) -> - | F15: =OFFSET(Renovable!F8,0,($O$1-1)*12) -> - | G15: =OFFSET(Renovable!G8,0,($O$1-1)*12) -> - | H15: =OFFSET(Renovable!H8,0,($O$1-1)*12) -> - | I15: =OFFSET(Renovable!I8,0,($O$1-1)*12) -> - | J15: =OFFSET(Renovable!J8,0,($O$1-1)*12) -> - | K15: =OFFSET(Renovable!K8,0,($O$1-1)*12) -> - | L15: =OFFSET(Renovable!L8,0,($O$1-1)*12) -> - | M15: =OFFSET(Renovable!M8,0,($O$1-1)*12) -> - | N15: =OFFSET(Renovable!N8,0,($O$1-1)*12) -> - | O15: =IF(SUM(C15:N15)=0,"-",SUM(C15:N15)) -> 63.503646
B16: Generación renovable | C16: =IF(SUM(C10:C15)=0,"-",SUM(C10:C15)) -> 9106.176514 | D16: =IF(SUM(D10:D15)=0,"-",SUM(D10:D15)) -> - | E16: - | F16: - | G16: - | H16: - | I16: - | J16: - | K16: - | L16: - | M16: - | N16: - | O16: 9106.176514
B17: (1) Asignación de unidades de producción según combustible principal.
B18: (2) No incluye la generación bombeo.
B19: (3) Incluye residuos hasta el 31/12/2014.
B20: (4) Otras renovables incluyen biogás, biomasa, hidráulica marina y geotérmica.
B21: (5) El 50% de la generación procedente de residuos sólidos urbanos se considera renovable.

Sheet Renovable año Peninsular
J1: 4
H3: Concepto
H4: Sistema eléctrico
H5: Horizonte temporal
H6: Periodo
C8: =OFFSET(Renovable!C41,0,($J$1-1)*8) -> 2014 | D8: =OFFSET(Renovable!D41,0,($J$1-1)*8) -> 2015 | E8: =OFFSET(Renovable!E41,0,($J$1-1)*8) -> 2016 | F8: =OFFSET(Renovable!F41,0,($J$1-1)*8) -> 2017 | G8: =OFFSET(Renovable!G41,0,($J$1-1)*8) -> 2018 | H8: =OFFSET(Renovable!H41,0,($J$1-1)*8) -> 2019 | I8: =OFFSET(Renovable!I41,0,($J$1-1)*8) -> 2020 | J8: =OFFSET(Renovable!J41,0,($J$1-1)*8) -> 2021
B10: Hidráulica (2) | C10: =OFFSET(Renovable!C42,0,($J$1-1)*8) -> 39178.52416 | D10: =OFFSET(Renovable!D42,0,($J$1-1)*8) -> 28379.01157 | E10: =OFFSET(Renovable!E42,0,($J$1-1)*8) -> 36111.43437 | F10: =OFFSET(Renovable!F42,0,($J$1-1)*8) -> 18447.34677 | G10: =OFFSET(Renovable!G42,0,($J$1-1)*8) -> 34096.79679 | H10: =OFFSET(Renovable!H42,0,($J$1-1)*8) -> 2125.780167 | I10: =OFFSET(Renovable!I42,0,($J$1-1)*8) -> - | J10: =OFFSET(Renovable!J42,0,($J$1-1)*8) -> -
B11: Eólica | C11: =OFFSET(Renovable!C43,0,($J$1-1)*8) -> 50636.66246 | D11: =OFFSET(Renovable!D43,0,($J$1-1)*8) -> 47715.88214 | E11: =OFFSET(Renovable!E43,0,($J$1-1)*8) -> 47298.16367 | F11: =OFFSET(Renovable!F43,0,($J$1-1)*8) -> 47508.10595 | G11: =OFFSET(Renovable!G43,0,($J$1-1)*8) -> 48901.72806 | H11: =OFFSET(Renovable!H43,0,($J$1-1)*8) -> 5970.541017 | I11: =OFFSET(Renovable!I43,0,($J$1-1)*8) -> - | J11: =OFFSET(Renovable!J43,0,($J$1-1)*8) -> -
B12: Solar fotovoltaica | C12: =OFFSET(Renovable!C44,0,($J$1-1)*8) -> 7802.79092 | D12: =OFFSET(Renovable!D44,0,($J$1-1)*8) -> 7845.314537 | E12: =OFFSET(Renovable!E44,0,($J$1-1)*8) -> 7579.218212 | F12: =OFFSET(Renovable!F44,0,($J$1-1)*8) -> 8000.712164 | G12: =OFFSET(Renovable!G44,0,($J$1-1)*8) -> 7362.744452 | H12: =OFFSET(Renovable!H44,0,($J$1-1)*8) -> 476.807724 | I12: =OFFSET(Renovable!I44,0,($J$1-1)*8) -> - | J12: =OFFSET(Renovable!J44,0,($J$1-1)*8) -> -
B13: Solar térmica | C13: =OFFSET(Renovable!C45,0,($J$1-1)*8) -> 4958.914926 | D13: =OFFSET(Renovable!D45,0,($J$1-1)*8) -> 5085.235514 | E13: =OFFSET(Renovable!E45,0,($J$1-1)*8) -> 5071.201702 | F13: =OFFSET(Renovable!F45,0,($J$1-1)*8) -> 5347.952465 | G13: =OFFSET(Renovable!G45,0,($J$1-1)*8) -> 4424.328609 | H13: =OFFSET(Renovable!H45,0,($J$1-1)*8) -> 166.150133 | I13: =OFFSET(Renovable!I45,0,($J$1-1)*8) -> - | J13: =OFFSET(Renovable!J45,0,($J$1-1)*8) -> -
B14: Térmica renovable (3)/Otras renovables (4) | C14: =OFFSET(Renovable!C46,0,($J$1-1)*8) -> 3805.563474 | D14: =OFFSET(Renovable!D46,0,($J$1-1)*8) -> 3422.566747 | E14: =OFFSET(Renovable!E46,0,($J$1-1)*8) -> 3415.019338 | F14: =OFFSET(Renovable!F46,0,($J$1-1)*8) -> 3599.155882 | G14: =OFFSET(Renovable!G46,0,($J$1-1)*8) -> 3546.118021 | H14: =OFFSET(Renovable!H46,0,($J$1-1)*8) -> 303.393827 | I14: =OFFSET(Renovable!I46,0,($J$1-1)*8) -> - | J14: =OFFSET(Renovable!J46,0,($J$1-1)*8) -> -
B15: Residuos renovables (5) | C15: =OFFSET(Renovable!C47,0,($J$1-1)*8) -> 545.538086 | D15: =OFFSET(Renovable!D47,0,($J$1-1)*8) -> 662.655475 | E15: =OFFSET(Renovable!E47,0,($J$1-1)*8) -> 649.7399105 | F15: =OFFSET(Renovable!F47,0,($J$1-1)*8) -> 728.150433 | G15: =OFFSET(Renovable!G47,0,($J$1-1)*8) -> 732.9706615 | H15: =OFFSET(Renovable!H47,0,($J$1-1)*8) -> 63.503646 | I15: =OFFSET(Renovable!I47,0,($J$1-1)*8) -> - | J15: =OFFSET(Renovable!J47,0,($J$1-1)*8) -> -
B16: Generación renovable | C16: =IF(SUM(C10:C15)=0,"-",SUM(C10:C15)) -> 106927.994 | D16: =IF(SUM(D10:D15)=0,"-",SUM(D10:D15)) -> 93110.66599 | E16: 100124.7772 | F16: 83631.42367 | G16: 99064.68659 | H16: 9106.176514 | I16: - | J16: -
B17: (1) Asignación de unidades de producción según combustible principal.
B18: (2) No incluye la generación bombeo.
B19: (3) Incluye residuos hasta el 31/12/2014.
B20: (4) Otras renovables incluyen biogás, biomasa, hidráulica marina y geotérmica.
B21: (5) El 50% de la generación procedente de residuos sólidos urbanos se considera renovable.
B22: ='Renovable año nacional'!B23:J23 -> Para el año 2019 valores acumulados hasta enero de 2019.

Sheet Renovable mes Baleares
O1: 14
M3: Concepto
M4: Sistema eléctrico
M5: Horizonte temporal
M6: Periodo
C8: Ene. | D8: Feb. | E8: Mar. | F8: Abr. | G8: May. | H8: Jun. | I8: Jul. | J8: Ago. | K8: Sep. | L8: Oct. | M8: Nov. | N8: Dic. | O8: =OFFSET(Año!B18,($O$1-1),0) -> 2019
B10: Eólica | C10: =OFFSET(Renovable!C12,0,($O$1-1)*12) -> 805.427 | D10: =OFFSET(Renovable!D12,0,($O$1-1)*12) -> - | E10: =OFFSET(Renovable!E12,0,($O$1-1)*12) -> - | F10: =OFFSET(Renovable!F12,0,($O$1-1)*12) -> - | G10: =OFFSET(Renovable!G12,0,($O$1-1)*12) -> - | H10: =OFFSET(Renovable!H12,0,($O$1-1)*12) -> - | I10: =OFFSET(Renovable!I12,0,($O$1-1)*12) -> - | J10: =OFFSET(Renovable!J12,0,($O$1-1)*12) -> - | K10: =OFFSET(Renovable!K12,0,($O$1-1)*12) -> - | L10: =OFFSET(Renovable!L12,0,($O$1-1)*12) -> - | M10: =OFFSET(Renovable!M12,0,($O$1-1)*12) -> - | N10: =OFFSET(Renovable!N12,0,($O$1-1)*12) -> - | O10: =IF(SUM(C10:N10)=0,"-",SUM(C10:N10)) -> 805.427
B11: Solar fotovoltaica | C11: =OFFSET(Renovable!C13,0,($O$1-1)*12) -> 7209.645 | D11: =OFFSET(Renovable!D13,0,($O$1-1)*12) -> - | E11: =OFFSET(Renovable!E13,0,($O$1-1)*12) -> - | F11: =OFFSET(Renovable!F13,0,($O$1-1)*12) -> - | G11: =OFFSET(Renovable!G13,0,($O$1-1)*12) -> - | H11: =OFFSET(Renovable!H13,0,($O$1-1)*12) -> - | I11: =OFFSET(Renovable!I13,0,($O$1-1)*12) -> - | J11: =OFFSET(Renovable!J13,0,($O$1-1)*12) -> - | K11: =OFFSET(Renovable!K13,0,($O$1-1)*12) -> - | L11: =OFFSET(Renovable!L13,0,($O$1-1)*12) -> - | M11: =OFFSET(Renovable!M13,0,($O$1-1)*12) -> - | N11: =OFFSET(Renovable!N13,0,($O$1-1)*12) -> - | O11: =IF(SUM(C11:N11)=0,"-",SUM(C11:N11)) -> 7209.645
B12: Térmica renovable/Otras renovables (2) | C12: =OFFSET(Renovable!C14,0,($O$1-1)*12) -> 107.643 | D12: =OFFSET(Renovable!D14,0,($O$1-1)*12) -> - | E12: =OFFSET(Renovable!E14,0,($O$1-1)*12) -> - | F12: =OFFSET(Renovable!F14,0,($O$1-1)*12) -> - | G12: =OFFSET(Renovable!G14,0,($O$1-1)*12) -> - | H12: =OFFSET(Renovable!H14,0,($O$1-1)*12) -> - | I12: =OFFSET(Renovable!I14,0,($O$1-1)*12) -> - | J12: =OFFSET(Renovable!J14,0,($O$1-1)*12) -> - | K12: =OFFSET(Renovable!K14,0,($O$1-1)*12) -> - | L12: =OFFSET(Renovable!L14,0,($O$1-1)*12) -> - | M12: =OFFSET(Renovable!M14,0,($O$1-1)*12) -> - | N12: =OFFSET(Renovable!N14,0,($O$1-1)*12) -> - | O12: =IF(SUM(C12:N12)=0,"-",SUM(C12:N12)) -> 107.643
B13: Residuos renovables (3) | C13: =OFFSET(Renovable!C15,0,($O$1-1)*12) -> 9560.5395 | D13: =OFFSET(Renovable!D15,0,($O$1-1)*12) -> - | E13: =OFFSET(Renovable!E15,0,($O$1-1)*12) -> - | F13: =OFFSET(Renovable!F15,0,($O$1-1)*12) -> - | G13: =OFFSET(Renovable!G15,0,($O$1-1)*12) -> - | H13: =OFFSET(Renovable!H15,0,($O$1-1)*12) -> - | I13: =OFFSET(Renovable!I15,0,($O$1-1)*12) -> - | J13: =OFFSET(Renovable!J15,0,($O$1-1)*12) -> - | K13: =OFFSET(Renovable!K15,0,($O$1-1)*12) -> - | L13: =OFFSET(Renovable!L15,0,($O$1-1)*12) -> - | M13: =OFFSET(Renovable!M15,0,($O$1-1)*12) -> - | N13: =OFFSET(Renovable!N15,0,($O$1-1)*12) -> - | O13: =IF(SUM(C13:N13)=0,"-",SUM(C13:N13)) -> 9560.5395
B14: Generación renovable | C14: =IF(SUM(C10:C13)=0,"-",SUM(C10:C13)) -> 17683.2545 | D14: =IF(SUM(D10:D13)=0,"-",SUM(D10:D13)) -> - | E14: - | F14: - | G14: - | H14: - | I14: - | J14: - | K14: - | L14: - | M14: - | N14: - | O14: =IF(SUM(O10:O13)=0,"-",SUM(O10:O13)) -> 17683.2545
B15: (1) Asignación de unidades de producción según combustible principal.
B16: (2) Otras renovables incluyen biogás y biomasa.
B17: (3) El 50% de la generación procedente de residuos sólidos urbanos se considera renovable.

Sheet Renovable año Baleares
J1: 2
H3: Concepto
H4: Sistema eléctrico
H5: Horizonte temporal
H6: Periodo
C8: =OFFSET(Renovable!C50,0,($J$1-1)*8) -> 2014 | D8: =OFFSET(Renovable!D50,0,($J$1-1)*8) -> 2015 | E8: =OFFSET(Renovable!E50,0,($J$1-1)*8) -> 2016 | F8: =OFFSET(Renovable!F50,0,($J$1-1)*8) -> 2017 | G8: =OFFSET(Renovable!G50,0,($J$1-1)*8) -> 2018 | H8: =OFFSET(Renovable!H50,0,($J$1-1)*8) -> 2019 | I8: =OFFSET(Renovable!I50,0,($J$1-1)*8) -> 2020 | J8: =OFFSET(Renovable!J50,0,($J$1-1)*8) -> 2021
B10: Eólica | C10: =OFFSET(Renovable!C51,0,($J$1-1)*8) -> 5839.578 | D10: =OFFSET(Renovable!D51,0,($J$1-1)*8) -> 5318.228 | E10: =OFFSET(Renovable!E51,0,($J$1-1)*8) -> 5416.058 | F10: =OFFSET(Renovable!F51,0,($J$1-1)*8) -> 2924.276 | G10: =OFFSET(Renovable!G51,0,($J$1-1)*8) -> 3757.171 | H10: =OFFSET(Renovable!H51,0,($J$1-1)*8) -> 805.427 | I10: =OFFSET(Renovable!I51,0,($J$1-1)*8) -> - | J10: =OFFSET(Renovable!J51,0,($J$1-1)*8) -> -
B11: Solar fotovoltaica | C11: =OFFSET(Renovable!C52,0,($J$1-1)*8) -> 122765.689 | D11: =OFFSET(Renovable!D52,0,($J$1-1)*8) -> 122619.803 | E11: =OFFSET(Renovable!E52,0,($J$1-1)*8) -> 120507.53 | F11: =OFFSET(Renovable!F52,0,($J$1-1)*8) -> 123336.995 | G11: =OFFSET(Renovable!G52,0,($J$1-1)*8) -> 112251.642 | H11: =OFFSET(Renovable!H52,0,($J$1-1)*8) -> 7209.645 | I11: =OFFSET(Renovable!I52,0,($J$1-1)*8) -> - | J11: =OFFSET(Renovable!J52,0,($J$1-1)*8) -> -
B12: Térmica renovable/Otras renovables (2) | C12: =OFFSET(Renovable!C53,0,($J$1-1)*8) -> 1945.659 | D12: =OFFSET(Renovable!D53,0,($J$1-1)*8) -> 1971.549 | E12: =OFFSET(Renovable!E53,0,($J$1-1)*8) -> 1309.715 | F12: =OFFSET(Renovable!F53,0,($J$1-1)*8) -> 1626.741 | G12: =OFFSET(Renovable!G53,0,($J$1-1)*8) -> 1332.595 | H12: =OFFSET(Renovable!H53,0,($J$1-1)*8) -> 107.643 | I12: =OFFSET(Renovable!I53,0,($J$1-1)*8) -> - | J12: =OFFSET(Renovable!J53,0,($J$1-1)*8) -> -
B13: Residuos renovables (3) | C13: =OFFSET(Renovable!C54,0,($J$1-1)*8) -> 128084.3295 | D13: =OFFSET(Renovable!D54,0,($J$1-1)*8) -> 151097.7295 | E13: =OFFSET(Renovable!E54,0,($J$1-1)*8) -> 130805.0665 | F13: =OFFSET(Renovable!F54,0,($J$1-1)*8) -> 143878.668 | G13: =OFFSET(Renovable!G54,0,($J$1-1)*8) -> 135757.7445 | H13: =OFFSET(Renovable!H54,0,($J$1-1)*8) -> 9560.5395 | I13: =OFFSET(Renovable!I54,0,($J$1-1)*8) -> - | J13: =OFFSET(Renovable!J54,0,($J$1-1)*8) -> -
B14: Generación renovable | C14: =IF(SUM(C10:C13)=0,"-",SUM(C10:C13)) -> 258635.2555 | D14: =IF(SUM(D10:D13)=0,"-",SUM(D10:D13)) -> 281007.3095 | E14: 258038.3695 | F14: 271766.68 | G14: 253099.1525 | H14: 17683.2545 | I14: - | J14: -
B15: (1) Asignación de unidades de producción según combustible principal.
B16: (2) Otras renovables incluyen biogás y biomasa.
B17: (3) El 50% de la generación procedente de residuos sólidos urbanos se considera renovable.
B18: ='Renovable año nacional'!B23:J23 -> Para el año 2019 valores acumulados hasta enero de 2019.

Sheet Renovable mes Canarias
O1: 14
M3: Concepto
M4: Sistema eléctrico
M5: Horizonte temporal
M6: Periodo
C8: Ene. | D8: Feb. | E8: Mar. | F8: Abr. | G8: May. | H8: Jun. | I8: Jul. | J8: Ago. | K8: Sep. | L8: Oct. | M8: Nov. | N8: Dic. | O8: =OFFSET(Año!B18,($O$1-1),0) -> 2019
B10: Hidráulica | C10: =OFFSET(Renovable!C19,0,($O$1-1)*12) -> 292.916 | D10: =OFFSET(Renovable!D19,0,($O$1-1)*12) -> - | E10: =OFFSET(Renovable!E19,0,($O$1-1)*12) -> - | F10: =OFFSET(Renovable!F19,0,($O$1-1)*12) -> - | G10: =OFFSET(Renovable!G19,0,($O$1-1)*12) -> - | H10: =OFFSET(Renovable!H19,0,($O$1-1)*12) -> - | I10: =OFFSET(Renovable!I19,0,($O$1-1)*12) -> - | J10: =OFFSET(Renovable!J19,0,($O$1-1)*12) -> - | K10: =OFFSET(Renovable!K19,0,($O$1-1)*12) -> - | L10: =OFFSET(Renovable!L19,0,($O$1-1)*12) -> - | M10: =OFFSET(Renovable!M19,0,($O$1-1)*12) -> - | N10: =OFFSET(Renovable!N19,0,($O$1-1)*12) -> - | O10: =IF(SUM(C10:N10)=0,"-",SUM(C10:N10)) -> 292.916
B11: Hidroeólica | C11: =OFFSET(Renovable!C20,0,($O$1-1)*12) -> 1109.656 | D11: =OFFSET(Renovable!D20,0,($O$1-1)*12) -> - | E11: =OFFSET(Renovable!E20,0,($O$1-1)*12) -> - | F11: =OFFSET(Renovable!F20,0,($O$1-1)*12) -> - | G11: =OFFSET(Renovable!G20,0,($O$1-1)*12) -> - | H11: =OFFSET(Renovable!H20,0,($O$1-1)*12) -> - | I11: =OFFSET(Renovable!I20,0,($O$1-1)*12) -> - | J11: =OFFSET(Renovable!J20,0,($O$1-1)*12) -> - | K11: =OFFSET(Renovable!K20,0,($O$1-1)*12) -> - | L11: =OFFSET(Renovable!L20,0,($O$1-1)*12) -> - | M11: =OFFSET(Renovable!M20,0,($O$1-1)*12) -> - | N11: =OFFSET(Renovable!N20,0,($O$1-1)*12) -> - | O11: 1109.656
B12: Eólica | C12: =OFFSET(Renovable!C21,0,($O$1-1)*12) -> 55782.075 | D12: =OFFSET(Renovable!D21,0,($O$1-1)*12) -> - | E12: =OFFSET(Renovable!E21,0,($O$1-1)*12) -> - | F12: =OFFSET(Renovable!F21,0,($O$1-1)*12) -> - | G12: =OFFSET(Renovable!G21,0,($O$1-1)*12) -> - | H12: =OFFSET(Renovable!H21,0,($O$1-1)*12) -> - | I12: =OFFSET(Renovable!I21,0,($O$1-1)*12) -> - | J12: =OFFSET(Renovable!J21,0,($O$1-1)*12) -> - | K12: =OFFSET(Renovable!K21,0,($O$1-1)*12) -> - | L12: =OFFSET(Renovable!L21,0,($O$1-1)*12) -> - | M12: =OFFSET(Renovable!M21,0,($O$1-1)*12) -> - | N12: =OFFSET(Renovable!N21,0,($O$1-1)*12) -> - | O12: 55782.075
B13: Solar fotovoltaica | C13: =OFFSET(Renovable!C22,0,($O$1-1)*12) -> 17483.565 | D13: =OFFSET(Renovable!D22,0,($O$1-1)*12) -> - | E13: =OFFSET(Renovable!E22,0,($O$1-1)*12) -> - | F13: =OFFSET(Renovable!F22,0,($O$1-1)*12) -> - | G13: =OFFSET(Renovable!G22,0,($O$1-1)*12) -> - | H13: =OFFSET(Renovable!H22,0,($O$1-1)*12) -> - | I13: =OFFSET(Renovable!I22,0,($O$1-1)*12) -> - | J13: =OFFSET(Renovable!J22,0,($O$1-1)*12) -> - | K13: =OFFSET(Renovable!K22,0,($O$1-1)*12) -> - | L13: =OFFSET(Renovable!L22,0,($O$1-1)*12) -> - | M13: =OFFSET(Renovable!M22,0,($O$1-1)*12) -> - | N13: =OFFSET(Renovable!N22,0,($O$1-1)*12) -> - | O13: 17483.565
B14: Térmica renovable/Otras renovables (2) | C14: =OFFSET(Renovable!C23,0,($O$1-1)*12) -> 963.329 | D14: =OFFSET(Renovable!D23,0,($O$1-1)*12) -> - | E14: =OFFSET(Renovable!E23,0,($O$1-1)*12) -> - | F14: =OFFSET(Renovable!F23,0,($O$1-1)*12) -> - | G14: =OFFSET(Renovable!G23,0,($O$1-1)*12) -> - | H14: =OFFSET(Renovable!H23,0,($O$1-1)*12) -> - | I14: =OFFSET(Renovable!I23,0,($O$1-1)*12) -> - | J14: =OFFSET(Renovable!J23,0,($O$1-1)*12) -> - | K14: =OFFSET(Renovable!K23,0,($O$1-1)*12) -> - | L14: =OFFSET(Renovable!L23,0,($O$1-1)*12) -> - | M14: =OFFSET(Renovable!M23,0,($O$1-1)*12) -> - | N14: =OFFSET(Renovable!N23,0,($O$1-1)*12) -> - | O14: 963.329
B15: Generación renovable | C15: =IF(SUM(C10:C14)=0,"-",SUM(C10:C14)) -> 75631.541 | D15: =IF(SUM(D10:D14)=0,"-",SUM(D10:D14)) -> - | E15: - | F15: - | G15: - | H15: - | I15: - | J15: - | K15: - | L15: - | M15: - | N15: - | O15: 75631.541
B16: (1) Asignación de unidades de producción según combustible principal.
B17: (2) Otras renovables incluyen biogás y biomasa.

Sheet Renovable año Canarias
J1: 2
H3: Concepto
H4: Sistema eléctrico
H5: Horizonte temporal
H6: Periodo
C8: =OFFSET(Renovable!C57,0,($J$1-1)*8) -> 2014 | D8: =OFFSET(Renovable!D57,0,($J$1-1)*8) -> 2015 | E8: =OFFSET(Renovable!E57,0,($J$1-1)*8) -> 2016 | F8: =OFFSET(Renovable!F57,0,($J$1-1)*8) -> 2017 | G8: =OFFSET(Renovable!G57,0,($J$1-1)*8) -> 2018 | H8: =OFFSET(Renovable!H57,0,($J$1-1)*8) -> 2019 | I8: =OFFSET(Renovable!I57,0,($J$1-1)*8) -> 2020 | J8: =OFFSET(Renovable!J57,0,($J$1-1)*8) -> 2021
B10: Hidráulica | C10: =OFFSET(Renovable!C58,0,($J$1-1)*8) -> 3461.056 | D10: =OFFSET(Renovable!D58,0,($J$1-1)*8) -> 3568.393 | E10: =OFFSET(Renovable!E58,0,($J$1-1)*8) -> 3453.961 | F10: =OFFSET(Renovable!F58,0,($J$1-1)*8) -> 3271.979 | G10: =OFFSET(Renovable!G58,0,($J$1-1)*8) -> 3275.909 | H10: =OFFSET(Renovable!H58,0,($J$1-1)*8) -> 292.916 | I10: =OFFSET(Renovable!I58,0,($J$1-1)*8) -> - | J10: =OFFSET(Renovable!J58,0,($J$1-1)*8) -> -
B11: Hidroeólica | C11: =OFFSET(Renovable!C59,0,($J$1-1)*8) -> 728.837 | D11: =OFFSET(Renovable!D59,0,($J$1-1)*8) -> 8207.424 | E11: =OFFSET(Renovable!E59,0,($J$1-1)*8) -> 17891.936 | F11: =OFFSET(Renovable!F59,0,($J$1-1)*8) -> 20233.057 | G11: =OFFSET(Renovable!G59,0,($J$1-1)*8) -> 23655.544 | H11: =OFFSET(Renovable!H59,0,($J$1-1)*8) -> 1109.656 | I11: =OFFSET(Renovable!I59,0,($J$1-1)*8) -> - | J11: =OFFSET(Renovable!J59,0,($J$1-1)*8) -> -
B12: Eólica | C12: =OFFSET(Renovable!C60,0,($J$1-1)*8) -> 389528.806 | D12: =OFFSET(Renovable!D60,0,($J$1-1)*8) -> 396687.143 | E12: =OFFSET(Renovable!E60,0,($J$1-1)*8) -> 393080.583 | F12: =OFFSET(Renovable!F60,0,($J$1-1)*8) -> 395925.333 | G12: =OFFSET(Renovable!G60,0,($J$1-1)*8) -> 620570.704 | H12: =OFFSET(Renovable!H60,0,($J$1-1)*8) -> 55782.075 | I12: =OFFSET(Renovable!I60,0,($J$1-1)*8) -> - | J12: =OFFSET(Renovable!J60,0,($J$1-1)*8) -> -
B13: Solar fotovoltaica | C13: =OFFSET(Renovable!C61,0,($J$1-1)*8) -> 282285.689 | D13: =OFFSET(Renovable!D61,0,($J$1-1)*8) -> 275546.605 | E13: =OFFSET(Renovable!E61,0,($J$1-1)*8) -> 277661.343 | F13: =OFFSET(Renovable!F61,0,($J$1-1)*8) -> 273626.665 | G13: =OFFSET(Renovable!G61,0,($J$1-1)*8) -> 271613.212 | H13: =OFFSET(Renovable!H61,0,($J$1-1)*8) -> 17483.565 | I13: =OFFSET(Renovable!I61,0,($J$1-1)*8) -> - | J13: =OFFSET(Renovable!J61,0,($J$1-1)*8) -> -
B14: Térmica renovable/Otras renovables (2) | C14: =OFFSET(Renovable!C62,0,($J$1-1)*8) -> 8806.584 | D14: =OFFSET(Renovable!D62,0,($J$1-1)*8) -> 8053.625 | E14: =OFFSET(Renovable!E62,0,($J$1-1)*8) -> 9335.775 | F14: =OFFSET(Renovable!F62,0,($J$1-1)*8) -> 9565.259 | G14: =OFFSET(Renovable!G62,0,($J$1-1)*8) -> 8931.597 | H14: =OFFSET(Renovable!H62,0,($J$1-1)*8) -> 963.329 | I14: =OFFSET(Renovable!I62,0,($J$1-1)*8) -> - | J14: =OFFSET(Renovable!J62,0,($J$1-1)*8) -> -
B15: Generación renovable | C15: =IF(SUM(C10:C14)=0,"-",SUM(C10:C14)) -> 684810.972 | D15: =IF(SUM(D10:D14)=0,"-",SUM(D10:D14)) -> 692063.19 | E15: 701423.598 | F15: 702622.293 | G15: 928046.966 | H15: 75631.541 | I15: - | J15: -
B16: (1) Asignación de unidades de producción según combustible principal.
B17: (2) Otras renovables incluyen biogás y biomasa.
B18: ='Renovable año nacional'!B23:J23 -> Para el año 2019 valores acumulados hasta enero de 2019.

Sheet Renovable mes Melilla
O1: 13
M3: Concepto
M4: Sistema eléctrico
M5: Horizonte temporal
M6: Periodo
C8: Ene. | D8: Feb. | E8: Mar. | F8: Abr. | G8: May. | H8: Jun. | I8: Jul. | J8: Ago. | K8: Sep. | L8: Oct. | M8: Nov. | N8: Dic. | O8: =OFFSET(Año!B19,($O$1-1),0) -> 2019
B10: Solar fotovoltaica | C10: =OFFSET(Renovable!C27,0,($O$1-1)*12) -> 5.053 | D10: =OFFSET(Renovable!D27,0,($O$1-1)*12) -> - | E10: =OFFSET(Renovable!E27,0,($O$1-1)*12) -> - | F10: =OFFSET(Renovable!F27,0,($O$1-1)*12) -> - | G10: =OFFSET(Renovable!G27,0,($O$1-1)*12) -> - | H10: =OFFSET(Renovable!H27,0,($O$1-1)*12) -> - | I10: =OFFSET(Renovable!I27,0,($O$1-1)*12) -> - | J10: =OFFSET(Renovable!J27,0,($O$1-1)*12) -> - | K10: =OFFSET(Renovable!K27,0,($O$1-1)*12) -> - | L10: =OFFSET(Renovable!L27,0,($O$1-1)*12) -> - | M10: =OFFSET(Renovable!M27,0,($O$1-1)*12) -> - | N10: =OFFSET(Renovable!N27,0,($O$1-1)*12) -> - | O10: =IF(SUM(C10:N10)=0,"-",SUM(C10:N10)) -> 5.053
B11: Residuos renovables (2) | C11: =OFFSET(Renovable!C28,0,($O$1-1)*12) -> 549.424 | D11: =OFFSET(Renovable!D28,0,($O$1-1)*12) -> - | E11: =OFFSET(Renovable!E28,0,($O$1-1)*12) -> - | F11: =OFFSET(Renovable!F28,0,($O$1-1)*12) -> - | G11: =OFFSET(Renovable!G28,0,($O$1-1)*12) -> - | H11: =OFFSET(Renovable!H28,0,($O$1-1)*12) -> - | I11: =OFFSET(Renovable!I28,0,($O$1-1)*12) -> - | J11: =OFFSET(Renovable!J28,0,($O$1-1)*12) -> - | K11: =OFFSET(Renovable!K28,0,($O$1-1)*12) -> - | L11: =OFFSET(Renovable!L28,0,($O$1-1)*12) -> - | M11: =OFFSET(Renovable!M28,0,($O$1-1)*12) -> - | N11: =OFFSET(Renovable!N28,0,($O$1-1)*12) -> - | O11: =IF(SUM(C11:N11)=0,"-",SUM(C11:N11)) -> 549.424
B12: Generación renovable | C12: =IF(SUM(C10:C11)=0,"-",SUM(C10:C11)) -> 554.477 | D12: - | E12: - | F12: - | G12: - | H12: =IF(SUM(H10:H11)=0,"-",SUM(H10:H11)) -> - | I12: =IF(SUM(I10:I11)=0,"-",SUM(I10:I11)) -> - | J12: - | K12: - | L12: - | M12: - | N12: - | O12: =SUM(O10:O11) -> 554.477
B13: (1) Asignación de unidades de producción según combustible principal.
B14: (2) El 50% de la generación procedente de residuos sólidos urbanos se considera renovable.

Sheet Renovable año Melilla
J1: 2
H3: Concepto
H4: Sistema eléctrico
H5: Horizonte temporal
H6: Periodo
C8: =OFFSET(Renovable!C65,0,($J$1-1)*8) -> 2015 | D8: =OFFSET(Renovable!D65,0,($J$1-1)*8) -> 2016 | E8: =OFFSET(Renovable!E65,0,($J$1-1)*8) -> 2017 | F8: =OFFSET(Renovable!F65,0,($J$1-1)*8) -> 2018 | G8: =OFFSET(Renovable!G65,0,($J$1-1)*8) -> 2019 | H8: =OFFSET(Renovable!H65,0,($J$1-1)*8) -> 2020 | I8: =OFFSET(Renovable!I65,0,($J$1-1)*8) -> 2021 | J8: =OFFSET(Renovable!J65,0,($J$1-1)*8) -> 2022
B10: Solar fotovoltaica | C10: =OFFSET(Renovable!C66,0,($J$1-1)*8) -> 79.96 | D10: =OFFSET(Renovable!D66,0,($J$1-1)*8) -> 80.1 | E10: =OFFSET(Renovable!E66,0,($J$1-1)*8) -> 76.869 | F10: =OFFSET(Renovable!F66,0,($J$1-1)*8) -> 74.611 | G10: =OFFSET(Renovable!G66,0,($J$1-1)*8) -> 5.053 | H10: =OFFSET(Renovable!H66,0,($J$1-1)*8) -> - | I10: =OFFSET(Renovable!I66,0,($J$1-1)*8) -> - | J10: =OFFSET(Renovable!J66,0,($J$1-1)*8) -> -
B11: Residuos renovables (2) | C11: =OFFSET(Renovable!C67,0,($J$1-1)*8) -> 4296.498 | D11: =OFFSET(Renovable!D67,0,($J$1-1)*8) -> 4850.0525 | E11: =OFFSET(Renovable!E67,0,($J$1-1)*8) -> 4976.986 | F11: =OFFSET(Renovable!F67,0,($J$1-1)*8) -> 5346.839 | G11: =OFFSET(Renovable!G67,0,($J$1-1)*8) -> 549.424 | H11: =OFFSET(Renovable!H67,0,($J$1-1)*8) -> - | I11: =OFFSET(Renovable!I67,0,($J$1-1)*8) -> - | J11: =OFFSET(Renovable!J67,0,($J$1-1)*8) -> -
B12: Generación renovable | C12: =IF(SUM(C10:C11)>0,SUM(C10:C11),"-") -> 4376.458 | D12: =IF(SUM(D10:D11)>0,SUM(D10:D11),"-") -> 4930.1525 | E12: 5053.855 | F12: 5421.45 | G12: 554.477 | H12: - | I12: - | J12: -
B13: (1) Asignación de unidades de producción según combustible principal.
B14: (2) El 50% de la generación procedente de residuos sólidos urbanos se considera renovable.
B15: ='Renovable año nacional'!B23:J23 -> Para el año 2019 valores acumulados hasta enero de 2019.

Sheet % Renovable mes nacional
O1: 13
M3: Concepto
M4: Sistema eléctrico
M5: Horizonte temporal
M6: Periodo
C8: Ene. | D8: Feb. | E8: Mar. | F8: Abr. | G8: May. | H8: Jun. | I8: Jul. | J8: Ago. | K8: Sep. | L8: Oct. | M8: Nov. | N8: Dic. | O8: =OFFSET(Año!B19,($O$1-1),0) -> 2019
B10: Hidráulica (2) | C10: =OFFSET(Renovable!C110,0,($O$1-1)*12) -> 8.7 | D10: =OFFSET(Renovable!D110,0,($O$1-1)*12) -> - | E10: =OFFSET(Renovable!E110,0,($O$1-1)*12) -> - | F10: =OFFSET(Renovable!F110,0,($O$1-1)*12) -> - | G10: =OFFSET(Renovable!G110,0,($O$1-1)*12) -> - | H10: =OFFSET(Renovable!H110,0,($O$1-1)*12) -> - | I10: =OFFSET(Renovable!I110,0,($O$1-1)*12) -> - | J10: =OFFSET(Renovable!J110,0,($O$1-1)*12) -> - | K10: =OFFSET(Renovable!K110,0,($O$1-1)*12) -> - | L10: =OFFSET(Renovable!L110,0,($O$1-1)*12) -> - | M10: =OFFSET(Renovable!M110,0,($O$1-1)*12) -> - | N10: =OFFSET(Renovable!N110,0,($O$1-1)*12) -> - | O10: =OFFSET(Renovable!C149,0,($O$1-1)) -> 8.7
B11: Hidroeólica | C11: =OFFSET(Renovable!C111,0,($O$1-1)*12) -> 0 | D11: =OFFSET(Renovable!D111,0,($O$1-1)*12) -> - | E11: =OFFSET(Renovable!E111,0,($O$1-1)*12) -> - | F11: =OFFSET(Renovable!F111,0,($O$1-1)*12) -> - | G11: =OFFSET(Renovable!G111,0,($O$1-1)*12) -> - | H11: =OFFSET(Renovable!H111,0,($O$1-1)*12) -> - | I11: =OFFSET(Renovable!I111,0,($O$1-1)*12) -> - | J11: =OFFSET(Renovable!J111,0,($O$1-1)*12) -> - | K11: =OFFSET(Renovable!K111,0,($O$1-1)*12) -> - | L11: =OFFSET(Renovable!L111,0,($O$1-1)*12) -> - | M11: =OFFSET(Renovable!M111,0,($O$1-1)*12) -> - | N11: =OFFSET(Renovable!N111,0,($O$1-1)*12) -> - | O11: =OFFSET(Renovable!C150,0,($O$1-1)) -> 0
B12: Eólica | C12: =OFFSET(Renovable!C112,0,($O$1-1)*12) -> 24.5 | D12: =OFFSET(Renovable!D112,0,($O$1-1)*12) -> - | E12: =OFFSET(Renovable!E112,0,($O$1-1)*12) -> - | F12: =OFFSET(Renovable!F112,0,($O$1-1)*12) -> - | G12: =OFFSET(Renovable!G112,0,($O$1-1)*12) -> - | H12: =OFFSET(Renovable!H112,0,($O$1-1)*12) -> - | I12: =OFFSET(Renovable!I112,0,($O$1-1)*12) -> - | J12: =OFFSET(Renovable!J112,0,($O$1-1)*12) -> - | K12: =OFFSET(Renovable!K112,0,($O$1-1)*12) -> - | L12: =OFFSET(Renovable!L112,0,($O$1-1)*12) -> - | M12: =OFFSET(Renovable!M112,0,($O$1-1)*12) -> - | N12: =OFFSET(Renovable!N112,0,($O$1-1)*12) -> - | O12: =OFFSET(Renovable!C151,0,($O$1-1)) -> 24.5
B13: Solar fotovoltaica | C13: =OFFSET(Renovable!C113,0,($O$1-1)*12) -> 2 | D13: =OFFSET(Renovable!D113,0,($O$1-1)*12) -> - | E13: =OFFSET(Renovable!E113,0,($O$1-1)*12) -> - | F13: =OFFSET(Renovable!F113,0,($O$1-1)*12) -> - | G13: =OFFSET(Renovable!G113,0,($O$1-1)*12) -> - | H13: =OFFSET(Renovable!H113,0,($O$1-1)*12) -> - | I13: =OFFSET(Renovable!I113,0,($O$1-1)*12) -> - | J13: =OFFSET(Renovable!J113,0,($O$1-1)*12) -> - | K13: =OFFSET(Renovable!K113,0,($O$1-1)*12) -> - | L13: =OFFSET(Renovable!L113,0,($O$1-1)*12) -> - | M13: =OFFSET(Renovable!M113,0,($O$1-1)*12) -> - | N13: =OFFSET(Renovable!N113,0,($O$1-1)*12) -> - | O13: =OFFSET(Renovable!C152,0,($O$1-1)) -> 2
B14: Solar térmica | C14: =OFFSET(Renovable!C114,0,($O$1-1)*12) -> 0.7 | D14: =OFFSET(Renovable!D114,0,($O$1-1)*12) -> - | E14: =OFFSET(Renovable!E114,0,($O$1-1)*12) -> - | F14: =OFFSET(Renovable!F114,0,($O$1-1)*12) -> - | G14: =OFFSET(Renovable!G114,0,($O$1-1)*12) -> - | H14: =OFFSET(Renovable!H114,0,($O$1-1)*12) -> - | I14: =OFFSET(Renovable!I114,0,($O$1-1)*12) -> - | J14: =OFFSET(Renovable!J114,0,($O$1-1)*12) -> - | K14: =OFFSET(Renovable!K114,0,($O$1-1)*12) -> - | L14: =OFFSET(Renovable!L114,0,($O$1-1)*12) -> - | M14: =OFFSET(Renovable!M114,0,($O$1-1)*12) -> - | N14: =OFFSET(Renovable!N114,0,($O$1-1)*12) -> - | O14: =OFFSET(Renovable!C153,0,($O$1-1)) -> 0.7
B15: Térmica renovable (3)/Otras renovables (4) | C15: =OFFSET(Renovable!C115,0,($O$1-1)*12) -> 1.2 | D15: =OFFSET(Renovable!D115,0,($O$1-1)*12) -> - | E15: =OFFSET(Renovable!E115,0,($O$1-1)*12) -> - | F15: =OFFSET(Renovable!F115,0,($O$1-1)*12) -> - | G15: =OFFSET(Renovable!G115,0,($O$1-1)*12) -> - | H15: =OFFSET(Renovable!H115,0,($O$1-1)*12) -> - | I15: =OFFSET(Renovable!I115,0,($O$1-1)*12) -> - | J15: =OFFSET(Renovable!J115,0,($O$1-1)*12) -> - | K15: =OFFSET(Renovable!K115,0,($O$1-1)*12) -> - | L15: =OFFSET(Renovable!L115,0,($O$1-1)*12) -> - | M15: =OFFSET(Renovable!M115,0,($O$1-1)*12) -> - | N15: =OFFSET(Renovable!N115,0,($O$1-1)*12) -> - | O15: =OFFSET(Renovable!C154,0,($O$1-1)) -> 1.2
B16: Residuos renovables (5) | C16: =OFFSET(Renovable!C116,0,($O$1-1)*12) -> 0.3 | D16: =OFFSET(Renovable!D116,0,($O$1-1)*12) -> - | E16: =OFFSET(Renovable!E116,0,($O$1-1)*12) -> - | F16: =OFFSET(Renovable!F116,0,($O$1-1)*12) -> - | G16: =OFFSET(Renovable!G116,0,($O$1-1)*12) -> - | H16: =OFFSET(Renovable!H116,0,($O$1-1)*12) -> - | I16: =OFFSET(Renovable!I116,0,($O$1-1)*12) -> - | J16: =OFFSET(Renovable!J116,0,($O$1-1)*12) -> - | K16: =OFFSET(Renovable!K116,0,($O$1-1)*12) -> - | L16: =OFFSET(Renovable!L116,0,($O$1-1)*12) -> - | M16: =OFFSET(Renovable!M116,0,($O$1-1)*12) -> - | N16: =OFFSET(Renovable!N116,0,($O$1-1)*12) -> - | O16: =OFFSET(Renovable!C155,0,($O$1-1)) -> 0.3
B17: Generación renovable | C17: =IF(SUM(C10:C16)=0,"-",SUM(C10:C16)) -> 37.4 | D17: =IF(SUM(D10:D16)=0,"-",SUM(D10:D16)) -> - | E17: - | F17: - | G17: - | H17: - | I17: - | J17: - | K17: - | L17: - | M17: - | N17: - | O17: =IF(SUM(O10:O16)=0,"-",SUM(O10:O16)) -> 37.4
B18: (1) Asignación de unidades de producción según combustible principal.
B19: (2) No incluye la generación bombeo.
B20: (3) Incluye residuos hasta el 31/12/2014.
B21: (4) Otras renovables incluyen biogás, biomasa, hidráulica marina y geotérmica.
B22: (5) El 50% de la generación procedente de residuos sólidos urbanos se considera renovable.

Sheet % Renovable año nacional
J1: 2
H3: Concepto
H4: Sistema eléctrico
H5: Horizonte temporal
H6: Periodo
C8: =OFFSET(Renovable!C148,0,($J$1-1)*8) -> 2015 | D8: =OFFSET(Renovable!D148,0,($J$1-1)*8) -> 2016 | E8: =OFFSET(Renovable!E148,0,($J$1-1)*8) -> 2017 | F8: =OFFSET(Renovable!F148,0,($J$1-1)*8) -> 2018 | G8: =OFFSET(Renovable!G148,0,($J$1-1)*8) -> 2019 | H8: =OFFSET(Renovable!H148,0,($J$1-1)*8) -> 2020 | I8: =OFFSET(Renovable!I148,0,($J$1-1)*8) -> 2021 | J8: =OFFSET(Renovable!J148,0,($J$1-1)*8) -> 2022
B10: Hidráulica (2) | C10: =OFFSET(Renovable!C149,0,($J$1-1)*8) -> 10.6 | D10: =OFFSET(Renovable!D149,0,($J$1-1)*8) -> 13.8 | E10: =OFFSET(Renovable!E149,0,($J$1-1)*8) -> 7 | F10: =OFFSET(Renovable!F149,0,($J$1-1)*8) -> 13.1 | G10: =OFFSET(Renovable!G149,0,($J$1-1)*8) -> 8.7 | H10: =OFFSET(Renovable!H149,0,($J$1-1)*8) -> - | I10: =OFFSET(Renovable!I149,0,($J$1-1)*8) -> - | J10: =OFFSET(Renovable!J149,0,($J$1-1)*8) -> -
B11: Hidroeólica | C11: =OFFSET(Renovable!C150,0,($J$1-1)*8) -> 0 | D11: =OFFSET(Renovable!D150,0,($J$1-1)*8) -> 0 | E11: =OFFSET(Renovable!E150,0,($J$1-1)*8) -> 0 | F11: =OFFSET(Renovable!F150,0,($J$1-1)*8) -> 0 | G11: =OFFSET(Renovable!G150,0,($J$1-1)*8) -> 0 | H11: =OFFSET(Renovable!H150,0,($J$1-1)*8) -> - | I11: =OFFSET(Renovable!I150,0,($J$1-1)*8) -> - | J11: =OFFSET(Renovable!J150,0,($J$1-1)*8) -> -
B12: Eólica | C12: =OFFSET(Renovable!C151,0,($J$1-1)*8) -> 18 | D12: =OFFSET(Renovable!D151,0,($J$1-1)*8) -> 18.2 | E12: =OFFSET(Renovable!E151,0,($J$1-1)*8) -> 18.3 | F12: =OFFSET(Renovable!F151,0,($J$1-1)*8) -> 19 | G12: =OFFSET(Renovable!G151,0,($J$1-1)*8) -> 24.5 | H12: =OFFSET(Renovable!H151,0,($J$1-1)*8) -> - | I12: =OFFSET(Renovable!I151,0,($J$1-1)*8) -> - | J12: =OFFSET(Renovable!J151,0,($J$1-1)*8) -> -
B13: Solar fotovoltaica | C13: =OFFSET(Renovable!C152,0,($J$1-1)*8) -> 3.1 | D13: =OFFSET(Renovable!D152,0,($J$1-1)*8) -> 3 | E13: =OFFSET(Renovable!E152,0,($J$1-1)*8) -> 3.2 | F13: =OFFSET(Renovable!F152,0,($J$1-1)*8) -> 3 | G13: =OFFSET(Renovable!G152,0,($J$1-1)*8) -> 2 | H13: =OFFSET(Renovable!H152,0,($J$1-1)*8) -> - | I13: =OFFSET(Renovable!I152,0,($J$1-1)*8) -> - | J13: =OFFSET(Renovable!J152,0,($J$1-1)*8) -> -
B14: Solar térmica | C14: =OFFSET(Renovable!C153,0,($J$1-1)*8) -> 1.9 | D14: =OFFSET(Renovable!D153,0,($J$1-1)*8) -> 1.9 | E14: =OFFSET(Renovable!E153,0,($J$1-1)*8) -> 2 | F14: =OFFSET(Renovable!F153,0,($J$1-1)*8) -> 1.7 | G14: =OFFSET(Renovable!G153,0,($J$1-1)*8) -> 0.7 | H14: =OFFSET(Renovable!H153,0,($J$1-1)*8) -> - | I14: =OFFSET(Renovable!I153,0,($J$1-1)*8) -> - | J14: =OFFSET(Renovable!J153,0,($J$1-1)*8) -> -
B15: Térmica renovable (3)/Otras renovables (4) | C15: =OFFSET(Renovable!C154,0,($J$1-1)*8) -> 1.3 | D15: =OFFSET(Renovable!D154,0,($J$1-1)*8) -> 1.3 | E15: =OFFSET(Renovable!E154,0,($J$1-1)*8) -> 1.4 | F15: =OFFSET(Renovable!F154,0,($J$1-1)*8) -> 1.4 | G15: =OFFSET(Renovable!G154,0,($J$1-1)*8) -> 1.2 | H15: =OFFSET(Renovable!H154,0,($J$1-1)*8) -> - | I15: =OFFSET(Renovable!I154,0,($J$1-1)*8) -> - | J15: =OFFSET(Renovable!J154,0,($J$1-1)*8) -> -
B16: Residuos renovables (5) | C16: =OFFSET(Renovable!C155,0,($J$1-1)*8) -> 0.3 | D16: =OFFSET(Renovable!D155,0,($J$1-1)*8) -> 0.3 | E16: =OFFSET(Renovable!E155,0,($J$1-1)*8) -> 0.3 | F16: =OFFSET(Renovable!F155,0,($J$1-1)*8) -> 0.3 | G16: =OFFSET(Renovable!G155,0,($J$1-1)*8) -> 0.3 | H16: =OFFSET(Renovable!H155,0,($J$1-1)*8) -> - | I16: =OFFSET(Renovable!I155,0,($J$1-1)*8) -> - | J16: =OFFSET(Renovable!J155,0,($J$1-1)*8) -> -
B17: Generación renovable | C17: =IF(SUM(C10:C16)=0,"-",SUM(C10:C16)) -> 35.2 | D17: =IF(SUM(D10:D16)=0,"-",SUM(D10:D16)) -> 38.5 | E17: =IF(SUM(E10:E16)=0,"-",SUM(E10:E16)) -> 32.2 | F17: 38.5 | G17: 37.4 | H17: - | I17: - | J17: -
B18: (1) Asignación de unidades de producción según combustible principal.
B19: (2) No incluye la generación bombeo.
B20: (3) Incluye residuos hasta el 31/12/2014.
B21: (4) Otras renovables incluyen biogás, biomasa, hidráulica marina y geotérmica.
B22: (5) El 50% de la generación procedente de residuos sólidos urbanos se considera renovable.
B23: ='Renovable año nacional'!B23:J23 -> Para el año 2019 valores acumulados hasta enero de 2019.

Sheet % Renovable mes Peninsular
O1: 30
M3: Concepto
M4: Sistema eléctrico
M5: Horizonte temporal
M6: Periodo
C8: Ene. | D8: Feb. | E8: Mar. | F8: Abr. | G8: May. | H8: Jun. | I8: Jul. | J8: Ago. | K8: Sep. | L8: Oct. | M8: Nov. | N8: Dic. | O8: =OFFSET(Año!B2,($O$1-1),0) -> 2019
B10: Hidráulica (2) | C10: =OFFSET(Renovable!C81,0,($O$1-1)*12) -> 9.1 | D10: =OFFSET(Renovable!D81,0,($O$1-1)*12) -> - | E10: =OFFSET(Renovable!E81,0,($O$1-1)*12) -> - | F10: =OFFSET(Renovable!F81,0,($O$1-1)*12) -> - | G10: =OFFSET(Renovable!G81,0,($O$1-1)*12) -> - | H10: =OFFSET(Renovable!H81,0,($O$1-1)*12) -> - | I10: =OFFSET(Renovable!I81,0,($O$1-1)*12) -> - | J10: =OFFSET(Renovable!J81,0,($O$1-1)*12) -> - | K10: =OFFSET(Renovable!K81,0,($O$1-1)*12) -> - | L10: =OFFSET(Renovable!L81,0,($O$1-1)*12) -> - | M10: =OFFSET(Renovable!M81,0,($O$1-1)*12) -> - | N10: =OFFSET(Renovable!N81,0,($O$1-1)*12) -> - | O10: =OFFSET(Renovable!C120,0,($O$1-1)) -> 9.1
B11: Eólica | C11: =OFFSET(Renovable!C82,0,($O$1-1)*12) -> 25.5 | D11: =OFFSET(Renovable!D82,0,($O$1-1)*12) -> - | E11: =OFFSET(Renovable!E82,0,($O$1-1)*12) -> - | F11: =OFFSET(Renovable!F82,0,($O$1-1)*12) -> - | G11: =OFFSET(Renovable!G82,0,($O$1-1)*12) -> - | H11: =OFFSET(Renovable!H82,0,($O$1-1)*12) -> - | I11: =OFFSET(Renovable!I82,0,($O$1-1)*12) -> - | J11: =OFFSET(Renovable!J82,0,($O$1-1)*12) -> - | K11: =OFFSET(Renovable!K82,0,($O$1-1)*12) -> - | L11: =OFFSET(Renovable!L82,0,($O$1-1)*12) -> - | M11: =OFFSET(Renovable!M82,0,($O$1-1)*12) -> - | N11: =OFFSET(Renovable!N82,0,($O$1-1)*12) -> - | O11: =OFFSET(Renovable!C121,0,($O$1-1)) -> 25.5
B12: Solar fotovoltaica | C12: =OFFSET(Renovable!C83,0,($O$1-1)*12) -> 2 | D12: =OFFSET(Renovable!D83,0,($O$1-1)*12) -> - | E12: =OFFSET(Renovable!E83,0,($O$1-1)*12) -> - | F12: =OFFSET(Renovable!F83,0,($O$1-1)*12) -> - | G12: =OFFSET(Renovable!G83,0,($O$1-1)*12) -> - | H12: =OFFSET(Renovable!H83,0,($O$1-1)*12) -> - | I12: =OFFSET(Renovable!I83,0,($O$1-1)*12) -> - | J12: =OFFSET(Renovable!J83,0,($O$1-1)*12) -> - | K12: =OFFSET(Renovable!K83,0,($O$1-1)*12) -> - | L12: =OFFSET(Renovable!L83,0,($O$1-1)*12) -> - | M12: =OFFSET(Renovable!M83,0,($O$1-1)*12) -> - | N12: =OFFSET(Renovable!N83,0,($O$1-1)*12) -> - | O12: =OFFSET(Renovable!C122,0,($O$1-1)) -> 2
B13: Solar térmica | C13: =OFFSET(Renovable!C84,0,($O$1-1)*12) -> 0.7 | D13: =OFFSET(Renovable!D84,0,($O$1-1)*12) -> - | E13: =OFFSET(Renovable!E84,0,($O$1-1)*12) -> - | F13: =OFFSET(Renovable!F84,0,($O$1-1)*12) -> - | G13: =OFFSET(Renovable!G84,0,($O$1-1)*12) -> - | H13: =OFFSET(Renovable!H84,0,($O$1-1)*12) -> - | I13: =OFFSET(Renovable!I84,0,($O$1-1)*12) -> - | J13: =OFFSET(Renovable!J84,0,($O$1-1)*12) -> - | K13: =OFFSET(Renovable!K84,0,($O$1-1)*12) -> - | L13: =OFFSET(Renovable!L84,0,($O$1-1)*12) -> - | M13: =OFFSET(Renovable!M84,0,($O$1-1)*12) -> - | N13: =OFFSET(Renovable!N84,0,($O$1-1)*12) -> - | O13: =OFFSET(Renovable!C123,0,($O$1-1)) -> 0.7
B14: Térmica renovable (3)/Otras renovables (4) | C14: =OFFSET(Renovable!C85,0,($O$1-1)*12) -> 1.3 | D14: =OFFSET(Renovable!D85,0,($O$1-1)*12) -> - | E14: =OFFSET(Renovable!E85,0,($O$1-1)*12) -> - | F14: =OFFSET(Renovable!F85,0,($O$1-1)*12) -> - | G14: =OFFSET(Renovable!G85,0,($O$1-1)*12) -> - | H14: =OFFSET(Renovable!H85,0,($O$1-1)*12) -> - | I14: =OFFSET(Renovable!I85,0,($O$1-1)*12) -> - | J14: =OFFSET(Renovable!J85,0,($O$1-1)*12) -> - | K14: =OFFSET(Renovable!K85,0,($O$1-1)*12) -> - | L14: =OFFSET(Renovable!L85,0,($O$1-1)*12) -> - | M14: =OFFSET(Renovable!M85,0,($O$1-1)*12) -> - | N14: =OFFSET(Renovable!N85,0,($O$1-1)*12) -> - | O14: =OFFSET(Renovable!C124,0,($O$1-1)) -> 1.3
B15: Residuos renovables (5) | C15: =OFFSET(Renovable!C86,0,($O$1-1)*12) -> 0.3 | D15: =OFFSET(Renovable!D86,0,($O$1-1)*12) -> - | E15: =OFFSET(Renovable!E86,0,($O$1-1)*12) -> - | F15: =OFFSET(Renovable!F86,0,($O$1-1)*12) -> - | G15: =OFFSET(Renovable!G86,0,($O$1-1)*12) -> - | H15: =OFFSET(Renovable!H86,0,($O$1-1)*12) -> - | I15: =OFFSET(Renovable!I86,0,($O$1-1)*12) -> - | J15: =OFFSET(Renovable!J86,0,($O$1-1)*12) -> - | K15: =OFFSET(Renovable!K86,0,($O$1-1)*12) -> - | L15: =OFFSET(Renovable!L86,0,($O$1-1)*12) -> - | M15: =OFFSET(Renovable!M86,0,($O$1-1)*12) -> - | N15: =OFFSET(Renovable!N86,0,($O$1-1)*12) -> - | O15: =OFFSET(Renovable!C125,0,($O$1-1)) -> 0.3
B16: Generación renovable | C16: =IF(SUM(C10:C15)=0,"-",SUM(C10:C15)) -> 38.9 | D16: =IF(SUM(D10:D15)=0,"-",SUM(D10:D15)) -> - | E16: - | F16: - | G16: - | H16: - | I16: - | J16: - | K16: - | L16: - | M16: - | N16: - | O16: 38.9
B17: (1) Asignación de unidades de producción según combustible principal.
B18: (2) No incluye la generación bombeo.
B19: (3) Incluye residuos hasta el 31/12/2014.
B20: (4) Otras renovables incluyen biogás, biomasa, hidráulica marina y geotérmica.
B21: (5) El 50% de la generación procedente de residuos sólidos urbanos se considera renovable.

Sheet % Renovable año Peninsular
J1: 4
H3: Concepto
H4: Sistema eléctrico
H5: Horizonte temporal
H6: Periodo
C8: =OFFSET(Renovable!C119,0,($J$1-1)*8) -> 2014 | D8: =OFFSET(Renovable!D119,0,($J$1-1)*8) -> 2015 | E8: =OFFSET(Renovable!E119,0,($J$1-1)*8) -> 2016 | F8: =OFFSET(Renovable!F119,0,($J$1-1)*8) -> 2017 | G8: =OFFSET(Renovable!G119,0,($J$1-1)*8) -> 2018 | H8: =OFFSET(Renovable!H119,0,($J$1-1)*8) -> 2019 | I8: =OFFSET(Renovable!I119,0,($J$1-1)*8) -> 2020 | J8: =OFFSET(Renovable!J119,0,($J$1-1)*8) -> 2021
B10: Hidráulica (2) | C10: =OFFSET(Renovable!C120,0,($J$1-1)*8) -> 15.5 | D10: =OFFSET(Renovable!D120,0,($J$1-1)*8) -> 11.2 | E10: =OFFSET(Renovable!E120,0,($J$1-1)*8) -> 14.6 | F10: =OFFSET(Renovable!F120,0,($J$1-1)*8) -> 7.4 | G10: =OFFSET(Renovable!G120,0,($J$1-1)*8) -> 13.8 | H10: =OFFSET(Renovable!H120,0,($J$1-1)*8) -> 9.1 | I10: =OFFSET(Renovable!I120,0,($J$1-1)*8) -> - | J10: =OFFSET(Renovable!J120,0,($J$1-1)*8) -> -
B11: Eólica | C11: =OFFSET(Renovable!C121,0,($J$1-1)*8) -> 20 | D11: =OFFSET(Renovable!D121,0,($J$1-1)*8) -> 18.8 | E11: =OFFSET(Renovable!E121,0,($J$1-1)*8) -> 19.1 | F11: =OFFSET(Renovable!F121,0,($J$1-1)*8) -> 19.1 | G11: =OFFSET(Renovable!G121,0,($J$1-1)*8) -> 19.8 | H11: =OFFSET(Renovable!H121,0,($J$1-1)*8) -> 25.5 | I11: =OFFSET(Renovable!I121,0,($J$1-1)*8) -> - | J11: =OFFSET(Renovable!J121,0,($J$1-1)*8) -> -
B12: Solar fotovoltaica | C12: =OFFSET(Renovable!C122,0,($J$1-1)*8) -> 3.1 | D12: =OFFSET(Renovable!D122,0,($J$1-1)*8) -> 3.1 | E12: =OFFSET(Renovable!E122,0,($J$1-1)*8) -> 3.1 | F12: =OFFSET(Renovable!F122,0,($J$1-1)*8) -> 3.2 | G12: =OFFSET(Renovable!G122,0,($J$1-1)*8) -> 3 | H12: =OFFSET(Renovable!H122,0,($J$1-1)*8) -> 2 | I12: =OFFSET(Renovable!I122,0,($J$1-1)*8) -> - | J12: =OFFSET(Renovable!J122,0,($J$1-1)*8) -> -
B13: Solar térmica | C13: =OFFSET(Renovable!C123,0,($J$1-1)*8) -> 2 | D13: =OFFSET(Renovable!D123,0,($J$1-1)*8) -> 2 | E13: =OFFSET(Renovable!E123,0,($J$1-1)*8) -> 2 | F13: =OFFSET(Renovable!F123,0,($J$1-1)*8) -> 2.2 | G13: =OFFSET(Renovable!G123,0,($J$1-1)*8) -> 1.8 | H13: =OFFSET(Renovable!H123,0,($J$1-1)*8) -> 0.7 | I13: =OFFSET(Renovable!I123,0,($J$1-1)*8) -> - | J13: =OFFSET(Renovable!J123,0,($J$1-1)*8) -> -
B14: Térmica renovable (3)/Otras renovables (4) | C14: =OFFSET(Renovable!C124,0,($J$1-1)*8) -> 1.5 | D14: =OFFSET(Renovable!D124,0,($J$1-1)*8) -> 1.3 | E14: =OFFSET(Renovable!E124,0,($J$1-1)*8) -> 1.4 | F14: =OFFSET(Renovable!F124,0,($J$1-1)*8) -> 1.5 | G14: =OFFSET(Renovable!G124,0,($J$1-1)*8) -> 1.4 | H14: =OFFSET(Renovable!H124,0,($J$1-1)*8) -> 1.3 | I14: =OFFSET(Renovable!I124,0,($J$1-1)*8) -> - | J14: =OFFSET(Renovable!J124,0,($J$1-1)*8) -> -
B15: Residuos renovables (5) | C15: =OFFSET(Renovable!C125,0,($J$1-1)*8) -> 0.2 | D15: =OFFSET(Renovable!D125,0,($J$1-1)*8) -> 0.3 | E15: =OFFSET(Renovable!E125,0,($J$1-1)*8) -> 0.3 | F15: =OFFSET(Renovable!F125,0,($J$1-1)*8) -> 0.3 | G15: =OFFSET(Renovable!G125,0,($J$1-1)*8) -> 0.3 | H15: =OFFSET(Renovable!H125,0,($J$1-1)*8) -> 0.3 | I15: =OFFSET(Renovable!I125,0,($J$1-1)*8) -> - | J15: =OFFSET(Renovable!J125,0,($J$1-1)*8) -> -
B16: Generación renovable | C16: =IF(SUM(C10:C15)=0,"-",SUM(C10:C15)) -> 42.3 | D16: =IF(SUM(D10:D15)=0,"-",SUM(D10:D15)) -> 36.7 | E16: 40.5 | F16: 33.7 | G16: 40.1 | H16: 38.9 | I16: - | J16: -
B17: (1) Asignación de unidades de producción según combustible principal.
B18: (2) No incluye la generación bombeo.
B19: (3) Incluye residuos hasta el 31/12/2014.
B20: (4) Otras renovables incluyen biogás, biomasa, hidráulica marina y geotérmica.
B21: (5) El 50% de la generación procedente de residuos sólidos urbanos se considera renovable.
B22: ='Renovable año nacional'!B23:J23 -> Para el año 2019 valores acumulados hasta enero de 2019.

Sheet % Renovable mes Baleares
O1: 14
M3: Concepto
M4: Sistema eléctrico
M5: Horizonte temporal
M6: Periodo
C8: Ene. | D8: Feb. | E8: Mar. | F8: Abr. | G8: May. | H8: Jun. | I8: Jul. | J8: Ago. | K8: Sep. | L8: Oct. | M8: Nov. | N8: Dic. | O8: =OFFSET(Año!B18,($O$1-1),0) -> 2019
B10: Eólica | C10: =OFFSET(Renovable!C90,0,($O$1-1)*12) -> 0.2 | D10: =OFFSET(Renovable!D90,0,($O$1-1)*12) -> - | E10: =OFFSET(Renovable!E90,0,($O$1-1)*12) -> - | F10: =OFFSET(Renovable!F90,0,($O$1-1)*12) -> - | G10: =OFFSET(Renovable!G90,0,($O$1-1)*12) -> - | H10: =OFFSET(Renovable!H90,0,($O$1-1)*12) -> - | I10: =OFFSET(Renovable!I90,0,($O$1-1)*12) -> - | J10: =OFFSET(Renovable!J90,0,($O$1-1)*12) -> - | K10: =OFFSET(Renovable!K90,0,($O$1-1)*12) -> - | L10: =OFFSET(Renovable!L90,0,($O$1-1)*12) -> - | M10: =OFFSET(Renovable!M90,0,($O$1-1)*12) -> - | N10: =OFFSET(Renovable!N90,0,($O$1-1)*12) -> - | O10: =OFFSET(Renovable!C129,0,($O$1-1)) -> 0.2
B11: Solar fotovoltaica | C11: =OFFSET(Renovable!C91,0,($O$1-1)*12) -> 2.1 | D11: =OFFSET(Renovable!D91,0,($O$1-1)*12) -> - | E11: =OFFSET(Renovable!E91,0,($O$1-1)*12) -> - | F11: =OFFSET(Renovable!F91,0,($O$1-1)*12) -> - | G11: =OFFSET(Renovable!G91,0,($O$1-1)*12) -> - | H11: =OFFSET(Renovable!H91,0,($O$1-1)*12) -> - | I11: =OFFSET(Renovable!I91,0,($O$1-1)*12) -> - | J11: =OFFSET(Renovable!J91,0,($O$1-1)*12) -> - | K11: =OFFSET(Renovable!K91,0,($O$1-1)*12) -> - | L11: =OFFSET(Renovable!L91,0,($O$1-1)*12) -> - | M11: =OFFSET(Renovable!M91,0,($O$1-1)*12) -> - | N11: =OFFSET(Renovable!N91,0,($O$1-1)*12) -> - | O11: =OFFSET(Renovable!C130,0,($O$1-1)) -> 2.1
B12: Térmica renovable/Otras renovables (2) | C12: =OFFSET(Renovable!C92,0,($O$1-1)*12) -> 0 | D12: =OFFSET(Renovable!D92,0,($O$1-1)*12) -> - | E12: =OFFSET(Renovable!E92,0,($O$1-1)*12) -> - | F12: =OFFSET(Renovable!F92,0,($O$1-1)*12) -> - | G12: =OFFSET(Renovable!G92,0,($O$1-1)*12) -> - | H12: =OFFSET(Renovable!H92,0,($O$1-1)*12) -> - | I12: =OFFSET(Renovable!I92,0,($O$1-1)*12) -> - | J12: =OFFSET(Renovable!J92,0,($O$1-1)*12) -> - | K12: =OFFSET(Renovable!K92,0,($O$1-1)*12) -> - | L12: =OFFSET(Renovable!L92,0,($O$1-1)*12) -> - | M12: =OFFSET(Renovable!M92,0,($O$1-1)*12) -> - | N12: =OFFSET(Renovable!N92,0,($O$1-1)*12) -> - | O12: =OFFSET(Renovable!C131,0,($O$1-1)) -> 0
B13: Residuos renovables (3) | C13: =OFFSET(Renovable!C93,0,($O$1-1)*12) -> 2.8 | D13: =OFFSET(Renovable!D93,0,($O$1-1)*12) -> - | E13: =OFFSET(Renovable!E93,0,($O$1-1)*12) -> - | F13: =OFFSET(Renovable!F93,0,($O$1-1)*12) -> - | G13: =OFFSET(Renovable!G93,0,($O$1-1)*12) -> - | H13: =OFFSET(Renovable!H93,0,($O$1-1)*12) -> - | I13: =OFFSET(Renovable!I93,0,($O$1-1)*12) -> - | J13: =OFFSET(Renovable!J93,0,($O$1-1)*12) -> - | K13: =OFFSET(Renovable!K93,0,($O$1-1)*12) -> - | L13: =OFFSET(Renovable!L93,0,($O$1-1)*12) -> - | M13: =OFFSET(Renovable!M93,0,($O$1-1)*12) -> - | N13: =OFFSET(Renovable!N93,0,($O$1-1)*12) -> - | O13: =OFFSET(Renovable!C132,0,($O$1-1)) -> 2.8
B14: Generación renovable | C14: =IF(SUM(C10:C13)=0,"-",SUM(C10:C13)) -> 5.1 | D14: =IF(SUM(D10:D13)=0,"-",SUM(D10:D13)) -> - | E14: - | F14: - | G14: - | H14: - | I14: - | J14: - | K14: - | L14: - | M14: - | N14: - | O14: 5.1
B15: (1) Asignación de unidades de producción según combustible principal.
B16: (2) Otras renovables incluyen biogás y biomasa.
B17: (3) El 50% de la generación procedente de residuos sólidos urbanos se considera renovable.

Sheet % Renovable año Baleares
J1: 2
H3: Concepto
H4: Sistema eléctrico
H5: Horizonte temporal
H6: Periodo
C8: =OFFSET(Renovable!C128,0,($J$1-1)*8) -> 2014 | D8: =OFFSET(Renovable!D128,0,($J$1-1)*8) -> 2015 | E8: =OFFSET(Renovable!E128,0,($J$1-1)*8) -> 2016 | F8: =OFFSET(Renovable!F128,0,($J$1-1)*8) -> 2017 | G8: =OFFSET(Renovable!G128,0,($J$1-1)*8) -> 2018 | H8: =OFFSET(Renovable!H128,0,($J$1-1)*8) -> 2019 | I8: =OFFSET(Renovable!I128,0,($J$1-1)*8) -> 2020 | J8: =OFFSET(Renovable!J128,0,($J$1-1)*8) -> 2021
B10: Eólica | C10: =OFFSET(Renovable!C129,0,($J$1-1)*8) -> 0.1 | D10: =OFFSET(Renovable!D129,0,($J$1-1)*8) -> 0.1 | E10: =OFFSET(Renovable!E129,0,($J$1-1)*8) -> 0.1 | F10: =OFFSET(Renovable!F129,0,($J$1-1)*8) -> 0.1 | G10: =OFFSET(Renovable!G129,0,($J$1-1)*8) -> 0.1 | H10: =OFFSET(Renovable!H129,0,($J$1-1)*8) -> 0.2 | I10: =OFFSET(Renovable!I129,0,($J$1-1)*8) -> - | J10: =OFFSET(Renovable!J129,0,($J$1-1)*8) -> -
B11: Solar fotovoltaica | C11: =OFFSET(Renovable!C130,0,($J$1-1)*8) -> 2.9 | D11: =OFFSET(Renovable!D130,0,($J$1-1)*8) -> 2.8 | E11: =OFFSET(Renovable!E130,0,($J$1-1)*8) -> 2.6 | F11: =OFFSET(Renovable!F130,0,($J$1-1)*8) -> 2.5 | G11: =OFFSET(Renovable!G130,0,($J$1-1)*8) -> 2.3 | H11: =OFFSET(Renovable!H130,0,($J$1-1)*8) -> 2.1 | I11: =OFFSET(Renovable!I130,0,($J$1-1)*8) -> - | J11: =OFFSET(Renovable!J130,0,($J$1-1)*8) -> -
B12: Térmica renovable/Otras renovables (2) | C12: =OFFSET(Renovable!C131,0,($J$1-1)*8) -> 0 | D12: =OFFSET(Renovable!D131,0,($J$1-1)*8) -> 0 | E12: =OFFSET(Renovable!E131,0,($J$1-1)*8) -> 0 | F12: =OFFSET(Renovable!F131,0,($J$1-1)*8) -> 0 | G12: =OFFSET(Renovable!G131,0,($J$1-1)*8) -> 0 | H12: =OFFSET(Renovable!H131,0,($J$1-1)*8) -> 0 | I12: =OFFSET(Renovable!I131,0,($J$1-1)*8) -> - | J12: =OFFSET(Renovable!J131,0,($J$1-1)*8) -> -
B13: Residuos renovables (3) | C13: =OFFSET(Renovable!C132,0,($J$1-1)*8) -> 3 | D13: =OFFSET(Renovable!D132,0,($J$1-1)*8) -> 3.4 | E13: =OFFSET(Renovable!E132,0,($J$1-1)*8) -> 2.9 | F13: =OFFSET(Renovable!F132,0,($J$1-1)*8) -> 3 | G13: =OFFSET(Renovable!G132,0,($J$1-1)*8) -> 2.8 | H13: =OFFSET(Renovable!H132,0,($J$1-1)*8) -> 2.8 | I13: =OFFSET(Renovable!I132,0,($J$1-1)*8) -> - | J13: =OFFSET(Renovable!J132,0,($J$1-1)*8) -> -
B14: Generación renovable | C14: =IF(SUM(C10:C13)=0,"-",SUM(C10:C13)) -> 6 | D14: =IF(SUM(D10:D13)=0,"-",SUM(D10:D13)) -> 6.3 | E14: 5.6 | F14: 5.6 | G14: 5.2 | H14: 5.1 | I14: - | J14: -
B15: (1) Asignación de unidades de producción según combustible principal.
B16: (2) Otras renovables incluyen biogás y biomasa.
B17: (3) El 50% de la generación procedente de residuos sólidos urbanos se considera renovable.
B18: ='Renovable año nacional'!B23:J23 -> Para el año 2019 valores acumulados hasta enero de 2019.

Sheet % Renovable mes Canarias
O1: 14
M3: Concepto
M4: Sistema eléctrico
M5: Horizonte temporal
M6: Periodo
C8: Ene. | D8: Feb. | E8: Mar. | F8: Abr. | G8: May. | H8: Jun. | I8: Jul. | J8: Ago. | K8: Sep. | L8: Oct. | M8: Nov. | N8: Dic. | O8: =OFFSET(Año!B18,($O$1-1),0) -> 2019
B10: Hidráulica | C10: =OFFSET(Renovable!C97,0,($O$1-1)*12) -> 0 | D10: =OFFSET(Renovable!D97,0,($O$1-1)*12) -> - | E10: =OFFSET(Renovable!E97,0,($O$1-1)*12) -> - | F10: =OFFSET(Renovable!F97,0,($O$1-1)*12) -> - | G10: =OFFSET(Renovable!G97,0,($O$1-1)*12) -> - | H10: =OFFSET(Renovable!H97,0,($O$1-1)*12) -> - | I10: =OFFSET(Renovable!I97,0,($O$1-1)*12) -> - | J10: =OFFSET(Renovable!J97,0,($O$1-1)*12) -> - | K10: =OFFSET(Renovable!K97,0,($O$1-1)*12) -> - | L10: =OFFSET(Renovable!L97,0,($O$1-1)*12) -> - | M10: =OFFSET(Renovable!M97,0,($O$1-1)*12) -> - | N10: =OFFSET(Renovable!N97,0,($O$1-1)*12) -> - | O10: =OFFSET(Renovable!C136,0,($O$1-1)) -> 0
B11: Hidroeólica | C11: =OFFSET(Renovable!C98,0,($O$1-1)*12) -> 0.1 | D11: =OFFSET(Renovable!D98,0,($O$1-1)*12) -> - | E11: =OFFSET(Renovable!E98,0,($O$1-1)*12) -> - | F11: =OFFSET(Renovable!F98,0,($O$1-1)*12) -> - | G11: =OFFSET(Renovable!G98,0,($O$1-1)*12) -> - | H11: =OFFSET(Renovable!H98,0,($O$1-1)*12) -> - | I11: =OFFSET(Renovable!I98,0,($O$1-1)*12) -> - | J11: =OFFSET(Renovable!J98,0,($O$1-1)*12) -> - | K11: =OFFSET(Renovable!K98,0,($O$1-1)*12) -> - | L11: =OFFSET(Renovable!L98,0,($O$1-1)*12) -> - | M11: =OFFSET(Renovable!M98,0,($O$1-1)*12) -> - | N11: =OFFSET(Renovable!N98,0,($O$1-1)*12) -> - | O11: =OFFSET(Renovable!C137,0,($O$1-1)) -> 0.1
B12: Eólica | C12: =OFFSET(Renovable!C99,0,($O$1-1)*12) -> 7.4 | D12: =OFFSET(Renovable!D99,0,($O$1-1)*12) -> - | E12: =OFFSET(Renovable!E99,0,($O$1-1)*12) -> - | F12: =OFFSET(Renovable!F99,0,($O$1-1)*12) -> - | G12: =OFFSET(Renovable!G99,0,($O$1-1)*12) -> - | H12: =OFFSET(Renovable!H99,0,($O$1-1)*12) -> - | I12: =OFFSET(Renovable!I99,0,($O$1-1)*12) -> - | J12: =OFFSET(Renovable!J99,0,($O$1-1)*12) -> - | K12: =OFFSET(Renovable!K99,0,($O$1-1)*12) -> - | L12: =OFFSET(Renovable!L99,0,($O$1-1)*12) -> - | M12: =OFFSET(Renovable!M99,0,($O$1-1)*12) -> - | N12: =OFFSET(Renovable!N99,0,($O$1-1)*12) -> - | O12: =OFFSET(Renovable!C138,0,($O$1-1)) -> 7.4
B13: Solar fotovoltaica | C13: =OFFSET(Renovable!C100,0,($O$1-1)*12) -> 2.3 | D13: =OFFSET(Renovable!D100,0,($O$1-1)*12) -> - | E13: =OFFSET(Renovable!E100,0,($O$1-1)*12) -> - | F13: =OFFSET(Renovable!F100,0,($O$1-1)*12) -> - | G13: =OFFSET(Renovable!G100,0,($O$1-1)*12) -> - | H13: =OFFSET(Renovable!H100,0,($O$1-1)*12) -> - | I13: =OFFSET(Renovable!I100,0,($O$1-1)*12) -> - | J13: =OFFSET(Renovable!J100,0,($O$1-1)*12) -> - | K13: =OFFSET(Renovable!K100,0,($O$1-1)*12) -> - | L13: =OFFSET(Renovable!L100,0,($O$1-1)*12) -> - | M13: =OFFSET(Renovable!M100,0,($O$1-1)*12) -> - | N13: =OFFSET(Renovable!N100,0,($O$1-1)*12) -> - | O13: =OFFSET(Renovable!C139,0,($O$1-1)) -> 2.3
B14: Térmica renovable/Otras renovables (2) | C14: =OFFSET(Renovable!C101,0,($O$1-1)*12) -> 0.1 | D14: =OFFSET(Renovable!D101,0,($O$1-1)*12) -> - | E14: =OFFSET(Renovable!E101,0,($O$1-1)*12) -> - | F14: =OFFSET(Renovable!F101,0,($O$1-1)*12) -> - | G14: =OFFSET(Renovable!G101,0,($O$1-1)*12) -> - | H14: =OFFSET(Renovable!H101,0,($O$1-1)*12) -> - | I14: =OFFSET(Renovable!I101,0,($O$1-1)*12) -> - | J14: =OFFSET(Renovable!J101,0,($O$1-1)*12) -> - | K14: =OFFSET(Renovable!K101,0,($O$1-1)*12) -> - | L14: =OFFSET(Renovable!L101,0,($O$1-1)*12) -> - | M14: =OFFSET(Renovable!M101,0,($O$1-1)*12) -> - | N14: =OFFSET(Renovable!N101,0,($O$1-1)*12) -> - | O14: =OFFSET(Renovable!C140,0,($O$1-1)) -> 0.1
B15: Generación renovable | C15: =IF(SUM(C10:C14)=0,"-",SUM(C10:C14)) -> 9.9 | D15: =IF(SUM(D10:D14)=0,"-",SUM(D10:D14)) -> - | E15: - | F15: - | G15: - | H15: - | I15: - | J15: - | K15: - | L15: - | M15: - | N15: - | O15: =SUM(O10:O14) -> 9.9
B16: (1) Asignación de unidades de producción según combustible principal.
B17: (2) Otras renovables incluyen biogás y biomasa.

Sheet % Renovable año Canarias
J1: 2
H3: Concepto
H4: Sistema eléctrico
H5: Horizonte temporal
H6: Periodo
C8: =OFFSET(Renovable!C135,0,($J$1-1)*8) -> 2014 | D8: =OFFSET(Renovable!D135,0,($J$1-1)*8) -> 2015 | E8: =OFFSET(Renovable!E135,0,($J$1-1)*8) -> 2016 | F8: =OFFSET(Renovable!F135,0,($J$1-1)*8) -> 2017 | G8: =OFFSET(Renovable!G135,0,($J$1-1)*8) -> 2018 | H8: =OFFSET(Renovable!H135,0,($J$1-1)*8) -> 2019 | I8: =OFFSET(Renovable!I135,0,($J$1-1)*8) -> 2020 | J8: =OFFSET(Renovable!J135,0,($J$1-1)*8) -> 2021
B10: Hidráulica | C10: =OFFSET(Renovable!C136,0,($J$1-1)*8) -> 0 | D10: =OFFSET(Renovable!D136,0,($J$1-1)*8) -> 0 | E10: =OFFSET(Renovable!E136,0,($J$1-1)*8) -> 0 | F10: =OFFSET(Renovable!F136,0,($J$1-1)*8) -> 0 | G10: =OFFSET(Renovable!G136,0,($J$1-1)*8) -> 0 | H10: =OFFSET(Renovable!H136,0,($J$1-1)*8) -> 0 | I10: =OFFSET(Renovable!I136,0,($J$1-1)*8) -> - | J10: =OFFSET(Renovable!J136,0,($J$1-1)*8) -> -
B11: Hidroeólica | C11: =OFFSET(Renovable!C137,0,($J$1-1)*8) -> 0 | D11: =OFFSET(Renovable!D137,0,($J$1-1)*8) -> 0.1 | E11: =OFFSET(Renovable!E137,0,($J$1-1)*8) -> 0.2 | F11: =OFFSET(Renovable!F137,0,($J$1-1)*8) -> 0.2 | G11: =OFFSET(Renovable!G137,0,($J$1-1)*8) -> 0.3 | H11: =OFFSET(Renovable!H137,0,($J$1-1)*8) -> 0.1 | I11: =OFFSET(Renovable!I137,0,($J$1-1)*8) -> - | J11: =OFFSET(Renovable!J137,0,($J$1-1)*8) -> -
B12: Eólica | C12: =OFFSET(Renovable!C138,0,($J$1-1)*8) -> 4.6 | D12: =OFFSET(Renovable!D138,0,($J$1-1)*8) -> 4.6 | E12: =OFFSET(Renovable!E138,0,($J$1-1)*8) -> 4.5 | F12: =OFFSET(Renovable!F138,0,($J$1-1)*8) -> 4.4 | G12: =OFFSET(Renovable!G138,0,($J$1-1)*8) -> 7 | H12: =OFFSET(Renovable!H138,0,($J$1-1)*8) -> 7.4 | I12: =OFFSET(Renovable!I138,0,($J$1-1)*8) -> - | J12: =OFFSET(Renovable!J138,0,($J$1-1)*8) -> -
B13: Solar fotovoltaica | C13: =OFFSET(Renovable!C139,0,($J$1-1)*8) -> 3.3 | D13: =OFFSET(Renovable!D139,0,($J$1-1)*8) -> 3.2 | E13: =OFFSET(Renovable!E139,0,($J$1-1)*8) -> 3.2 | F13: =OFFSET(Renovable!F139,0,($J$1-1)*8) -> 3.1 | G13: =OFFSET(Renovable!G139,0,($J$1-1)*8) -> 3.1 | H13: =OFFSET(Renovable!H139,0,($J$1-1)*8) -> 2.3 | I13: =OFFSET(Renovable!I139,0,($J$1-1)*8) -> - | J13: =OFFSET(Renovable!J139,0,($J$1-1)*8) -> -
B14: Térmica renovable/Otras renovables (2) | C14: =OFFSET(Renovable!C140,0,($J$1-1)*8) -> 0.1 | D14: =OFFSET(Renovable!D140,0,($J$1-1)*8) -> 0.1 | E14: =OFFSET(Renovable!E140,0,($J$1-1)*8) -> 0.1 | F14: =OFFSET(Renovable!F140,0,($J$1-1)*8) -> 0.1 | G14: =OFFSET(Renovable!G140,0,($J$1-1)*8) -> 0.1 | H14: =OFFSET(Renovable!H140,0,($J$1-1)*8) -> 0.1 | I14: =OFFSET(Renovable!I140,0,($J$1-1)*8) -> - | J14: =OFFSET(Renovable!J140,0,($J$1-1)*8) -> -
B15: Generación renovable | C15: =IF(SUM(C10:C14)=0,"-",SUM(C10:C14)) -> 8 | D15: =IF(SUM(D10:D14)=0,"-",SUM(D10:D14)) -> 8 | E15: 8 | F15: 7.8 | G15: 10.5 | H15: 9.9 | I15: - | J15: -
B16: (1) Asignación de unidades de producción según combustible principal.
B17: (2) Otras renovables incluyen biogás y biomasa.
B18: ='Renovable año nacional'!B23:J23 -> Para el año 2019 valores acumulados hasta enero de 2019.

Sheet % Renovable mes Melilla
O1: 13
M3: Concepto
M4: Sistema eléctrico
M5: Horizonte temporal
M6: Periodo
C8: Ene. | D8: Feb. | E8: Mar. | F8: Abr. | G8: May. | H8: Jun. | I8: Jul. | J8: Ago. | K8: Sep. | L8: Oct. | M8: Nov. | N8: Dic. | O8: =OFFSET(Año!B19,($O$1-1),0) -> 2019
B10: Solar fotovoltaica | C10: =OFFSET(Renovable!C105,0,($O$1-1)*12) -> 0.03 | D10: =OFFSET(Renovable!D105,0,($O$1-1)*12) -> - | E10: =OFFSET(Renovable!E105,0,($O$1-1)*12) -> - | F10: =OFFSET(Renovable!F105,0,($O$1-1)*12) -> - | G10: =OFFSET(Renovable!G105,0,($O$1-1)*12) -> - | H10: =OFFSET(Renovable!H105,0,($O$1-1)*12) -> - | I10: =OFFSET(Renovable!I105,0,($O$1-1)*12) -> - | J10: =OFFSET(Renovable!J105,0,($O$1-1)*12) -> - | K10: =OFFSET(Renovable!K105,0,($O$1-1)*12) -> - | L10: =OFFSET(Renovable!L105,0,($O$1-1)*12) -> - | M10: =OFFSET(Renovable!M105,0,($O$1-1)*12) -> - | N10: =OFFSET(Renovable!N105,0,($O$1-1)*12) -> - | O10: =OFFSET(Renovable!C144,0,($O$1-1)) -> 0.03
B11: Residuos renovables (2) | C11: =OFFSET(Renovable!C106,0,($O$1-1)*12) -> 2.97 | D11: =OFFSET(Renovable!D106,0,($O$1-1)*12) -> - | E11: =OFFSET(Renovable!E106,0,($O$1-1)*12) -> - | F11: =OFFSET(Renovable!F106,0,($O$1-1)*12) -> - | G11: =OFFSET(Renovable!G106,0,($O$1-1)*12) -> - | H11: =OFFSET(Renovable!H106,0,($O$1-1)*12) -> - | I11: =OFFSET(Renovable!I106,0,($O$1-1)*12) -> - | J11: =OFFSET(Renovable!J106,0,($O$1-1)*12) -> - | K11: =OFFSET(Renovable!K106,0,($O$1-1)*12) -> - | L11: =OFFSET(Renovable!L106,0,($O$1-1)*12) -> - | M11: =OFFSET(Renovable!M106,0,($O$1-1)*12) -> - | N11: =OFFSET(Renovable!N106,0,($O$1-1)*12) -> - | O11: =OFFSET(Renovable!C145,0,($O$1-1)) -> 2.97
B12: Generación renovable | C12: =IF(SUM(C10:C11)=0,"-",SUM(C10:C11)) -> 3 | D12: =IF(SUM(D10:D11)=0,"-",SUM(D10:D11)) -> - | E12: - | F12: - | G12: - | H12: - | I12: - | J12: - | K12: - | L12: - | M12: - | N12: - | O12: 3
B13: (1) Asignación de unidades de producción según combustible principal.
B14: (2) El 50% de la generación procedente de residuos sólidos urbanos se considera renovable.

Sheet % Renovable año Melilla
J1: 2
H3: Concepto
H4: Sistema eléctrico
H5: Horizonte temporal
H6: Periodo
C8: =OFFSET(Renovable!C143,0,($J$1-1)*8) -> 2015 | D8: =OFFSET(Renovable!D143,0,($J$1-1)*8) -> 2016 | E8: =OFFSET(Renovable!E143,0,($J$1-1)*8) -> 2017 | F8: =OFFSET(Renovable!F143,0,($J$1-1)*8) -> 2018 | G8: =OFFSET(Renovable!G143,0,($J$1-1)*8) -> 2019 | H8: =OFFSET(Renovable!H143,0,($J$1-1)*8) -> 2020 | I8: =OFFSET(Renovable!I143,0,($J$1-1)*8) -> 2021 | J8: =OFFSET(Renovable!J143,0,($J$1-1)*8) -> 2022
B10: Solar fotovoltaica | C10: =OFFSET(Renovable!C144,0,($J$1-1)*8) -> 0.04 | D10: =OFFSET(Renovable!D144,0,($J$1-1)*8) -> 0.04 | E10: =OFFSET(Renovable!E144,0,($J$1-1)*8) -> 0.04 | F10: =OFFSET(Renovable!F144,0,($J$1-1)*8) -> 0.04 | G10: =OFFSET(Renovable!G144,0,($J$1-1)*8) -> 0.03 | H10: =OFFSET(Renovable!H144,0,($J$1-1)*8) -> - | I10: =OFFSET(Renovable!I144,0,($J$1-1)*8) -> - | J10: =OFFSET(Renovable!J144,0,($J$1-1)*8) -> -
B11: Residuos renovables (2) | C11: =OFFSET(Renovable!C145,0,($J$1-1)*8) -> 2.02 | D11: =OFFSET(Renovable!D145,0,($J$1-1)*8) -> 2.33 | E11: =OFFSET(Renovable!E145,0,($J$1-1)*8) -> 2.37 | F11: =OFFSET(Renovable!F145,0,($J$1-1)*8) -> 2.51 | G11: =OFFSET(Renovable!G145,0,($J$1-1)*8) -> 2.97 | H11: =OFFSET(Renovable!H145,0,($J$1-1)*8) -> - | I11: =OFFSET(Renovable!I145,0,($J$1-1)*8) -> - | J11: =OFFSET(Renovable!J145,0,($J$1-1)*8) -> -
B12: Generación renovable | C12: =IF(SUM(C10:C11)=0,"-",SUM(C10:C11)) -> 2.06 | D12: =IF(SUM(D10:D11)=0,"-",SUM(D10:D11)) -> 2.37 | E12: 2.41 | F12: 2.55 | G12: 3 | H12: - | I12: - | J12: -
B13: (1) Asignación de unidades de producción según combustible principal.
B14: (2) El 50% de la generación procedente de residuos sólidos urbanos se considera renovable.
B15: ='Renovable año nacional'!B23:J23 -> Para el año 2019 valores acumulados hasta enero de 2019.

Sheet Maxima renovable mes nacional
O1: 10
M3: Concepto
M4: Sistema eléctrico
M5: Horizonte temporal
M6: Periodo
C8: Ene. | D8: Feb. | E8: Mar. | F8: Abr. | G8: May. | H8: Jun. | I8: Jul. | J8: Ago. | K8: Sep. | L8: Oct. | M8: Nov. | N8: Dic. | O8: =OFFSET(Año!B22,($O$1-1),0) -> 2019
B10: Generación renovable (GWh) | C10: =OFFSET(Renovable!C192,0,($O$1-1)*12) -> 477.1021437 | D10: =OFFSET(Renovable!D192,0,($O$1-1)*12) -> - | E10: =OFFSET(Renovable!E192,0,($O$1-1)*12) -> - | F10: =OFFSET(Renovable!F192,0,($O$1-1)*12) -> - | G10: =OFFSET(Renovable!G192,0,($O$1-1)*12) -> - | H10: =OFFSET(Renovable!H192,0,($O$1-1)*12) -> - | I10: =OFFSET(Renovable!I192,0,($O$1-1)*12) -> - | J10: =OFFSET(Renovable!J192,0,($O$1-1)*12) -> - | K10: =OFFSET(Renovable!K192,0,($O$1-1)*12) -> - | L10: =OFFSET(Renovable!L192,0,($O$1-1)*12) -> - | M10: =OFFSET(Renovable!M192,0,($O$1-1)*12) -> - | N10: =OFFSET(Renovable!N192,0,($O$1-1)*12) -> - | O10: =MAX(C10:N10) -> 477.1021437
B11: Día | C11: =OFFSET(Renovable!C193,0,($O$1-1)*12) -> 31 | D11: =OFFSET(Renovable!D193,0,($O$1-1)*12) -> - | E11: =OFFSET(Renovable!E193,0,($O$1-1)*12) -> - | F11: =OFFSET(Renovable!F193,0,($O$1-1)*12) -> - | G11: =OFFSET(Renovable!G193,0,($O$1-1)*12) -> - | H11: =OFFSET(Renovable!H193,0,($O$1-1)*12) -> - | I11: =OFFSET(Renovable!I193,0,($O$1-1)*12) -> - | J11: =OFFSET(Renovable!J193,0,($O$1-1)*12) -> - | K11: =OFFSET(Renovable!K193,0,($O$1-1)*12) -> - | L11: =OFFSET(Renovable!L193,0,($O$1-1)*12) -> - | M11: =OFFSET(Renovable!M193,0,($O$1-1)*12) -> - | N11: =OFFSET(Renovable!N193,0,($O$1-1)*12) -> - | O11: =HLOOKUP($O$10,C10:N11,2,0)&" de "&HLOOKUP($O$10,C10:N12,3,0) -> 31 de enero
C12: enero | D12: febrero | E12: marzo | F12: abril | G12: mayo | H12: junio | I12: julio | J12: agosto | K12: septiembre | L12: octubre | M12: noviembre | N12: diciembre
C15: Ene. | D15: Feb. | E15: Mar. | F15: Abr. | G15: May. | H15: Jun. | I15: Jul. | J15: Ago. | K15: Sep. | L15: Oct. | M15: Nov. | N15: Dic. | O15: =OFFSET(Año!B22,($O$1-1),0) -> 2019
B17: Participación de la generación renovable | C17: =OFFSET(Renovable!C196,0,($O$1-1)*12) -> 54.52396894 | D17: =OFFSET(Renovable!D196,0,($O$1-1)*12) -> - | E17: =OFFSET(Renovable!E196,0,($O$1-1)*12) -> - | F17: =OFFSET(Renovable!F196,0,($O$1-1)*12) -> - | G17: =OFFSET(Renovable!G196,0,($O$1-1)*12) -> - | H17: =OFFSET(Renovable!H196,0,($O$1-1)*12) -> - | I17: =OFFSET(Renovable!I196,0,($O$1-1)*12) -> - | J17: =OFFSET(Renovable!J196,0,($O$1-1)*12) -> - | K17: =OFFSET(Renovable!K196,0,($O$1-1)*12) -> - | L17: =OFFSET(Renovable!L196,0,($O$1-1)*12) -> - | M17: =OFFSET(Renovable!M196,0,($O$1-1)*12) -> - | N17: =OFFSET(Renovable!N196,0,($O$1-1)*12) -> - | O17: =MAX(C17:N17) -> 54.52396894
B18: Día | C18: =OFFSET(Renovable!C197,0,($O$1-1)*12) -> 31 | D18: =OFFSET(Renovable!D197,0,($O$1-1)*12) -> - | E18: =OFFSET(Renovable!E197,0,($O$1-1)*12) -> - | F18: =OFFSET(Renovable!F197,0,($O$1-1)*12) -> - | G18: =OFFSET(Renovable!G197,0,($O$1-1)*12) -> - | H18: =OFFSET(Renovable!H197,0,($O$1-1)*12) -> - | I18: =OFFSET(Renovable!I197,0,($O$1-1)*12) -> - | J18: =OFFSET(Renovable!J197,0,($O$1-1)*12) -> - | K18: =OFFSET(Renovable!K197,0,($O$1-1)*12) -> - | L18: =OFFSET(Renovable!L197,0,($O$1-1)*12) -> - | M18: =OFFSET(Renovable!M197,0,($O$1-1)*12) -> - | N18: =OFFSET(Renovable!N197,0,($O$1-1)*12) -> - | O18: =HLOOKUP($O$17,C17:N18,2,0)&" de "&HLOOKUP($O$17,C17:N19,3,0) -> 31 de enero
C19: enero | D19: febrero | E19: marzo | F19: abril | G19: mayo | H19: junio | I19: julio | J19: agosto | K19: septiembre | L19: octubre | M19: noviembre | N19: diciembre
B20: (1)Incluye hidráulica, hidroeólica, eólica, solar fotovoltaica, solar térmica y térmica renovable/otras renovables. No incluye la generación bombeo.

Sheet Maxima renovable año nacional
J1: 2
H3: Concepto
H4: Sistema eléctrico
H5: Horizonte temporal
H6: Periodo
C8: =OFFSET(Renovable!C231,0,($J$1-1)*8) -> 2018 | D8: =OFFSET(Renovable!D231,0,($J$1-1)*8) -> 2019 | E8: =OFFSET(Renovable!E231,0,($J$1-1)*8) -> 2020 | F8: =OFFSET(Renovable!F231,0,($J$1-1)*8) -> 2021 | G8: =OFFSET(Renovable!G231,0,($J$1-1)*8) -> 2022 | H8: =OFFSET(Renovable!H231,0,($J$1-1)*8) -> 2023 | I8: =OFFSET(Renovable!I231,0,($J$1-1)*8) -> 2024 | J8: =OFFSET(Renovable!J231,0,($J$1-1)*8) -> 2025
B10: Generación renovable (GWh) | C10: =OFFSET(Renovable!C232,0,($J$1-1)*8) -> 544.0869437 | D10: =OFFSET(Renovable!D232,0,($J$1-1)*8) -> 477.1021437 | E10: =OFFSET(Renovable!E232,0,($J$1-1)*8) -> - | F10: =OFFSET(Renovable!F232,0,($J$1-1)*8) -> - | G10: =OFFSET(Renovable!G232,0,($J$1-1)*8) -> - | H10: =OFFSET(Renovable!H232,0,($J$1-1)*8) -> - | I10: =OFFSET(Renovable!I232,0,($J$1-1)*8) -> - | J10: =OFFSET(Renovable!J232,0,($J$1-1)*8) -> -
B11: Día | C11: =OFFSET(Renovable!C233,0,($J$1-1)*8) -> 20 de marzo | D11: =OFFSET(Renovable!D233,0,($J$1-1)*8) -> 31 de enero | E11: =OFFSET(Renovable!E233,0,($J$1-1)*8) -> - | F11: =OFFSET(Renovable!F233,0,($J$1-1)*8) -> - | G11: =OFFSET(Renovable!G233,0,($J$1-1)*8) -> - | H11: =OFFSET(Renovable!H233,0,($J$1-1)*8) -> - | I11: =OFFSET(Renovable!I233,0,($J$1-1)*8) -> - | J11: =OFFSET(Renovable!J233,0,($J$1-1)*8) -> -
C15: =OFFSET(Renovable!C235,0,($J$1-1)*8) -> 2018 | D15: =OFFSET(Renovable!D235,0,($J$1-1)*8) -> 2019 | E15: =OFFSET(Renovable!E235,0,($J$1-1)*8) -> 2020 | F15: =OFFSET(Renovable!F235,0,($J$1-1)*8) -> 2021 | G15: =OFFSET(Renovable!G235,0,($J$1-1)*8) -> 2022 | H15: =OFFSET(Renovable!H235,0,($J$1-1)*8) -> 2023 | I15: =OFFSET(Renovable!I235,0,($J$1-1)*8) -> 2024 | J15: =OFFSET(Renovable!J235,0,($J$1-1)*8) -> 2025
B17: Participación generación renovable (%) | C17: =OFFSET(Renovable!C236,0,($J$1-1)*8) -> 64.9670369 | D17: =OFFSET(Renovable!D236,0,($J$1-1)*8) -> 54.52396894 | E17: =OFFSET(Renovable!E236,0,($J$1-1)*8) -> - | F17: =OFFSET(Renovable!F236,0,($J$1-1)*8) -> - | G17: =OFFSET(Renovable!G236,0,($J$1-1)*8) -> - | H17: =OFFSET(Renovable!H236,0,($J$1-1)*8) -> - | I17: =OFFSET(Renovable!I236,0,($J$1-1)*8) -> - | J17: =OFFSET(Renovable!J236,0,($J$1-1)*8) -> -
B18: Día | C18: =OFFSET(Renovable!C237,0,($J$1-1)*8) -> 11 de marzo | D18: =OFFSET(Renovable!D237,0,($J$1-1)*8) -> 31 de enero | E18: =OFFSET(Renovable!E237,0,($J$1-1)*8) -> - | F18: =OFFSET(Renovable!F237,0,($J$1-1)*8) -> - | G18: =OFFSET(Renovable!G237,0,($J$1-1)*8) -> - | H18: =OFFSET(Renovable!H237,0,($J$1-1)*8) -> - | I18: =OFFSET(Renovable!I237,0,($J$1-1)*8) -> - | J18: =OFFSET(Renovable!J237,0,($J$1-1)*8) -> -
B20: (1) Incluye hidráulica, hidroeólica, eólica, solar fotovoltaica, solar térmica y térmica renovable/otras renovables. No incluye la generación bombeo.
B21: ='Renovable año nacional'!B23:J23 -> Para el año 2019 valores acumulados hasta enero de 2019.

Sheet Maxima renovable mes Peninsular
O1: 10
M3: Concepto
M4: Sistema eléctrico
M5: Horizonte temporal
M6: Periodo
C8: Ene. | D8: Feb. | E8: Mar. | F8: Abr. | G8: May. | H8: Jun. | I8: Jul. | J8: Ago. | K8: Sep. | L8: Oct. | M8: Nov. | N8: Dic. | O8: =OFFSET(Año!B22,($O$1-1),0) -> 2019
B10: Generación renovable (GWh) | C10: =OFFSET(Renovable!C160,0,($O$1-1)*12) -> 474.8367457 | D10: =OFFSET(Renovable!D160,0,($O$1-1)*12) -> - | E10: =OFFSET(Renovable!E160,0,($O$1-1)*12) -> - | F10: =OFFSET(Renovable!F160,0,($O$1-1)*12) -> - | G10: =OFFSET(Renovable!G160,0,($O$1-1)*12) -> - | H10: =OFFSET(Renovable!H160,0,($O$1-1)*12) -> - | I10: =OFFSET(Renovable!I160,0,($O$1-1)*12) -> - | J10: =OFFSET(Renovable!J160,0,($O$1-1)*12) -> - | K10: =OFFSET(Renovable!K160,0,($O$1-1)*12) -> - | L10: =OFFSET(Renovable!L160,0,($O$1-1)*12) -> - | M10: =OFFSET(Renovable!M160,0,($O$1-1)*12) -> - | N10: =OFFSET(Renovable!N160,0,($O$1-1)*12) -> - | O10: =MAX(C10:N10) -> 474.8367457
B11: Día | C11: =OFFSET(Renovable!C161,0,($O$1-1)*12) -> 31 | D11: =OFFSET(Renovable!D161,0,($O$1-1)*12) -> - | E11: =OFFSET(Renovable!E161,0,($O$1-1)*12) -> - | F11: =OFFSET(Renovable!F161,0,($O$1-1)*12) -> - | G11: =OFFSET(Renovable!G161,0,($O$1-1)*12) -> - | H11: =OFFSET(Renovable!H161,0,($O$1-1)*12) -> - | I11: =OFFSET(Renovable!I161,0,($O$1-1)*12) -> - | J11: =OFFSET(Renovable!J161,0,($O$1-1)*12) -> - | K11: =OFFSET(Renovable!K161,0,($O$1-1)*12) -> - | L11: =OFFSET(Renovable!L161,0,($O$1-1)*12) -> - | M11: =OFFSET(Renovable!M161,0,($O$1-1)*12) -> - | N11: =OFFSET(Renovable!N161,0,($O$1-1)*12) -> - | O11: =HLOOKUP($O$10,C10:N11,2,0)&" de "&HLOOKUP($O$10,C10:N12,3,0) -> 31 de enero
C12: enero | D12: febrero | E12: marzo | F12: abril | G12: mayo | H12: junio | I12: julio | J12: agosto | K12: septiembre | L12: octubre | M12: noviembre | N12: diciembre
C15: Ene. | D15: Feb. | E15: Mar. | F15: Abr. | G15: May. | H15: Jun. | I15: Jul. | J15: Ago. | K15: Sep. | L15: Oct. | M15: Nov. | N15: Dic. | O15: =OFFSET(Año!B22,($O$1-1),0) -> 2019
B17: Participación generación renovable (%) | C17: =OFFSET(Renovable!C164,0,($O$1-1)*12) -> 56.72635943 | D17: =OFFSET(Renovable!D164,0,($O$1-1)*12) -> - | E17: =OFFSET(Renovable!E164,0,($O$1-1)*12) -> - | F17: =OFFSET(Renovable!F164,0,($O$1-1)*12) -> - | G17: =OFFSET(Renovable!G164,0,($O$1-1)*12) -> - | H17: =OFFSET(Renovable!H164,0,($O$1-1)*12) -> - | I17: =OFFSET(Renovable!I164,0,($O$1-1)*12) -> - | J17: =OFFSET(Renovable!J164,0,($O$1-1)*12) -> - | K17: =OFFSET(Renovable!K164,0,($O$1-1)*12) -> - | L17: =OFFSET(Renovable!L164,0,($O$1-1)*12) -> - | M17: =OFFSET(Renovable!M164,0,($O$1-1)*12) -> - | N17: =OFFSET(Renovable!N164,0,($O$1-1)*12) -> - | O17: =MAX(C17:N17) -> 56.72635943
B18: Día | C18: =OFFSET(Renovable!C165,0,($O$1-1)*12) -> 31 | D18: =OFFSET(Renovable!D165,0,($O$1-1)*12) -> - | E18: =OFFSET(Renovable!E165,0,($O$1-1)*12) -> - | F18: =OFFSET(Renovable!F165,0,($O$1-1)*12) -> - | G18: =OFFSET(Renovable!G165,0,($O$1-1)*12) -> - | H18: =OFFSET(Renovable!H165,0,($O$1-1)*12) -> - | I18: =OFFSET(Renovable!I165,0,($O$1-1)*12) -> - | J18: =OFFSET(Renovable!J165,0,($O$1-1)*12) -> - | K18: =OFFSET(Renovable!K165,0,($O$1-1)*12) -> - | L18: =OFFSET(Renovable!L165,0,($O$1-1)*12) -> - | M18: =OFFSET(Renovable!M165,0,($O$1-1)*12) -> - | N18: =OFFSET(Renovable!N165,0,($O$1-1)*12) -> - | O18: =HLOOKUP($O$17,C17:N18,2,0)&" de "&HLOOKUP($O$17,C17:N19,3,0) -> 31 de enero
C19: enero | D19: febrero | E19: marzo | F19: abril | G19: mayo | H19: junio | I19: julio | J19: agosto | K19: septiembre | L19: octubre | M19: noviembre | N19: diciembre
B20: (1) Incluye hidráulica, eólica, solar fotovoltaica, solar térmica y térmica renovable/otras renovables. No incluye la generación bombeo.

Sheet Maxima renovable año Peninsular
J1: 2
H3: Concepto
H4: Sistema eléctrico
H5: Horizonte temporal
H6: Periodo
C8: =OFFSET(Renovable!C199,0,($J$1-1)*8) -> 2018 | D8: =OFFSET(Renovable!D199,0,($J$1-1)*8) -> 2019 | E8: =OFFSET(Renovable!E199,0,($J$1-1)*8) -> 2020 | F8: =OFFSET(Renovable!F199,0,($J$1-1)*8) -> 2021 | G8: =OFFSET(Renovable!G199,0,($J$1-1)*8) -> 2022 | H8: =OFFSET(Renovable!H199,0,($J$1-1)*8) -> 2023 | I8: =OFFSET(Renovable!I199,0,($J$1-1)*8) -> 2024 | J8: =OFFSET(Renovable!J199,0,($J$1-1)*8) -> 2025
B10: Generación renovable (GWh) | C10: =OFFSET(Renovable!C200,0,($J$1-1)*8) -> 539.2786497 | D10: =OFFSET(Renovable!D200,0,($J$1-1)*8) -> 474.8367457 | E10: =OFFSET(Renovable!E200,0,($J$1-1)*8) -> - | F10: =OFFSET(Renovable!F200,0,($J$1-1)*8) -> - | G10: =OFFSET(Renovable!G200,0,($J$1-1)*8) -> - | H10: =OFFSET(Renovable!H200,0,($J$1-1)*8) -> - | I10: =OFFSET(Renovable!I200,0,($J$1-1)*8) -> - | J10: =OFFSET(Renovable!J200,0,($J$1-1)*8) -> -
B11: Día | C11: =OFFSET(Renovable!C201,0,($J$1-1)*8) -> 20 de marzo | D11: =OFFSET(Renovable!D201,0,($J$1-1)*8) -> 31 de enero | E11: =OFFSET(Renovable!E201,0,($J$1-1)*8) -> - | F11: =OFFSET(Renovable!F201,0,($J$1-1)*8) -> - | G11: =OFFSET(Renovable!G201,0,($J$1-1)*8) -> - | H11: =OFFSET(Renovable!H201,0,($J$1-1)*8) -> - | I11: =OFFSET(Renovable!I201,0,($J$1-1)*8) -> - | J11: =OFFSET(Renovable!J201,0,($J$1-1)*8) -> -
C15: =OFFSET(Renovable!C203,0,($J$1-1)*8) -> 2018 | D15: =OFFSET(Renovable!D203,0,($J$1-1)*8) -> 2019 | E15: =OFFSET(Renovable!E203,0,($J$1-1)*8) -> 2020 | F15: =OFFSET(Renovable!F203,0,($J$1-1)*8) -> 2021 | G15: =OFFSET(Renovable!G203,0,($J$1-1)*8) -> 2022 | H15: =OFFSET(Renovable!H203,0,($J$1-1)*8) -> 2023 | I15: =OFFSET(Renovable!I203,0,($J$1-1)*8) -> 2024 | J15: =OFFSET(Renovable!J203,0,($J$1-1)*8) -> 2025
B17: Participación generación renovable (%) | C17: =OFFSET(Renovable!C204,0,($J$1-1)*8) -> 67.67237026 | D17: =OFFSET(Renovable!D204,0,($J$1-1)*8) -> 56.72635943 | E17: =OFFSET(Renovable!E204,0,($J$1-1)*8) -> - | F17: =OFFSET(Renovable!F204,0,($J$1-1)*8) -> - | G17: =OFFSET(Renovable!G204,0,($J$1-1)*8) -> - | H17: =OFFSET(Renovable!H204,0,($J$1-1)*8) -> - | I17: =OFFSET(Renovable!I204,0,($J$1-1)*8) -> - | J17: =OFFSET(Renovable!J204,0,($J$1-1)*8) -> -
B18: Día | C18: =OFFSET(Renovable!C205,0,($J$1-1)*8) -> 11 de marzo | D18: =OFFSET(Renovable!D205,0,($J$1-1)*8) -> 31 de enero | E18: =OFFSET(Renovable!E205,0,($J$1-1)*8) -> - | F18: =OFFSET(Renovable!F205,0,($J$1-1)*8) -> - | G18: =OFFSET(Renovable!G205,0,($J$1-1)*8) -> - | H18: =OFFSET(Renovable!H205,0,($J$1-1)*8) -> - | I18: =OFFSET(Renovable!I205,0,($J$1-1)*8) -> - | J18: =OFFSET(Renovable!J205,0,($J$1-1)*8) -> -
B20: (1) Incluye hidráulica, eólica, solar fotovoltaica, solar térmica y térmica renovable/otras renovables. No incluye la generación bombeo.
B21: ='Renovable año nacional'!B23:J23 -> Para el año 2019 valores acumulados hasta enero de 2019.

Sheet Maxima renovable mes Baleares
O1: 10
M3: Concepto
M4: Sistema eléctrico
M5: Horizonte temporal
M6: Periodo
C8: Ene. | D8: Feb. | E8: Mar. | F8: Abr. | G8: May. | H8: Jun. | I8: Jul. | J8: Ago. | K8: Sep. | L8: Oct. | M8: Nov. | N8: Dic. | O8: =OFFSET(Año!B22,($O$1-1),0) -> 2019
B10: Generación renovable (MWh) | C10: =OFFSET(Renovable!C168,0,($O$1-1)*12) -> 673.0085 | D10: =OFFSET(Renovable!D168,0,($O$1-1)*12) -> - | E10: =OFFSET(Renovable!E168,0,($O$1-1)*12) -> - | F10: =OFFSET(Renovable!F168,0,($O$1-1)*12) -> - | G10: =OFFSET(Renovable!G168,0,($O$1-1)*12) -> - | H10: =OFFSET(Renovable!H168,0,($O$1-1)*12) -> - | I10: =OFFSET(Renovable!I168,0,($O$1-1)*12) -> - | J10: =OFFSET(Renovable!J168,0,($O$1-1)*12) -> - | K10: =OFFSET(Renovable!K168,0,($O$1-1)*12) -> - | L10: =OFFSET(Renovable!L168,0,($O$1-1)*12) -> - | M10: =OFFSET(Renovable!M168,0,($O$1-1)*12) -> - | N10: =OFFSET(Renovable!N168,0,($O$1-1)*12) -> - | O10: =MAX(C10:N10) -> 673.0085
B11: Día | C11: =OFFSET(Renovable!C169,0,($O$1-1)*12) -> 6 | D11: =OFFSET(Renovable!D169,0,($O$1-1)*12) -> - | E11: =OFFSET(Renovable!E169,0,($O$1-1)*12) -> - | F11: =OFFSET(Renovable!F169,0,($O$1-1)*12) -> - | G11: =OFFSET(Renovable!G169,0,($O$1-1)*12) -> - | H11: =OFFSET(Renovable!H169,0,($O$1-1)*12) -> - | I11: =OFFSET(Renovable!I169,0,($O$1-1)*12) -> - | J11: =OFFSET(Renovable!J169,0,($O$1-1)*12) -> - | K11: =OFFSET(Renovable!K169,0,($O$1-1)*12) -> - | L11: =OFFSET(Renovable!L169,0,($O$1-1)*12) -> - | M11: =OFFSET(Renovable!M169,0,($O$1-1)*12) -> - | N11: =OFFSET(Renovable!N169,0,($O$1-1)*12) -> - | O11: =HLOOKUP($O$10,C10:N11,2,0)&" de "&HLOOKUP($O$10,C10:N12,3,0) -> 6 de enero
C12: enero | D12: febrero | E12: marzo | F12: abril | G12: mayo | H12: junio | I12: julio | J12: agosto | K12: septiembre | L12: octubre | M12: noviembre | N12: diciembre
C15: Ene. | D15: Feb. | E15: Mar. | F15: Abr. | G15: May. | H15: Jun. | I15: Jul. | J15: Ago. | K15: Sep. | L15: Oct. | M15: Nov. | N15: Dic. | O15: =OFFSET(Año!B22,($O$1-1),0) -> 2019
B17: Participación generación renovable (%) | C17: =OFFSET(Renovable!C172,0,($O$1-1)*12) -> 6.771956685 | D17: =OFFSET(Renovable!D172,0,($O$1-1)*12) -> - | E17: =OFFSET(Renovable!E172,0,($O$1-1)*12) -> - | F17: =OFFSET(Renovable!F172,0,($O$1-1)*12) -> - | G17: =OFFSET(Renovable!G172,0,($O$1-1)*12) -> - | H17: =OFFSET(Renovable!H172,0,($O$1-1)*12) -> - | I17: =OFFSET(Renovable!I172,0,($O$1-1)*12) -> - | J17: =OFFSET(Renovable!J172,0,($O$1-1)*12) -> - | K17: =OFFSET(Renovable!K172,0,($O$1-1)*12) -> - | L17: =OFFSET(Renovable!L172,0,($O$1-1)*12) -> - | M17: =OFFSET(Renovable!M172,0,($O$1-1)*12) -> - | N17: =OFFSET(Renovable!N172,0,($O$1-1)*12) -> - | O17: =MAX(C17:N17) -> 6.771956685
B18: Día | C18: =OFFSET(Renovable!C173,0,($O$1-1)*12) -> 6 | D18: =OFFSET(Renovable!D173,0,($O$1-1)*12) -> - | E18: =OFFSET(Renovable!E173,0,($O$1-1)*12) -> - | F18: =OFFSET(Renovable!F173,0,($O$1-1)*12) -> - | G18: =OFFSET(Renovable!G173,0,($O$1-1)*12) -> - | H18: =OFFSET(Renovable!H173,0,($O$1-1)*12) -> - | I18: =OFFSET(Renovable!I173,0,($O$1-1)*12) -> - | J18: =OFFSET(Renovable!J173,0,($O$1-1)*12) -> - | K18: =OFFSET(Renovable!K173,0,($O$1-1)*12) -> - | L18: =OFFSET(Renovable!L173,0,($O$1-1)*12) -> - | M18: =OFFSET(Renovable!M173,0,($O$1-1)*12) -> - | N18: =OFFSET(Renovable!N173,0,($O$1-1)*12) -> - | O18: =HLOOKUP($O$17,C17:N18,2,0)&" de "&HLOOKUP($O$17,C17:N19,3,0) -> 6 de enero
C19: enero | D19: febrero | E19: marzo | F19: abril | G19: mayo | H19: junio | I19: julio | J19: agosto | K19: septiembre | L19: octubre | M19: noviembre | N19: diciembre
B20: (1) Incluye eólica, solar fotovoltaica y térmica renovable/otras renovables.

Sheet Maxima renovable año Baleares
J1: 2
H3: Concepto
H4: Sistema eléctrico
H5: Horizonte temporal
H6: Periodo
C8: =OFFSET(Renovable!C207,0,($J$1-1)*8) -> 2018 | D8: =OFFSET(Renovable!D207,0,($J$1-1)*8) -> 2019 | E8: =OFFSET(Renovable!E207,0,($J$1-1)*8) -> 2020 | F8: =OFFSET(Renovable!F207,0,($J$1-1)*8) -> 2021 | G8: =OFFSET(Renovable!G207,0,($J$1-1)*8) -> 2022 | H8: =OFFSET(Renovable!H207,0,($J$1-1)*8) -> 2023 | I8: =OFFSET(Renovable!I207,0,($J$1-1)*8) -> 2024 | J8: =OFFSET(Renovable!J207,0,($J$1-1)*8) -> 2025
B10: Generación renovable (MWh) | C10: =OFFSET(Renovable!C208,0,($J$1-1)*8) -> 1042.7765 | D10: =OFFSET(Renovable!D208,0,($J$1-1)*8) -> 673.0085 | E10: =OFFSET(Renovable!E208,0,($J$1-1)*8) -> - | F10: =OFFSET(Renovable!F208,0,($J$1-1)*8) -> - | G10: =OFFSET(Renovable!G208,0,($J$1-1)*8) -> - | H10: =OFFSET(Renovable!H208,0,($J$1-1)*8) -> - | I10: =OFFSET(Renovable!I208,0,($J$1-1)*8) -> - | J10: =OFFSET(Renovable!J208,0,($J$1-1)*8) -> -
B11: Día | C11: =OFFSET(Renovable!C209,0,($J$1-1)*8) -> 2 de mayo | D11: =OFFSET(Renovable!D209,0,($J$1-1)*8) -> 6 de enero | E11: =OFFSET(Renovable!E209,0,($J$1-1)*8) -> - | F11: =OFFSET(Renovable!F209,0,($J$1-1)*8) -> - | G11: =OFFSET(Renovable!G209,0,($J$1-1)*8) -> - | H11: =OFFSET(Renovable!H209,0,($J$1-1)*8) -> - | I11: =OFFSET(Renovable!I209,0,($J$1-1)*8) -> - | J11: =OFFSET(Renovable!J209,0,($J$1-1)*8) -> -
C15: =OFFSET(Renovable!C211,0,($J$1-1)*8) -> 2018 | D15: =OFFSET(Renovable!D211,0,($J$1-1)*8) -> 2019 | E15: =OFFSET(Renovable!E211,0,($J$1-1)*8) -> 2020 | F15: =OFFSET(Renovable!F211,0,($J$1-1)*8) -> 2021 | G15: =OFFSET(Renovable!G211,0,($J$1-1)*8) -> 2022 | H15: =OFFSET(Renovable!H211,0,($J$1-1)*8) -> 2023 | I15: =OFFSET(Renovable!I211,0,($J$1-1)*8) -> 2024 | J15: =OFFSET(Renovable!J211,0,($J$1-1)*8) -> 2025
B17: Participación generación renovable (%) | C17: =OFFSET(Renovable!C212,0,($J$1-1)*8) -> 8.716553884 | D17: =OFFSET(Renovable!D212,0,($J$1-1)*8) -> 6.771956685 | E17: =OFFSET(Renovable!E212,0,($J$1-1)*8) -> - | F17: =OFFSET(Renovable!F212,0,($J$1-1)*8) -> - | G17: =OFFSET(Renovable!G212,0,($J$1-1)*8) -> - | H17: =OFFSET(Renovable!H212,0,($J$1-1)*8) -> - | I17: =OFFSET(Renovable!I212,0,($J$1-1)*8) -> - | J17: =OFFSET(Renovable!J212,0,($J$1-1)*8) -> -
B18: Día | C18: =OFFSET(Renovable!C213,0,($J$1-1)*8) -> 2 de mayo | D18: =OFFSET(Renovable!D213,0,($J$1-1)*8) -> 6 de enero | E18: =OFFSET(Renovable!E213,0,($J$1-1)*8) -> - | F18: =OFFSET(Renovable!F213,0,($J$1-1)*8) -> - | G18: =OFFSET(Renovable!G213,0,($J$1-1)*8) -> - | H18: =OFFSET(Renovable!H213,0,($J$1-1)*8) -> - | I18: =OFFSET(Renovable!I213,0,($J$1-1)*8) -> - | J18: =OFFSET(Renovable!J213,0,($J$1-1)*8) -> -
B20: (1) Incluye eólica, solar fotovoltaica y térmica renovable/otras renovables.
B21: ='Renovable año nacional'!B23:J23 -> Para el año 2019 valores acumulados hasta enero de 2019.

Sheet Maxima renovable mes Canarias
O1: 10
M3: Concepto
M4: Sistema eléctrico
M5: Horizonte temporal
M6: Periodo
C8: Ene. | D8: Feb. | E8: Mar. | F8: Abr. | G8: May. | H8: Jun. | I8: Jul. | J8: Ago. | K8: Sep. | L8: Oct. | M8: Nov. | N8: Dic. | O8: =OFFSET(Año!B22,($O$1-1),0) -> 2019
B10: Generación renovable (MWh) | C10: =OFFSET(Renovable!C176,0,($O$1-1)*12) -> 5803.047 | D10: =OFFSET(Renovable!D176,0,($O$1-1)*12) -> - | E10: =OFFSET(Renovable!E176,0,($O$1-1)*12) -> - | F10: =OFFSET(Renovable!F176,0,($O$1-1)*12) -> - | G10: =OFFSET(Renovable!G176,0,($O$1-1)*12) -> - | H10: =OFFSET(Renovable!H176,0,($O$1-1)*12) -> - | I10: =OFFSET(Renovable!I176,0,($O$1-1)*12) -> - | J10: =OFFSET(Renovable!J176,0,($O$1-1)*12) -> - | K10: =OFFSET(Renovable!K176,0,($O$1-1)*12) -> - | L10: =OFFSET(Renovable!L176,0,($O$1-1)*12) -> - | M10: =OFFSET(Renovable!M176,0,($O$1-1)*12) -> - | N10: =OFFSET(Renovable!N176,0,($O$1-1)*12) -> - | O10: =MAX(C10:N10) -> 5803.047
B11: Día | C11: =OFFSET(Renovable!C177,0,($O$1-1)*12) -> 28 | D11: =OFFSET(Renovable!D177,0,($O$1-1)*12) -> - | E11: =OFFSET(Renovable!E177,0,($O$1-1)*12) -> - | F11: =OFFSET(Renovable!F177,0,($O$1-1)*12) -> - | G11: =OFFSET(Renovable!G177,0,($O$1-1)*12) -> - | H11: =OFFSET(Renovable!H177,0,($O$1-1)*12) -> - | I11: =OFFSET(Renovable!I177,0,($O$1-1)*12) -> - | J11: =OFFSET(Renovable!J177,0,($O$1-1)*12) -> - | K11: =OFFSET(Renovable!K177,0,($O$1-1)*12) -> - | L11: =OFFSET(Renovable!L177,0,($O$1-1)*12) -> - | M11: =OFFSET(Renovable!M177,0,($O$1-1)*12) -> - | N11: =OFFSET(Renovable!N177,0,($O$1-1)*12) -> - | O11: =HLOOKUP($O$10,C10:N11,2,0)&" de "&HLOOKUP($O$10,C10:N12,3,0) -> 28 de enero
C12: enero | D12: febrero | E12: marzo | F12: abril | G12: mayo | H12: junio | I12: julio | J12: agosto | K12: septiembre | L12: octubre | M12: noviembre | N12: diciembre
C15: Ene. | D15: Feb. | E15: Mar. | F15: Abr. | G15: May. | H15: Jun. | I15: Jul. | J15: Ago. | K15: Sep. | L15: Oct. | M15: Nov. | N15: Dic. | O15: =OFFSET(Año!B22,($O$1-1),0) -> 2019
B17: Participación generación renovable (%) | C17: =OFFSET(Renovable!C180,0,($O$1-1)*12) -> 23.37851988 | D17: =OFFSET(Renovable!D180,0,($O$1-1)*12) -> - | E17: =OFFSET(Renovable!E180,0,($O$1-1)*12) -> - | F17: =OFFSET(Renovable!F180,0,($O$1-1)*12) -> - | G17: =OFFSET(Renovable!G180,0,($O$1-1)*12) -> - | H17: =OFFSET(Renovable!H180,0,($O$1-1)*12) -> - | I17: =OFFSET(Renovable!I180,0,($O$1-1)*12) -> - | J17: =OFFSET(Renovable!J180,0,($O$1-1)*12) -> - | K17: =OFFSET(Renovable!K180,0,($O$1-1)*12) -> - | L17: =OFFSET(Renovable!L180,0,($O$1-1)*12) -> - | M17: =OFFSET(Renovable!M180,0,($O$1-1)*12) -> - | N17: =OFFSET(Renovable!N180,0,($O$1-1)*12) -> - | O17: =MAX(C17:N17) -> 23.37851988
B18: Día | C18: =OFFSET(Renovable!C181,0,($O$1-1)*12) -> 28 | D18: =OFFSET(Renovable!D181,0,($O$1-1)*12) -> - | E18: =OFFSET(Renovable!E181,0,($O$1-1)*12) -> - | F18: =OFFSET(Renovable!F181,0,($O$1-1)*12) -> - | G18: =OFFSET(Renovable!G181,0,($O$1-1)*12) -> - | H18: =OFFSET(Renovable!H181,0,($O$1-1)*12) -> - | I18: =OFFSET(Renovable!I181,0,($O$1-1)*12) -> - | J18: =OFFSET(Renovable!J181,0,($O$1-1)*12) -> - | K18: =OFFSET(Renovable!K181,0,($O$1-1)*12) -> - | L18: =OFFSET(Renovable!L181,0,($O$1-1)*12) -> - | M18: =OFFSET(Renovable!M181,0,($O$1-1)*12) -> - | N18: =OFFSET(Renovable!N181,0,($O$1-1)*12) -> - | O18: =HLOOKUP($O$17,C17:N18,2,0)&" de "&HLOOKUP($O$17,C17:N19,3,0) -> 28 de enero
C19: enero | D19: febrero | E19: marzo | F19: abril | G19: mayo | H19: junio | I19: julio | J19: agosto | K19: septiembre | L19: octubre | M19: noviembre | N19: diciembre
B20: (1) Incluye hidráulica, hidroeólica, eólica, solar fotovoltaica y térmica renovable/otras renovables.

Sheet Maxima renovable año Canarias
J1: 2
H3: Concepto
H4: Sistema eléctrico
H5: Horizonte temporal
H6: Periodo
C8: =OFFSET(Renovable!C215,0,($J$1-1)*8) -> 2018 | D8: =OFFSET(Renovable!D215,0,($J$1-1)*8) -> 2019 | E8: =OFFSET(Renovable!E215,0,($J$1-1)*8) -> 2020 | F8: =OFFSET(Renovable!F215,0,($J$1-1)*8) -> 2021 | G8: =OFFSET(Renovable!G215,0,($J$1-1)*8) -> 2022 | H8: =OFFSET(Renovable!H215,0,($J$1-1)*8) -> 2023 | I8: =OFFSET(Renovable!I215,0,($J$1-1)*8) -> 2024 | J8: =OFFSET(Renovable!J215,0,($J$1-1)*8) -> 2025
B10: Generación renovable (MWh) | C10: =OFFSET(Renovable!C216,0,($J$1-1)*8) -> 5430.734 | D10: =OFFSET(Renovable!D216,0,($J$1-1)*8) -> 5803.047 | E10: =OFFSET(Renovable!E216,0,($J$1-1)*8) -> - | F10: =OFFSET(Renovable!F216,0,($J$1-1)*8) -> - | G10: =OFFSET(Renovable!G216,0,($J$1-1)*8) -> - | H10: =OFFSET(Renovable!H216,0,($J$1-1)*8) -> - | I10: =OFFSET(Renovable!I216,0,($J$1-1)*8) -> - | J10: =OFFSET(Renovable!J216,0,($J$1-1)*8) -> -
B11: Día | C11: =OFFSET(Renovable!C217,0,($J$1-1)*8) -> 12 de mayo | D11: =OFFSET(Renovable!D217,0,($J$1-1)*8) -> 28 de enero | E11: =OFFSET(Renovable!E217,0,($J$1-1)*8) -> - | F11: =OFFSET(Renovable!F217,0,($J$1-1)*8) -> - | G11: =OFFSET(Renovable!G217,0,($J$1-1)*8) -> - | H11: =OFFSET(Renovable!H217,0,($J$1-1)*8) -> - | I11: =OFFSET(Renovable!I217,0,($J$1-1)*8) -> - | J11: =OFFSET(Renovable!J217,0,($J$1-1)*8) -> -
C15: =OFFSET(Renovable!C219,0,($J$1-1)*8) -> 2018 | D15: =OFFSET(Renovable!D219,0,($J$1-1)*8) -> 2019 | E15: =OFFSET(Renovable!E219,0,($J$1-1)*8) -> 2020 | F15: =OFFSET(Renovable!F219,0,($J$1-1)*8) -> 2021 | G15: =OFFSET(Renovable!G219,0,($J$1-1)*8) -> 2022 | H15: =OFFSET(Renovable!H219,0,($J$1-1)*8) -> 2023 | I15: =OFFSET(Renovable!I219,0,($J$1-1)*8) -> 2024 | J15: =OFFSET(Renovable!J219,0,($J$1-1)*8) -> 2025
B17: Participación generación renovable (%) | C17: =OFFSET(Renovable!C220,0,($J$1-1)*8) -> 25.59966064 | D17: =OFFSET(Renovable!D220,0,($J$1-1)*8) -> 23.37851988 | E17: =OFFSET(Renovable!E220,0,($J$1-1)*8) -> - | F17: =OFFSET(Renovable!F220,0,($J$1-1)*8) -> - | G17: =OFFSET(Renovable!G220,0,($J$1-1)*8) -> - | H17: =OFFSET(Renovable!H220,0,($J$1-1)*8) -> - | I17: =OFFSET(Renovable!I220,0,($J$1-1)*8) -> - | J17: =OFFSET(Renovable!J220,0,($J$1-1)*8) -> -
B18: Día | C18: =OFFSET(Renovable!C221,0,($J$1-1)*8) -> 13 de mayo | D18: =OFFSET(Renovable!D221,0,($J$1-1)*8) -> 28 de enero | E18: =OFFSET(Renovable!E221,0,($J$1-1)*8) -> - | F18: =OFFSET(Renovable!F221,0,($J$1-1)*8) -> - | G18: =OFFSET(Renovable!G221,0,($J$1-1)*8) -> - | H18: =OFFSET(Renovable!H221,0,($J$1-1)*8) -> - | I18: =OFFSET(Renovable!I221,0,($J$1-1)*8) -> - | J18: =OFFSET(Renovable!J221,0,($J$1-1)*8) -> -
B20: (1) Incluye hidráulica, hidroeólica, eólica, solar fotovoltaica y térmica renovable/otras renovables.
B21: ='Renovable año nacional'!B23:J23 -> Para el año 2019 valores acumulados hasta enero de 2019.

Sheet Maxima renovable mes Melilla
O1: 10
M3: Concepto
M4: Sistema eléctrico
M5: Horizonte temporal
M6: Periodo
C8: Ene. | D8: Feb. | E8: Mar. | F8: Abr. | G8: May. | H8: Jun. | I8: Jul. | J8: Ago. | K8: Sep. | L8: Oct. | M8: Nov. | N8: Dic. | O8: =OFFSET(Año!B22,($O$1-1),0) -> 2019
B10: Generación renovable (MWh) | C10: =OFFSET(Renovable!C184,0,($O$1-1)*12) -> 19.3715 | D10: =OFFSET(Renovable!D184,0,($O$1-1)*12) -> - | E10: =OFFSET(Renovable!E184,0,($O$1-1)*12) -> - | F10: =OFFSET(Renovable!F184,0,($O$1-1)*12) -> - | G10: =OFFSET(Renovable!G184,0,($O$1-1)*12) -> - | H10: =OFFSET(Renovable!H184,0,($O$1-1)*12) -> - | I10: =OFFSET(Renovable!I184,0,($O$1-1)*12) -> - | J10: =OFFSET(Renovable!J184,0,($O$1-1)*12) -> - | K10: =OFFSET(Renovable!K184,0,($O$1-1)*12) -> - | L10: =OFFSET(Renovable!L184,0,($O$1-1)*12) -> - | M10: =OFFSET(Renovable!M184,0,($O$1-1)*12) -> - | N10: =OFFSET(Renovable!N184,0,($O$1-1)*12) -> - | O10: =MAX(C10:N10) -> 19.3715
B11: Día | C11: =OFFSET(Renovable!C185,0,($O$1-1)*12) -> 1 | D11: =OFFSET(Renovable!D185,0,($O$1-1)*12) -> - | E11: =OFFSET(Renovable!E185,0,($O$1-1)*12) -> - | F11: =OFFSET(Renovable!F185,0,($O$1-1)*12) -> - | G11: =OFFSET(Renovable!G185,0,($O$1-1)*12) -> - | H11: =OFFSET(Renovable!H185,0,($O$1-1)*12) -> - | I11: =OFFSET(Renovable!I185,0,($O$1-1)*12) -> - | J11: =OFFSET(Renovable!J185,0,($O$1-1)*12) -> - | K11: =OFFSET(Renovable!K185,0,($O$1-1)*12) -> - | L11: =OFFSET(Renovable!L185,0,($O$1-1)*12) -> - | M11: =OFFSET(Renovable!M185,0,($O$1-1)*12) -> - | N11: =OFFSET(Renovable!N185,0,($O$1-1)*12) -> - | O11: =HLOOKUP($O$10,C10:N11,2,0)&" de "&HLOOKUP($O$10,C10:N12,3,0) -> 1 de enero
C12: enero | D12: febrero | E12: marzo | F12: abril | G12: mayo | H12: junio | I12: julio | J12: agosto | K12: septiembre | L12: octubre | M12: noviembre | N12: diciembre
C15: Ene. | D15: Feb. | E15: Mar. | F15: Abr. | G15: May. | H15: Jun. | I15: Jul. | J15: Ago. | K15: Sep. | L15: Oct. | M15: Nov. | N15: Dic. | O15: =OFFSET(Año!B22,($O$1-1),0) -> 2019
B17: Participación generación renovable (%) | C17: =OFFSET(Renovable!C188,0,($O$1-1)*12) -> 3.794895604 | D17: =OFFSET(Renovable!D188,0,($O$1-1)*12) -> - | E17: =OFFSET(Renovable!E188,0,($O$1-1)*12) -> - | F17: =OFFSET(Renovable!F188,0,($O$1-1)*12) -> - | G17: =OFFSET(Renovable!G188,0,($O$1-1)*12) -> - | H17: =OFFSET(Renovable!H188,0,($O$1-1)*12) -> - | I17: =OFFSET(Renovable!I188,0,($O$1-1)*12) -> - | J17: =OFFSET(Renovable!J188,0,($O$1-1)*12) -> - | K17: =OFFSET(Renovable!K188,0,($O$1-1)*12) -> - | L17: =OFFSET(Renovable!L188,0,($O$1-1)*12) -> - | M17: =OFFSET(Renovable!M188,0,($O$1-1)*12) -> - | N17: =OFFSET(Renovable!N188,0,($O$1-1)*12) -> - | O17: =MAX(C17:N17) -> 3.794895604
B18: Día | C18: =OFFSET(Renovable!C189,0,($O$1-1)*12) -> 1 | D18: =OFFSET(Renovable!D189,0,($O$1-1)*12) -> - | E18: =OFFSET(Renovable!E189,0,($O$1-1)*12) -> - | F18: =OFFSET(Renovable!F189,0,($O$1-1)*12) -> - | G18: =OFFSET(Renovable!G189,0,($O$1-1)*12) -> - | H18: =OFFSET(Renovable!H189,0,($O$1-1)*12) -> - | I18: =OFFSET(Renovable!I189,0,($O$1-1)*12) -> - | J18: =OFFSET(Renovable!J189,0,($O$1-1)*12) -> - | K18: =OFFSET(Renovable!K189,0,($O$1-1)*12) -> - | L18: =OFFSET(Renovable!L189,0,($O$1-1)*12) -> - | M18: =OFFSET(Renovable!M189,0,($O$1-1)*12) -> - | N18: =OFFSET(Renovable!N189,0,($O$1-1)*12) -> - | O18: =HLOOKUP($O$17,C17:N18,2,0)&" de "&HLOOKUP($O$17,C17:N19,3,0) -> 1 de enero
C19: enero | D19: febrero | E19: marzo | F19: abril | G19: mayo | H19: junio | I19: julio | J19: agosto | K19: septiembre | L19: octubre | M19: noviembre | N19: diciembre
B20: (1) Incluye solar fotovoltaica.

Sheet Maxima renovable año Melilla
J1: 2
H3: Concepto
H4: Sistema eléctrico
H5: Horizonte temporal
H6: Periodo
C8: =OFFSET(Renovable!C223,0,($J$1-1)*8) -> 2018 | D8: =OFFSET(Renovable!D223,0,($J$1-1)*8) -> 2019 | E8: =OFFSET(Renovable!E223,0,($J$1-1)*8) -> 2020 | F8: =OFFSET(Renovable!F223,0,($J$1-1)*8) -> 2021 | G8: =OFFSET(Renovable!G223,0,($J$1-1)*8) -> 2022 | H8: =OFFSET(Renovable!H223,0,($J$1-1)*8) -> 2023 | I8: =OFFSET(Renovable!I223,0,($J$1-1)*8) -> 2024 | J8: =OFFSET(Renovable!J223,0,($J$1-1)*8) -> 2025
B10: Generación renovable (MWh) | C10: =OFFSET(Renovable!C224,0,($J$1-1)*8) -> 20.7825 | D10: =OFFSET(Renovable!D224,0,($J$1-1)*8) -> 19.3715 | E10: =OFFSET(Renovable!E224,0,($J$1-1)*8) -> - | F10: =OFFSET(Renovable!F224,0,($J$1-1)*8) -> - | G10: =OFFSET(Renovable!G224,0,($J$1-1)*8) -> - | H10: =OFFSET(Renovable!H224,0,($J$1-1)*8) -> - | I10: =OFFSET(Renovable!I224,0,($J$1-1)*8) -> - | J10: =OFFSET(Renovable!J224,0,($J$1-1)*8) -> -
B11: Día | C11: =OFFSET(Renovable!C225,0,($J$1-1)*8) -> 24 de diciembre | D11: =OFFSET(Renovable!D225,0,($J$1-1)*8) -> 1 de enero | E11: =OFFSET(Renovable!E225,0,($J$1-1)*8) -> - | F11: =OFFSET(Renovable!F225,0,($J$1-1)*8) -> - | G11: =OFFSET(Renovable!G225,0,($J$1-1)*8) -> - | H11: =OFFSET(Renovable!H225,0,($J$1-1)*8) -> - | I11: =OFFSET(Renovable!I225,0,($J$1-1)*8) -> - | J11: =OFFSET(Renovable!J225,0,($J$1-1)*8) -> -
C15: =OFFSET(Renovable!C227,0,($J$1-1)*8) -> 2018 | D15: =OFFSET(Renovable!D227,0,($J$1-1)*8) -> 2019 | E15: =OFFSET(Renovable!E227,0,($J$1-1)*8) -> 2020 | F15: =OFFSET(Renovable!F227,0,($J$1-1)*8) -> 2021 | G15: =OFFSET(Renovable!G227,0,($J$1-1)*8) -> 2022 | H15: =OFFSET(Renovable!H227,0,($J$1-1)*8) -> 2023 | I15: =OFFSET(Renovable!I227,0,($J$1-1)*8) -> 2024 | J15: =OFFSET(Renovable!J227,0,($J$1-1)*8) -> 2025
B17: Participación generación renovable (%) | C17: =OFFSET(Renovable!C228,0,($J$1-1)*8) -> 3.907625534 | D17: =OFFSET(Renovable!D228,0,($J$1-1)*8) -> 3.794895604 | E17: =OFFSET(Renovable!E228,0,($J$1-1)*8) -> - | F17: =OFFSET(Renovable!F228,0,($J$1-1)*8) -> - | G17: =OFFSET(Renovable!G228,0,($J$1-1)*8) -> - | H17: =OFFSET(Renovable!H228,0,($J$1-1)*8) -> - | I17: =OFFSET(Renovable!I228,0,($J$1-1)*8) -> - | J17: =OFFSET(Renovable!J228,0,($J$1-1)*8) -> -
B18: Día | C18: =OFFSET(Renovable!C229,0,($J$1-1)*8) -> 8 de diciembre | D18: =OFFSET(Renovable!D229,0,($J$1-1)*8) -> 1 de enero | E18: =OFFSET(Renovable!E229,0,($J$1-1)*8) -> - | F18: =OFFSET(Renovable!F229,0,($J$1-1)*8) -> - | G18: =OFFSET(Renovable!G229,0,($J$1-1)*8) -> - | H18: =OFFSET(Renovable!H229,0,($J$1-1)*8) -> - | I18: =OFFSET(Renovable!I229,0,($J$1-1)*8) -> - | J18: =OFFSET(Renovable!J229,0,($J$1-1)*8) -> -
B20: (1) Incluye solar fotovoltaica.
B21: ='Renovable año nacional'!B23:J23 -> Para el año 2019 valores acumulados hasta enero de 2019.

Sheet Renovable (hidden)
B2: Generación renovable mensual peninsular (GWh) | C2: 1990-01-01 | D2: 1990-02-01 | E2: 1990-03-01 | F2: 1990-04-01 | G2: 1990-05-01 | H2: 1990-06-01 | I2: 1990-07-01 | J2: 1990-08-01 | K2: 1990-09-01 | L2: 1990-10-01 | M2: 1990-11-01 | N2: 1990-12-01 | O2: 1991-01-01 | P2: 1991-02-01 | Q2: 1991-03-01 | R2: 1991-04-01 | S2: 1991-05-01 | T2: 1991-06-01 | U2: 1991-07-01 | V2: 1991-08-01 | W2: 1991-09-01 | X2: 1991-10-01 | Y2: 1991-11-01 | Z2: 1991-12-01 | AA2: 1992-01-01 | AB2: 1992-02-01 | AC2: 1992-03-01 | AD2: 1992-04-01 | AE2: 1992-05-01 | AF2: 1992-06-01 | AG2: 1992-07-01 | AH2: 1992-08-01 | AI2: 1992-09-01 | AJ2: 1992-10-01 | AK2: 1992-11-01 | AL2: 1992-12-01 | AM2: 1993-01-01 | AN2: 1993-02-01 | AO2: 1993-03-01 | AP2: 1993-04-01 | AQ2: 1993-05-01 | AR2: 1993-06-01 | AS2: 1993-07-01 | AT2: 1993-08-01 | AU2: 1993-09-01 | AV2: 1993-10-01 | AW2: 1993-11-01 | AX2: 1993-12-01 | AY2: 1994-01-01 | AZ2: 1994-02-01 | BA2: 1994-03-01 | BB2: 1994-04-01 | BC2: 1994-05-01 | BD2: 1994-06-01 | BE2: 1994-07-01 | BF2: 1994-08-01 | BG2: 1994-09-01 | BH2: 1994-10-01 | BI2: 1994-11-01 | BJ2: 1994-12-01 | BK2: 1995-01-01 | BL2: 1995-02-01 | BM2: 1995-03-01 | BN2: 1995-04-01 | BO2: 1995-05-01 | BP2: 1995-06-01 | BQ2: 1995-07-01 | BR2: 1995-08-01 | BS2: 1995-09-01 | BT2: 1995-10-01 | BU2: 1995-11-01 | BV2: 1995-12-01 | BW2: 1996-01-01 | BX2: 1996-02-01 | BY2: 1996-03-01 | BZ2: 1996-04-01 | CA2: 1996-05-01 | CB2: 1996-06-01 | CC2: 1996-07-01 | CD2: 1996-08-01 | CE2: 1996-09-01 | CF2: 1996-10-01 | CG2: 1996-11-01 | CH2: 1996-12-01 | CI2: 1997-01-01 | CJ2: 1997-02-01 | CK2: 1997-03-01 | CL2: 1997-04-01 | CM2: 1997-05-01 | CN2: 1997-06-01 | CO2: 1997-07-01 | CP2: 1997-08-01 | CQ2: 1997-09-01 | CR2: 1997-10-01 | CS2: 1997-11-01 | CT2: 1997-12-01 | CU2: 1998-01-01 | CV2: 1998-02-01 | CW2: 1998-03-01 | CX2: 1998-04-01 | CY2: 1998-05-01 | CZ2: 1998-06-01 | DA2: 1998-07-01 | DB2: 1998-08-01 | DC2: 1998-09-01 | DD2: 1998-10-01 | DE2: 1998-11-01 | DF2: 1998-12-01 | DG2: 1999-01-01 | DH2: 1999-02-01 | DI2: 1999-03-01 | DJ2: 1999-04-01 | DK2: 1999-05-01 | DL2: 1999-06-01 | DM2: 1999-07-01 | DN2: 1999-08-01 | DO2: 1999-09-01 | DP2: 1999-10-01 | DQ2: 1999-11-01 | DR2: 1999-12-01 | DS2: 2000-01-01 | DT2: 2000-02-01 | DU2: 2000-03-01 | DV2: 2000-04-01 | DW2: 2000-05-01 | DX2: 2000-06-01 | DY2: 2000-07-01 | DZ2: 2000-08-01 | EA2: 2000-09-01 | EB2: 2000-10-01 | EC2: 2000-11-01 | ED2: 2000-12-01 | EE2: 2001-01-01 | EF2: 2001-02-01 | EG2: 2001-03-01 | EH2: 2001-04-01 | EI2: 2001-05-01 | EJ2: 2001-06-01 | EK2: 2001-07-01 | EL2: 2001-08-01 | EM2: 2001-09-01 | EN2: 2001-10-01 | EO2: 2001-11-01 | EP2: 2001-12-01 | EQ2: 2002-01-01 | ER2: 2002-02-01 | ES2: 2002-03-01 | ET2: 2002-04-01 | EU2: 2002-05-01 | EV2: 2002-06-01 | EW2: 2002-07-01 | EX2: 2002-08-01 | EY2: 2002-09-01 | EZ2: 2002-10-01 | FA2: 2002-11-01 | FB2: 2002-12-01 | FC2: 2003-01-01 | FD2: 2003-02-01 | FE2: 2003-03-01 | FF2: 2003-04-01 | FG2: 2003-05-01 | FH2: 2003-06-01 | FI2: 2003-07-01 | FJ2: 2003-08-01 | FK2: 2003-09-01 | FL2: 2003-10-01 | FM2: 2003-11-01 | FN2: 2003-12-01 | FO2: 2004-01-01 | FP2: 2004-02-01 | FQ2: 2004-03-01 | FR2: 2004-04-01 | FS2: 2004-05-01 | FT2: 2004-06-01 | FU2: 2004-07-01 | FV2: 2004-08-01 | FW2: 2004-09-01 | FX2: 2004-10-01 | FY2: 2004-11-01 | FZ2: 2004-12-01 | GA2: 2005-01-01 | GB2: 2005-02-01 | GC2: 2005-03-01 | GD2: 2005-04-01 | GE2: 2005-05-01 | GF2: 2005-06-01 | GG2: 2005-07-01 | GH2: 2005-08-01 | GI2: 2005-09-01 | GJ2: 2005-10-01 | GK2: 2005-11-01 | GL2: 2005-12-01 | GM2: 2006-01-01 | GN2: 2006-02-01 | GO2: 2006-03-01 | GP2: 2006-04-01 | GQ2: 2006-05-01 | GR2: 2006-06-01 | GS2: 2006-07-01 | GT2: 2006-08-01 | GU2: 2006-09-01 | GV2: 2006-10-01 | GW2: 2006-11-01 | GX2: 2006-12-01 | GY2: 2007-01-01 | GZ2: 2007-02-01 | HA2: 2007-03-01 | HB2: 2007-04-01 | HC2: 2007-05-01 | HD2: 2007-06-01 | HE2: 2007-07-01 | HF2: 2007-08-01 | HG2: 2007-09-01 | HH2: 2007-10-01 | HI2: 2007-11-01 | HJ2: 2007-12-01 | HK2: 2008-01-01 | HL2: 2008-02-01 | HM2: 2008-03-01 | HN2: 2008-04-01 | HO2: 2008-05-01 | HP2: 2008-06-01 | HQ2: 2008-07-01 | HR2: 2008-08-01 | HS2: 2008-09-01 | HT2: 2008-10-01 | HU2: 2008-11-01 | HV2: 2008-12-01 | HW2: 2009-01-01 | HX2: 2009-02-01 | HY2: 2009-03-01 | HZ2: 2009-04-01 | IA2: 2009-05-01 | IB2: 2009-06-01 | IC2: 2009-07-01 | ID2: 2009-08-01 | IE2: 2009-09-01 | IF2: 2009-10-01 | IG2: 2009-11-01 | IH2: 2009-12-01 | II2: 2010-01-01 | IJ2: 2010-02-01 | IK2: 2010-03-01 | IL2: 2010-04-01 | IM2: 2010-05-01 | IN2: 2010-06-01 | IO2: 2010-07-01 | IP2: 2010-08-01 | IQ2: 2010-09-01 | IR2: 2010-10-01 | IS2: 2010-11-01 | IT2: 2010-12-01 | IU2: 2011-01-01 | IV2: 2011-02-01 | IW2: 2011-03-01 | IX2: 2011-04-01 | IY2: 2011-05-01 | IZ2: 2011-06-01 | JA2: 2011-07-01 | JB2: 2011-08-01 | JC2: 2011-09-01 | JD2: 2011-10-01 | JE2: 2011-11-01 | JF2: 2011-12-01 | JG2: 2012-01-01 | JH2: 2012-02-01 | JI2: 2012-03-01 | JJ2: 2012-04-01 | JK2: 2012-05-01 | JL2: 2012-06-01 | JM2: 2012-07-01 | JN2: 2012-08-01 | JO2: 2012-09-01 | JP2: 2012-10-01 | JQ2: 2012-11-01 | JR2: 2012-12-01 | JS2: 2013-01-01 | JT2: 2013-02-01 | JU2: 2013-03-01 | JV2: 2013-04-01 | JW2: 2013-05-01 | JX2: 2013-06-01 | JY2: 2013-07-01 | JZ2: 2013-08-01 | KA2: 2013-09-01 | KB2: 2013-10-01 | KC2: 2013-11-01 | KD2: 2013-12-01 | KE2: 2014-01-01 | KF2: 2014-02-01 | KG2: 2014-03-01 | KH2: 2014-04-01 | KI2: 2014-05-01 | KJ2: 2014-06-01 | KK2: 2014-07-01 | KL2: 2014-08-01 | KM2: 2014-09-01 | KN2: 2014-10-01 | KO2: 2014-11-01 | KP2: 2014-12-01 | KQ2: 2015-01-01 | KR2: 2015-02-01 | KS2: 2015-03-01 | KT2: 2015-04-01 | KU2: 2015-05-01 | KV2: 2015-06-01 | KW2: 2015-07-01 | KX2: 2015-08-01 | KY2: 2015-09-01 | KZ2: 2015-10-01 | LA2: 2015-11-01 | LB2: 2015-12-01 | LC2: 2016-01-01 | LD2: 2016-02-01 | LE2: 2016-03-01 | LF2: 2016-04-01 | LG2: 2016-05-01 | LH2: 2016-06-01 | LI2: 2016-07-01 | LJ2: 2016-08-01 | LK2: 2016-09-01 | LL2: 2016-10-01 | LM2: 2016-11-01 | LN2: 2016-12-01 | LO2: 2017-01-01 | LP2: 2017-02-01 | LQ2: 2017-03-01 | LR2: 2017-04-01 | LS2: 2017-05-01 | LT2: 2017-06-01 | LU2: 2017-07-01 | LV2: 2017-08-01 | LW2: 2017-09-01 | LX2: 2017-10-01 | LY2: 2017-11-01 | LZ2: 2017-12-01 | MA2: 2018-01-01 | MB2: 2018-02-01 | MC2: 2018-03-01 | MD2: 2018-04-01 | ME2: 2018-05-01 | MF2: 2018-06-01 | MG2: 2018-07-01 | MH2: 2018-08-01 | MI2: 2018-09-01 | MJ2: 2018-10-01 | MK2: 2018-11-01 | ML2: 2018-12-01 | MM2: 2019-01-01 | MN2: 2019-02-01 | MO2: 2019-03-01 | MP2: 2019-04-01 | MQ2: 2019-05-01 | MR2: 2019-06-01 | MS2: 2019-07-01 | MT2: 2019-08-01 | MU2: 2019-09-01 | MV2: 2019-10-01 | MW2: 2019-11-01 | MX2: 2019-12-01
B3: Hidráulica | C3: 3918.6757 | D3: 3333.6374 | E3: 2452.5297 | F3: 1755.3215 | G3: 1836.9248 | H3: 1831.1812 | I3: 1599.5272 | J3: 1227.5304 | K3: 1212.3349 | L3: 1406.6943 | M3: 1978.2071 | N3: 1970.8284 | O3: 2646.6084 | P3: 2042.3739 | Q3: 3829.2158 | R3: 3506.8193 | S3: 2889.9027 | T3: 2118.4462 | U3: 1720.5286 | V3: 1135.845 | W3: 1128.8659 | X3: 1550.5057 | Y3: 1986.0651 | Z3: 1877.5383 | AA3: 1376.0016 | AB3: 813.4485 | AC3: 812.441 | AD3: 1582.5799 | AE3: 1481.0745 | AF3: 1588.5272 | AG3: 1671.8659 | AH3: 1139.3134 | AI3: 1221.0872 | AJ3: 1868.7011 | AK3: 2199.0007 | AL3: 2884.5995 | AM3: 2173.1173 | AN3: 1502.9727 | AO3: 1455.1872 | AP3: 1164.1772 | AQ3: 1876.6057 | AR3: 2205.2416 | AS3: 1883.6718 | AT3: 1243.7569 | AU3: 1206.9292 | AV3: 2848.0511 | AW3: 3456.3337 | AX3: 2732.6733 | AY3: 3848.8668 | AZ3: 3146.5759 | BA3: 2820.2587 | BB3: 2398.8497 | BC3: 2650.6785 | BD3: 2431.906 | BE3: 1837.9286 | BF3: 1341.2518 | BG3: 1259.9082 | BH3: 1548.2219 | BI3: 2325.1986 | BJ3: 1874.289 | BK3: 2861.6679 | BL3: 2714.2804 | BM3: 3221.3852 | BN3: 1904.7217 | BO3: 1751.5129 | BP3: 1755.6953 | BQ3: 1620.4475 | BR3: 1073.0143 | BS3: 920.7777 | BT3: 964.2007 | BU3: 1234.423 | BV3: 2439.8352 | BW3: 5798.4195 | BX3: 5606.2932 | BY3: 3664.3791 | BZ3: 3799.0389 | CA3: 3915.0154 | CB3: 2960.0973 | CC3: 2330.1722 | CD3: 1600.7672 | CE3: 1815.6719 | CF3: 1824.5397 | CG3: 2263.2827 | CH3: 4290.9273 | CI3: 5684.4498 | CJ3: 3581.0204 | CK3: 2731.3906 | CL3: 2366.0041 | CM3: 2308.7508 | CN3: 2434.5351 | CO3: 2116.8502 | CP3: 1777.8007 | CQ3: 1657.3873 | CR3: 1516.2138 | CS3: 3502.8993 | CT3: 5432.9556 | CU3: 5963.346319 | CV3: 4078.017918 | CW3: 2761.223665 | CX3: 3545.766825 | CY3: 4114.896572 | CZ3: 3491.045345 | DA3: 2600.167347 | DB3: 2084.704195 | DC3: 1867.182614 | DD3: 2039.85623 | DE3: 1546.018728 | DF3: 1341.783359 | DG3: 1435.381996 | DH3: 1375.940112 | DI3: 2045.552531 | DJ3: 2202.866889 | DK3: 2949.529113 | DL3: 2537.296394 | DM3: 1988.170343 | DN3: 1470.837827 | DO3: 1552.635593 | DP3: 1749.201998 | DQ3: 2846.810777 | DR3: 2883.481039 | DS3: 2589.13418 | DT3: 1638.493939 | DU3: 1550.299816 | DV3: 2240.101818 | DW3: 3358.385709 | DX3: 2368.292951 | DY3: 1747.034519 | DZ3: 1756.803605 | EA3: 1839.772787 | EB3: 1741.570885 | EC3: 2504.659309 | ED3: 4559.385215 | EE3: 6401.781203 | EF3: 5857.964764 | EG3: 6695.686381 | EH3: 4446.304665 | EI3: 3444.04229 | EJ3: 2580.349895 | EK3: 2085.73993 | EL3: 1948.374278 | EM3: 1501.032537 | EN3: 1780.336015 | EO3: 2034.87437 | EP3: 1615.613505 | EQ3: 1348.506949 | ER3: 1190.15984 | ES3: 1906.697252 | ET3: 1894.159952 | EU3: 1992.476542 | EV3: 1952.963522 | EW3: 1371.151243 | EX3: 1054.339623 | EY3: 1042.182297 | EZ3: 1218.436046 | FA3: 1998.088245 | FB3: 4256.163428 | FC3: 5658.659439 | FD3: 4415.60924 | FE3: 4604.80059 | FF3: 3922.216526 | FG3: 3724.839974 | FH3: 2368.664178 | FI3: 1983.269369 | FJ3: 1467.309335 | FK3: 1660.067 | FL3: 2011.680796 | FM3: 3295.56606 | FN3: 4984.324738 | FO3: 3782.355469 | FP3: 3398.449958 | FQ3: 3183.442038 | FR3: 3036.19323 | FS3: 3363.856882 | FT3: 2760.278103 | FU3: 2113.344175 | FV3: 1758.345525 | FW3: 1536.451933 | FX3: 1745.094081 | FY3: 2368.955546 | FZ3: 1823.270545 | GA3: 1563.69751 | GB3: 1539.489827 | GC3: 1810.96395 | GD3: 2099.503544 | GE3: 2187.268703 | GF3: 1823.521619 | GG3: 1308.169944 | GH3: 1129.599618 | GI3: 819.030491 | GJ3: 856.894643 | GK3: 1399.500341 | GL3: 1710.556849 | GM3: 1634.528173 | GN3: 1190.416035 | GO3: 3010.69227 | GP3: 2727.263456 | GQ3: 2135.352445 | GR3: 1504.0543 | GS3: 1506.8628 | GT3: 1033.5582 | GU3: 1116.2089 | GV3: 1636.5319 | GW3: 2970.4036 | GX3: 4909.0767 | GY3: 2265.5368 | GZ3: 3018.5307 | HA3: 3928.3884 | HB3: 2867.4611 | HC3: 2837.4746 | HD3: 2309.4112 | HE3: 2454.6643 | HF3: 1770.7816 | HG3: 1376.0555 | HH3: 1712.4373 | HI3: 1341.9655 | HJ3: 1221.5961 | HK3: 1393.1778 | HL3: 957.6515 | HM3: 1075.7952 | HN3: 2740.0094 | HO3: 3370.1599 | HP3: 3175.4915 | HQ3: 2181.8666 | HR3: 1539.6016 | HS3: 1313.4238 | HT3: 1095.1625 | HU3: 1592.7958 | HV3: 2498.646 | HW3: 2274.4841 | HX3: 3482.0335 | HY3: 2794.2226 | HZ3: 2205.6007 | IA3: 2585.8144 | IB3: 2128.0412 | IC3: 1758.4124 | ID3: 1449.8248 | IE3: 993.2099 | IF3: 1258.9399 | IG3: 2027.0113 | IH3: 3228.3809 | II3: 5178.646113 | IJ3: 4067.303562 | IK3: 5816.538044 | IL3: 4720.052131 | IM3: 3862.882048 | IN3: 3555.036153 | IO3: 2896.772407 | IP3: 2036.829814 | IQ3: 1530.457344 | IR3: 1601.502029 | IS3: 2611.518068 | IT3: 3956.236477 | IU3: 5119.514292 | IV3: 2998.053073 | IW3: 3910.363472 | IX3: 3537.700427 | IY3: 2797.337316 | IZ3: 2070.176473 | JA3: 1661.68136 | JB3: 1520.767484 | JC3: 1221.392502 | JD3: 1250.041945 | JE3: 2163.124714 | JF3: 2185.510341 | JG3: 1631.038187 | JH3: 1224.636567 | JI3: 1340.849746 | JJ3: 1743.897706 | JK3: 2534.808118 | JL3: 2105.908887 | JM3: 1664.128375 | JN3: 1334.583379 | JO3: 1035.279456 | JP3: 1388.690342 | JQ3: 1986.4326 | JR3: 2661.544172 | JS3: 3014.226659 | JT3: 3550.95911 | JU3: 4586.836008 | JV3: 5389.850392 | JW3: 3818.802148 | JX3: 3208.650625 | JY3: 2723.541825 | JZ3: 2143.533546 | KA3: 1825.85827 | KB3: 1866.429994 | KC3: 2804.706215 | KD3: 2449.01074 | KE3: 4261.089441 | KF3: 5762.976808 | KG3: 5292.71858 | KH3: 4986.567864 | KI3: 2826.466361 | KJ3: 2485.440482 | KK3: 2354.510689 | KL3: 2044.576989 | KM3: 1796.850468 | KN3: 1631.747831 | KO3: 2451.805829 | KP3: 3283.772818 | KQ3: 2554.527494 | KR3: 3558.737229 | KS3: 3845.280396 | KT3: 2662.520772 | KU3: 2966.879723 | KV3: 2497.294804 | KW3: 2060.0959 | KX3: 1643.417731 | KY3: 1609.227182 | KZ3: 1649.857537 | LA3: 1892.383414 | LB3: 1438.789389 | LC3: 3441.520467 | LD3: 4052.601401 | LE3: 4366.237995 | LF3: 5244.585173 | LG3: 5100.89935 | LH3: 2955.873145 | LI3: 2272.888805 | LJ3: 2046.813432 | LK3: 1653.365927 | LL3: 1631.560771 | LM3: 1498.794683 | LN3: 1846.293218 | LO3: 2040.378652 | LP3: 1956.351219 | LQ3: 2700.967572 | LR3: 1897.721995 | LS3: 1935.158531 | LT3: 1637.601144 | LU3: 1192.784179 | LV3: 1082.439769 | LW3: 1147.580836 | LX3: 773.3563124 | LY3: 832.4226315 | LZ3: 1250.583931 | MA3: 2194.602566 | MB3: 2388.861004 | MC3: 4401.315048 | MD3: 4717.021649 | ME3: 3521.329633 | MF3: 3710.881287 | MG3: 3025.831285 | MH3: 2104.564669 | MI3: 1926.455202 | MJ3: 1460.273611 | MK3: 2160.642787 | ML3: 2485.018046 | MM3: 2125.780167 | MN3: - | MO3: - | MP3: - | MQ3: - | MR3: - | MS3: - | MT3: - | MU3: - | MV3: - | MW3: - | MX3: -
B4: Eólica | C4: 0.115 | D4: 0.19899999 | E4: 0.18 | F4: 0.189 | G4: 0.174 | H4: 0.12 | I4: 0.26 | J4: 0.186 | K4: 0.131 | L4: 0.17 | M4: 0.207 | N4: 0.25599999 | O4: 0.192 | P4: 0.143 | Q4: 0.212 | R4: 0.562 | S4: 0.322 | T4: 0.2 | U4: 0.184 | V4: 0.212 | W4: 0.144 | X4: 0.242 | Y4: 0.271 | Z4: 0.181 | AA4: 0.262 | AB4: 0.225 | AC4: 0.313 | AD4: 0.207 | AE4: 0.195 | AF4: 0.163 | AG4: 0.195 | AH4: 0.666 | AI4: 1.295 | AJ4: 2.137 | AK4: 2.507 | AL4: 9.196 | AM4: 7.115 | AN4: 11.386 | AO4: 7.326 | AP4: 6.164 | AQ4: 5.271 | AR4: 7.974 | AS4: 7.391 | AT4: 6.981 | AU4: 5.631 | AV4: 7.198 | AW4: 6.728 | AX4: 5.603 | AY4: 6.899 | AZ4: 4.814 | BA4: 8.769 | BB4: 6.859 | BC4: 4.97 | BD4: 6.462 | BE4: 3.859 | BF4: 5.393 | BG4: 5.047 | BH4: 6.336 | BI4: 7.78 | BJ4: 5.672 | BK4: 7.87 | BL4: 7.675 | BM4: 8.496 | BN4: 11.902 | BO4: 9.211 | BP4: 8.898 | BQ4: 14.465 | BR4: 17.63 | BS4: 14.853 | BT4: 27.623 | BU4: 13.795 | BV4: 17.439 | BW4: 18.83 | BX4: 22.031 | BY4: 24.646 | BZ4: 26.102 | CA4: 23.157 | CB4: 27.099 | CC4: 25.434 | CD4: 15.643 | CE4: 22.706 | CF4: 30.321 | CG4: 31.616 | CH4: 36.544 | CI4: 39.627 | CJ4: 32.179 | CK4: 46.04 | CL4: 56.365 | CM4: 39.41 | CN4: 43.759 | CO4: 57.268 | CP4: 41.053 | CQ4: 45.835 | CR4: 69.47 | CS4: 72.794 | CT4: 76.085 | CU4: 85.726279 | CV4: 73.041771 | CW4: 100.156674 | CX4: 97.154275 | CY4: 87.936697 | CZ4: 72.687051 | DA4: 112.788958 | DB4: 131.013278 | DC4: 104.747635 | DD4: 104.146754 | DE4: 128.518917 | DF4: 138.738417 | DG4: 159.911065 | DH4: 214.375135 | DI4: 206.772797 | DJ4: 190.999426 | DK4: 173.148566 | DL4: 212.214153 | DM4: 177.000959 | DN4: 139.302129 | DO4: 172.17858 | DP4: 199.350315 | DQ4: 312.980648 | DR4: 315.799525 | DS4: 305.024786 | DT4: 295.1137 | DU4: 338.149516 | DV4: 416.021442 | DW4: 226.957358 | DX4: 365.846115 | DY4: 360.052448 | DZ4: 315.707212 | EA4: 276.366005 | EB4: 409.721173 | EC4: 544.093822 | ED4: 609.442473 | EE4: 594.731676 | EF4: 573.654778 | EG4: 654.248611 | EH4: 650.224566 | EI4: 424.361087 | EJ4: 408.907282 | EK4: 400.205723 | EL4: 374.720812 | EM4: 611.542894 | EN4: 574.769948 | EO4: 768.828981 | EP4: 557.951755 | EQ4: 657.009295 | ER4: 782.540758 | ES4: 795.79278 | ET4: 618.787308 | EU4: 820.586332 | EV4: 646.365366 | EW4: 693.582831 | EX4: 598.43409 | EY4: 505.371396 | EZ4: 869.000019 | FA4: 1056.957505 | FB4: 1214.869007 | FC4: 1395.171019 | FD4: 997.62485 | FE4: 837.860626 | FF4: 1138.000866 | FG4: 901.866016 | FH4: 703.483064 | FI4: 727.405981 | FJ4: 543.970839 | FK4: 781.2453 | FL4: 1086.955352 | FM4: 1172.985179 | FN4: 1433.677041 | FO4: 1685.344923 | FP4: 1074.447704 | FQ4: 1281.279462 | FR4: 1519.372767 | FS4: 1019.357853 | FT4: 1048.332716 | FU4: 970.026109 | FV4: 1114.316325 | FW4: 1147.637898 | FX4: 1635.269143 | FY4: 1511.245273 | FZ4: 1747.487596 | GA4: 1879.193348 | GB4: 1745.313957 | GC4: 1763.513597 | GD4: 1926.458081 | GE4: 1492.0682 | GF4: 1261.460764 | GG4: 1611.02847 | GH4: 1640.440853 | GI4: 1271.494533 | GJ4: 1902.724597 | GK4: 1958.532153 | GL4: 2405.437406 | GM4: 1563.700931 | GN4: 1924.867031 | GO4: 2788.267198 | GP4: 1955.917235 | GQ4: 1670.51768 | GR4: 1364.448 | GS4: 1171.791 | GT4: 2177.821 | GU4: 1465.816 | GV4: 2334.802 | GW4: 2279.523 | GX4: 2183.385 | GY4: 2149.807 | GZ4: 2871.919 | HA4: 3086.247 | HB4: 1356.316 | HC4: 2605.873 | HD4: 1786.288 | HE4: 1888.609 | HF4: 2419.819 | HG4: 2028.855 | HH4: 1907.625 | HI4: 2752.312 | HJ4: 2395.485 | HK4: 2651.468 | HL4: 2018.948 | HM4: 4092.55 | HN4: 3352.686 | HO4: 1737.161 | HP4: 2085.509 | HQ4: 2124.237 | HR4: 1972.523 | HS4: 2129.885 | HT4: 2482.013 | HU4: 3462.688 | HV4: 3648.182 | HW4: 3503.799 | HX4: 3226.32 | HY4: 3100.516 | HZ4: 3059.658 | IA4: 2698.004 | IB4: 2332.395 | IC4: 2426.129 | ID4: 2235.837 | IE4: 2466.731 | IF4: 3125.33 | IG4: 4792.63 | IH4: 4921.228 | II4: 4292.092 | IJ4: 4622.435 | IK4: 4546.547 | IL4: 2634.819 | IM4: 3619.334 | IN4: 2576.197 | IO4: 2798.133 | IP4: 2894.744 | IQ4: 2301.323 | IR4: 3952.831 | IS4: 4348.059 | IT4: 4621.882 | IU4: 4021.664377 | IV4: 4028.617282 | IW4: 4692.967394 | IX4: 3399.8872 | IY4: 3166.012039 | IZ4: 2937.49434 | JA4: 3254.704718 | JB4: 2730.852573 | JC4: 2322.956455 | JD4: 3152.198095 | JE4: 3819.856832 | JF4: 4588.575788 | JG4: 3648.791131 | JH4: 5018.862598 | JI4: 3811.353286 | JJ4: 5306.39049 | JK4: 3707.879342 | JL4: 3429.200937 | JM4: 2981.912591 | JN4: 3126.884376 | JO4: 3940.341527 | JP4: 3129.821392 | JQ4: 4604.842312 | JR4: 5449.977965 | JS4: 6291.574234 | JT4: 5340.996438 | JU4: 5749.103159 | JV4: 4396.782103 | JW4: 3932.350082 | JX4: 3827.052263 | JY4: 2844.212849 | JZ4: 3411.023511 | KA4: 3214.272503 | KB4: 3963.879786 | KC4: 6429.81384 | KD4: 4943.440014 | KE4: 6540.918605 | KF4: 5884.285287 | KG4: 5050.005098 | KH4: 3950.218045 | KI4: 4134.841384 | KJ4: 3275.599214 | KK4: 3591.601846 | KL4: 2857.511526 | KM4: 2132.613528 | KN4: 3382.766062 | KO4: 5071.980759 | KP4: 4764.32111 | KQ4: 4912.459822 | KR4: 5948.174044 | KS4: 4865.124194 | KT4: 3904.518438 | KU4: 4800.45312 | KV4: 2873.288099 | KW4: 3053.374254 | KX4: 3237.3727 | KY4: 3002.694547 | KZ4: 3889.981469 | LA4: 3699.879886 | LB4: 3528.561572 | LC4: 5604.84411 | LD4: 6068.142812 | LE4: 5409.60297 | LF4: 4414.65311 | LG4: 3902.185767 | LH4: 3226.857228 | LI4: 3464.678578 | LJ4: 3603.862053 | LK4: 2666.88782 | LL4: 2376.010907 | LM4: 3888.748965 | LN4: 2671.689348 | LO4: 4796.964636 | LP4: 4905.537269 | LQ4: 4687.838771 | LR4: 4177.339629 | LS4: 3440.349131 | LT4: 3152.079588 | LU4: 3336.789019 | LV4: 3296.361583 | LW4: 2817.340224 | LX4: 3186.721569 | LY4: 3957.531226 | LZ4: 5753.253307 | MA4: 5291.419416 | MB4: 4633.935424 | MC4: 7651.225033 | MD4: 4411.135621 | ME4: 3258.097287 | MF4: 2571.687929 | MG4: 2478.588846 | MH4: 3064.847961 | MI4: 2404.039321 | MJ4: 4295.775623 | MK4: 4525.950187 | ML4: 4315.02541 | MM4: 5970.541017 | MN4: - | MO4: - | MP4: - | MQ4: - | MR4: - | MS4: - | MT4: - | MU4: - | MV4: - | MW4: - | MX4: -
B5: Solar fotovoltaica | C5: - | D5: - | E5: - | F5: - | G5: - | H5: - | I5: - | J5: - | K5: - | L5: - | M5: - | N5: - | O5: - | P5: - | Q5: - | R5: - | S5: - | T5: - | U5: - | V5: - | W5: - | X5: - | Y5: - | Z5: - | AA5: 1.01 | AB5: 0.772 | AC5: 0.572 | AD5: 1.289 | AE5: 1.113 | AF5: 1.164 | AG5: 1.307 | AH5: 1.155 | AI5: 1.223 | AJ5: 0.944 | AK5: 0.57 | AL5: 0.937 | AM5: 0.538 | AN5: 0.533 | AO5: 1.252 | AP5: 1.303 | AQ5: 1.05 | AR5: 1.069 | AS5: 1.273 | AT5: 1.193 | AU5: 0.88 | AV5: 0.72 | AW5: 1.263 | AX5: 0.926 | AY5: 0.978 | AZ5: 1.242 | BA5: 1.065 | BB5: 1.208 | BC5: 1.742 | BD5: 1.484 | BE5: 1.635 | BF5: 1.668 | BG5: 1.69 | BH5: 1.521 | BI5: 1.004 | BJ5: 0.0589 | BK5: 0.064 | BL5: 0.068 | BM5: 0.112 | BN5: 0.117 | BO5: 0.132 | BP5: 0.111 | BQ5: 0.105 | BR5: 0.096 | BS5: 0.091 | BT5: 0.048 | BU5: 0.091 | BV5: 0.027 | BW5: 0.024 | BX5: 0.033 | BY5: 0.047 | BZ5: 0.093 | CA5: 0.086 | CB5: 0.117 | CC5: 0.107 | CD5: 0.103 | CE5: 0.096 | CF5: 0.095 | CG5: 0.064 | CH5: 0.026 | CI5: 0.041 | CJ5: 0.088 | CK5: 0.088 | CL5: 0.119 | CM5: 0.093 | CN5: 0.107 | CO5: 0.143 | CP5: 0.087 | CQ5: 0.12 | CR5: 0.096 | CS5: 0.105 | CT5: 0.04 | CU5: 0.049635 | CV5: 0.070578 | CW5: 0.11299 | CX5: 0.11806 | CY5: 0.096177 | CZ5: 0.130517 | DA5: 0.13625 | DB5: 0.110493 | DC5: 0.09651 | DD5: 0.112811 | DE5: 0.069553 | DF5: 0.066723 | DG5: 0.053642 | DH5: 0.107873 | DI5: 0.15288 | DJ5: 0.117727 | DK5: 0.122524 | DL5: 0.14708 | DM5: 0.159277 | DN5: 0.14217 | DO5: 0.121715 | DP5: 0.088742 | DQ5: 0.079734 | DR5: 0.047817 | DS5: -0.026861 | DT5: 0.101559 | DU5: 0.124075 | DV5: 0.012024 | DW5: 0.205484 | DX5: 0.16091 | DY5: 0.019985 | DZ5: 0.298272 | EA5: 0.136951 | EB5: 0.12126 | EC5: 0.072306 | ED5: 0.043852 | EE5: 0.054685 | EF5: 0.098406 | EG5: 0.10854 | EH5: 0.170565 | EI5: 0.156555 | EJ5: 0.197492 | EK5: 0.168866 | EL5: 0.213764 | EM5: 0.128753 | EN5: 0.163998 | EO5: 0.094907 | EP5: 0.083112 | EQ5: 0.126051 | ER5: 0.229529 | ES5: 0.274106 | ET5: 0.396381 | EU5: 0.478436 | EV5: 0.479391 | EW5: 0.538064 | EX5: 0.533652 | EY5: 0.489809 | EZ5: 0.419306 | FA5: 0.317988 | FB5: 0.278739 | FC5: 0.331772 | FD5: 0.405857 | FE5: 0.562187 | FF5: 0.715348 | FG5: 0.856797 | FH5: 0.976934 | FI5: 1.140896 | FJ5: 1.017998 | FK5: 0.915326 | FL5: 0.809065 | FM5: 0.531804 | FN5: 0.666121 | FO5: 0.575979 | FP5: 0.833369 | FQ5: 1.127006 | FR5: 1.376597 | FS5: 1.638065 | FT5: 1.936569 | FU5: 2.015126 | FV5: 2.030072 | FW5: 1.850632 | FX5: 1.706128 | FY5: 1.375854 | FZ5: 1.328614 | GA5: 1.310038 | GB5: 1.59649 | GC5: 2.752105 | GD5: 2.916883 | GE5: 3.637065 | GF5: 4.270227 | GG5: 4.396409 | GH5: 4.542723 | GI5: 4.291025 | GJ5: 3.943208 | GK5: 3.248179 | GL5: 3.183997 | GM5: 2.56564 | GN5: 4.341388 | GO5: 5.163743 | GP5: 7.314716 | GQ5: 8.774512 | GR5: 10.192 | GS5: 11.021 | GT5: 13.52 | GU5: 11.63 | GV5: 9.949 | GW5: 8.077 | GX5: 9.826 | GY5: 9.686 | GZ5: 12.005 | HA5: 20.551 | HB5: 24.491 | HC5: 34.18 | HD5: 38.843 | HE5: 49.655 | HF5: 53.862 | HG5: 58.231 | HH5: 55.535 | HI5: 52.622 | HJ5: 52.916 | HK5: 57.421 | HL5: 70.549 | HM5: 104.433 | HN5: 126.235 | HO5: 131.754 | HP5: 189.707 | HQ5: 232.234 | HR5: 288.112 | HS5: 317.111 | HT5: 320.166 | HU5: 324.321 | HV5: 244.027 | HW5: 248.703 | HX5: 380.174 | HY5: 508.662 | HZ5: 546.455 | IA5: 647.317 | IB5: 618.528 | IC5: 690.862 | ID5: 637.125 | IE5: 492.289 | IF5: 482.285 | IG5: 345.4 | IH5: 231.205 | II5: 248.575 | IJ5: 289.95 | IK5: 458.217 | IL5: 565.84 | IM5: 683.248 | IN5: 656.766 | IO5: 752.89 | IP5: 691.532 | IQ5: 605.388 | IR5: 525.855 | IS5: 364.052 | IT5: 297.469 | IU5: 330.686007 | IV5: 481.491656 | IW5: 508.851028 | IX5: 631.956214 | IY5: 716.837677 | IZ5: 778.343553 | JA5: 825.352516 | JB5: 772.150481 | JC5: 705.196098 | JD5: 603.445746 | JE5: 345.878021 | JF5: 405.681805 | JG5: 482.679558 | JH5: 635.514072 | JI5: 736.9448 | JJ5: 627.60361 | JK5: 826.209122 | JL5: 839.14592 | JM5: 902.627416 | JN5: 826.45653 | JO5: 658.334983 | JP5: 566.692926 | JQ5: 350.395325 | JR5: 377.465114 | JS5: 418.752891 | JT5: 500.851015 | JU5: 531.479938 | JV5: 725.435928 | JW5: 832.560046 | JX5: 886.251453 | JY5: 929.532569 | JZ5: 857.080863 | KA5: 724.785135 | KB5: 603.790046 | KC5: 490.22813 | KD5: 417.62809 | KE5: 352.691037 | KF5: 405.784512 | KG5: 697.702989 | KH5: 753.337087 | KI5: 882.627909 | KJ5: 862.916347 | KK5: 910.103227 | KL5: 871.552828 | KM5: 655.182041 | KN5: 616.964827 | KO5: 362.102199 | KP5: 431.825917 | KQ5: 493.217544 | KR5: 469.241672 | KS5: 677.67496 | KT5: 718.225925 | KU5: 880.712786 | KV5: 848.448017 | KW5: 888.935081 | KX5: 793.676251 | KY5: 691.735869 | KZ5: 510.878196 | LA5: 503.191862 | LB5: 369.376374 | LC5: 337.686064 | LD5: 452.534531 | LE5: 674.592812 | LF5: 686.153009 | LG5: 769.189457 | LH5: 881.462391 | LI5: 875.510183 | LJ5: 855.094815 | LK5: 730.023359 | LL5: 555.783062 | LM5: 402.9502 | LN5: 358.238329 | LO5: 452.337442 | LP5: 419.297686 | LQ5: 679.827954 | LR5: 798.192052 | LS5: 834.118766 | LT5: 840.615351 | LU5: 875.227848 | LV5: 779.85283 | LW5: 742.387548 | LX5: 652.669831 | LY5: 516.980675 | LZ5: 409.204181 | MA5: 418.421061 | MB5: 487.845704 | MC5: 555.916641 | MD5: 664.77 | ME5: 778.087822 | MF5: 779.943951 | MG5: 890.967313 | MH5: 806.331461 | MI5: 686.526488 | MJ5: 539.813259 | MK5: 352.619656 | ML5: 401.501096 | MM5: 476.807724 | MN5: - | MO5: - | MP5: - | MQ5: - | MR5: - | MS5: - | MT5: - | MU5: - | MV5: - | MW5: - | MX5: -
B6: Solar térmica | C6: - | D6: - | E6: - | F6: - | G6: - | H6: - | I6: - | J6: - | K6: - | L6: - | M6: - | N6: - | O6: - | P6: - | Q6: - | R6: - | S6: - | T6: - | U6: - | V6: - | W6: - | X6: - | Y6: - | Z6: - | AA6: - | AB6: - | AC6: - | AD6: - | AE6: - | AF6: - | AG6: - | AH6: - | AI6: - | AJ6: - | AK6: - | AL6: - | AM6: - | AN6: - | AO6: - | AP6: - | AQ6: - | AR6: - | AS6: - | AT6: - | AU6: - | AV6: - | AW6: - | AX6: - | AY6: - | AZ6: - | BA6: - | BB6: - | BC6: - | BD6: - | BE6: - | BF6: - | BG6: - | BH6: - | BI6: - | BJ6: - | BK6: - | BL6: - | BM6: - | BN6: - | BO6: - | BP6: - | BQ6: - | BR6: - | BS6: - | BT6: - | BU6: - | BV6: - | BW6: - | BX6: - | BY6: - | BZ6: - | CA6: - | CB6: - | CC6: - | CD6: - | CE6: - | CF6: - | CG6: - | CH6: - | CI6: - | CJ6: - | CK6: - | CL6: - | CM6: - | CN6: - | CO6: - | CP6: - | CQ6: - | CR6: - | CS6: - | CT6: - | CU6: - | CV6: - | CW6: - | CX6: - | CY6: - | CZ6: - | DA6: - | DB6: - | DC6: - | DD6: - | DE6: - | DF6: - | DG6: - | DH6: - | DI6: - | DJ6: - | DK6: - | DL6: - | DM6: - | DN6: - | DO6: - | DP6: - | DQ6: - | DR6: - | DS6: - | DT6: - | DU6: - | DV6: - | DW6: - | DX6: - | DY6: - | DZ6: - | EA6: - | EB6: - | EC6: - | ED6: - | EE6: - | EF6: - | EG6: - | EH6: - | EI6: - | EJ6: - | EK6: - | EL6: - | EM6: - | EN6: - | EO6: - | EP6: - | EQ6: - | ER6: - | ES6: - | ET6: - | EU6: - | EV6: - | EW6: - | EX6: - | EY6: - | EZ6: - | FA6: - | FB6: - | FC6: - | FD6: - | FE6: - | FF6: - | FG6: - | FH6: - | FI6: - | FJ6: - | FK6: - | FL6: - | FM6: - | FN6: - | FO6: - | FP6: - | FQ6: - | FR6: - | FS6: - | FT6: - | FU6: - | FV6: - | FW6: - | FX6: - | FY6: - | FZ6: - | GA6: - | GB6: - | GC6: - | GD6: - | GE6: - | GF6: - | GG6: - | GH6: - | GI6: - | GJ6: - | GK6: - | GL6: - | GM6: 0 | GN6: 0 | GO6: 0 | GP6: 0 | GQ6: 0 | GR6: 0 | GS6: 0 | GT6: 0 | GU6: 0 | GV6: 0 | GW6: 0 | GX6: 0 | GY6: 0 | GZ6: 0 | HA6: 0.431 | HB6: 0.342 | HC6: 0.558 | HD6: 0.883 | HE6: 1.256 | HF6: 1.116 | HG6: 0.639 | HH6: 1.214 | HI6: 0.997 | HJ6: 0.191 | HK6: 1.084 | HL6: 0.797 | HM6: 1.461 | HN6: 0.958 | HO6: 0.942 | HP6: 1.963 | HQ6: 2.038 | HR6: 1.98 | HS6: 0.859 | HT6: 0.866 | HU6: 1.27 | HV6: 1.16 | HW6: 0.69 | HX6: 1.236 | HY6: 2.323 | HZ6: 7.204 | IA6: 7.658 | IB6: 6.752 | IC6: 12.414 | ID6: 23.868 | IE6: 17.539 | IF6: 23.446 | IG6: 16.183 | IH6: 10.51 | II6: 13.152 | IJ6: 11.682 | IK6: 23.732 | IL6: 36.92 | IM6: 69.084 | IN6: 72.532 | IO6: 104.59 | IP6: 121.9 | IQ6: 100.917 | IR6: 71.745 | IS6: 31.619 | IT6: 33.747 | IU6: 39.74313 | IV6: 88.657368 | IW6: 98.457167 | IX6: 137.835121 | IY6: 160.440925 | IZ6: 247.970979 | JA6: 284.059974 | JB6: 235.329098 | JC6: 228.558024 | JD6: 172.949739 | JE6: 81.173647 | JF6: 86.466377 | JG6: 117.342049 | JH6: 200.341854 | JI6: 235.113481 | JJ6: 177.777045 | JK6: 348.382183 | JL6: 414.749072 | JM6: 541.316741 | JN6: 485.126527 | JO6: 368.642901 | JP6: 289.154577 | JQ6: 133.961873 | JR6: 135.585309 | JS6: 113.494435 | JT6: 204.009049 | JU6: 125.370378 | JV6: 300.893605 | JW6: 499.267989 | JX6: 647.330053 | JY6: 758.522911 | JZ6: 661.855805 | KA6: 478.955228 | KB6: 294.241952 | KC6: 199.223861 | KD6: 158.362269 | KE6: 79.800655 | KF6: 103.264502 | KG6: 385.175316 | KH6: 435.527059 | KI6: 729.935555 | KJ6: 687.288082 | KK6: 811.153184 | KL6: 833.17848 | KM6: 389.595903 | KN6: 289.33703 | KO6: 90.187434 | KP6: 124.471726 | KQ6: 176.951396 | KR6: 190.92526 | KS6: 415.828662 | KT6: 393.160486 | KU6: 694.83874 | KV6: 734.053937 | KW6: 888.91771 | KX6: 607.623488 | KY6: 483.250153 | KZ6: 188.168866 | LA6: 226.817751 | LB6: 84.699065 | LC6: 59.913641 | LD6: 133.00979 | LE6: 387.860762 | LF6: 408.323232 | LG6: 498.795382 | LH6: 813.990671 | LI6: 825.32458 | LJ6: 805.818797 | LK6: 595.626693 | LL6: 284.702891 | LM6: 139.699618 | LN6: 118.135645 | LO6: 149.212081 | LP6: 88.740902 | LQ6: 340.844685 | LR6: 535.255478 | LS6: 607.898177 | LT6: 761.902153 | LU6: 812.880286 | LV6: 692.435175 | LW6: 608.142655 | LX6: 398.793222 | LY6: 220.652322 | LZ6: 131.195329 | MA6: 112.387517 | MB6: 229.808151 | MC6: 233.955943 | MD6: 325.935092 | ME6: 477.209634 | MF6: 551.292603 | MG6: 858.89833 | MH6: 688.557997 | MI6: 465.636985 | MJ6: 292.493431 | MK6: 78.576117 | ML6: 109.576809 | MM6: 166.150133 | MN6: - | MO6: - | MP6: - | MQ6: - | MR6: - | MS6: - | MT6: - | MU6: - | MV6: - | MW6: - | MX6: -
B7: Térmica renovable/Otras renovables | C7: - | D7: - | E7: - | F7: - | G7: - | H7: - | I7: - | J7: - | K7: - | L7: - | M7: - | N7: - | O7: - | P7: - | Q7: - | R7: - | S7: - | T7: - | U7: - | V7: - | W7: - | X7: 0.479 | Y7: 0.195 | Z7: 0.18 | AA7: 0.226 | AB7: 0.185 | AC7: 0.209 | AD7: 0.186 | AE7: 0.219 | AF7: 2.491 | AG7: 0.855 | AH7: 1.652 | AI7: 2.195 | AJ7: 3.186 | AK7: 2.852 | AL7: 2.293 | AM7: 2.747 | AN7: 4.291 | AO7: 5.55 | AP7: 5.08 | AQ7: 5.191 | AR7: 4.069 | AS7: 4.405 | AT7: 5.055 | AU7: 4.77 | AV7: 5.999 | AW7: 6.529 | AX7: 5.136 | AY7: 6.182 | AZ7: 4.201 | BA7: 7.788 | BB7: 12.483 | BC7: 22.434 | BD7: 14.593 | BE7: 25.895 | BF7: 34.064 | BG7: 35.963 | BH7: 40.081 | BI7: 55.065 | BJ7: 63.701 | BK7: 52.516 | BL7: 54.169 | BM7: 59.649 | BN7: 59.275 | BO7: 60.63 | BP7: 38.39 | BQ7: 56.09 | BR7: 56.16 | BS7: 55.471 | BT7: 65.761 | BU7: 51.017 | BV7: 62.141 | BW7: 61.97 | BX7: 55.767 | BY7: 73.194 | BZ7: 69.39 | CA7: 67.607 | CB7: 74.481 | CC7: 76.311 | CD7: 76.089 | CE7: 74.905 | CF7: 70.728 | CG7: 57.923 | CH7: 56.715 | CI7: 56.474 | CJ7: 46.637 | CK7: 55.156 | CL7: 57.041 | CM7: 57.334 | CN7: 33.856 | CO7: 57.003 | CP7: 53.272 | CQ7: 57.104 | CR7: 61.066 | CS7: 58.17 | CT7: 55.262 | CU7: 29.002801 | CV7: 53.305843 | CW7: 61.549511 | CX7: 62.649003 | CY7: 69.878224 | CZ7: 68.57453 | DA7: 70.406914 | DB7: 67.345651 | DC7: 60.385234 | DD7: 67.235012 | DE7: 69.010129 | DF7: 69.403475 | DG7: 71.806642 | DH7: 67.740664 | DI7: 76.241169 | DJ7: 70.556648 | DK7: 71.228353 | DL7: 64.031022 | DM7: 80.270443 | DN7: 79.088938 | DO7: 85.153421 | DP7: 84.480839 | DQ7: 82.713458 | DR7: 74.942079 | DS7: 77.705164 | DT7: 72.094493 | DU7: 81.5787 | DV7: 75.639545 | DW7: 57.155141 | DX7: 64.878718 | DY7: 80.062335 | DZ7: 78.219893 | EA7: 86.225769 | EB7: 91.935601 | EC7: 96.959691 | ED7: 98.655336 | EE7: 114.03217 | EF7: 103.259727 | EG7: 115.38466 | EH7: 106.780576 | EI7: 116.226635 | EJ7: 163.253433 | EK7: 164.156034 | EL7: 142.644941 | EM7: 174.912517 | EN7: 184.368091 | EO7: 170.800963 | EP7: 182.638681 | EQ7: 102.326662 | ER7: 103.972908 | ES7: 114.937767 | ET7: 113.405046 | EU7: 116.821017 | EV7: 106.527145 | EW7: 125.927582 | EX7: 138.275534 | EY7: 128.415374 | EZ7: 130.569012 | FA7: 128.796967 | FB7: 143.040272 | FC7: 125.499869 | FD7: 125.666718 | FE7: 141.367661 | FF7: 136.225564 | FG7: 148.434649 | FH7: 135.674954 | FI7: 145.85112 | FJ7: 152.329642 | FK7: 154.938327 | FL7: 162.073384 | FM7: 144.46359 | FN7: 164.51626 | FO7: 165.781692 | FP7: 141.425287 | FQ7: 163.310002 | FR7: 158.001119 | FS7: 158.154288 | FT7: 141.570139 | FU7: 142.667679 | FV7: 139.216976 | FW7: 148.774135 | FX7: 152.856929 | FY7: 147.726873 | FZ7: 158.608513 | GA7: 174.85461 | GB7: 150.827771 | GC7: 176.756115 | GD7: 159.635672 | GE7: 172.117306 | GF7: 162.540982 | GG7: 167.519914 | GH7: 173.003408 | GI7: 160.254506 | GJ7: 152.959924 | GK7: 165.982026 | GL7: 171.405836 | GM7: 172.08672 | GN7: 164.504679 | GO7: 179.217148 | GP7: 172.157263 | GQ7: 184.666872 | GR7: 201.174 | GS7: 194.67 | GT7: 180.725 | GU7: 181.291 | GV7: 197.311 | GW7: 176.127 | GX7: 178.676 | GY7: 195.417 | GZ7: 170.868 | HA7: 196.962 | HB7: 184.118 | HC7: 197.114 | HD7: 193.247 | HE7: 203.052 | HF7: 202.649 | HG7: 191.273 | HH7: 224.429 | HI7: 204.157 | HJ7: 212.399 | HK7: 218.304 | HL7: 215.698 | HM7: 223.7 | HN7: 221.483 | HO7: 218.887 | HP7: 220.451 | HQ7: 223.504 | HR7: 218.31 | HS7: 211.555 | HT7: 229.725 | HU7: 225.656 | HV7: 224.216 | HW7: 243.686 | HX7: 231.253 | HY7: 252.346 | HZ7: 275.297 | IA7: 250.078 | IB7: 229.126 | IC7: 236.274 | ID7: 235.859 | IE7: 264.076 | IF7: 325.339 | IG7: 249.01 | IH7: 251.943 | II7: 250.94 | IJ7: 226.424 | IK7: 245.998 | IL7: 252.761 | IM7: 274.925 | IN7: 268.961 | IO7: 268.03 | IP7: 278.804 | IQ7: 262.937 | IR7: 279.287 | IS7: 269.121 | IT7: 293.611 | IU7: 308.732944 | IV7: 287.459689 | IW7: 303.472871 | IX7: 300.471926 | IY7: 310.707484 | IZ7: 276.438021 | JA7: 310.760034 | JB7: 314.338587 | JC7: 329.797294 | JD7: 323.886182 | JE7: 314.523187 | JF7: 324.54231 | JG7: 322.790192 | JH7: 309.796832 | JI7: 319.803142 | JJ7: 298.022337 | JK7: 313.449904 | JL7: 325.355816 | JM7: 327.228785 | JN7: 294.274262 | JO7: 281.211839 | JP7: 313.549206 | JQ7: 326.445059 | JR7: 350.535768 | JS7: 357.49281 | JT7: 329.59547 | JU7: 354.576681 | JV7: 364.007295 | JW7: 370.571976 | JX7: 346.658768 | JY7: 385.951736 | JZ7: 369.30743 | KA7: 348.411267 | KB7: 355.785675 | KC7: 358.260628 | KD7: 384.657422 | KE7: 379.985678 | KF7: 293.118457 | KG7: 304.872036 | KH7: 265.605168 | KI7: 329.261759 | KJ7: 329.26299 | KK7: 337.327657 | KL7: 348.97107 | KM7: 332.3793 | KN7: 299.619962 | KO7: 287.070161 | KP7: 298.089236 | KQ7: 301.195452 | KR7: 244.80938 | KS7: 273.686568 | KT7: 200.962758 | KU7: 274.110535 | KV7: 287.24583 | KW7: 308.872463 | KX7: 316.55355 | KY7: 306.444638 | KZ7: 313.82398 | LA7: 306.137801 | LB7: 288.723792 | LC7: 269.586509 | LD7: 260.667593 | LE7: 254.629768 | LF7: 209.024615 | LG7: 276.211446 | LH7: 286.849104 | LI7: 310.283034 | LJ7: 325.988029 | LK7: 306.891802 | LL7: 305.478792 | LM7: 303.91302 | LN7: 305.495626 | LO7: 326.489641 | LP7: 288.829501 | LQ7: 268.625631 | LR7: 231.782742 | LS7: 297.730079 | LT7: 301.629359 | LU7: 332.482887 | LV7: 315.272669 | LW7: 308.606647 | LX7: 308.82652 | LY7: 306.823072 | LZ7: 312.057134 | MA7: 295.349997 | MB7: 300.788655 | MC7: 270.593362 | MD7: 237.136789 | ME7: 290.867132 | MF7: 303.747793 | MG7: 323.385848 | MH7: 316.435379 | MI7: 319.409429 | MJ7: 296.761499 | MK7: 292.568051 | ML7: 299.074087 | MM7: 303.393827 | MN7: - | MO7: - | MP7: - | MQ7: - | MR7: - | MS7: - | MT7: - | MU7: - | MV7: - | MW7: - | MX7: -
B8: Residuos renovables | C8: - | D8: - | E8: - | F8: - | G8: - | H8: - | I8: - | J8: - | K8: - | L8: - | M8: - | N8: - | O8: - | P8: - | Q8: - | R8: - | S8: - | T8: - | U8: - | V8: - | W8: - | X8: - | Y8: - | Z8: - | AA8: - | AB8: - | AC8: - | AD8: - | AE8: - | AF8: - | AG8: - | AH8: - | AI8: - | AJ8: - | AK8: - | AL8: - | AM8: - | AN8: - | AO8: - | AP8: - | AQ8: - | AR8: - | AS8: - | AT8: - | AU8: - | AV8: - | AW8: - | AX8: - | AY8: - | AZ8: - | BA8: - | BB8: - | BC8: - | BD8: - | BE8: - | BF8: - | BG8: - | BH8: - | BI8: - | BJ8: - | BK8: - | BL8: - | BM8: - | BN8: - | BO8: - | BP8: - | BQ8: - | BR8: - | BS8: - | BT8: - | BU8: - | BV8: - | BW8: - | BX8: - | BY8: - | BZ8: - | CA8: - | CB8: - | CC8: - | CD8: - | CE8: - | CF8: - | CG8: - | CH8: - | CI8: - | CJ8: - | CK8: - | CL8: - | CM8: - | CN8: - | CO8: - | CP8: - | CQ8: - | CR8: - | CS8: - | CT8: - | CU8: - | CV8: - | CW8: - | CX8: - | CY8: - | CZ8: - | DA8: - | DB8: - | DC8: - | DD8: - | DE8: - | DF8: - | DG8: - | DH8: - | DI8: - | DJ8: - | DK8: - | DL8: - | DM8: - | DN8: - | DO8: - | DP8: - | DQ8: - | DR8: - | DS8: - | DT8: - | DU8: - | DV8: - | DW8: - | DX8: - | DY8: - | DZ8: - | EA8: - | EB8: - | EC8: - | ED8: - | EE8: - | EF8: - | EG8: - | EH8: - | EI8: - | EJ8: - | EK8: - | EL8: - | EM8: - | EN8: - | EO8: - | EP8: - | EQ8: - | ER8: - | ES8: - | ET8: - | EU8: - | EV8: - | EW8: - | EX8: - | EY8: - | EZ8: - | FA8: - | FB8: - | FC8: - | FD8: - | FE8: - | FF8: - | FG8: - | FH8: - | FI8: - | FJ8: - | FK8: - | FL8: - | FM8: - | FN8: - | FO8: - | FP8: - | FQ8: - | FR8: - | FS8: - | FT8: - | FU8: - | FV8: - | FW8: - | FX8: - | FY8: - | FZ8: - | GA8: - | GB8: - | GC8: - | GD8: - | GE8: - | GF8: - | GG8: - | GH8: - | GI8: - | GJ8: - | GK8: - | GL8: - | GM8: - | GN8: - | GO8: - | GP8: - | GQ8: - | GR8: - | GS8: - | GT8: - | GU8: - | GV8: - | GW8: - | GX8: - | GY8: - | GZ8: - | HA8: - | HB8: - | HC8: - | HD8: - | HE8: - | HF8: - | HG8: - | HH8: - | HI8: - | HJ8: - | HK8: - | HL8: - | HM8: - | HN8: - | HO8: - | HP8: - | HQ8: - | HR8: - | HS8: - | HT8: - | HU8: - | HV8: - | HW8: - | HX8: - | HY8: - | HZ8: - | IA8: - | IB8: - | IC8: - | ID8: - | IE8: - | IF8: - | IG8: - | IH8: - | II8: - | IJ8: - | IK8: - | IL8: - | IM8: - | IN8: - | IO8: - | IP8: - | IQ8: - | IR8: - | IS8: - | IT8: - | IU8: 57.0327295 | IV8: 50.9930145 | IW8: 33.0274135 | IX8: 50.9762745 | IY8: 40.8274545 | IZ8: 57.3867355 | JA8: 57.2614405 | JB8: 50.553342 | JC8: 47.872502 | JD8: 53.463646 | JE8: 53.1320195 | JF8: 56.299528 | JG8: 56.3013555 | JH8: 44.974486 | JI8: 31.257473 | JJ8: 53.07847 | JK8: 39.8214305 | JL8: 54.4483985 | JM8: 57.100843 | JN8: 54.449194 | JO8: 53.1819555 | JP8: 54.7805555 | JQ8: 51.188629 | JR8: 45.2631915 | JS8: 50.514924 | JT8: 46.712419 | JU8: 38.196782 | JV8: 17.166904 | JW8: 20.9788915 | JX8: 15.358893 | JY8: 20.5593065 | JZ8: 35.316523 | KA8: 48.5228395 | KB8: 45.4761305 | KC8: 48.379472 | KD8: 51.470924 | KE8: 40.9610535 | KF8: 28.9339245 | KG8: 22.5603225 | KH8: 39.1741005 | KI8: 54.939255 | KJ8: 44.8463765 | KK8: 51.875004 | KL8: 44.059013 | KM8: 54.613833 | KN8: 50.060762 | KO8: 51.6517155 | KP8: 61.862726 | KQ8: 54.5827335 | KR8: 52.223671 | KS8: 60.2138735 | KT8: 33.475764 | KU8: 49.703733 | KV8: 58.970399 | KW8: 60.00164 | KX8: 57.4909905 | KY8: 55.067411 | KZ8: 60.863129 | LA8: 60.056931 | LB8: 60.0051995 | LC8: 57.299935 | LD8: 48.1038525 | LE8: 57.5293145 | LF8: 26.7023955 | LG8: 24.2782545 | LH8: 55.115868 | LI8: 63.6462505 | LJ8: 60.3154875 | LK8: 62.051794 | LL8: 60.0501525 | LM8: 64.7392985 | LN8: 69.9073075 | LO8: 64.737576 | LP8: 55.9992095 | LQ8: 59.9110415 | LR8: 46.5753125 | LS8: 34.262043 | LT8: 66.986297 | LU8: 68.889367 | LV8: 65.701225 | LW8: 62.429442 | LX8: 66.129402 | LY8: 66.55759 | LZ8: 69.9719275 | MA8: 69.2635705 | MB8: 62.195682 | MC8: 65.9092005 | MD8: 66.929152 | ME8: 24.344858 | MF8: 50.806421 | MG8: 64.813797 | MH8: 65.7551745 | MI8: 64.739835 | MJ8: 66.706254 | MK8: 61.593869 | ML8: 69.912848 | MM8: 63.503646 | MN8: - | MO8: - | MP8: - | MQ8: - | MR8: - | MS8: - | MT8: - | MU8: - | MV8: - | MW8: - | MX8: -
B9: Generación renovable | C9: 3918.7907 | D9: 3333.8364 | E9: 2452.7097 | F9: 1755.5105 | G9: 1837.0988 | H9: 1831.3012 | I9: 1599.7872 | J9: 1227.7164 | K9: 1212.4659 | L9: 1406.8643 | M9: 1978.4141 | N9: 1971.0844 | O9: 2646.8004 | P9: 2042.5169 | Q9: 3829.4278 | R9: 3507.3813 | S9: 2890.2247 | T9: 2118.6462 | U9: 1720.7126 | V9: 1136.057 | W9: 1129.0099 | X9: 1551.2267 | Y9: 1986.5311 | Z9: 1877.8993 | AA9: 1377.4996 | AB9: 814.6305 | AC9: 813.535 | AD9: 1584.2619 | AE9: 1482.6015 | AF9: 1592.3452 | AG9: 1674.2229 | AH9: 1142.7864 | AI9: 1225.8002 | AJ9: 1874.9681 | AK9: 2204.9297 | AL9: 2897.0255 | AM9: 2183.5173 | AN9: 1519.1827 | AO9: 1469.3152 | AP9: 1176.7242 | AQ9: 1888.1177 | AR9: 2218.3536 | AS9: 1896.7408 | AT9: 1256.9859 | AU9: 1218.2102 | AV9: 2861.9681 | AW9: 3470.8537 | AX9: 2744.3383 | AY9: 3862.9258 | AZ9: 3156.8329 | BA9: 2837.8807 | BB9: 2419.3997 | BC9: 2679.8245 | BD9: 2454.445 | BE9: 1869.3176 | BF9: 1382.3768 | BG9: 1302.6082 | BH9: 1596.1599 | BI9: 2389.0476 | BJ9: 1943.7209 | BK9: 2922.1179 | BL9: 2776.1924 | BM9: 3289.6422 | BN9: 1976.0157 | BO9: 1821.4859 | BP9: 1803.0943 | BQ9: 1691.1075 | BR9: 1146.9003 | BS9: 991.1927 | BT9: 1057.6327 | BU9: 1299.326 | BV9: 2519.4422 | BW9: 5879.2435 | BX9: 5684.1242 | BY9: 3762.2661 | BZ9: 3894.6239 | CA9: 4005.8654 | CB9: 3061.7943 | CC9: 2432.0242 | CD9: 1692.6022 | CE9: 1913.3789 | CF9: 1925.6837 | CG9: 2352.8857 | CH9: 4384.2123 | CI9: 5780.5918 | CJ9: 3659.9244 | CK9: 2832.6746 | CL9: 2479.5291 | CM9: 2405.5878 | CN9: 2512.2571 | CO9: 2231.2642 | CP9: 1872.2127 | CQ9: 1760.4463 | CR9: 1646.8458 | CS9: 3633.9683 | CT9: 5564.3426 | CU9: 6078.125034 | CV9: 4204.43611 | CW9: 2923.04284 | CX9: 3705.688163 | CY9: 4272.80767 | CZ9: 3632.437443 | DA9: 2783.499469 | DB9: 2283.173617 | DC9: 2032.411993 | DD9: 2211.350807 | DE9: 1743.617327 | DF9: 1549.991974 | DG9: 1667.153345 | DH9: 1658.163784 | DI9: 2328.719377 | DJ9: 2464.54069 | DK9: 3194.028556 | DL9: 2813.688649 | DM9: 2245.601022 | DN9: 1689.371064 | DO9: 1810.089309 | DP9: 2033.121894 | DQ9: 3242.584617 | DR9: 3274.27046 | DS9: 2971.837269 | DT9: 2005.803691 | DU9: 1970.152107 | DV9: 2731.774829 | DW9: 3642.703692 | DX9: 2799.178694 | DY9: 2187.169287 | DZ9: 2151.028982 | EA9: 2202.501512 | EB9: 2243.348919 | EC9: 3145.785128 | ED9: 5267.526876 | EE9: 7110.599734 | EF9: 6534.977675 | EG9: 7465.428192 | EH9: 5203.480372 | EI9: 3984.786567 | EJ9: 3152.708102 | EK9: 2650.270553 | EL9: 2465.953795 | EM9: 2287.616701 | EN9: 2539.638052 | EO9: 2974.599221 | EP9: 2356.287053 | EQ9: 2107.968957 | ER9: 2076.903035 | ES9: 2817.701905 | ET9: 2626.748687 | EU9: 2930.362327 | EV9: 2706.335424 | EW9: 2191.19972 | EX9: 1791.582899 | EY9: 1676.458876 | EZ9: 2218.424383 | FA9: 3184.160705 | FB9: 5614.351446 | FC9: 7179.662099 | FD9: 5539.306665 | FE9: 5584.591064 | FF9: 5197.158304 | FG9: 4775.997436 | FH9: 3208.79913 | FI9: 2857.667366 | FJ9: 2164.627814 | FK9: 2597.165953 | FL9: 3261.518597 | FM9: 4613.546633 | FN9: 6583.18416 | FO9: 5634.058063 | FP9: 4615.156318 | FQ9: 4629.158508 | FR9: 4714.943713 | FS9: 4543.007088 | FT9: 3952.117527 | FU9: 3228.053089 | FV9: 3013.908898 | FW9: 2834.714598 | FX9: 3534.926281 | FY9: 4029.303546 | FZ9: 3730.695268 | GA9: 3619.055506 | GB9: 3437.228045 | GC9: 3753.985767 | GD9: 4188.51418 | GE9: 3855.091274 | GF9: 3251.793592 | GG9: 3091.114737 | GH9: 2947.586602 | GI9: 2255.070555 | GJ9: 2916.522372 | GK9: 3527.262699 | GL9: 4290.584088 | GM9: 3372.881464 | GN9: 3284.129133 | GO9: 5983.340359 | GP9: 4862.65267 | GQ9: 3999.311509 | GR9: 3079.8683 | GS9: 2884.3448 | GT9: 3405.6242 | GU9: 2774.9459 | GV9: 4178.5939 | GW9: 5434.1306 | GX9: 7280.9637 | GY9: 4620.4468 | GZ9: 6073.3227 | HA9: 7232.5794 | HB9: 4432.7281 | HC9: 5675.1996 | HD9: 4328.6722 | HE9: 4597.2363 | HF9: 4448.2276 | HG9: 3655.0535 | HH9: 3901.2403 | HI9: 4352.0535 | HJ9: 3882.5871 | HK9: 4321.4548 | HL9: 3263.6435 | HM9: 5497.9392 | HN9: 6441.3714 | HO9: 5458.9039 | HP9: 5673.1215 | HQ9: 4763.8796 | HR9: 4020.5266 | HS9: 3972.8338 | HT9: 4127.9325 | HU9: 5606.7308 | HV9: 6616.231 | HW9: 6271.3621 | HX9: 7321.0165 | HY9: 6658.0696 | HZ9: 6094.2147 | IA9: 6188.8714 | IB9: 5314.8422 | IC9: 5124.0914 | ID9: 4582.5138 | IE9: 4233.8449 | IF9: 5215.3399 | IG9: 7430.2343 | IH9: 8643.2669 | II9: 9983.405113 | IJ9: 9217.794562 | IK9: 11091.03204 | IL9: 8210.392131 | IM9: 8509.473048 | IN9: 7129.492153 | IO9: 6820.415407 | IP9: 6023.809814 | IQ9: 4801.022344 | IR9: 6431.220029 | IS9: 7624.369068 | IT9: 9202.945477 | IU9: 9877.37348 | IV9: 7935.272083 | IW9: 9547.139346 | IX9: 8058.827163 | IY9: 7192.162895 | IZ9: 6367.810102 | JA9: 6393.820042 | JB9: 5623.991565 | JC9: 4855.772875 | JD9: 5555.985353 | JE9: 6777.68842 | JF9: 7647.076149 | JG9: 6258.942473 | JH9: 7434.126409 | JI9: 6475.321928 | JJ9: 8206.769658 | JK9: 7770.5501 | JL9: 7168.809031 | JM9: 6474.314751 | JN9: 6121.774268 | JO9: 6336.992662 | JP9: 5742.688999 | JQ9: 7453.265798 | JR9: 9020.371519 | JS9: 10246.05595 | JT9: 9973.123501 | JU9: 11385.56295 | JV9: 11194.13623 | JW9: 9474.531132 | JX9: 8931.302055 | JY9: 7662.321196 | JZ9: 7478.117678 | KA9: 6640.805242 | KB9: 7129.603583 | KC9: 10330.61215 | KD9: 8404.569459 | KE9: 11655.44647 | KF9: 12478.36349 | KG9: 11753.03434 | KH9: 10430.42932 | KI9: 8958.072223 | KJ9: 7685.353491 | KK9: 8056.571607 | KL9: 6999.849906 | KM9: 5361.235073 | KN9: 6270.496474 | KO9: 8314.798098 | KP9: 8964.343533 | KQ9: 8492.934442 | KR9: 10464.11126 | KS9: 10137.80865 | KT9: 7912.864143 | KU9: 9666.698637 | KV9: 7299.301086 | KW9: 7260.197048 | KX9: 6656.134711 | KY9: 6148.4198 | KZ9: 6613.573177 | LA9: 6688.467645 | LB9: 5770.155392 | LC9: 9770.850726 | LD9: 11015.05998 | LE9: 11150.45362 | LF9: 10989.44153 | LG9: 10571.55966 | LH9: 8220.148407 | LI9: 7812.331431 | LJ9: 7697.892613 | LK9: 6014.847395 | LL9: 5213.586575 | LM9: 6298.845785 | LN9: 5369.759473 | LO9: 7830.120028 | LP9: 7714.755786 | LQ9: 8738.015654 | LR9: 7686.867209 | LS9: 7149.516727 | LT9: 6760.813892 | LU9: 6619.053586 | LV9: 6232.063251 | LW9: 5686.487352 | LX9: 5386.496856 | LY9: 5900.967517 | LZ9: 7926.265809 | MA9: 8381.444127 | MB9: 8103.43462 | MC9: 13178.91523 | MD9: 10422.9283 | ME9: 8349.936366 | MF9: 7968.359984 | MG9: 7642.485419 | MH9: 7046.492641 | MI9: 5866.80726 | MJ9: 6951.823677 | MK9: 7471.950667 | ML9: 7680.108296 | MM9: 9106.176514 | MN9: - | MO9: - | MP9: - | MQ9: - | MR9: - | MS9: - | MT9: - | MU9: - | MV9: - | MW9: - | MX9: -
B11: Generación renovable mensual Islas Baleares (MWh) | C11: 2006-01-01 | D11: 2006-02-01 | E11: 2006-03-01 | F11: 2006-04-01 | G11: 2006-05-01 | H11: 2006-06-01 | I11: 2006-07-01 | J11: 2006-08-01 | K11: 2006-09-01 | L11: 2006-10-01 | M11: 2006-11-01 | N11: 2006-12-01 | O11: 2007-01-01 | P11: 2007-02-01 | Q11: 2007-03-01 | R11: 2007-04-01 | S11: 2007-05-01 | T11: 2007-06-01 | U11: 2007-07-01 | V11: 2007-08-01 | W11: 2007-09-01 | X11: 2007-10-01 | Y11: 2007-11-01 | Z11: 2007-12-01 | AA11: 2008-01-01 | AB11: 2008-02-01 | AC11: 2008-03-01 | AD11: 2008-04-01 | AE11: 2008-05-01 | AF11: 2008-06-01 | AG11: 2008-07-01 | AH11: 2008-08-01 | AI11: 2008-09-01 | AJ11: 2008-10-01 | AK11: 2008-11-01 | AL11: 2008-12-01 | AM11: 2009-01-01 | AN11: 2009-02-01 | AO11: 2009-03-01 | AP11: 2009-04-01 | AQ11: 2009-05-01 | AR11: 2009-06-01 | AS11: 2009-07-01 | AT11: 2009-08-01 | AU11: 2009-09-01 | AV11: 2009-10-01 | AW11: 2009-11-01 | AX11: 2009-12-01 | AY11: 2010-01-01 | AZ11: 2010-02-01 | BA11: 2010-03-01 | BB11: 2010-04-01 | BC11: 2010-05-01 | BD11: 2010-06-01 | BE11: 2010-07-01 | BF11: 2010-08-01 | BG11: 2010-09-01 | BH11: 2010-10-01 | BI11: 2010-11-01 | BJ11: 2010-12-01 | BK11: 2011-01-01 | BL11: 2011-02-01 | BM11: 2011-03-01 | BN11: 2011-04-01 | BO11: 2011-05-01 | BP11: 2011-06-01 | BQ11: 2011-07-01 | BR11: 2011-08-01 | BS11: 2011-09-01 | BT11: 2011-10-01 | BU11: 2011-11-01 | BV11: 2011-12-01 | BW11: 2012-01-01 | BX11: 2012-02-01 | BY11: 2012-03-01 | BZ11: 2012-04-01 | CA11: 2012-05-01 | CB11: 2012-06-01 | CC11: 2012-07-01 | CD11: 2012-08-01 | CE11: 2012-09-01 | CF11: 2012-10-01 | CG11: 2012-11-01 | CH11: 2012-12-01 | CI11: 2013-01-01 | CJ11: 2013-02-01 | CK11: 2013-03-01 | CL11: 2013-04-01 | CM11: 2013-05-01 | CN11: 2013-06-01 | CO11: 2013-07-01 | CP11: 2013-08-01 | CQ11: 2013-09-01 | CR11: 2013-10-01 | CS11: 2013-11-01 | CT11: 2013-12-01 | CU11: 2014-01-01 | CV11: 2014-02-01 | CW11: 2014-03-01 | CX11: 2014-04-01 | CY11: 2014-05-01 | CZ11: 2014-06-01 | DA11: 2014-07-01 | DB11: 2014-08-01 | DC11: 2014-09-01 | DD11: 2014-10-01 | DE11: 2014-11-01 | DF11: 2014-12-01 | DG11: 2015-01-01 | DH11: 2015-02-01 | DI11: 2015-03-01 | DJ11: 2015-04-01 | DK11: 2015-05-01 | DL11: 2015-06-01 | DM11: 2015-07-01 | DN11: 2015-08-01 | DO11: 2015-09-01 | DP11: 2015-10-01 | DQ11: 2015-11-01 | DR11: 2015-12-01 | DS11: 2016-01-01 | DT11: 2016-02-01 | DU11: 2016-03-01 | DV11: 2016-04-01 | DW11: 2016-05-01 | DX11: 2016-06-01 | DY11: 2016-07-01 | DZ11: 2016-08-01 | EA11: 2016-09-01 | EB11: 2016-10-01 | EC11: 2016-11-01 | ED11: 2016-12-01 | EE11: 2017-01-01 | EF11: 2017-02-01 | EG11: 2017-03-01 | EH11: 2017-04-01 | EI11: 2017-05-01 | EJ11: 2017-06-01 | EK11: 2017-07-01 | EL11: 2017-08-01 | EM11: 2017-09-01 | EN11: 2017-10-01 | EO11: 2017-11-01 | EP11: 2017-12-01 | EQ11: 2018-01-01 | ER11: 2018-02-01 | ES11: 2018-03-01 | ET11: 2018-04-01 | EU11: 2018-05-01 | EV11: 2018-06-01 | EW11: 2018-07-01 | EX11: 2018-08-01 | EY11: 2018-09-01 | EZ11: 2018-10-01 | FA11: 2018-11-01 | FB11: 2018-12-01 | FC11: 2019-01-01 | FD11: 2019-02-01 | FE11: 2019-03-01 | FF11: 2019-04-01 | FG11: 2019-05-01 | FH11: 2019-06-01 | FI11: 2019-07-01 | FJ11: 2019-08-01 | FK11: 2019-09-01 | FL11: 2019-10-01 | FM11: 2019-11-01 | FN11: 2019-12-01
B12: Eólica | C12: 514.35 | D12: 371.374 | E12: 548.188 | F12: 366.096 | G12: 438.988 | H12: 366.65 | I12: 202.55 | J12: 548.332 | K12: 264.468 | L12: 347.647 | M12: 407.408 | N12: 501.305 | O12: 402 | P12: 480 | Q12: 585 | R12: 246 | S12: 392 | T12: 334 | U12: 358 | V12: 444 | W12: 320 | X12: 541 | Y12: 784 | Z12: 770 | AA12: 415 | AB12: 420 | AC12: 575 | AD12: 741 | AE12: 212 | AF12: 290 | AG12: 272 | AH12: 328 | AI12: 462 | AJ12: 470 | AK12: 620 | AL12: 692 | AM12: 472 | AN12: 688 | AO12: 529 | AP12: 482 | AQ12: 477 | AR12: 383 | AS12: 126 | AT12: 147 | AU12: 346 | AV12: 531 | AW12: 538 | AX12: 824 | AY12: 599 | AZ12: 689 | BA12: 590 | BB12: 377 | BC12: 312 | BD12: 275 | BE12: 322 | BF12: 395 | BG12: 303 | BH12: 477 | BI12: 529 | BJ12: 703 | BK12: 471.577 | BL12: 637.575 | BM12: 627.317 | BN12: 553.497 | BO12: 434.952 | BP12: 359.106 | BQ12: 428.686 | BR12: 330.588 | BS12: 215.447 | BT12: 586.641 | BU12: 548.712 | BV12: 591.817 | BW12: 478.962 | BX12: 1092.041 | BY12: 556.608 | BZ12: 569.577 | CA12: 377.024 | CB12: 358.037 | CC12: 429.751 | CD12: 261.124 | CE12: 665.972 | CF12: 424.183 | CG12: 540.089 | CH12: 751.331 | CI12: 686.511 | CJ12: 673.931 | CK12: 766.675 | CL12: 552.356 | CM12: 439.231 | CN12: 390.755 | CO12: 211.305 | CP12: 355.261 | CQ12: 349.421 | CR12: 476.562 | CS12: 771.94 | CT12: 485.52 | CU12: 586.691 | CV12: 634.687 | CW12: 748.723 | CX12: 441.116 | CY12: 509.305 | CZ12: 341.93 | DA12: 353.502 | DB12: 302.252 | DC12: 236.247 | DD12: 371.446 | DE12: 552.189 | DF12: 761.49 | DG12: 602.192 | DH12: 695.624 | DI12: 580.16 | DJ12: 435.029 | DK12: 636.416 | DL12: 252.534 | DM12: 309.04 | DN12: 230.713 | DO12: 509.121 | DP12: 555.526 | DQ12: 415.115 | DR12: 96.758 | DS12: 530.127 | DT12: 660.824 | DU12: 707.768 | DV12: 665.376 | DW12: 486.435 | DX12: 238.917 | DY12: 471.425 | DZ12: 478.178 | EA12: 222.303 | EB12: 292.355 | EC12: 402.105 | ED12: 260.245 | EE12: 468.562 | EF12: 282.718 | EG12: 227.135 | EH12: 238.206 | EI12: 127.304 | EJ12: 130.101 | EK12: 175.738 | EL12: 171.687 | EM12: 182.989 | EN12: 194.571 | EO12: 342.941 | EP12: 382.324 | EQ12: 252.64 | ER12: 324.012 | ES12: 405.924 | ET12: 282.65 | EU12: 228.893 | EV12: 138.682 | EW12: 139.329 | EX12: 192.208 | EY12: 198.176 | EZ12: 620.313 | FA12: 555.396 | FB12: 418.948 | FC12: 805.427 | FD12: - | FE12: - | FF12: - | FG12: - | FH12: - | FI12: - | FJ12: - | FK12: - | FL12: - | FM12: - | FN12: -
B13: Solar fotovoltaica | C13: 43.973 | D13: 50.86 | E13: 83.446 | F13: 87.707 | G13: 102.911 | H13: 110.639 | I13: 126.145 | J13: 120.868 | K13: 111.756 | L13: 105.835 | M13: 84.201 | N13: 72.454 | O13: 95 | P13: 122 | Q13: 165 | R13: 156 | S13: 211 | T13: 207 | U13: 226 | V13: 209 | W13: 180 | X13: 139 | Y13: 119 | Z13: 123 | AA13: 134 | AB13: 194 | AC13: 416 | AD13: 664 | AE13: 955 | AF13: 1807 | AG13: 2659 | AH13: 4719 | AI13: 4821 | AJ13: 4337 | AK13: 3391 | AL13: 4283 | AM13: 3838 | AN13: 5190 | AO13: 7556 | AP13: 7099 | AQ13: 8802 | AR13: 9040 | AS13: 8898 | AT13: 8709 | AU13: 6680 | AV13: 6538 | AW13: 5096 | AX13: 3487 | AY13: 3845 | AZ13: 4810 | BA13: 6958 | BB13: 8061 | BC13: 9047 | BD13: 8957 | BE13: 10437 | BF13: 10003 | BG13: 8360 | BH13: 6793 | BI13: 5600 | BJ13: 4886 | BK13: 5358.346 | BL13: 6715.495 | BM13: 8054.262 | BN13: 9942.533 | BO13: 10912.986 | BP13: 10327.227 | BQ13: 10250.508 | BR13: 11566.685 | BS13: 9702.348 | BT13: 8434.606 | BU13: 5035.39 | BV13: 5510.53 | BW13: 6182.936 | BX13: 6955.651 | BY13: 10151.971 | BZ13: 10229.659 | CA13: 12309.453 | CB13: 11697.392 | CC13: 12533.19 | CD13: 12420.079 | CE13: 10872.946 | CF13: 9499.54 | CG13: 6015.916 | CH13: 6724.536 | CI13: 7273.131 | CJ13: 7403.831 | CK13: 11493.687 | CL13: 11208.863 | CM13: 12639.329 | CN13: 13817.142 | CO13: 14315.853 | CP13: 12862.862 | CQ13: 10744.505 | CR13: 8780.527 | CS13: 5601.847 | CT13: 5971.275 | CU13: 5827.915 | CV13: 8461.308 | CW13: 11097.609 | CX13: 12721.366 | CY13: 12506.914 | CZ13: 13246.777 | DA13: 13532.742 | DB13: 12554.948 | DC13: 10351.79 | DD13: 10335.922 | DE13: 6491.343 | DF13: 5637.055 | DG13: 6878.955 | DH13: 7212.557 | DI13: 10110.063 | DJ13: 12578.182 | DK13: 13498.137 | DL13: 13443.677 | DM13: 13857.289 | DN13: 12160.059 | DO13: 9666.642 | DP13: 8931.639 | DQ13: 8007.314 | DR13: 6275.289 | DS13: 7081.305 | DT13: 7539.546 | DU13: 10661.868 | DV13: 11177.264 | DW13: 12590.581 | DX13: 13167.569 | DY13: 13847.847 | DZ13: 13337.502 | EA13: 10357.047 | EB13: 8447.793 | EC13: 6551.461 | ED13: 5747.747 | EE13: 5799.134 | EF13: 7159.338 | EG13: 12164.482 | EH13: 12625.004 | EI13: 13622.494 | EJ13: 13314.391 | EK13: 13296.241 | EL13: 12456.52 | EM13: 10365.357 | EN13: 9718.946 | EO13: 7258.256 | EP13: 5556.832 | EQ13: 7044.5 | ER13: 5338.09 | ES13: 10194.158 | ET13: 11477.546 | EU13: 11838.53 | EV13: 12382.848 | EW13: 13341.704 | EX13: 11250.524 | EY13: 9026.385 | EZ13: 7841.485 | FA13: 5979.458 | FB13: 6536.414 | FC13: 7209.645 | FD13: - | FE13: - | FF13: - | FG13: - | FH13: - | FI13: - | FJ13: - | FK13: - | FL13: - | FM13: - | FN13: -
B14: Térmica renovable/Otras renovables | C14: - | D14: - | E14: - | F14: - | G14: - | H14: - | I14: - | J14: - | K14: - | L14: - | M14: - | N14: - | O14: - | P14: - | Q14: - | R14: - | S14: - | T14: - | U14: - | V14: - | W14: - | X14: - | Y14: - | Z14: - | AA14: - | AB14: - | AC14: - | AD14: - | AE14: - | AF14: - | AG14: - | AH14: - | AI14: - | AJ14: - | AK14: - | AL14: - | AM14: - | AN14: - | AO14: - | AP14: - | AQ14: - | AR14: - | AS14: - | AT14: - | AU14: - | AV14: - | AW14: - | AX14: - | AY14: - | AZ14: - | BA14: - | BB14: - | BC14: - | BD14: - | BE14: - | BF14: - | BG14: - | BH14: - | BI14: - | BJ14: - | BK14: - | BL14: - | BM14: - | BN14: - | BO14: - | BP14: - | BQ14: - | BR14: - | BS14: - | BT14: 8.318 | BU14: 43.209 | BV14: 36.266 | BW14: 44.662 | BX14: 23.314 | BY14: 79.155 | BZ14: 49.38 | CA14: 41.605 | CB14: 39.418 | CC14: 35.753 | CD14: 46.928 | CE14: 53.352 | CF14: 56.861 | CG14: 55.465 | CH14: 43.937 | CI14: 72.702 | CJ14: 47.121 | CK14: 74.637 | CL14: 93.292 | CM14: 0 | CN14: 0 | CO14: 0 | CP14: 0 | CQ14: 0 | CR14: 65.148 | CS14: 60.49 | CT14: 92.303 | CU14: 123.037 | CV14: 171.781 | CW14: 228.412 | CX14: 198.907 | CY14: 261.481 | CZ14: 167.185 | DA14: 88.993 | DB14: 120.734 | DC14: 92.248 | DD14: 132.195 | DE14: 185.213 | DF14: 175.473 | DG14: 229.395 | DH14: 170.763 | DI14: 163.585 | DJ14: 221.163 | DK14: 173 | DL14: 99.679 | DM14: 181.359 | DN14: 108.996 | DO14: 119.236 | DP14: 130.697 | DQ14: 148.003 | DR14: 225.673 | DS14: 176.264 | DT14: 164.962 | DU14: 176.198 | DV14: 152.8 | DW14: 125.882 | DX14: 32.283 | DY14: 35.447 | DZ14: 42.974 | EA14: 33.03 | EB14: 92.938 | EC14: 138.807 | ED14: 138.13 | EE14: 159.457 | EF14: 170.074 | EG14: 104.483 | EH14: 198.49 | EI14: 223.85 | EJ14: 164.332 | EK14: 75.532 | EL14: 73.259 | EM14: 87.362 | EN14: 106.123 | EO14: 126.985 | EP14: 136.794 | EQ14: 219.363 | ER14: 166.24 | ES14: 184.165 | ET14: 130.801 | EU14: 127.68 | EV14: 110.028 | EW14: 57.737 | EX14: 56.852 | EY14: 19.17 | EZ14: 60.415 | FA14: 68.766 | FB14: 131.378 | FC14: 107.643 | FD14: - | FE14: - | FF14: - | FG14: - | FH14: - | FI14: - | FJ14: - | FK14: - | FL14: - | FM14: - | FN14: -
B15: Residuos renovables | C15: - | D15: - | E15: - | F15: - | G15: - | H15: - | I15: - | J15: - | K15: - | L15: - | M15: - | N15: - | O15: - | P15: - | Q15: - | R15: - | S15: - | T15: - | U15: - | V15: - | W15: - | X15: - | Y15: - | Z15: - | AA15: - | AB15: - | AC15: - | AD15: - | AE15: - | AF15: - | AG15: - | AH15: - | AI15: - | AJ15: - | AK15: - | AL15: - | AM15: - | AN15: - | AO15: - | AP15: - | AQ15: - | AR15: - | AS15: - | AT15: - | AU15: - | AV15: - | AW15: - | AX15: - | AY15: - | AZ15: - | BA15: - | BB15: - | BC15: - | BD15: - | BE15: - | BF15: - | BG15: - | BH15: - | BI15: - | BJ15: - | BK15: 7179.507 | BL15: 6530.471 | BM15: 6401.907 | BN15: 8918.126 | BO15: 5900.5915 | BP15: 11850.4105 | BQ15: 13051.112 | BR15: 13572.185 | BS15: 13763.906 | BT15: 13074.686 | BU15: 10492.6985 | BV15: 12976.433 | BW15: 10956.6635 | BX15: 8357.7785 | BY15: 9517.905 | BZ15: 9070.161 | CA15: 11143.3815 | CB15: 9830.9385 | CC15: 13487.1705 | CD15: 13161.865 | CE15: 10351.8905 | CF15: 7156.256 | CG15: 7015.447 | CH15: 12740.079 | CI15: 8621.6265 | CJ15: 6081.7205 | CK15: 8029.718 | CL15: 7700.8215 | CM15: 8209.6945 | CN15: 11852.555 | CO15: 10855.8735 | CP15: 11387.2975 | CQ15: 14086.389 | CR15: 9534.9835 | CS15: 7910.633 | CT15: 8795.2825 | CU15: 7939.653 | CV15: 6507.445 | CW15: 9425.1545 | CX15: 11604.4115 | CY15: 5269.725 | CZ15: 13186.8355 | DA15: 14742.679 | DB15: 11272.941 | DC15: 13986.786 | DD15: 14349.8485 | DE15: 8560.699 | DF15: 11238.1515 | DG15: 9163.4615 | DH15: 6908.54 | DI15: 11394.0975 | DJ15: 13639.012 | DK15: 14790.13 | DL15: 13704.3935 | DM15: 12852.9485 | DN15: 12487.333 | DO15: 14777.1275 | DP15: 14664.409 | DQ15: 14317.8935 | DR15: 12398.3835 | DS15: 8564.515 | DT15: 4967.8255 | DU15: 8611.856 | DV15: 12109.9035 | DW15: 14510.119 | DX15: 13617.076 | DY15: 11266.3585 | DZ15: 12685.0265 | EA15: 12613.608 | EB15: 13662.5315 | EC15: 9270.8955 | ED15: 8925.3515 | EE15: 7544.1635 | EF15: 7222.1915 | EG15: 10517.7625 | EH15: 14685.7725 | EI15: 11209.7905 | EJ15: 14046.6855 | EK15: 14055.7905 | EL15: 14325.673 | EM15: 15026.625 | EN15: 13982.9895 | EO15: 11279.2275 | EP15: 9981.9965 | EQ15: 7481.4245 | ER15: 4455.9545 | ES15: 11199.8515 | ET15: 10486.7385 | EU15: 10524.592 | EV15: 14709.1545 | EW15: 14429.119 | EX15: 14961.3625 | EY15: 13453.5695 | EZ15: 13897.6735 | FA15: 7033.376 | FB15: 13124.9285 | FC15: 9560.5395 | FD15: - | FE15: - | FF15: - | FG15: - | FH15: - | FI15: - | FJ15: - | FK15: - | FL15: - | FM15: - | FN15: -
B16: Generación renovable | C16: 558.323 | D16: 422.234 | E16: 631.634 | F16: 453.803 | G16: 541.899 | H16: 477.289 | I16: 328.695 | J16: 669.2 | K16: 376.224 | L16: 453.482 | M16: 491.609 | N16: 573.759 | O16: 497 | P16: 602 | Q16: 750 | R16: 402 | S16: 603 | T16: 541 | U16: 584 | V16: 653 | W16: 500 | X16: 680 | Y16: 903 | Z16: 893 | AA16: 549 | AB16: 614 | AC16: 991 | AD16: 1405 | AE16: 1167 | AF16: 2097 | AG16: 2931 | AH16: 5047 | AI16: 5283 | AJ16: 4807 | AK16: 4011 | AL16: 4975 | AM16: 4310 | AN16: 5878 | AO16: 8085 | AP16: 7581 | AQ16: 9279 | AR16: 9423 | AS16: 9024 | AT16: 8856 | AU16: 7026 | AV16: 7069 | AW16: 5634 | AX16: 4311 | AY16: 4444 | AZ16: 5499 | BA16: 7548 | BB16: 8438 | BC16: 9359 | BD16: 9232 | BE16: 10759 | BF16: 10398 | BG16: 8663 | BH16: 7270 | BI16: 6129 | BJ16: 5589 | BK16: 13009.43 | BL16: 13883.541 | BM16: 15083.486 | BN16: 19414.156 | BO16: 17248.5295 | BP16: 22536.7435 | BQ16: 23730.306 | BR16: 25469.458 | BS16: 23681.701 | BT16: 22104.251 | BU16: 16120.0095 | BV16: 19115.046 | BW16: 17663.2235 | BX16: 16428.7845 | BY16: 20305.639 | BZ16: 19918.777 | CA16: 23871.4635 | CB16: 21925.7855 | CC16: 26485.8645 | CD16: 25889.996 | CE16: 21944.1605 | CF16: 17136.84 | CG16: 13626.917 | CH16: 20259.883 | CI16: 16653.9705 | CJ16: 14206.6035 | CK16: 20364.717 | CL16: 19555.3325 | CM16: 21288.2545 | CN16: 26060.452 | CO16: 25383.0315 | CP16: 24605.4205 | CQ16: 25180.315 | CR16: 18857.2205 | CS16: 14344.91 | CT16: 15344.3805 | CU16: 14477.296 | CV16: 15775.221 | CW16: 21499.8985 | CX16: 24965.8005 | CY16: 18547.425 | CZ16: 26942.7275 | DA16: 28717.916 | DB16: 24250.875 | DC16: 24667.071 | DD16: 25189.4115 | DE16: 15789.444 | DF16: 17812.1695 | DG16: 16874.0035 | DH16: 14987.484 | DI16: 22247.9055 | DJ16: 26873.386 | DK16: 29097.683 | DL16: 27500.2835 | DM16: 27200.6365 | DN16: 24987.101 | DO16: 25072.1265 | DP16: 24282.271 | DQ16: 22888.3255 | DR16: 18996.1035 | DS16: 16352.211 | DT16: 13333.1575 | DU16: 20157.69 | DV16: 24105.3435 | DW16: 27713.017 | DX16: 27055.845 | DY16: 25621.0775 | DZ16: 26543.6805 | EA16: 23225.988 | EB16: 22495.6175 | EC16: 16363.2685 | ED16: 15071.4735 | EE16: 13971.3165 | EF16: 14834.3215 | EG16: 23013.8625 | EH16: 27747.4725 | EI16: 25183.4385 | EJ16: 27655.5095 | EK16: 27603.3015 | EL16: 27027.139 | EM16: 25662.333 | EN16: 24002.6295 | EO16: 19007.4095 | EP16: 16057.9465 | EQ16: 14997.9275 | ER16: 10284.2965 | ES16: 21984.0985 | ET16: 22377.7355 | EU16: 22719.695 | EV16: 27340.7125 | EW16: 27967.889 | EX16: 26460.9465 | EY16: 22697.3005 | EZ16: 22419.8865 | FA16: 13636.996 | FB16: 20211.6685 | FC16: 17683.2545 | FD16: - | FE16: - | FF16: - | FG16: - | FH16: - | FI16: - | FJ16: - | FK16: - | FL16: - | FM16: - | FN16: -
B18: Generación renovable mensual Islas Canarias (MWh) | C18: 2006-01-01 | D18: 2006-02-01 | E18: 2006-03-01 | F18: 2006-04-01 | G18: 2006-05-01 | H18: 2006-06-01 | I18: 2006-07-01 | J18: 2006-08-01 | K18: 2006-09-01 | L18: 2006-10-01 | M18: 2006-11-01 | N18: 2006-12-01 | O18: 2007-01-01 | P18: 2007-02-01 | Q18: 2007-03-01 | R18: 2007-04-01 | S18: 2007-05-01 | T18: 2007-06-01 | U18: 2007-07-01 | V18: 2007-08-01 | W18: 2007-09-01 | X18: 2007-10-01 | Y18: 2007-11-01 | Z18: 2007-12-01 | AA18: 2008-01-01 | AB18: 2008-02-01 | AC18: 2008-03-01 | AD18: 2008-04-01 | AE18: 2008-05-01 | AF18: 2008-06-01 | AG18: 2008-07-01 | AH18: 2008-08-01 | AI18: 2008-09-01 | AJ18: 2008-10-01 | AK18: 2008-11-01 | AL18: 2008-12-01 | AM18: 2009-01-01 | AN18: 2009-02-01 | AO18: 2009-03-01 | AP18: 2009-04-01 | AQ18: 2009-05-01 | AR18: 2009-06-01 | AS18: 2009-07-01 | AT18: 2009-08-01 | AU18: 2009-09-01 | AV18: 2009-10-01 | AW18: 2009-11-01 | AX18: 2009-12-01 | AY18: 2010-01-01 | AZ18: 2010-02-01 | BA18: 2010-03-01 | BB18: 2010-04-01 | BC18: 2010-05-01 | BD18: 2010-06-01 | BE18: 2010-07-01 | BF18: 2010-08-01 | BG18: 2010-09-01 | BH18: 2010-10-01 | BI18: 2010-11-01 | BJ18: 2010-12-01 | BK18: 2011-01-01 | BL18: 2011-02-01 | BM18: 2011-03-01 | BN18: 2011-04-01 | BO18: 2011-05-01 | BP18: 2011-06-01 | BQ18: 2011-07-01 | BR18: 2011-08-01 | BS18: 2011-09-01 | BT18: 2011-10-01 | BU18: 2011-11-01 | BV18: 2011-12-01 | BW18: 2012-01-01 | BX18: 2012-02-01 | BY18: 2012-03-01 | BZ18: 2012-04-01 | CA18: 2012-05-01 | CB18: 2012-06-01 | CC18: 2012-07-01 | CD18: 2012-08-01 | CE18: 2012-09-01 | CF18: 2012-10-01 | CG18: 2012-11-01 | CH18: 2012-12-01 | CI18: 2013-01-01 | CJ18: 2013-02-01 | CK18: 2013-03-01 | CL18: 2013-04-01 | CM18: 2013-05-01 | CN18: 2013-06-01 | CO18: 2013-07-01 | CP18: 2013-08-01 | CQ18: 2013-09-01 | CR18: 2013-10-01 | CS18: 2013-11-01 | CT18: 2013-12-01 | CU18: 2014-01-01 | CV18: 2014-02-01 | CW18: 2014-03-01 | CX18: 2014-04-01 | CY18: 2014-05-01 | CZ18: 2014-06-01 | DA18: 2014-07-01 | DB18: 2014-08-01 | DC18: 2014-09-01 | DD18: 2014-10-01 | DE18: 2014-11-01 | DF18: 2014-12-01 | DG18: 2015-01-01 | DH18: 2015-02-01 | DI18: 2015-03-01 | DJ18: 2015-04-01 | DK18: 2015-05-01 | DL18: 2015-06-01 | DM18: 2015-07-01 | DN18: 2015-08-01 | DO18: 2015-09-01 | DP18: 2015-10-01 | DQ18: 2015-11-01 | DR18: 2015-12-01 | DS18: 2016-01-01 | DT18: 2016-02-01 | DU18: 2016-03-01 | DV18: 2016-04-01 | DW18: 2016-05-01 | DX18: 2016-06-01 | DY18: 2016-07-01 | DZ18: 2016-08-01 | EA18: 2016-09-01 | EB18: 2016-10-01 | EC18: 2016-11-01 | ED18: 2016-12-01 | EE18: 2017-01-01 | EF18: 2017-02-01 | EG18: 2017-03-01 | EH18: 2017-04-01 | EI18: 2017-05-01 | EJ18: 2017-06-01 | EK18: 2017-07-01 | EL18: 2017-08-01 | EM18: 2017-09-01 | EN18: 2017-10-01 | EO18: 2017-11-01 | EP18: 2017-12-01 | EQ18: 2018-01-01 | ER18: 2018-02-01 | ES18: 2018-03-01 | ET18: 2018-04-01 | EU18: 2018-05-01 | EV18: 2018-06-01 | EW18: 2018-07-01 | EX18: 2018-08-01 | EY18: 2018-09-01 | EZ18: 2018-10-01 | FA18: 2018-11-01 | FB18: 2018-12-01 | FC18: 2019-01-01 | FD18: 2019-02-01 | FE18: 2019-03-01 | FF18: 2019-04-01 | FG18: 2019-05-01 | FH18: 2019-06-01 | FI18: 2019-07-01 | FJ18: 2019-08-01 | FK18: 2019-09-01 | FL18: 2019-10-01 | FM18: 2019-11-01 | FN18: 2019-12-01
B19: Hidráulica | C19: 0 | D19: 0 | E19: 0 | F19: 0 | G19: 0 | H19: 0 | I19: 0 | J19: 0 | K19: 0 | L19: 0 | M19: 0 | N19: 0 | O19: 0 | P19: 0 | Q19: 0 | R19: 0 | S19: 0 | T19: 0 | U19: 82 | V19: 190 | W19: 247 | X19: 92 | Y19: 278 | Z19: 287 | AA19: 287 | AB19: 244 | AC19: 240 | AD19: 0 | AE19: 185 | AF19: 315 | AG19: 305 | AH19: 97 | AI19: 0 | AJ19: 0 | AK19: 0 | AL19: 0 | AM19: 9 | AN19: 164 | AO19: 175 | AP19: 50 | AQ19: 0 | AR19: 0 | AS19: 0 | AT19: 0 | AU19: 0 | AV19: 0 | AW19: 0 | AX19: 0 | AY19: 0 | AZ19: 0 | BA19: 0 | BB19: 0 | BC19: 0 | BD19: 0 | BE19: 0 | BF19: 0 | BG19: 0 | BH19: 0 | BI19: 0 | BJ19: 0 | BK19: -1.908 | BL19: -1.778 | BM19: -0.189 | BN19: 237.554 | BO19: 162.731 | BP19: 128.876 | BQ19: 243.647 | BR19: 177.412 | BS19: 199.24 | BT19: 236.684 | BU19: 162.601 | BV19: 109.901 | BW19: 114.923 | BX19: -1.467 | BY19: 161.011 | BZ19: 244.938 | CA19: 216.848 | CB19: 205.569 | CC19: 60.758 | CD19: 229.021 | CE19: 219.845 | CF19: 203.855 | CG19: 38.289 | CH19: 75.509 | CI19: 222.796 | CJ19: 202.935 | CK19: 135.187 | CL19: 135.544 | CM19: 290.772 | CN19: 284.93 | CO19: 284.783 | CP19: 284.87 | CQ19: 290.885 | CR19: 302.22 | CS19: 291.985 | CT19: 304.376 | CU19: 303.396 | CV19: 274.364 | CW19: 299.433 | CX19: 289.012 | CY19: 298.858 | CZ19: 281.235 | DA19: 306.372 | DB19: 308.505 | DC19: 294.187 | DD19: 270.276 | DE19: 259.646 | DF19: 275.772 | DG19: 302.963 | DH19: 268.974 | DI19: 303.184 | DJ19: 291.012 | DK19: 293.694 | DL19: 294.199 | DM19: 302.025 | DN19: 301.953 | DO19: 294.12 | DP19: 309.281 | DQ19: 299.742 | DR19: 307.246 | DS19: 307.662 | DT19: 280.305 | DU19: 309.428 | DV19: 297.272 | DW19: 306.254 | DX19: 299.061 | DY19: 311.605 | DZ19: 264.923 | EA19: 280.44 | EB19: 269.734 | EC19: 258.593 | ED19: 268.684 | EE19: 262.545 | EF19: 237.11 | EG19: 263.479 | EH19: 260.033 | EI19: 269.847 | EJ19: 270.343 | EK19: 275.071 | EL19: 287.123 | EM19: 267.607 | EN19: 293.598 | EO19: 273.794 | EP19: 311.429 | EQ19: 279.432 | ER19: 34.173 | ES19: 309.946 | ET19: 276.123 | EU19: 308.334 | EV19: 294.482 | EW19: 295.596 | EX19: 307.64 | EY19: 288.399 | EZ19: 296.97 | FA19: 288.507 | FB19: 296.307 | FC19: 292.916 | FD19: - | FE19: - | FF19: - | FG19: - | FH19: - | FI19: - | FJ19: - | FK19: - | FL19: - | FM19: - | FN19: -
B20: Hidroeólica | C20: - | D20: - | E20: - | F20: - | G20: - | H20: - | I20: - | J20: - | K20: - | L20: - | M20: - | N20: - | O20: - | P20: - | Q20: - | R20: - | S20: - | T20: - | U20: - | V20: - | W20: - | X20: - | Y20: - | Z20: - | AA20: - | AB20: - | AC20: - | AD20: - | AE20: - | AF20: - | AG20: - | AH20: - | AI20: - | AJ20: - | AK20: - | AL20: - | AM20: - | AN20: - | AO20: - | AP20: - | AQ20: - | AR20: - | AS20: - | AT20: - | AU20: - | AV20: - | AW20: - | AX20: - | AY20: - | AZ20: - | BA20: - | BB20: - | BC20: - | BD20: - | BE20: - | BF20: - | BG20: - | BH20: - | BI20: - | BJ20: - | BK20: - | BL20: - | BM20: - | BN20: - | BO20: - | BP20: - | BQ20: - | BR20: - | BS20: - | BT20: - | BU20: - | BV20: - | BW20: - | BX20: - | BY20: - | BZ20: - | CA20: - | CB20: - | CC20: - | CD20: - | CE20: - | CF20: - | CG20: - | CH20: - | CI20: - | CJ20: - | CK20: - | CL20: - | CM20: - | CN20: - | CO20: - | CP20: - | CQ20: - | CR20: - | CS20: - | CT20: - | CU20: - | CV20: - | CW20: - | CX20: - | CY20: - | CZ20: 2.02 | DA20: 8.639 | DB20: 274.245 | DC20: 101.643 | DD20: 0 | DE20: 154.755 | DF20: 187.535 | DG20: 384.989 | DH20: 344.341 | DI20: 204.855 | DJ20: 96.545 | DK20: 179.515 | DL20: 326.206 | DM20: 2072.161 | DN20: 1917.459 | DO20: 716.122 | DP20: 453.293 | DQ20: 868.56 | DR20: 643.378 | DS20: 790.736 | DT20: 1770.319 | DU20: 1510.166 | DV20: 1280.933 | DW20: 896.733 | DX20: 1990.341 | DY20: 2569.133 | DZ20: 2210.786 | EA20: 2161.999 | EB20: 704.287 | EC20: 993.84 | ED20: 1012.663 | EE20: 1068.971 | EF20: 1435.85 | EG20: 2122.233 | EH20: 968.504 | EI20: 1475.118 | EJ20: 2217.806 | EK20: 3109.007 | EL20: 2450.308 | EM20: 2337.138 | EN20: 971.276 | EO20: 790.825 | EP20: 1286.021 | EQ20: 2257.767 | ER20: 1754.305 | ES20: 1599.522 | ET20: 2262.646 | EU20: 2034.203 | EV20: 2321.804 | EW20: 3716.283 | EX20: 2859.321 | EY20: 2165.861 | EZ20: 873.311 | FA20: 900.788 | FB20: 909.733 | FC20: 1109.656 | FD20: - | FE20: - | FF20: - | FG20: - | FH20: - | FI20: - | FJ20: - | FK20: - | FL20: - | FM20: - | FN20: -
B21: Eólica | C21: 17431.845 | D21: 18906.552 | E21: 22433.485 | F21: 28613.578 | G21: 35233.5 | H21: 25590.253 | I21: 56231.544 | J21: 38386.534 | K21: 22680.768 | L21: 19552.139 | M21: 15309.171 | N21: 25694.21 | O21: 17536 | P21: 22919 | Q21: 37045 | R21: 26057 | S21: 34949 | T21: 31706 | U21: 57951 | V21: 48557 | W21: 26273 | X21: 19181 | Y21: 16085 | Z21: 18581 | AA21: 12697 | AB21: 16352 | AC21: 39237 | AD21: 36025 | AE21: 31842 | AF21: 39889 | AG21: 59648 | AH21: 61491 | AI21: 17713 | AJ21: 33991 | AK21: 22016 | AL21: 25574 | AM21: 23706 | AN21: 17290 | AO21: 24349 | AP21: 46455 | AQ21: 32116 | AR21: 20734 | AS21: 55995 | AT21: 57105 | AU21: 22914 | AV21: 12762 | AW21: 24732 | AX21: 20549 | AY21: 11740 | AZ21: 14778 | BA21: 23015 | BB21: 32147 | BC21: 36251 | BD21: 38838 | BE21: 47304 | BF21: 42622 | BG21: 35769 | BH21: 14015 | BI21: 17956 | BJ21: 16928 | BK21: 11404.08 | BL21: 24311.829 | BM21: 22948.122 | BN21: 24018.134 | BO21: 19588.204 | BP21: 37820.731 | BQ21: 55748.883 | BR21: 52230.829 | BS21: 31670.317 | BT21: 25772.318 | BU21: 15869.371 | BV21: 34294.943 | BW21: 18963.88 | BX21: 33726.285 | BY21: 33681.697 | BZ21: 30021.198 | CA21: 26774.771 | CB21: 44057.214 | CC21: 57535.39 | CD21: 54600.536 | CE21: 12813.212 | CF21: 17087.318 | CG21: 16904.712 | CH21: 15601.112 | CI21: 24542.069 | CJ21: 28387.059 | CK21: 13294.339 | CL21: 27647.999 | CM21: 38088.171 | CN21: 48342.129 | CO21: 41479.147 | CP21: 42313.802 | CQ21: 24539.765 | CR21: 24189.817 | CS21: 27762.66 | CT21: 22146.528 | CU21: 29456.386 | CV21: 32605.983 | CW21: 45693.779 | CX21: 27505.592 | CY21: 42524.829 | CZ21: 35023.161 | DA21: 45177.292 | DB21: 59087.231 | DC21: 12367.693 | DD21: 15750.273 | DE21: 20598.572 | DF21: 23738.015 | DG21: 41468.698 | DH21: 43676.997 | DI21: 41791.704 | DJ21: 28966.517 | DK21: 40093.75 | DL21: 30388.71 | DM21: 59610.985 | DN21: 49740.294 | DO21: 17421.194 | DP21: 10614.166 | DQ21: 24303.164 | DR21: 8610.964 | DS21: 19203.504 | DT21: 40727.103 | DU21: 33659.559 | DV21: 25977.747 | DW21: 30430.551 | DX21: 44238.828 | DY21: 56791.595 | DZ21: 48605.248 | EA21: 46716.553 | EB21: 13314.827 | EC21: 17702.068 | ED21: 15713 | EE21: 15115.34 | EF21: 22686.48 | EG21: 36303.305 | EH21: 18569.133 | EI21: 25519.845 | EJ21: 40162.352 | EK21: 50390.07 | EL21: 47397.181 | EM21: 54609.197 | EN21: 21330.209 | EO21: 24032.089 | EP21: 39810.132 | EQ21: 56908.339 | ER21: 46206.065 | ES21: 50516.178 | ET21: 45545.818 | EU21: 55351.522 | EV21: 56421.117 | EW21: 95158.367 | EX21: 65080.791 | EY21: 51688.221 | EZ21: 22335.968 | FA21: 32426.612 | FB21: 42931.706 | FC21: 55782.075 | FD21: - | FE21: - | FF21: - | FG21: - | FH21: - | FI21: - | FJ21: - | FK21: - | FL21: - | FM21: - | FN21: -
B22: Solar fotovoltaica | C22: 36.402 | D22: 46.196 | E22: 66.179 | F22: 67.328 | G22: 76.62 | H22: 77.053 | I22: 98.995 | J22: 430.708 | K22: 484.04 | L22: 533.362 | M22: 462.502 | N22: 536.165 | O22: 610 | P22: 833 | Q22: 1268 | R22: 1459 | S22: 1737 | T22: 1692 | U22: 2046 | V22: 2433 | W22: 2017 | X22: 2022 | Y22: 1635 | Z22: 1621 | AA22: 2022 | AB22: 2658 | AC22: 3713 | AD22: 4145 | AE22: 4312 | AF22: 4894 | AG22: 5548 | AH22: 5693 | AI22: 6152 | AJ22: 9825 | AK22: 7689 | AL22: 6849 | AM22: 8709 | AN22: 10847 | AO22: 12492 | AP22: 16156 | AQ22: 16219 | AR22: 16256 | AS22: 17530 | AT22: 17568 | AU22: 12555 | AV22: 13377 | AW22: 11497 | AX22: 9124 | AY22: 10698 | AZ22: 10306 | BA22: 16328 | BB22: 16499 | BC22: 19138 | BD22: 19607 | BE22: 22480 | BF22: 21526 | BG22: 17621 | BH22: 15830 | BI22: 12519 | BJ22: 12614 | BK22: 15208.981 | BL22: 16925.322 | BM22: 19749.058 | BN22: 19788.122 | BO22: 20867.145 | BP22: 23436.742 | BQ22: 23909.438 | BR22: 24852.741 | BS22: 20991.273 | BT22: 17726.076 | BU22: 14532.902 | BV22: 15011.39 | BW22: 15819.209 | BX22: 17853.072 | BY22: 23038.751 | BZ22: 20676.246 | CA22: 24978.376 | CB22: 25023.071 | CC22: 26449.416 | CD22: 26299.356 | CE22: 23157.728 | CF22: 19232.281 | CG22: 16071.461 | CH22: 17914.419 | CI22: 20252.741 | CJ22: 19458.058 | CK22: 23738.813 | CL22: 27151.991 | CM22: 27709.879 | CN22: 30874.997 | CO22: 30902.742 | CP22: 26949.798 | CQ22: 24098.381 | CR22: 22189.812 | CS22: 17740.243 | CT22: 15635.862 | CU22: 18995.297 | CV22: 20131.841 | CW22: 27162.146 | CX22: 25918.809 | CY22: 29371.409 | CZ22: 27593.423 | DA22: 27932.593 | DB22: 29918.848 | DC22: 21432.359 | DD22: 20632.922 | DE22: 16823.303 | DF22: 16372.739 | DG22: 18338.96 | DH22: 17768.263 | DI22: 25468.778 | DJ22: 25099.776 | DK22: 29873.021 | DL22: 27306.09 | DM22: 30356.458 | DN22: 26057.349 | DO22: 20794.073 | DP22: 17895.283 | DQ22: 18494.509 | DR22: 18094.045 | DS22: 19686.59 | DT22: 20001.838 | DU22: 24026.334 | DV22: 24141.434 | DW22: 25214.813 | DX22: 29413.996 | DY22: 29165.302 | DZ22: 27398.407 | EA22: 25682.866 | EB22: 20207.854 | EC22: 17006.975 | ED22: 15714.934 | EE22: 18013.853 | EF22: 18975.393 | EG22: 25348.941 | EH22: 25780.479 | EI22: 25230.681 | EJ22: 27578.364 | EK22: 29027.198 | EL22: 26916.004 | EM22: 22973.414 | EN22: 19754.671 | EO22: 16487.777 | EP22: 17539.89 | EQ22: 19072.745 | ER22: 17886.313 | ES22: 25105.015 | ET22: 25211.384 | EU22: 23079.87 | EV22: 25992.826 | EW22: 29450.45 | EX22: 27718.481 | EY22: 24127.854 | EZ22: 19456.084 | FA22: 16088.982 | FB22: 18423.208 | FC22: 17483.565 | FD22: - | FE22: - | FF22: - | FG22: - | FH22: - | FI22: - | FJ22: - | FK22: - | FL22: - | FM22: - | FN22: -
B23: Térmica renovable/Otras renovables | C23: 8687.566 | D23: 11201.252 | E23: 21105.336 | F23: 20726.094 | G23: 19570.88 | H23: 20816.694 | I23: 21169.461 | J23: 19156.758 | K23: 13239.192 | L23: 22026.499 | M23: 17532.327 | N23: 22967.625 | O23: 21162 | P23: 19576 | Q23: 5693 | R23: 17196 | S23: 15807 | T23: 15288 | U23: 19273 | V23: 20695 | W23: 19120 | X23: 18295 | Y23: 18031 | Z23: 23147 | AA23: 22239 | AB23: 19665 | AC23: 20200 | AD23: 19685 | AE23: 21462 | AF23: 14780 | AG23: 144 | AH23: 21585 | AI23: 13957 | AJ23: 17447 | AK23: 22889 | AL23: 23166 | AM23: 23472 | AN23: 22220 | AO23: 12230 | AP23: 24755 | AQ23: 22920 | AR23: 23920 | AS23: 24575 | AT23: 24604 | AU23: 23900 | AV23: 22497 | AW23: 23578 | AX23: 24384 | AY23: 23902 | AZ23: 18935 | BA23: 16313 | BB23: 24282 | BC23: 25112 | BD23: 19550 | BE23: 10072 | BF23: 5987 | BG23: 5025 | BH23: 5016 | BI23: 3979 | BJ23: 2388 | BK23: 806.47 | BL23: 704.446 | BM23: 710.764 | BN23: 790.523 | BO23: 789.603 | BP23: 728.288 | BQ23: 734.674 | BR23: 721.864 | BS23: 702.342 | BT23: 703.078 | BU23: 748.531 | BV23: 675.363 | BW23: 612.11 | BX23: 489.723 | BY23: 585.198 | BZ23: 682.916 | CA23: 647.635 | CB23: 645.866 | CC23: 716.723 | CD23: 723.613 | CE23: 743.061 | CF23: 760.459 | CG23: 617.475 | CH23: 825.668 | CI23: 744.283 | CJ23: 697.577 | CK23: 800.201 | CL23: 747.981 | CM23: 798.7 | CN23: 697.581 | CO23: 798.744 | CP23: 711.541 | CQ23: 628.877 | CR23: 722.197 | CS23: 510.747 | CT23: 644.159 | CU23: 786.872 | CV23: 707.195 | CW23: 777.801 | CX23: 663.434 | CY23: 668.766 | CZ23: 643.021 | DA23: 797.432 | DB23: 820.722 | DC23: 628.579 | DD23: 746.802 | DE23: 834.911 | DF23: 731.049 | DG23: 378.989 | DH23: 349.566 | DI23: 447.532 | DJ23: 493.868 | DK23: 605.664 | DL23: 795.14 | DM23: 838.07 | DN23: 840.536 | DO23: 865.444 | DP23: 810.068 | DQ23: 840.385 | DR23: 788.363 | DS23: 861.786 | DT23: 734.554 | DU23: 824.454 | DV23: 816.618 | DW23: 883.879 | DX23: 679.27 | DY23: 761.146 | DZ23: 696.042 | EA23: 737.829 | EB23: 786.367 | EC23: 764.768 | ED23: 789.062 | EE23: 811.431 | EF23: 720.25 | EG23: 830.736 | EH23: 835.52 | EI23: 813.432 | EJ23: 823.178 | EK23: 830.519 | EL23: 681.526 | EM23: 802.313 | EN23: 831.378 | EO23: 803.24 | EP23: 781.736 | EQ23: 762.423 | ER23: 646.573 | ES23: 837.294 | ET23: 538.897 | EU23: 750.601 | EV23: 531.015 | EW23: 702.394 | EX23: 816.452 | EY23: 782.909 | EZ23: 813.334 | FA23: 850.253 | FB23: 899.452 | FC23: 963.329 | FD23: - | FE23: - | FF23: - | FG23: - | FH23: - | FI23: - | FJ23: - | FK23: - | FL23: - | FM23: - | FN23: -
B24: Generación renovable | C24: 26155.813 | D24: 30154 | E24: 43605 | F24: 49407 | G24: 54881 | H24: 46484 | I24: 77500 | J24: 57974 | K24: 36404 | L24: 42112 | M24: 33304 | N24: 49198 | O24: 39308 | P24: 43328 | Q24: 44006 | R24: 44712 | S24: 52493 | T24: 48686 | U24: 79352 | V24: 71875 | W24: 47657 | X24: 39590 | Y24: 36029 | Z24: 43636 | AA24: 37245 | AB24: 38919 | AC24: 63390 | AD24: 59855 | AE24: 57801 | AF24: 59878 | AG24: 65645 | AH24: 88866 | AI24: 37822 | AJ24: 61263 | AK24: 52594 | AL24: 55589 | AM24: 55896 | AN24: 50521 | AO24: 49246 | AP24: 87416 | AQ24: 71255 | AR24: 60910 | AS24: 98100 | AT24: 99277 | AU24: 59369 | AV24: 48636 | AW24: 59807 | AX24: 54057 | AY24: 46340 | AZ24: 44019 | BA24: 55656 | BB24: 72928 | BC24: 80501 | BD24: 77995 | BE24: 79856 | BF24: 70135 | BG24: 58415 | BH24: 34861 | BI24: 34454 | BJ24: 31930 | BK24: 27417.623 | BL24: 41939.819 | BM24: 43407.755 | BN24: 44834.333 | BO24: 41407.683 | BP24: 62114.637 | BQ24: 80636.642 | BR24: 77982.846 | BS24: 53563.172 | BT24: 44438.156 | BU24: 31313.405 | BV24: 50091.597 | BW24: 35510.122 | BX24: 52067.613 | BY24: 57466.657 | BZ24: 51625.298 | CA24: 52617.63 | CB24: 69931.72 | CC24: 84762.287 | CD24: 81852.526 | CE24: 36933.846 | CF24: 37283.913 | CG24: 33631.937 | CH24: 34416.708 | CI24: 45761.889 | CJ24: 48745.629 | CK24: 37968.54 | CL24: 55683.515 | CM24: 66887.522 | CN24: 80199.637 | CO24: 73465.416 | CP24: 70260.011 | CQ24: 49557.908 | CR24: 47404.046 | CS24: 46305.635 | CT24: 38730.925 | CU24: 49541.951 | CV24: 53719.383 | CW24: 73933.159 | CX24: 54376.847 | CY24: 72863.862 | CZ24: 63542.86 | DA24: 74222.328 | DB24: 90409.551 | DC24: 34824.461 | DD24: 37400.273 | DE24: 38671.187 | DF24: 41305.11 | DG24: 60874.599 | DH24: 62408.141 | DI24: 68216.053 | DJ24: 54947.718 | DK24: 71045.644 | DL24: 59110.345 | DM24: 93179.699 | DN24: 78857.591 | DO24: 40090.953 | DP24: 30082.091 | DQ24: 44806.36 | DR24: 28443.996 | DS24: 40850.278 | DT24: 63514.119 | DU24: 60329.941 | DV24: 52514.004 | DW24: 57732.23 | DX24: 76621.496 | DY24: 89598.781 | DZ24: 79175.406 | EA24: 75579.687 | EB24: 35283.069 | EC24: 36726.244 | ED24: 33498.343 | EE24: 35272.14 | EF24: 44055.083 | EG24: 64868.694 | EH24: 46413.669 | EI24: 53308.923 | EJ24: 71052.043 | EK24: 83631.865 | EL24: 77732.142 | EM24: 80989.669 | EN24: 43181.132 | EO24: 42387.725 | EP24: 59729.208 | EQ24: 79280.706 | ER24: 66527.429 | ES24: 78367.955 | ET24: 73834.868 | EU24: 81524.53 | EV24: 85561.244 | EW24: 129323.09 | EX24: 96782.685 | EY24: 79053.244 | EZ24: 43775.667 | FA24: 50555.142 | FB24: 63460.406 | FC24: 75631.541 | FD24: - | FE24: - | FF24: - | FG24: - | FH24: - | FI24: - | FJ24: - | FK24: - | FL24: - | FM24: - | FN24: -
B26: Generación renovable mensual Melilla (MWh) | C26: 2007-01-01 | D26: 2007-02-01 | E26: 2007-03-01 | F26: 2007-04-01 | G26: 2007-05-01 | H26: 2007-06-01 | I26: 2007-07-01 | J26: 2007-08-01 | K26: 2007-09-01 | L26: 2007-10-01 | M26: 2007-11-01 | N26: 2007-12-01 | O26: 2008-01-01 | P26: 2008-02-01 | Q26: 2008-03-01 | R26: 2008-04-01 | S26: 2008-05-01 | T26: 2008-06-01 | U26: 2008-07-01 | V26: 2008-08-01 | W26: 2008-09-01 | X26: 2008-10-01 | Y26: 2008-11-01 | Z26: 2008-12-01 | AA26: 2009-01-01 | AB26: 2009-02-01 | AC26: 2009-03-01 | AD26: 2009-04-01 | AE26: 2009-05-01 | AF26: 2009-06-01 | AG26: 2009-07-01 | AH26: 2009-08-01 | AI26: 2009-09-01 | AJ26: 2009-10-01 | AK26: 2009-11-01 | AL26: 2009-12-01 | AM26: 2010-01-01 | AN26: 2010-02-01 | AO26: 2010-03-01 | AP26: 2010-04-01 | AQ26: 2010-05-01 | AR26: 2010-06-01 | AS26: 2010-07-01 | AT26: 2010-08-01 | AU26: 2010-09-01 | AV26: 2010-10-01 | AW26: 2010-11-01 | AX26: 2010-12-01 | AY26: 2011-01-01 | AZ26: 2011-02-01 | BA26: 2011-03-01 | BB26: 2011-04-01 | BC26: 2011-05-01 | BD26: 2011-06-01 | BE26: 2011-07-01 | BF26: 2011-08-01 | BG26: 2011-09-01 | BH26: 2011-10-01 | BI26: 2011-11-01 | BJ26: 2011-12-01 | BK26: 2012-01-01 | BL26: 2012-02-01 | BM26: 2012-03-01 | BN26: 2012-04-01 | BO26: 2012-05-01 | BP26: 2012-06-01 | BQ26: 2012-07-01 | BR26: 2012-08-01 | BS26: 2012-09-01 | BT26: 2012-10-01 | BU26: 2012-11-01 | BV26: 2012-12-01 | BW26: 2013-01-01 | BX26: 2013-02-01 | BY26: 2013-03-01 | BZ26: 2013-04-01 | CA26: 2013-05-01 | CB26: 2013-06-01 | CC26: 2013-07-01 | CD26: 2013-08-01 | CE26: 2013-09-01 | CF26: 2013-10-01 | CG26: 2013-11-01 | CH26: 2013-12-01 | CI26: 2014-01-01 | CJ26: 2014-02-01 | CK26: 2014-03-01 | CL26: 2014-04-01 | CM26: 2014-05-01 | CN26: 2014-06-01 | CO26: 2014-07-01 | CP26: 2014-08-01 | CQ26: 2014-09-01 | CR26: 2014-10-01 | CS26: 2014-11-01 | CT26: 2014-12-01 | CU26: 2015-01-01 | CV26: 2015-02-01 | CW26: 2015-03-01 | CX26: 2015-04-01 | CY26: 2015-05-01 | CZ26: 2015-06-01 | DA26: 2015-07-01 | DB26: 2015-08-01 | DC26: 2015-09-01 | DD26: 2015-10-01 | DE26: 2015-11-01 | DF26: 2015-12-01 | DG26: 2016-01-01 | DH26: 2016-02-01 | DI26: 2016-03-01 | DJ26: 2016-04-01 | DK26: 2016-05-01 | DL26: 2016-06-01 | DM26: 2016-07-01 | DN26: 2016-08-01 | DO26: 2016-09-01 | DP26: 2016-10-01 | DQ26: 2016-11-01 | DR26: 2016-12-01 | DS26: 2017-01-01 | DT26: 2017-02-01 | DU26: 2017-03-01 | DV26: 2017-04-01 | DW26: 2017-05-01 | DX26: 2017-06-01 | DY26: 2017-07-01 | DZ26: 2017-08-01 | EA26: 2017-09-01 | EB26: 2017-10-01 | EC26: 2017-11-01 | ED26: 2017-12-01 | EE26: 2018-01-01 | EF26: 2018-02-01 | EG26: 2018-03-01 | EH26: 2018-04-01 | EI26: 2018-05-01 | EJ26: 2018-06-01 | EK26: 2018-07-01 | EL26: 2018-08-01 | EM26: 2018-09-01 | EN26: 2018-10-01 | EO26: 2018-11-01 | EP26: 2018-12-01 | EQ26: 2019-01-01 | ER26: 2019-02-01 | ES26: 2019-03-01 | ET26: 2019-04-01 | EU26: 2019-05-01 | EV26: 2019-06-01 | EW26: 2019-07-01 | EX26: 2019-08-01 | EY26: 2019-09-01 | EZ26: 2019-10-01 | FA26: 2019-11-01 | FB26: 2019-12-01
B27: Solar fotovoltaica | C27: - | D27: - | E27: - | F27: - | G27: - | H27: - | I27: - | J27: - | K27: - | L27: - | M27: - | N27: - | O27: 1 | P27: 0 | Q27: 0 | R27: 0 | S27: 0 | T27: 1 | U27: 1 | V27: 1 | W27: 1 | X27: 0 | Y27: 1 | Z27: 0 | AA27: 8 | AB27: 17 | AC27: 22 | AD27: 28 | AE27: 9 | AF27: 8 | AG27: 8 | AH27: 8 | AI27: 7 | AJ27: 6 | AK27: 0 | AL27: 1 | AM27: 1 | AN27: 5 | AO27: 6 | AP27: 7 | AQ27: 9 | AR27: 1 | AS27: 8 | AT27: 9 | AU27: 7 | AV27: 6 | AW27: 5 | AX27: 3 | AY27: 3.708 | AZ27: 6.501 | BA27: 6.521 | BB27: 6.763 | BC27: 7.659 | BD27: 8.428 | BE27: 7.063 | BF27: 6.108 | BG27: 5.387 | BH27: 5.03 | BI27: 3.806 | BJ27: 4.498 | BK27: 4.919 | BL27: 6.754 | BM27: 6.993 | BN27: 8.931 | BO27: 9.014 | BP27: 8.642 | BQ27: 8.651 | BR27: 8.1 | BS27: 6.907 | BT27: 6.229 | BU27: 3.76 | BV27: 4.214 | BW27: 4.881 | BX27: 5.495 | BY27: 7.355 | BZ27: 7.49 | CA27: 9.424 | CB27: 8.949 | CC27: 8.29 | CD27: 8.027 | CE27: 6.954 | CF27: 6.568 | CG27: 4.839 | CH27: 4.051 | CI27: 4.479 | CJ27: 5.739 | CK27: 7.88 | CL27: 8.644 | CM27: 8.964 | CN27: 8.974 | CO27: 9.23 | CP27: 8.608 | CQ27: 6.517 | CR27: 6.527 | CS27: 4.176 | CT27: 4.095 | CU27: 4.798 | CV27: 5.024 | CW27: 8.026 | CX27: 6.233 | CY27: 8.487 | CZ27: 8.438 | DA27: 8.876 | DB27: 7.348 | DC27: 7.348 | DD27: 6.499 | DE27: 4.979 | DF27: 3.904 | DG27: 4.303 | DH27: 5.526 | DI27: 8.486 | DJ27: 8.527 | DK27: 8.57 | DL27: 8.364 | DM27: 7.037 | DN27: 8.011 | DO27: 6.96 | DP27: 6.11 | DQ27: 4.618 | DR27: 3.588 | DS27: 4.628 | DT27: 4.468 | DU27: 7.199 | DV27: 7.168 | DW27: 7.693 | DX27: 7.782 | DY27: 8.309 | DZ27: 6.568 | EA27: 7.604 | EB27: 6.547 | EC27: 4.844 | ED27: 4.059 | EE27: 4.205 | EF27: 5.874 | EG27: 7.59 | EH27: 6.899 | EI27: 7.645 | EJ27: 6.288 | EK27: 6.204 | EL27: 8.629 | EM27: 6.42 | EN27: 6.042 | EO27: 4.839 | EP27: 3.976 | EQ27: 5.053 | ER27: - | ES27: - | ET27: - | EU27: - | EV27: - | EW27: - | EX27: - | EY27: - | EZ27: - | FA27: - | FB27: -
B28: Residuos renovables | C28: - | D28: - | E28: - | F28: - | G28: - | H28: - | I28: - | J28: - | K28: - | L28: - | M28: - | N28: - | O28: - | P28: - | Q28: - | R28: - | S28: - | T28: - | U28: - | V28: - | W28: - | X28: - | Y28: - | Z28: - | AA28: - | AB28: - | AC28: - | AD28: - | AE28: - | AF28: - | AG28: - | AH28: - | AI28: - | AJ28: - | AK28: - | AL28: - | AM28: - | AN28: - | AO28: - | AP28: - | AQ28: - | AR28: - | AS28: - | AT28: - | AU28: - | AV28: - | AW28: - | AX28: - | AY28: 464.2995 | AZ28: 397.925 | BA28: 430.5965 | BB28: 373.3385 | BC28: 337.1145 | BD28: 334.889 | BE28: 382.3905 | BF28: 338.018 | BG28: 346.518 | BH28: 104.5875 | BI28: 7.9335 | BJ28: 0 | BK28: 0 | BL28: 0 | BM28: 0 | BN28: 31.269 | BO28: 0 | BP28: 0 | BQ28: 0 | BR28: 85.337 | BS28: 276.0295 | BT28: 23.626 | BU28: 336.021 | BV28: 402.1965 | BW28: 390.326 | BX28: 324.1085 | BY28: 302.59 | BZ28: 362.802 | CA28: 313.6945 | CB28: 396.8485 | CC28: 339.394 | CD28: 323.441 | CE28: 305.6065 | CF28: 446.337 | CG28: 82.3565 | CH28: 431.394 | CI28: 438.9415 | CJ28: 426.67 | CK28: 449.989 | CL28: 391.808 | CM28: 342.024 | CN28: 327.595 | CO28: 387.5495 | CP28: 349.8775 | CQ28: 360.203 | CR28: 394.673 | CS28: 89.532 | CT28: 490.2945 | CU28: 406.5665 | CV28: 384.252 | CW28: 399.5425 | CX28: 384.5825 | CY28: 399.2905 | CZ28: 362.668 | DA28: 306.0275 | DB28: 330.7325 | DC28: 349.4625 | DD28: 424.0245 | DE28: 110.6505 | DF28: 438.6985 | DG28: 486.9855 | DH28: 413.2365 | DI28: 388.0695 | DJ28: 449.9035 | DK28: 371.4135 | DL28: 406.484 | DM28: 395.088 | DN28: 402.675 | DO28: 414.326 | DP28: 504.3505 | DQ28: 110.9915 | DR28: 506.529 | DS28: 452.02 | DT28: 426.088 | DU28: 438.0085 | DV28: 420.811 | DW28: 450.2675 | DX28: 434.6815 | DY28: 425.633 | DZ28: 341.006 | EA28: 448.8645 | EB28: 497.2605 | EC28: 87.2905 | ED28: 555.055 | EE28: 521.0755 | EF28: 484.4805 | EG28: 524.2205 | EH28: 456.2945 | EI28: 476.224 | EJ28: 420.4815 | EK28: 461.947 | EL28: 470.8915 | EM28: 430.504 | EN28: 414.2015 | EO28: 109.871 | EP28: 576.6475 | EQ28: 549.424 | ER28: - | ES28: - | ET28: - | EU28: - | EV28: - | EW28: - | EX28: - | EY28: - | EZ28: - | FA28: - | FB28: -
B29: Generación renovable | C29: 0 | D29: 0 | E29: 0 | F29: 0 | G29: 0 | H29: 0 | I29: 0 | J29: 0 | K29: 0 | L29: 0 | M29: 0 | N29: 0 | O29: 1 | P29: 0 | Q29: 0 | R29: 0 | S29: 0 | T29: 1 | U29: 1 | V29: 1 | W29: 1 | X29: 0 | Y29: 1 | Z29: 0 | AA29: 8 | AB29: 17 | AC29: 22 | AD29: 28 | AE29: 9 | AF29: 8 | AG29: 8 | AH29: 8 | AI29: 7 | AJ29: 6 | AK29: 0 | AL29: 1 | AM29: 1 | AN29: 5 | AO29: 6 | AP29: 7 | AQ29: 9 | AR29: 1 | AS29: 8 | AT29: 9 | AU29: 7 | AV29: 6 | AW29: 5 | AX29: 3 | AY29: 468.0075 | AZ29: 404.426 | BA29: 437.1175 | BB29: 380.1015 | BC29: 344.7735 | BD29: 343.317 | BE29: 389.4535 | BF29: 344.126 | BG29: 351.905 | BH29: 109.6175 | BI29: 11.7395 | BJ29: 4.498 | BK29: 4.919 | BL29: 6.754 | BM29: 6.993 | BN29: 40.2 | BO29: 9.014 | BP29: 8.642 | BQ29: 8.651 | BR29: 93.437 | BS29: 282.9365 | BT29: 29.855 | BU29: 339.781 | BV29: 406.4105 | BW29: 395.207 | BX29: 329.6035 | BY29: 309.945 | BZ29: 370.292 | CA29: 323.1185 | CB29: 405.7975 | CC29: 347.684 | CD29: 331.468 | CE29: 312.5605 | CF29: 452.905 | CG29: 87.1955 | CH29: 435.445 | CI29: 443.4205 | CJ29: 432.409 | CK29: 457.869 | CL29: 400.452 | CM29: 350.988 | CN29: 336.569 | CO29: 396.7795 | CP29: 358.4855 | CQ29: 366.72 | CR29: 401.2 | CS29: 93.708 | CT29: 494.3895 | CU29: 411.3645 | CV29: 389.276 | CW29: 407.5685 | CX29: 390.8155 | CY29: 407.7775 | CZ29: 371.106 | DA29: 314.9035 | DB29: 338.0805 | DC29: 356.8105 | DD29: 430.5235 | DE29: 115.6295 | DF29: 442.6025 | DG29: 491.2885 | DH29: 418.7625 | DI29: 396.5555 | DJ29: 458.4305 | DK29: 379.9835 | DL29: 414.848 | DM29: 402.125 | DN29: 410.686 | DO29: 421.286 | DP29: 510.4605 | DQ29: 115.6095 | DR29: 510.117 | DS29: 456.648 | DT29: 430.556 | DU29: 445.2075 | DV29: 427.979 | DW29: 457.9605 | DX29: 442.4635 | DY29: 433.942 | DZ29: 347.574 | EA29: 456.4685 | EB29: 503.8075 | EC29: 92.1345 | ED29: 559.114 | EE29: 525.2805 | EF29: 490.3545 | EG29: 531.8105 | EH29: 463.1935 | EI29: 483.869 | EJ29: 426.7695 | EK29: 468.151 | EL29: 479.5205 | EM29: 436.924 | EN29: 420.2435 | EO29: 114.71 | EP29: 580.6235 | EQ29: 554.477 | ER29: - | ES29: - | ET29: - | EU29: - | EV29: - | EW29: - | EX29: - | EY29: - | EZ29: - | FA29: - | FB29: -
B31: Generación renovable mensual nacional (GWh) | C31: 2007-01-01 | D31: 2007-02-01 | E31: 2007-03-01 | F31: 2007-04-01 | G31: 2007-05-01 | H31: 2007-06-01 | I31: 2007-07-01 | J31: 2007-08-01 | K31: 2007-09-01 | L31: 2007-10-01 | M31: 2007-11-01 | N31: 2007-12-01 | O31: 2008-01-01 | P31: 2008-02-01 | Q31: 2008-03-01 | R31: 2008-04-01 | S31: 2008-05-01 | T31: 2008-06-01 | U31: 2008-07-01 | V31: 2008-08-01 | W31: 2008-09-01 | X31: 2008-10-01 | Y31: 2008-11-01 | Z31: 2008-12-01 | AA31: 2009-01-01 | AB31: 2009-02-01 | AC31: 2009-03-01 | AD31: 2009-04-01 | AE31: 2009-05-01 | AF31: 2009-06-01 | AG31: 2009-07-01 | AH31: 2009-08-01 | AI31: 2009-09-01 | AJ31: 2009-10-01 | AK31: 2009-11-01 | AL31: 2009-12-01 | AM31: 2010-01-01 | AN31: 2010-02-01 | AO31: 2010-03-01 | AP31: 2010-04-01 | AQ31: 2010-05-01 | AR31: 2010-06-01 | AS31: 2010-07-01 | AT31: 2010-08-01 | AU31: 2010-09-01 | AV31: 2010-10-01 | AW31: 2010-11-01 | AX31: 2010-12-01 | AY31: 2011-01-01 | AZ31: 2011-02-01 | BA31: 2011-03-01 | BB31: 2011-04-01 | BC31: 2011-05-01 | BD31: 2011-06-01 | BE31: 2011-07-01 | BF31: 2011-08-01 | BG31: 2011-09-01 | BH31: 2011-10-01 | BI31: 2011-11-01 | BJ31: 2011-12-01 | BK31: 2012-01-01 | BL31: 2012-02-01 | BM31: 2012-03-01 | BN31: 2012-04-01 | BO31: 2012-05-01 | BP31: 2012-06-01 | BQ31: 2012-07-01 | BR31: 2012-08-01 | BS31: 2012-09-01 | BT31: 2012-10-01 | BU31: 2012-11-01 | BV31: 2012-12-01 | BW31: 2013-01-01 | BX31: 2013-02-01 | BY31: 2013-03-01 | BZ31: 2013-04-01 | CA31: 2013-05-01 | CB31: 2013-06-01 | CC31: 2013-07-01 | CD31: 2013-08-01 | CE31: 2013-09-01 | CF31: 2013-10-01 | CG31: 2013-11-01 | CH31: 2013-12-01 | CI31: 2014-01-01 | CJ31: 2014-02-01 | CK31: 2014-03-01 | CL31: 2014-04-01 | CM31: 2014-05-01 | CN31: 2014-06-01 | CO31: 2014-07-01 | CP31: 2014-08-01 | CQ31: 2014-09-01 | CR31: 2014-10-01 | CS31: 2014-11-01 | CT31: 2014-12-01 | CU31: 2015-01-01 | CV31: 2015-02-01 | CW31: 2015-03-01 | CX31: 2015-04-01 | CY31: 2015-05-01 | CZ31: 2015-06-01 | DA31: 2015-07-01 | DB31: 2015-08-01 | DC31: 2015-09-01 | DD31: 2015-10-01 | DE31: 2015-11-01 | DF31: 2015-12-01 | DG31: 2016-01-01 | DH31: 2016-02-01 | DI31: 2016-03-01 | DJ31: 2016-04-01 | DK31: 2016-05-01 | DL31: 2016-06-01 | DM31: 2016-07-01 | DN31: 2016-08-01 | DO31: 2016-09-01 | DP31: 2016-10-01 | DQ31: 2016-11-01 | DR31: 2016-12-01 | DS31: 2017-01-01 | DT31: 2017-02-01 | DU31: 2017-03-01 | DV31: 2017-04-01 | DW31: 2017-05-01 | DX31: 2017-06-01 | DY31: 2017-07-01 | DZ31: 2017-08-01 | EA31: 2017-09-01 | EB31: 2017-10-01 | EC31: 2017-11-01 | ED31: 2017-12-01 | EE31: 2018-01-01 | EF31: 2018-02-01 | EG31: 2018-03-01 | EH31: 2018-04-01 | EI31: 2018-05-01 | EJ31: 2018-06-01 | EK31: 2018-07-01 | EL31: 2018-08-01 | EM31: 2018-09-01 | EN31: 2018-10-01 | EO31: 2018-11-01 | EP31: 2018-12-01 | EQ31: 2019-01-01 | ER31: 2019-02-01 | ES31: 2019-03-01 | ET31: 2019-04-01 | EU31: 2019-05-01 | EV31: 2019-06-01 | EW31: 2019-07-01 | EX31: 2019-08-01 | EY31: 2019-09-01 | EZ31: 2019-10-01 | FA31: 2019-11-01 | FB31: 2019-12-01
B32: Hidráulica | C32: 2265.5368 | D32: 3018.5307 | E32: 3928.3884 | F32: 2867.4611 | G32: 2837.4746 | H32: 2309.4112 | I32: 2454.7463 | J32: 1770.9716 | K32: 1376.3025 | L32: 1712.5293 | M32: 1342.2435 | N32: 1221.8831 | O32: 1393.4648 | P32: 957.8955 | Q32: 1076.0352 | R32: 2740.0094 | S32: 3370.3449 | T32: 3175.8065 | U32: 2182.1716 | V32: 1539.6986 | W32: 1313.4238 | X32: 1095.1625 | Y32: 1592.7958 | Z32: 2498.646 | AA32: 2274.4931 | AB32: 3482.1975 | AC32: 2794.3976 | AD32: 2205.6507 | AE32: 2585.8144 | AF32: 2128.0412 | AG32: 1758.4124 | AH32: 1449.8248 | AI32: 993.2099 | AJ32: 1258.9399 | AK32: 2027.0113 | AL32: 3228.3809 | AM32: 5178.646113 | AN32: 4067.303562 | AO32: 5816.538044 | AP32: 4720.052131 | AQ32: 3862.882048 | AR32: 3555.036153 | AS32: 2896.772407 | AT32: 2036.829814 | AU32: 1530.457344 | AV32: 1601.502029 | AW32: 2611.518068 | AX32: 3956.236477 | AY32: 5119.512384 | AZ32: 2998.051295 | BA32: 3910.363283 | BB32: 3537.937981 | BC32: 2797.500047 | BD32: 2070.305349 | BE32: 1661.925007 | BF32: 1520.944896 | BG32: 1221.591742 | BH32: 1250.278629 | BI32: 2163.287315 | BJ32: 2185.620242 | BK32: 1631.15311 | BL32: 1224.6351 | BM32: 1341.010757 | BN32: 1744.142644 | BO32: 2535.024966 | BP32: 2106.114456 | BQ32: 1664.189133 | BR32: 1334.8124 | BS32: 1035.499301 | BT32: 1388.894197 | BU32: 1986.470889 | BV32: 2661.619681 | BW32: 3014.449455 | BX32: 3551.162045 | BY32: 4586.971195 | BZ32: 5389.985936 | CA32: 3819.09292 | CB32: 3208.935555 | CC32: 2723.826608 | CD32: 2143.818416 | CE32: 1826.149155 | CF32: 1866.732214 | CG32: 2804.9982 | CH32: 2449.315116 | CI32: 4261.392837 | CJ32: 5763.251172 | CK32: 5293.018013 | CL32: 4986.856876 | CM32: 2826.765219 | CN32: 2485.721717 | CO32: 2354.817061 | CP32: 2044.885494 | CQ32: 1797.144655 | CR32: 1632.018107 | CS32: 2452.065475 | CT32: 3284.04859 | CU32: 2554.830457 | CV32: 3559.006203 | CW32: 3845.58358 | CX32: 2662.811784 | CY32: 2967.173417 | CZ32: 2497.589003 | DA32: 2060.397925 | DB32: 1643.719684 | DC32: 1609.521302 | DD32: 1650.166818 | DE32: 1892.683156 | DF32: 1439.096635 | DG32: 3441.828129 | DH32: 4052.881706 | DI32: 4366.547423 | DJ32: 5244.882445 | DK32: 5101.205604 | DL32: 2956.172206 | DM32: 2273.20041 | DN32: 2047.078355 | DO32: 1653.646367 | DP32: 1631.830505 | DQ32: 1499.053276 | DR32: 1846.561902 | DS32: 2040.641197 | DT32: 1956.588329 | DU32: 2701.231051 | DV32: 1897.982028 | DW32: 1935.428378 | DX32: 1637.871487 | DY32: 1193.05925 | DZ32: 1082.726892 | EA32: 1147.848443 | EB32: 773.6499104 | EC32: 832.6964255 | ED32: 1250.89536 | EE32: 2194.881998 | EF32: 2388.895177 | EG32: 4401.624994 | EH32: 4717.297772 | EI32: 3521.637967 | EJ32: 3711.175769 | EK32: 3026.126881 | EL32: 2104.872309 | EM32: 1926.743601 | EN32: 1460.570581 | EO32: 2160.931294 | EP32: 2485.314353 | EQ32: 2126.073083 | ER32: - | ES32: - | ET32: - | EU32: - | EV32: - | EW32: - | EX32: - | EY32: - | EZ32: - | FA32: - | FB32: -
B33: Hidroeólica | C33: - | D33: - | E33: - | F33: - | G33: - | H33: - | I33: - | J33: - | K33: - | L33: - | M33: - | N33: - | O33: - | P33: - | Q33: - | R33: - | S33: - | T33: - | U33: - | V33: - | W33: - | X33: - | Y33: - | Z33: - | AA33: - | AB33: - | AC33: - | AD33: - | AE33: - | AF33: - | AG33: - | AH33: - | AI33: - | AJ33: - | AK33: - | AL33: - | AM33: - | AN33: - | AO33: - | AP33: - | AQ33: - | AR33: - | AS33: - | AT33: - | AU33: - | AV33: - | AW33: - | AX33: - | AY33: - | AZ33: - | BA33: - | BB33: - | BC33: - | BD33: - | BE33: - | BF33: - | BG33: - | BH33: - | BI33: - | BJ33: - | BK33: - | BL33: - | BM33: - | BN33: - | BO33: - | BP33: - | BQ33: - | BR33: - | BS33: - | BT33: - | BU33: - | BV33: - | BW33: - | BX33: - | BY33: - | BZ33: - | CA33: - | CB33: - | CC33: - | CD33: - | CE33: - | CF33: - | CG33: - | CH33: - | CI33: - | CJ33: - | CK33: - | CL33: - | CM33: - | CN33: 0.00202 | CO33: 0.008639 | CP33: 0.274245 | CQ33: 0.101643 | CR33: 0 | CS33: 0.154755 | CT33: 0.187535 | CU33: 0.384989 | CV33: 0.344341 | CW33: 0.204855 | CX33: 0.096545 | CY33: 0.179515 | CZ33: 0.326206 | DA33: 2.072161 | DB33: 1.917459 | DC33: 0.716122 | DD33: 0.453293 | DE33: 0.86856 | DF33: 0.643378 | DG33: 0.790736 | DH33: 1.770319 | DI33: 1.510166 | DJ33: 1.280933 | DK33: 0.896733 | DL33: 1.990341 | DM33: 2.569133 | DN33: 2.210786 | DO33: 2.161999 | DP33: 0.704287 | DQ33: 0.99384 | DR33: 1.012663 | DS33: 1.068971 | DT33: 1.43585 | DU33: 2.122233 | DV33: 0.968504 | DW33: 1.475118 | DX33: 2.217806 | DY33: 3.109007 | DZ33: 2.450308 | EA33: 2.337138 | EB33: 0.971276 | EC33: 0.790825 | ED33: 1.286021 | EE33: 2.257767 | EF33: 1.754305 | EG33: 1.599522 | EH33: 2.262646 | EI33: 2.034203 | EJ33: 2.321804 | EK33: 3.716283 | EL33: 2.859321 | EM33: 2.165861 | EN33: 0.873311 | EO33: 0.900788 | EP33: 0.909733 | EQ33: 1.109656 | ER33: - | ES33: - | ET33: - | EU33: - | EV33: - | EW33: - | EX33: - | EY33: - | EZ33: - | FA33: - | FB33: -
B34: Eólica | C34: 2167.745 | D34: 2895.318 | E34: 3123.877 | F34: 1382.619 | G34: 2641.214 | H34: 1818.328 | I34: 1946.918 | J34: 2468.82 | K34: 2055.448 | L34: 1927.347 | M34: 2769.181 | N34: 2414.836 | O34: 2664.58 | P34: 2035.72 | Q34: 4132.362 | R34: 3389.452 | S34: 1769.215 | T34: 2125.688 | U34: 2184.157 | V34: 2034.342 | W34: 2148.06 | X34: 2516.474 | Y34: 3485.324 | Z34: 3674.448 | AA34: 3527.977 | AB34: 3244.298 | AC34: 3125.394 | AD34: 3106.595 | AE34: 2730.597 | AF34: 2353.512 | AG34: 2482.25 | AH34: 2293.089 | AI34: 2489.991 | AJ34: 3138.623 | AK34: 4817.9 | AL34: 4942.601 | AM34: 4304.431 | AN34: 4637.902 | AO34: 4570.152 | AP34: 2667.343 | AQ34: 3655.897 | AR34: 2615.31 | AS34: 2845.759 | AT34: 2937.761 | AU34: 2337.395 | AV34: 3967.323 | AW34: 4366.544 | AX34: 4639.513 | AY34: 4033.540034 | AZ34: 4053.566686 | BA34: 4716.542833 | BB34: 3424.458831 | BC34: 3186.035195 | BD34: 2975.674177 | BE34: 3310.882287 | BF34: 2783.41399 | BG34: 2354.842219 | BH34: 3178.557054 | BI34: 3836.274915 | BJ34: 4623.462548 | BK34: 3668.233973 | BL34: 5053.680924 | BM34: 3845.591591 | BN34: 5336.981265 | BO34: 3735.031137 | BP34: 3473.616188 | BQ34: 3039.877732 | BR34: 3181.746036 | BS34: 3953.820711 | BT34: 3147.332893 | BU34: 4622.287113 | BV34: 5466.330408 | BW34: 6316.802814 | BX34: 5370.057428 | BY34: 5763.164173 | BZ34: 4424.982458 | CA34: 3970.877484 | CB34: 3875.785147 | CC34: 2885.903301 | CD34: 3453.692574 | CE34: 3239.161689 | CF34: 3988.546165 | CG34: 6458.34844 | CH34: 4966.072062 | CI34: 6570.961682 | CJ34: 5917.525957 | CK34: 5096.4476 | CL34: 3978.164753 | CM34: 4177.875518 | CN34: 3310.964305 | CO34: 3637.13264 | CP34: 2916.901009 | CQ34: 2145.217468 | CR34: 3398.887781 | CS34: 5093.13152 | CT34: 4788.820615 | CU34: 4954.530712 | CV34: 5992.546665 | CW34: 4907.496058 | CX34: 3933.919984 | CY34: 4841.183286 | CZ34: 2903.929343 | DA34: 3113.294279 | DB34: 3287.343707 | DC34: 3020.624862 | DD34: 3901.151161 | DE34: 3724.598165 | DF34: 3537.269294 | DG34: 5624.577741 | DH34: 6109.530739 | DI34: 5443.970297 | DJ34: 4441.296233 | DK34: 3933.102753 | DL34: 3271.334973 | DM34: 3521.941598 | DN34: 3652.945479 | DO34: 2713.826676 | DP34: 2389.618089 | DQ34: 3906.853138 | DR34: 2687.662593 | DS34: 4812.548538 | DT34: 4928.506467 | DU34: 4724.369211 | DV34: 4196.146968 | DW34: 3465.99628 | DX34: 3192.372041 | DY34: 3387.354827 | DZ34: 3343.930451 | EA34: 2872.13241 | EB34: 3208.246349 | EC34: 3981.906256 | ED34: 5793.445763 | EE34: 5348.580395 | EF34: 4680.465501 | EG34: 7702.147135 | EH34: 4456.964089 | EI34: 3313.677702 | EJ34: 2628.247728 | EK34: 2573.886542 | EL34: 3130.12096 | EM34: 2455.925718 | EN34: 4318.731904 | EO34: 4558.932195 | EP34: 4358.376064 | EQ34: 6027.128519 | ER34: - | ES34: - | ET34: - | EU34: - | EV34: - | EW34: - | EX34: - | EY34: - | EZ34: - | FA34: - | FB34: -
B35: Solar fotovoltaica | C35: 10.391 | D35: 12.96 | E35: 21.984 | F35: 26.106 | G35: 36.128 | H35: 40.742 | I35: 51.927 | J35: 56.504 | K35: 60.428 | L35: 57.696 | M35: 54.376 | N35: 54.66 | O35: 59.578 | P35: 73.401 | Q35: 108.562 | R35: 131.044 | S35: 137.021 | T35: 196.409 | U35: 240.442 | V35: 298.525 | W35: 328.085 | X35: 334.328 | Y35: 335.402 | Z35: 255.159 | AA35: 261.258 | AB35: 396.228 | AC35: 528.732 | AD35: 569.738 | AE35: 672.347 | AF35: 643.832 | AG35: 717.298 | AH35: 663.41 | AI35: 511.531 | AJ35: 502.206 | AK35: 361.993 | AL35: 243.817 | AM35: 263.119 | AN35: 305.071 | AO35: 481.509 | AP35: 590.407 | AQ35: 711.442 | AR35: 685.331 | AS35: 785.815 | AT35: 723.07 | AU35: 631.376 | AV35: 548.484 | AW35: 382.176 | AX35: 314.972 | AY35: 351.257042 | AZ35: 505.138974 | BA35: 536.660869 | BB35: 661.693632 | BC35: 748.625467 | BD35: 812.11595 | BE35: 859.519525 | BF35: 808.576015 | BG35: 735.895106 | BH35: 629.611458 | BI35: 365.450119 | BJ35: 426.208223 | BK35: 504.686622 | BL35: 660.329549 | BM35: 770.142515 | BN35: 658.518446 | BO35: 863.505965 | BP35: 875.875025 | BQ35: 941.618673 | BR35: 865.184065 | BS35: 692.372564 | BT35: 595.430976 | BU35: 372.486462 | BV35: 402.108283 | BW35: 446.283644 | BX35: 527.718399 | BY35: 566.719793 | BZ35: 763.804272 | CA35: 872.918678 | CB35: 930.952541 | CC35: 974.759454 | CD35: 896.90155 | CE35: 759.634975 | CF35: 634.766953 | CG35: 513.575059 | CH35: 439.239278 | CI35: 377.518728 | CJ35: 434.3834 | CK35: 735.970624 | CL35: 791.985906 | CM35: 924.515196 | CN35: 903.765521 | CO35: 951.577792 | CP35: 914.035232 | CQ35: 686.972707 | CR35: 647.940198 | CS35: 385.421021 | CT35: 453.839806 | CU35: 518.440257 | CV35: 494.227516 | CW35: 713.261827 | CX35: 755.910116 | CY35: 924.092431 | CZ35: 889.206222 | DA35: 933.157704 | DB35: 831.901007 | DC35: 722.203932 | DD35: 537.711617 | DE35: 529.698664 | DF35: 393.749612 | DG35: 364.458262 | DH35: 480.081441 | DI35: 709.2895 | DJ35: 721.480234 | DK35: 807.003421 | DL35: 924.05232 | DM35: 918.530369 | DN35: 895.838735 | DO35: 766.070232 | DP35: 584.444819 | DQ35: 426.513254 | DR35: 379.704598 | DS35: 476.155057 | DT35: 445.436885 | DU35: 717.348576 | DV35: 836.604703 | DW35: 872.979634 | DX35: 881.515888 | DY35: 917.559596 | DZ35: 819.231922 | EA35: 775.733923 | EB35: 682.149995 | EC35: 540.731552 | ED35: 432.304962 | EE35: 444.542511 | EF35: 511.075981 | EG35: 591.223404 | EH35: 701.465829 | EI35: 813.013867 | EJ35: 818.325913 | EK35: 933.765671 | EL35: 845.309095 | EM35: 719.687147 | EN35: 567.11687 | EO35: 374.692935 | EP35: 426.464694 | EQ35: 501.505987 | ER35: - | ES35: - | ET35: - | EU35: - | EV35: - | EW35: - | EX35: - | EY35: - | EZ35: - | FA35: - | FB35: -
B36: Solar térmica | C36: 0 | D36: 0 | E36: 0.431 | F36: 0.342 | G36: 0.558 | H36: 0.883 | I36: 1.256 | J36: 1.116 | K36: 0.639 | L36: 1.214 | M36: 0.997 | N36: 0.191 | O36: 1.084 | P36: 0.797 | Q36: 1.461 | R36: 0.958 | S36: 0.942 | T36: 1.963 | U36: 2.038 | V36: 1.98 | W36: 0.859 | X36: 0.866 | Y36: 1.27 | Z36: 1.16 | AA36: 0.69 | AB36: 1.236 | AC36: 2.323 | AD36: 7.204 | AE36: 7.658 | AF36: 6.752 | AG36: 12.414 | AH36: 23.868 | AI36: 17.539 | AJ36: 23.446 | AK36: 16.183 | AL36: 10.51 | AM36: 13.152 | AN36: 11.682 | AO36: 23.732 | AP36: 36.92 | AQ36: 69.084 | AR36: 72.532 | AS36: 104.59 | AT36: 121.9 | AU36: 100.917 | AV36: 71.745 | AW36: 31.619 | AX36: 33.747 | AY36: 39.74313 | AZ36: 88.657368 | BA36: 98.457167 | BB36: 137.835121 | BC36: 160.440925 | BD36: 247.970979 | BE36: 284.059974 | BF36: 235.329098 | BG36: 228.558024 | BH36: 172.949739 | BI36: 81.173647 | BJ36: 86.466377 | BK36: 117.342049 | BL36: 200.341854 | BM36: 235.113481 | BN36: 177.777045 | BO36: 348.382183 | BP36: 414.749072 | BQ36: 541.316741 | BR36: 485.126527 | BS36: 368.642901 | BT36: 289.154577 | BU36: 133.961873 | BV36: 135.585309 | BW36: 113.494435 | BX36: 204.009049 | BY36: 125.370378 | BZ36: 300.893605 | CA36: 499.267989 | CB36: 647.330053 | CC36: 758.522911 | CD36: 661.855805 | CE36: 478.955228 | CF36: 294.241952 | CG36: 199.223861 | CH36: 158.362269 | CI36: 79.800655 | CJ36: 103.264502 | CK36: 385.175316 | CL36: 435.527059 | CM36: 729.935555 | CN36: 687.288082 | CO36: 811.153184 | CP36: 833.17848 | CQ36: 389.595903 | CR36: 289.33703 | CS36: 90.187434 | CT36: 124.471726 | CU36: 176.951396 | CV36: 190.92526 | CW36: 415.828662 | CX36: 393.160486 | CY36: 694.83874 | CZ36: 734.053937 | DA36: 888.91771 | DB36: 607.623488 | DC36: 483.250153 | DD36: 188.168866 | DE36: 226.817751 | DF36: 84.699065 | DG36: 59.913641 | DH36: 133.00979 | DI36: 387.860762 | DJ36: 408.323232 | DK36: 498.795382 | DL36: 813.990671 | DM36: 825.32458 | DN36: 805.818797 | DO36: 595.626693 | DP36: 284.702891 | DQ36: 139.699618 | DR36: 118.135645 | DS36: 149.212081 | DT36: 88.740902 | DU36: 340.844685 | DV36: 535.255478 | DW36: 607.898177 | DX36: 761.902153 | DY36: 812.880286 | DZ36: 692.435175 | EA36: 608.142655 | EB36: 398.793222 | EC36: 220.652322 | ED36: 131.195329 | EE36: 112.387517 | EF36: 229.808151 | EG36: 233.955943 | EH36: 325.935092 | EI36: 477.209634 | EJ36: 551.292603 | EK36: 858.89833 | EL36: 688.557997 | EM36: 465.636985 | EN36: 292.493431 | EO36: 78.576117 | EP36: 109.576809 | EQ36: 166.150133 | ER36: - | ES36: - | ET36: - | EU36: - | EV36: - | EW36: - | EX36: - | EY36: - | EZ36: - | FA36: - | FB36: -
B37: Térmica renovable/Otras renovables | C37: 216.579 | D37: 190.444 | E37: 202.655 | F37: 201.314 | G37: 212.921 | H37: 208.535 | I37: 222.325 | J37: 223.344 | K37: 210.393 | L37: 242.724 | M37: 222.188 | N37: 235.546 | O37: 240.543 | P37: 235.363 | Q37: 243.9 | R37: 241.168 | S37: 240.349 | T37: 235.231 | U37: 223.648 | V37: 239.895 | W37: 225.512 | X37: 247.172 | Y37: 248.545 | Z37: 247.382 | AA37: 267.158 | AB37: 253.473 | AC37: 264.576 | AD37: 300.052 | AE37: 272.998 | AF37: 253.046 | AG37: 260.849 | AH37: 260.463 | AI37: 287.976 | AJ37: 347.836 | AK37: 272.588 | AL37: 276.327 | AM37: 274.842 | AN37: 245.359 | AO37: 262.311 | AP37: 277.043 | AQ37: 300.037 | AR37: 288.511 | AS37: 278.102 | AT37: 284.791 | AU37: 267.962 | AV37: 284.303 | AW37: 273.1 | AX37: 295.999 | AY37: 309.539414 | AZ37: 288.164135 | BA37: 304.183635 | BB37: 301.262449 | BC37: 311.497087 | BD37: 277.166309 | BE37: 311.494708 | BF37: 315.060451 | BG37: 330.499636 | BH37: 324.597578 | BI37: 315.314927 | BJ37: 325.253939 | BK37: 323.446964 | BL37: 310.309869 | BM37: 320.467495 | BN37: 298.754633 | BO37: 314.139144 | BP37: 326.0411 | BQ37: 327.981261 | BR37: 295.044803 | BS37: 282.008252 | BT37: 314.366526 | BU37: 327.117999 | BV37: 351.405373 | BW37: 358.309795 | BX37: 330.340168 | BY37: 355.451519 | BZ37: 364.848568 | CA37: 371.370676 | CB37: 347.356349 | CC37: 386.75048 | CD37: 370.018971 | CE37: 349.040144 | CF37: 356.57302 | CG37: 358.831865 | CH37: 385.393884 | CI37: 380.895587 | CJ37: 293.997433 | CK37: 305.878249 | CL37: 266.467509 | CM37: 330.192006 | CN37: 330.073196 | CO37: 338.214082 | CP37: 349.912526 | CQ37: 333.100127 | CR37: 300.498959 | CS37: 288.090285 | CT37: 298.995758 | CU37: 301.803836 | CV37: 245.329709 | CW37: 274.297685 | CX37: 201.677789 | CY37: 274.889199 | CZ37: 288.140649 | DA37: 309.891892 | DB37: 317.503082 | DC37: 307.429318 | DD37: 314.764745 | DE37: 307.126189 | DF37: 289.737828 | DG37: 270.624559 | DH37: 261.567109 | DI37: 255.63042 | DJ37: 209.994033 | DK37: 277.221207 | DL37: 287.560657 | DM37: 311.079627 | DN37: 326.727045 | DO37: 307.662661 | DP37: 306.358097 | DQ37: 304.816595 | DR37: 306.422818 | DS37: 327.460529 | DT37: 289.719825 | DU37: 269.56085 | DV37: 232.816752 | DW37: 298.767361 | DX37: 302.616869 | DY37: 333.388938 | DZ37: 316.027454 | EA37: 309.496322 | EB37: 309.764021 | EC37: 307.753297 | ED37: 312.975664 | EE37: 296.331783 | EF37: 301.601468 | EG37: 271.614821 | EH37: 237.806487 | EI37: 291.745413 | EJ37: 304.388836 | EK37: 324.145979 | EL37: 317.308683 | EM37: 320.211508 | EN37: 297.635248 | EO37: 293.48707 | EP37: 300.104917 | EQ37: 304.464799 | ER37: - | ES37: - | ET37: - | EU37: - | EV37: - | EW37: - | EX37: - | EY37: - | EZ37: - | FA37: - | FB37: -
B38: Residuos renovables | C38: - | D38: - | E38: - | F38: - | G38: - | H38: - | I38: - | J38: - | K38: - | L38: - | M38: - | N38: - | O38: - | P38: - | Q38: - | R38: - | S38: - | T38: - | U38: - | V38: - | W38: - | X38: - | Y38: - | Z38: - | AA38: - | AB38: - | AC38: - | AD38: - | AE38: - | AF38: - | AG38: - | AH38: - | AI38: - | AJ38: - | AK38: - | AL38: - | AM38: - | AN38: - | AO38: - | AP38: - | AQ38: - | AR38: - | AS38: - | AT38: - | AU38: - | AV38: - | AW38: - | AX38: - | AY38: 64.676536 | AZ38: 57.9214105 | BA38: 39.859917 | BB38: 60.267739 | BC38: 47.0651605 | BD38: 69.572035 | BE38: 70.694943 | BF38: 64.463545 | BG38: 61.982926 | BH38: 66.6429195 | BI38: 63.6326515 | BJ38: 69.275961 | BK38: 67.258019 | BL38: 53.3322645 | BM38: 40.775378 | BN38: 62.1799 | BO38: 50.964812 | BP38: 64.279337 | BQ38: 70.5880135 | BR38: 67.696396 | BS38: 63.8098755 | BT38: 61.9604375 | BU38: 58.540097 | BV38: 58.405467 | BW38: 59.5268765 | BX38: 53.118248 | BY38: 46.52909 | BZ38: 25.2305275 | CA38: 29.5022805 | CB38: 27.6082965 | CC38: 31.754574 | CD38: 47.0272615 | CE38: 62.914835 | CF38: 55.457451 | CG38: 56.3724615 | CH38: 60.6976005 | CI38: 49.339648 | CJ38: 35.8680395 | CK38: 32.435466 | CL38: 51.17032 | CM38: 60.551004 | CN38: 58.360807 | CO38: 67.0052325 | CP38: 55.6818315 | CQ38: 68.960822 | CR38: 64.8052835 | CS38: 60.3019465 | CT38: 73.591172 | CU38: 64.1527615 | CV38: 59.516463 | CW38: 72.0075135 | CX38: 47.4993585 | CY38: 64.8931535 | CZ38: 73.0374605 | DA38: 73.160616 | DB38: 70.309056 | DC38: 70.194001 | DD38: 75.9515625 | DE38: 74.485475 | DF38: 72.8422815 | DG38: 66.3514355 | DH38: 53.4849145 | DI38: 66.52924 | DJ38: 39.2622025 | DK38: 39.159787 | DL38: 69.139428 | DM38: 75.307697 | DN38: 73.403189 | DO38: 75.079728 | DP38: 74.2170345 | DQ38: 74.1211855 | DR38: 79.339188 | DS38: 72.7337595 | DT38: 63.647489 | DU38: 70.8668125 | DV38: 61.681896 | DW38: 45.922101 | DX38: 81.467664 | DY38: 83.3707905 | DZ38: 80.367904 | EA38: 77.9049315 | EB38: 80.609652 | EC38: 77.924108 | ED38: 80.508979 | EE38: 77.2660705 | EF38: 67.136117 | EG38: 77.6332725 | EH38: 77.872185 | EI38: 35.345674 | EJ38: 65.936057 | EK38: 79.704863 | EL38: 81.1874285 | EM38: 78.6239085 | EN38: 81.018129 | EO38: 68.737116 | EP38: 83.614424 | EQ38: 73.6136095 | ER38: - | ES38: - | ET38: - | EU38: - | EV38: - | EW38: - | EX38: - | EY38: - | EZ38: - | FA38: - | FB38: -
B39: Generación renovable | C39: 4660.2518 | D39: 6117.2527 | E39: 7277.3354 | F39: 4477.8421 | G39: 5728.2956 | H39: 4377.8992 | I39: 4677.1723 | J39: 4520.7556 | K39: 3703.2105 | L39: 3941.5103 | M39: 4388.9855 | N39: 3927.1161 | O39: 4359.2498 | P39: 3303.1765 | Q39: 5562.3202 | R39: 6502.6314 | S39: 5517.8719 | T39: 5735.0975 | U39: 4832.4566 | V39: 4114.4406 | W39: 4015.9398 | X39: 4194.0025 | Y39: 5663.3368 | Z39: 6676.795 | AA39: 6331.5761 | AB39: 7377.4325 | AC39: 6715.4226 | AD39: 6189.2397 | AE39: 6269.4144 | AF39: 5385.1832 | AG39: 5231.2234 | AH39: 4690.6548 | AI39: 4300.2469 | AJ39: 5271.0509 | AK39: 7495.6753 | AL39: 8701.6359 | AM39: 10034.19011 | AN39: 9267.317562 | AO39: 11154.24204 | AP39: 8291.765131 | AQ39: 8599.342048 | AR39: 7216.720153 | AS39: 6911.038407 | AT39: 6104.351813 | AU39: 4868.107344 | AV39: 6473.357029 | AW39: 7664.957068 | AX39: 9240.467477 | AY39: 9918.26854 | AZ39: 7991.499869 | BA39: 9606.067704 | BB39: 8123.455753 | BC39: 7251.163881 | BD39: 6452.804799 | BE39: 6498.576444 | BF39: 5727.787995 | BG39: 4933.369653 | BH39: 5622.637378 | BI39: 6825.133574 | BJ39: 7716.28729 | BK39: 6312.120737 | BL39: 7502.629561 | BM39: 6553.101217 | BN39: 8278.353933 | BO39: 7847.048207 | BP39: 7260.675178 | BQ39: 6585.571553 | BR39: 6229.610227 | BS39: 6396.153605 | BT39: 5797.139607 | BU39: 7500.864433 | BV39: 9075.454521 | BW39: 10308.86702 | BX39: 10036.40534 | BY39: 11444.20615 | BZ39: 11269.74537 | CA39: 9563.030027 | CB39: 9037.967941 | CC39: 7761.517328 | CD39: 7573.314578 | CE39: 6715.856026 | CF39: 7196.317755 | CG39: 10391.34989 | CH39: 8459.08021 | CI39: 11719.90914 | CJ39: 12548.2905 | CK39: 11848.92527 | CL39: 10510.17242 | CM39: 9049.834498 | CN39: 7776.175648 | CO39: 8159.90863 | CP39: 7114.868818 | CQ39: 5421.093325 | CR39: 6333.487359 | CS39: 8369.352437 | CT39: 9023.955202 | CU39: 8571.094409 | CV39: 10541.89616 | CW39: 10228.68018 | CX39: 7995.076063 | CY39: 9767.249742 | CZ39: 7386.282821 | DA39: 7380.892287 | DB39: 6760.317483 | DC39: 6213.93969 | DD39: 6668.368062 | DE39: 6756.27796 | DF39: 5818.038094 | DG39: 9828.544503 | DH39: 11092.32602 | DI39: 11231.33781 | DJ39: 11066.51931 | DK39: 10657.38489 | DL39: 8324.240596 | DM39: 7927.953414 | DN39: 7804.022386 | DO39: 6114.074356 | DP39: 5271.875722 | DQ39: 6352.050907 | DR39: 5418.839407 | DS39: 7879.820133 | DT39: 7774.075747 | DU39: 8826.343418 | DV39: 7761.456329 | DW39: 7228.467049 | DX39: 6859.963908 | DY39: 6730.722694 | DZ39: 6337.170106 | EA39: 5793.595823 | EB39: 5454.184425 | EC39: 5962.454786 | ED39: 8002.612078 | EE39: 8476.248041 | EF39: 8180.7367 | EG39: 13279.79909 | EH39: 10519.6041 | EI39: 8454.66446 | EJ39: 8081.68871 | EK39: 7800.244549 | EL39: 7170.215793 | EM39: 5968.994728 | EN39: 7018.439474 | EO39: 7536.257515 | EP39: 7764.360994 | EQ39: 9200.045787 | ER39: - | ES39: - | ET39: - | EU39: - | EV39: - | EW39: - | EX39: - | EY39: - | EZ39: - | FA39: - | FB39: -
B41: Generación renovable anual peninsular (GWh) | C41: 1990 | D41: 1991 | E41: 1992 | F41: 1993 | G41: 1994 | H41: 1995 | I41: 1996 | J41: 1997 | K41: 1998 | L41: 1999 | M41: 2000 | N41: 2001 | O41: 2002 | P41: 2003 | Q41: 2004 | R41: 2005 | S41: 2006 | T41: 2007 | U41: 2008 | V41: 2009 | W41: 2010 | X41: 2011 | Y41: 2012 | Z41: 2013 | AA41: 2014 | AB41: 2015 | AC41: 2016 | AD41: 2017 | AE41: 2018 | AF41: 2019 | AG41: 2020 | AH41: 2021
B42: Hidráulica | C42: 24523.3926 | D42: 26432.7149 | E42: 18638.6405 | F42: 23748.7177 | G42: 27483.9337 | H42: 22461.9618 | I42: 39868.6044 | J42: 35110.2577 | K42: 35434.00912 | L42: 25037.70461 | M42: 27893.93473 | N42: 40392.09983 | O42: 21225.32494 | P42: 40097.00725 | Q42: 30870.03749 | R42: 18248.19704 | S42: 25374.94878 | T42: 27104.3031 | U42: 22933.7816 | V42: 26185.9757 | W42: 41833.77419 | X42: 30435.6634 | Y42: 20651.79754 | Z42: 37382.40553 | AA42: 39178.52416 | AB42: 28379.01157 | AC42: 36111.43437 | AD42: 18447.34677 | AE42: 34096.79679 | AF42: 2125.780167 | AG42: - | AH42: -
B43: Eólica | C43: 2.18699998 | D43: 2.865 | E43: 17.361 | F43: 84.768 | G43: 72.86 | H43: 159.857 | I43: 304.129 | J43: 619.885 | K43: 1236.656706 | L43: 2474.033298 | M43: 4462.49605 | N43: 6594.148113 | O43: 9259.296687 | P43: 11720.24613 | Q43: 15754.11777 | R43: 20857.66596 | S43: 22880.85608 | T43: 27249.155 | U43: 31757.85 | V43: 37888.577 | W43: 43208.396 | X43: 42115.78709 | Y43: 48156.25795 | Z43: 54344.50078 | AA43: 50636.66246 | AB43: 47715.88214 | AC43: 47298.16367 | AD43: 47508.10595 | AE43: 48901.72806 | AF43: 5970.541017 | AG43: - | AH43: -
B44: Solar fotovoltaica | C44: - | D44: - | E44: 12.056 | F44: 12 | G44: 15.2959 | H44: 1.062 | I44: 0.891 | J44: 1.127 | K44: 1.170297 | L44: 1.341181 | M44: 1.269817 | N44: 1.639643 | O44: 4.561452 | P44: 8.930105 | Q44: 17.794011 | R44: 40.088349 | S44: 102.374999 | T44: 462.577 | U44: 2406.07 | V44: 5829.005 | W44: 6139.782 | X44: 7105.870802 | Y44: 7830.069376 | Z44: 7918.376104 | AA44: 7802.79092 | AB44: 7845.314537 | AC44: 7579.218212 | AD44: 8000.712164 | AE44: 7362.744452 | AF44: 476.807724 | AG44: - | AH44: -
B45: Solar térmica | C45: - | D45: - | E45: - | F45: - | G45: - | H45: - | I45: - | J45: - | K45: - | L45: - | M45: - | N45: - | O45: - | P45: - | Q45: - | R45: - | S45: - | T45: 7.627 | U45: 15.378 | V45: 129.823 | W45: 691.62 | X45: 1861.641549 | Y45: 3447.493612 | Z45: 4441.527535 | AA45: 4958.914926 | AB45: 5085.235514 | AC45: 5071.201702 | AD45: 5347.952465 | AE45: 4424.328609 | AF45: 166.150133 | AG45: - | AH45: -
B46: Térmica renovable/Otras renovables | C46: - | D46: 0.854 | E46: 16.549 | F46: 58.822 | G46: 322.45 | H46: 671.269 | I46: 815.08 | J46: 648.375 | K46: 748.746327 | L46: 908.253676 | M46: 961.110386 | N46: 1738.458428 | O46: 1453.015286 | P46: 1737.041738 | Q46: 1818.093632 | R46: 1987.85807 | S46: 2182.606682 | T46: 2375.685 | U46: 2651.489 | V46: 3044.287 | W46: 3171.799 | X46: 3705.130529 | Y46: 3782.463142 | Z46: 4325.277158 | AA46: 3805.563474 | AB46: 3422.566747 | AC46: 3415.019338 | AD46: 3599.155882 | AE46: 3546.118021 | AF46: 303.393827 | AG46: - | AH46: -
B47: Residuos renovables | C47: - | D47: - | E47: - | F47: - | G47: - | H47: - | I47: - | J47: - | K47: - | L47: - | M47: - | N47: - | O47: - | P47: - | Q47: - | R47: - | S47: - | T47: - | U47: - | V47: - | W47: - | X47: 608.8261 | Y47: 595.845982 | Z47: 438.654009 | AA47: 545.538086 | AB47: 662.655475 | AC47: 649.7399105 | AD47: 728.150433 | AE47: 732.9706615 | AF47: 63.503646 | AG47: - | AH47: -
B48: Generación renovable | C48: 24525.5796 | D48: 26436.4339 | E48: 18684.6065 | F48: 23904.3077 | G48: 27894.5396 | H48: 23294.1498 | I48: 40988.7044 | J48: 36379.6447 | K48: 37420.58245 | L48: 28421.33277 | M48: 33318.81099 | N48: 48726.34602 | O48: 31942.19836 | P48: 53563.22522 | Q48: 48460.0429 | R48: 41133.80942 | S48: 50540.78653 | T48: 57199.3471 | U48: 59764.5686 | V48: 73077.6677 | W48: 95045.37119 | X48: 85832.91947 | Y48: 84463.92759 | Z48: 108850.7411 | AA48: 106927.994 | AB48: 93110.66599 | AC48: 100124.7772 | AD48: 83631.42367 | AE48: 99064.68659 | AF48: 9106.176514 | AG48: - | AH48: -
B50: Generación renovable anual Islas Baleares (MWh) | C50: 2006 | D50: 2007 | E50: 2008 | F50: 2009 | G50: 2010 | H50: 2011 | I50: 2012 | J50: 2013 | K50: 2014 | L50: 2015 | M50: 2016 | N50: 2017 | O50: 2018 | P50: 2019 | Q50: 2020 | R50: 2021
B51: Eólica | C51: 4877.356 | D51: 5656 | E51: 5497 | F51: 5543 | G51: 5571 | H51: 5785.915 | I51: 6504.699 | J51: 6159.468 | K51: 5839.578 | L51: 5318.228 | M51: 5416.058 | N51: 2924.276 | O51: 3757.171 | P51: 805.427 | Q51: - | R51: -
B52: Solar fotovoltaica | C52: 1100.795 | D52: 1952 | E52: 28380 | F52: 80933 | G52: 87757 | H52: 101810.916 | I52: 115593.269 | J52: 122112.852 | K52: 122765.689 | L52: 122619.803 | M52: 120507.53 | N52: 123336.995 | O52: 112251.642 | P52: 7209.645 | Q52: - | R52: -
B53: Térmica renovable/Otras renovables | C53: 0 | D53: 0 | E53: 0 | F53: 0 | G53: 0 | H53: 87.793 | I53: 569.83 | J53: 505.693 | K53: 1945.659 | L53: 1971.549 | M53: 1309.715 | N53: 1626.741 | O53: 1332.595 | P53: 107.643 | Q53: - | R53: -
B54: Residuos renovables | C54: - | D54: - | E54: - | F54: - | G54: - | H54: 123712.0335 | I54: 122789.536 | J54: 113066.595 | K54: 128084.3295 | L54: 151097.7295 | M54: 130805.0665 | N54: 143878.668 | O54: 135757.7445 | P54: 9560.5395 | Q54: - | R54: -
B55: Generación renovable | C55: 5978.151 | D55: 7608 | E55: 33877 | F55: 86476 | G55: 93328 | H55: 231396.6575 | I55: 245457.334 | J55: 241844.608 | K55: 258635.2555 | L55: 281007.3095 | M55: 258038.3695 | N55: 271766.68 | O55: 253099.1525 | P55: 17683.2545 | Q55: - | R55: -
B57: Generación renovable anual Islas Canarias (MWh) | C57: 2006 | D57: 2007 | E57: 2008 | F57: 2009 | G57: 2010 | H57: 2011 | I57: 2012 | J57: 2013 | K57: 2014 | L57: 2015 | M57: 2016 | N57: 2017 | O57: 2018 | P57: 2019 | Q57: 2020 | R57: 2021
B58: Hidráulica | C58: 0 | D58: 1176 | E58: 1673 | F58: 398 | G58: 0 | H58: 1654.771 | I58: 1769.099 | J58: 3031.283 | K58: 3461.056 | L58: 3568.393 | M58: 3453.961 | N58: 3271.979 | O58: 3275.909 | P58: 292.916 | Q58: - | R58: -
B59: Hidroeólica | C59: - | D59: - | E59: - | F59: - | G59: - | H59: - | I59: - | J59: - | K59: 728.837 | L59: 8207.424 | M59: 17891.936 | N59: 20233.057 | O59: 23655.544 | P59: 1109.656 | Q59: - | R59: -
B60: Eólica | C60: 326063.579 | D60: 356840 | E60: 396475 | F60: 358707 | G60: 331363 | H60: 355677.761 | I60: 361767.325 | J60: 362733.485 | K60: 389528.806 | L60: 396687.143 | M60: 393080.583 | N60: 395925.333 | O60: 620570.704 | P60: 55782.075 | Q60: - | R60: -
B61: Solar fotovoltaica | C61: 2915.55 | D61: 19373 | E61: 63500 | F61: 162330 | G61: 195166 | H61: 232999.19 | I61: 256513.386 | J61: 286703.317 | K61: 282285.689 | L61: 275546.605 | M61: 277661.343 | N61: 273626.665 | O61: 271613.212 | P61: 17483.565 | Q61: - | R61: -
B62: Térmica renovable/Otras renovables | C62: 218199.684 | D62: 213283 | E62: 217219 | F62: 273055 | G62: 160561 | H62: 8815.946 | I62: 8050.447 | J62: 8502.588 | K62: 8806.584 | L62: 8053.625 | M62: 9335.775 | N62: 9565.259 | O62: 8931.597 | P62: 963.329 | Q62: - | R62: -
B63: Generación renovable | C63: 547178.813 | D63: 590672 | E63: 678867 | F63: 794490 | G63: 687090 | H63: 599147.668 | I63: 628100.257 | J63: 660970.673 | K63: 684810.972 | L63: 692063.19 | M63: 701423.598 | N63: 702622.293 | O63: 928046.966 | P63: 75631.541 | Q63: - | R63: -
B65: Generación renovable anual Melilla (MWh) | C65: 2007 | D65: 2008 | E65: 2009 | F65: 2010 | G65: 2011 | H65: 2012 | I65: 2013 | J65: 2014 | K65: 2015 | L65: 2016 | M65: 2017 | N65: 2018 | O65: 2019 | P65: 2020 | Q65: 2021 | R65: 2022
B66: Solar fotovoltaica | C66: 0 | D66: 6 | E66: 122 | F66: 67 | G66: 71.472 | H66: 83.114 | I66: 82.323 | J66: 83.833 | K66: 79.96 | L66: 80.1 | M66: 76.869 | N66: 74.611 | O66: 5.053 | P66: - | Q66: - | R66: -
B67: Residuos renovables | C67: - | D67: - | E67: - | F67: - | G67: 3517.6105 | H67: 1154.479 | I67: 4018.8985 | J67: 4449.157 | K67: 4296.498 | L67: 4850.0525 | M67: 4976.986 | N67: 5346.839 | O67: 549.424 | P67: - | Q67: - | R67: -
B68: Generación renovable | C68: 0 | D68: 6 | E68: 122 | F68: 67 | G68: 3589.0825 | H68: 1237.593 | I68: 4101.2215 | J68: 4532.99 | K68: 4376.458 | L68: 4930.1525 | M68: 5053.855 | N68: 5421.45 | O68: 554.477 | P68: - | Q68: - | R68: -
B70: Generación renovable anual nacional (GWh) | C70: 2007 | D70: 2008 | E70: 2009 | F70: 2010 | G70: 2011 | H70: 2012 | I70: 2013 | J70: 2014 | K70: 2015 | L70: 2016 | M70: 2017 | N70: 2018 | O70: 2019 | P70: 2020 | Q70: 2021 | R70: 2022
B71: Hidráulica | C71: 27105.4791 | D71: 22935.4546 | E71: 26186.3737 | F71: 41833.77419 | G71: 30437.31817 | H71: 20653.56663 | I71: 37385.43681 | J71: 39181.98522 | K71: 28382.57996 | L71: 36114.88833 | M71: 18450.61875 | N71: 34100.07269 | O71: 2126.073083 | P71: - | Q71: - | R71: -
B72: Hidroeólica | C72: - | D72: - | E72: - | F72: - | G72: - | H72: - | I72: - | J72: 0.728837 | K72: 8.207424 | L72: 17.891936 | M72: 20.233057 | N72: 23.655544 | O72: 1.109656 | P72: - | Q72: - | R72: -
B73: Eólica | C73: 27611.651 | D73: 32159.822 | E73: 38252.827 | F73: 43545.33 | G73: 42477.25077 | H73: 48524.52997 | I73: 54713.39374 | J73: 51032.03085 | K73: 48117.88752 | L73: 47696.66031 | M73: 47906.95556 | N73: 49526.05593 | O73: 6027.128519 | P73: - | Q73: - | R73: -
B74: Solar fotovoltaica | C74: 483.902 | D74: 2497.956 | E74: 6072.39 | F74: 6422.772 | G74: 7440.75238 | H74: 8202.259145 | I74: 8327.274596 | J74: 8207.926131 | K74: 8243.560905 | L74: 7977.467185 | M74: 8397.752693 | N74: 7746.683917 | O74: 501.505987 | P74: - | Q74: - | R74: -
B75: Solar térmica | C75: 7.627 | D75: 15.378 | E75: 129.823 | F75: 691.62 | G75: 1861.641549 | H75: 3447.493612 | I75: 4441.527535 | J75: 4958.914926 | K75: 5085.235514 | L75: 5071.201702 | M75: 5347.952465 | N75: 4424.328609 | O75: 166.150133 | P75: - | Q75: - | R75: -
B76: Térmica renovable/Otras renovables | C76: 2588.968 | D76: 2868.708 | E76: 3317.342 | F76: 3332.36 | G76: 3714.034268 | H76: 3791.083419 | I76: 4334.285439 | J76: 3816.315717 | K76: 3432.591921 | L76: 3425.664828 | M76: 3610.347882 | N76: 3556.382213 | O76: 304.464799 | P76: - | Q76: - | R76: -
B77: Residuos renovables | C77: - | D77: - | E77: - | F77: - | G77: 736.055744 | H77: 719.789997 | I77: 555.7395025 | J77: 678.0715725 | K77: 818.0497025 | L77: 785.3950295 | M77: 877.006087 | N77: 874.075245 | O77: 73.6136095 | P77: - | Q77: - | R77: -
B78: Generación renovable | C78: 57797.6271 | D78: 60477.3186 | E78: 73958.7557 | F78: 95825.85619 | G78: 86667.05288 | H78: 85338.72278 | I78: 109757.6576 | J78: 107875.9732 | K78: 94088.11295 | L78: 101089.1693 | M78: 84610.8665 | N78: 100251.2542 | O78: 9200.045787 | P78: - | Q78: - | R78: -
B80: Estructura de generación renovable mensual peninsular (%) | C80: 1990-01-01 | D80: 1990-02-01 | E80: 1990-03-01 | F80: 1990-04-01 | G80: 1990-05-01 | H80: 1990-06-01 | I80: 1990-07-01 | J80: 1990-08-01 | K80: 1990-09-01 | L80: 1990-10-01 | M80: 1990-11-01 | N80: 1990-12-01 | O80: 1991-01-01 | P80: 1991-02-01 | Q80: 1991-03-01 | R80: 1991-04-01 | S80: 1991-05-01 | T80: 1991-06-01 | U80: 1991-07-01 | V80: 1991-08-01 | W80: 1991-09-01 | X80: 1991-10-01 | Y80: 1991-11-01 | Z80: 1991-12-01 | AA80: 1992-01-01 | AB80: 1992-02-01 | AC80: 1992-03-01 | AD80: 1992-04-01 | AE80: 1992-05-01 | AF80: 1992-06-01 | AG80: 1992-07-01 | AH80: 1992-08-01 | AI80: 1992-09-01 | AJ80: 1992-10-01 | AK80: 1992-11-01 | AL80: 1992-12-01 | AM80: 1993-01-01 | AN80: 1993-02-01 | AO80: 1993-03-01 | AP80: 1993-04-01 | AQ80: 1993-05-01 | AR80: 1993-06-01 | AS80: 1993-07-01 | AT80: 1993-08-01 | AU80: 1993-09-01 | AV80: 1993-10-01 | AW80: 1993-11-01 | AX80: 1993-12-01 | AY80: 1994-01-01 | AZ80: 1994-02-01 | BA80: 1994-03-01 | BB80: 1994-04-01 | BC80: 1994-05-01 | BD80: 1994-06-01 | BE80: 1994-07-01 | BF80: 1994-08-01 | BG80: 1994-09-01 | BH80: 1994-10-01 | BI80: 1994-11-01 | BJ80: 1994-12-01 | BK80: 1995-01-01 | BL80: 1995-02-01 | BM80: 1995-03-01 | BN80: 1995-04-01 | BO80: 1995-05-01 | BP80: 1995-06-01 | BQ80: 1995-07-01 | BR80: 1995-08-01 | BS80: 1995-09-01 | BT80: 1995-10-01 | BU80: 1995-11-01 | BV80: 1995-12-01 | BW80: 1996-01-01 | BX80: 1996-02-01 | BY80: 1996-03-01 | BZ80: 1996-04-01 | CA80: 1996-05-01 | CB80: 1996-06-01 | CC80: 1996-07-01 | CD80: 1996-08-01 | CE80: 1996-09-01 | CF80: 1996-10-01 | CG80: 1996-11-01 | CH80: 1996-12-01 | CI80: 1997-01-01 | CJ80: 1997-02-01 | CK80: 1997-03-01 | CL80: 1997-04-01 | CM80: 1997-05-01 | CN80: 1997-06-01 | CO80: 1997-07-01 | CP80: 1997-08-01 | CQ80: 1997-09-01 | CR80: 1997-10-01 | CS80: 1997-11-01 | CT80: 1997-12-01 | CU80: 1998-01-01 | CV80: 1998-02-01 | CW80: 1998-03-01 | CX80: 1998-04-01 | CY80: 1998-05-01 | CZ80: 1998-06-01 | DA80: 1998-07-01 | DB80: 1998-08-01 | DC80: 1998-09-01 | DD80: 1998-10-01 | DE80: 1998-11-01 | DF80: 1998-12-01 | DG80: 1999-01-01 | DH80: 1999-02-01 | DI80: 1999-03-01 | DJ80: 1999-04-01 | DK80: 1999-05-01 | DL80: 1999-06-01 | DM80: 1999-07-01 | DN80: 1999-08-01 | DO80: 1999-09-01 | DP80: 1999-10-01 | DQ80: 1999-11-01 | DR80: 1999-12-01 | DS80: 2000-01-01 | DT80: 2000-02-01 | DU80: 2000-03-01 | DV80: 2000-04-01 | DW80: 2000-05-01 | DX80: 2000-06-01 | DY80: 2000-07-01 | DZ80: 2000-08-01 | EA80: 2000-09-01 | EB80: 2000-10-01 | EC80: 2000-11-01 | ED80: 2000-12-01 | EE80: 2001-01-01 | EF80: 2001-02-01 | EG80: 2001-03-01 | EH80: 2001-04-01 | EI80: 2001-05-01 | EJ80: 2001-06-01 | EK80: 2001-07-01 | EL80: 2001-08-01 | EM80: 2001-09-01 | EN80: 2001-10-01 | EO80: 2001-11-01 | EP80: 2001-12-01 | EQ80: 2002-01-01 | ER80: 2002-02-01 | ES80: 2002-03-01 | ET80: 2002-04-01 | EU80: 2002-05-01 | EV80: 2002-06-01 | EW80: 2002-07-01 | EX80: 2002-08-01 | EY80: 2002-09-01 | EZ80: 2002-10-01 | FA80: 2002-11-01 | FB80: 2002-12-01 | FC80: 2003-01-01 | FD80: 2003-02-01 | FE80: 2003-03-01 | FF80: 2003-04-01 | FG80: 2003-05-01 | FH80: 2003-06-01 | FI80: 2003-07-01 | FJ80: 2003-08-01 | FK80: 2003-09-01 | FL80: 2003-10-01 | FM80: 2003-11-01 | FN80: 2003-12-01 | FO80: 2004-01-01 | FP80: 2004-02-01 | FQ80: 2004-03-01 | FR80: 2004-04-01 | FS80: 2004-05-01 | FT80: 2004-06-01 | FU80: 2004-07-01 | FV80: 2004-08-01 | FW80: 2004-09-01 | FX80: 2004-10-01 | FY80: 2004-11-01 | FZ80: 2004-12-01 | GA80: 2005-01-01 | GB80: 2005-02-01 | GC80: 2005-03-01 | GD80: 2005-04-01 | GE80: 2005-05-01 | GF80: 2005-06-01 | GG80: 2005-07-01 | GH80: 2005-08-01 | GI80: 2005-09-01 | GJ80: 2005-10-01 | GK80: 2005-11-01 | GL80: 2005-12-01 | GM80: 2006-01-01 | GN80: 2006-02-01 | GO80: 2006-03-01 | GP80: 2006-04-01 | GQ80: 2006-05-01 | GR80: 2006-06-01 | GS80: 2006-07-01 | GT80: 2006-08-01 | GU80: 2006-09-01 | GV80: 2006-10-01 | GW80: 2006-11-01 | GX80: 2006-12-01 | GY80: 2007-01-01 | GZ80: 2007-02-01 | HA80: 2007-03-01 | HB80: 2007-04-01 | HC80: 2007-05-01 | HD80: 2007-06-01 | HE80: 2007-07-01 | HF80: 2007-08-01 | HG80: 2007-09-01 | HH80: 2007-10-01 | HI80: 2007-11-01 | HJ80: 2007-12-01 | HK80: 2008-01-01 | HL80: 2008-02-01 | HM80: 2008-03-01 | HN80: 2008-04-01 | HO80: 2008-05-01 | HP80: 2008-06-01 | HQ80: 2008-07-01 | HR80: 2008-08-01 | HS80: 2008-09-01 | HT80: 2008-10-01 | HU80: 2008-11-01 | HV80: 2008-12-01 | HW80: 2009-01-01 | HX80: 2009-02-01 | HY80: 2009-03-01 | HZ80: 2009-04-01 | IA80: 2009-05-01 | IB80: 2009-06-01 | IC80: 2009-07-01 | ID80: 2009-08-01 | IE80: 2009-09-01 | IF80: 2009-10-01 | IG80: 2009-11-01 | IH80: 2009-12-01 | II80: 2010-01-01 | IJ80: 2010-02-01 | IK80: 2010-03-01 | IL80: 2010-04-01 | IM80: 2010-05-01 | IN80: 2010-06-01 | IO80: 2010-07-01 | IP80: 2010-08-01 | IQ80: 2010-09-01 | IR80: 2010-10-01 | IS80: 2010-11-01 | IT80: 2010-12-01 | IU80: 2011-01-01 | IV80: 2011-02-01 | IW80: 2011-03-01 | IX80: 2011-04-01 | IY80: 2011-05-01 | IZ80: 2011-06-01 | JA80: 2011-07-01 | JB80: 2011-08-01 | JC80: 2011-09-01 | JD80: 2011-10-01 | JE80: 2011-11-01 | JF80: 2011-12-01 | JG80: 2012-01-01 | JH80: 2012-02-01 | JI80: 2012-03-01 | JJ80: 2012-04-01 | JK80: 2012-05-01 | JL80: 2012-06-01 | JM80: 2012-07-01 | JN80: 2012-08-01 | JO80: 2012-09-01 | JP80: 2012-10-01 | JQ80: 2012-11-01 | JR80: 2012-12-01 | JS80: 2013-01-01 | JT80: 2013-02-01 | JU80: 2013-03-01 | JV80: 2013-04-01 | JW80: 2013-05-01 | JX80: 2013-06-01 | JY80: 2013-07-01 | JZ80: 2013-08-01 | KA80: 2013-09-01 | KB80: 2013-10-01 | KC80: 2013-11-01 | KD80: 2013-12-01 | KE80: 2014-01-01 | KF80: 2014-02-01 | KG80: 2014-03-01 | KH80: 2014-04-01 | KI80: 2014-05-01 | KJ80: 2014-06-01 | KK80: 2014-07-01 | KL80: 2014-08-01 | KM80: 2014-09-01 | KN80: 2014-10-01 | KO80: 2014-11-01 | KP80: 2014-12-01 | KQ80: 2015-01-01 | KR80: 2015-02-01 | KS80: 2015-03-01 | KT80: 2015-04-01 | KU80: 2015-05-01 | KV80: 2015-06-01 | KW80: 2015-07-01 | KX80: 2015-08-01 | KY80: 2015-09-01 | KZ80: 2015-10-01 | LA80: 2015-11-01 | LB80: 2015-12-01 | LC80: 2016-01-01 | LD80: 2016-02-01 | LE80: 2016-03-01 | LF80: 2016-04-01 | LG80: 2016-05-01 | LH80: 2016-06-01 | LI80: 2016-07-01 | LJ80: 2016-08-01 | LK80: 2016-09-01 | LL80: 2016-10-01 | LM80: 2016-11-01 | LN80: 2016-12-01 | LO80: 2017-01-01 | LP80: 2017-02-01 | LQ80: 2017-03-01 | LR80: 2017-04-01 | LS80: 2017-05-01 | LT80: 2017-06-01 | LU80: 2017-07-01 | LV80: 2017-08-01 | LW80: 2017-09-01 | LX80: 2017-10-01 | LY80: 2017-11-01 | LZ80: 2017-12-01 | MA80: 2018-01-01 | MB80: 2018-02-01 | MC80: 2018-03-01 | MD80: 2018-04-01 | ME80: 2018-05-01 | MF80: 2018-06-01 | MG80: 2018-07-01 | MH80: 2018-08-01 | MI80: 2018-09-01 | MJ80: 2018-10-01 | MK80: 2018-11-01 | ML80: 2018-12-01 | MM80: 2019-01-01 | MN80: 2019-02-01 | MO80: 2019-03-01 | MP80: 2019-04-01 | MQ80: 2019-05-01 | MR80: 2019-06-01 | MS80: 2019-07-01 | MT80: 2019-08-01 | MU80: 2019-09-01 | MV80: 2019-10-01 | MW80: 2019-11-01 | MX80: 2019-12-01
B81: Hidráulica | C81: 30 | D81: 31.1 | E81: 21.3 | F81: 16.6 | G81: 17.4 | H81: 16.8 | I81: 13.8 | J81: 12 | K81: 11.1 | L81: 12.7 | M81: 16.8 | N81: 15.2 | O81: 19.6 | P81: 16.6 | Q81: 32.6 | R81: 31.1 | S81: 25.3 | T81: 19.2 | U81: 14.4 | V81: 10.8 | W81: 9.8 | X81: 13.1 | Y81: 16.3 | Z81: 14.9 | AA81: 9.7 | AB81: 6.3 | AC81: 6.4 | AD81: 14 | AE81: 13.3 | AF81: 14.9 | AG81: 13.7 | AH81: 10.6 | AI81: 10.7 | AJ81: 15.7 | AK81: 18.8 | AL81: 23.3 | AM81: 16.5 | AN81: 12.7 | AO81: 11.7 | AP81: 10.5 | AQ81: 17 | AR81: 19.9 | AS81: 16 | AT81: 11.4 | AU81: 10.6 | AV81: 23.9 | AW81: 27.9 | AX81: 21.3 | AY81: 28.6 | AZ81: 25.7 | BA81: 23.4 | BB81: 20.7 | BC81: 22.7 | BD81: 20.4 | BE81: 14.4 | BF81: 11.6 | BG81: 10.7 | BH81: 13.3 | BI81: 19.4 | BJ81: 14.5 | BK81: 20.7 | BL81: 22.9 | BM81: 24.7 | BN81: 16.4 | BO81: 14.4 | BP81: 14.4 | BQ81: 12.6 | BR81: 9.1 | BS81: 7.7 | BT81: 8 | BU81: 10 | BV81: 18.3 | BW81: 39.6 | BX81: 40.2 | BY81: 27.2 | BZ81: 32.2 | CA81: 31.7 | CB81: 23.6 | CC81: 17.6 | CD81: 13.4 | CE81: 14.8 | CF81: 14 | CG81: 17 | CH81: 30.6 | CI81: 36.6 | CJ81: 28.1 | CK81: 20.7 | CL81: 17.7 | CM81: 17 | CN81: 18.2 | CO81: 14.7 | CP81: 13.1 | CQ81: 11.9 | CR81: 10.9 | CS81: 24.8 | CT81: 35.2 | CU81: 39.5 | CV81: 30.2 | CW81: 19.6 | CX81: 26.2 | CY81: 30.4 | CZ81: 25 | DA81: 17.1 | DB81: 15.1 | DC81: 13 | DD81: 14.3 | DE81: 10.6 | DF81: 8.3 | DG81: 8.8 | DH81: 9.2 | DI81: 13.5 | DJ81: 16.3 | DK81: 20.7 | DL81: 17.3 | DM81: 12.5 | DN81: 10.2 | DO81: 10.3 | DP81: 11.7 | DQ81: 17.9 | DR81: 17.1 | DS81: 14.4 | DT81: 10.5 | DU81: 9.5 | DV81: 14.7 | DW81: 21.7 | DX81: 14.6 | DY81: 10.5 | DZ81: 11.2 | EA81: 11.6 | EB81: 11 | EC81: 14.9 | ED81: 25.8 | EE81: 33.9 | EF81: 34.9 | EG81: 37.8 | EH81: 29.1 | EI81: 21.1 | EJ81: 15.3 | EK81: 11.9 | EL81: 11.6 | EM81: 9.1 | EN81: 10.5 | EO81: 11.5 | EP81: 8.5 | EQ81: 6.9 | ER81: 7.1 | ES81: 11 | ET81: 11.3 | EU81: 11.4 | EV81: 11 | EW81: 7.4 | EX81: 6.2 | EY81: 6.1 | EZ81: 6.8 | FA81: 11.1 | FB81: 22.5 | FC81: 27.3 | FD81: 23.1 | FE81: 24.7 | FF81: 22.7 | FG81: 20.8 | FH81: 12.5 | FI81: 9.8 | FJ81: 7.7 | FK81: 9 | FL81: 10.6 | FM81: 17.1 | FN81: 24.2 | FO81: 18 | FP81: 16.9 | FQ81: 15 | FR81: 15.8 | FS81: 17.5 | FT81: 13.7 | FU81: 9.9 | FV81: 8.9 | FW81: 7.8 | FX81: 8.8 | FY81: 11.5 | FZ81: 8.5 | GA81: 6.9 | GB81: 7.3 | GC81: 8.4 | GD81: 10.8 | GE81: 11.1 | GF81: 8.7 | GG81: 5.9 | GH81: 5.6 | GI81: 4 | GJ81: 4.2 | GK81: 6.4 | GL81: 7.3 | GM81: 6.7 | GN81: 5.3 | GO81: 13 | GP81: 14.4 | GQ81: 10.3 | GR81: 7 | GS81: 6.3 | GT81: 4.9 | GU81: 5.2 | GV81: 7.7 | GW81: 13.9 | GX81: 20.9 | GY81: 9.3 | GZ81: 13.8 | HA81: 16.9 | HB81: 13.8 | HC81: 13 | HD81: 10.7 | HE81: 10.5 | HF81: 8.1 | HG81: 6.2 | HH81: 7.5 | HI81: 5.6 | HJ81: 4.9 | HK81: 5.5 | HL81: 4.1 | HM81: 4.5 | HN81: 11.9 | HO81: 15.4 | HP81: 14.2 | HQ81: 8.9 | HR81: 6.8 | HS81: 5.9 | HT81: 4.9 | HU81: 6.8 | HV81: 10.2 | HW81: 9 | HX81: 16 | HY81: 13.1 | HZ81: 11 | IA81: 12.7 | IB81: 9.9 | IC81: 7.4 | ID81: 6.5 | IE81: 4.6 | IF81: 5.8 | IG81: 9.2 | IH81: 13.6 | II81: 20.9 | IJ81: 17.7 | IK81: 24.3 | IL81: 22.5 | IM81: 18.2 | IN81: 16.5 | IO81: 11.9 | IP81: 9.1 | IQ81: 7 | IR81: 7.2 | IS81: 11.4 | IT81: 16.4 | IU81: 20.8 | IV81: 13.6 | IW81: 16.4 | IX81: 17.2 | IY81: 13.5 | IZ81: 9.7 | JA81: 7.4 | JB81: 6.9 | JC81: 5.6 | JD81: 6 | JE81: 10.1 | JF81: 9.6 | JG81: 6.8 | JH81: 4.9 | JI81: 5.9 | JJ81: 8.2 | JK81: 11.8 | JL81: 9.7 | JM81: 7.4 | JN81: 5.9 | JO81: 4.8 | JP81: 6.4 | JQ81: 9.2 | JR81: 11.6 | JS81: 12.7 | JT81: 16.3 | JU81: 20.2 | JV81: 25.9 | JW81: 19 | JX81: 16.1 | JY81: 11.8 | JZ81: 10 | KA81: 8.8 | KB81: 9 | KC81: 12.9 | KD81: 10.7 | KE81: 18.6 | KF81: 26.7 | KG81: 24.4 | KH81: 24.9 | KI81: 14 | KJ81: 12.2 | KK81: 10.7 | KL81: 9.8 | KM81: 8.6 | KN81: 8 | KO81: 12.2 | KP81: 14.8 | KQ81: 10.9 | KR81: 16.1 | KS81: 17.4 | KT81: 13.6 | KU81: 14.8 | KV81: 12.1 | KW81: 8.6 | KX81: 7.6 | KY81: 8 | KZ81: 8.4 | LA81: 9.5 | LB81: 7 | LC81: 15.9 | LD81: 19.6 | LE81: 19.9 | LF81: 25.4 | LG81: 26.1 | LH81: 15.2 | LI81: 10.5 | LJ81: 9.9 | LK81: 8.3 | LL81: 7.9 | LM81: 7.2 | LN81: 8.9 | LO81: 8.5 | LP81: 9.8 | LQ81: 13.5 | LR81: 10.4 | LS81: 10.2 | LT81: 7.9 | LU81: 5.6 | LV81: 5.3 | LW81: 6 | LX81: 3.8 | LY81: 3.9 | LZ81: 5.4 | MA81: 10.1 | MB81: 11.5 | MC81: 19 | MD81: 24 | ME81: 18.5 | MF81: 19.9 | MG81: 14.8 | MH81: 10 | MI81: 9.7 | MJ81: 7 | MK81: 10.2 | ML81: 12.1 | MM81: 9.1 | MN81: - | MO81: - | MP81: - | MQ81: - | MR81: - | MS81: - | MT81: - | MU81: - | MV81: - | MW81: - | MX81: -
B82: Eólica | C82: 0 | D82: 0 | E82: 0 | F82: 0 | G82: 0 | H82: 0 | I82: 0 | J82: 0 | K82: 0 | L82: 0 | M82: 0 | N82: 0 | O82: 0 | P82: 0 | Q82: 0 | R82: 0 | S82: 0 | T82: 0 | U82: 0 | V82: 0 | W82: 0 | X82: 0 | Y82: 0 | Z82: 0 | AA82: 0 | AB82: 0 | AC82: 0 | AD82: 0 | AE82: 0 | AF82: 0 | AG82: 0 | AH82: 0 | AI82: 0 | AJ82: 0 | AK82: 0 | AL82: 0.1 | AM82: 0.1 | AN82: 0.1 | AO82: 0.1 | AP82: 0.1 | AQ82: 0 | AR82: 0.1 | AS82: 0.1 | AT82: 0.1 | AU82: 0 | AV82: 0.1 | AW82: 0.1 | AX82: 0 | AY82: 0.1 | AZ82: 0 | BA82: 0.1 | BB82: 0.1 | BC82: 0 | BD82: 0.1 | BE82: 0 | BF82: 0 | BG82: 0 | BH82: 0.1 | BI82: 0.1 | BJ82: 0 | BK82: 0.1 | BL82: 0.1 | BM82: 0.1 | BN82: 0.1 | BO82: 0.1 | BP82: 0.1 | BQ82: 0.1 | BR82: 0.1 | BS82: 0.1 | BT82: 0.2 | BU82: 0.1 | BV82: 0.1 | BW82: 0.1 | BX82: 0.2 | BY82: 0.2 | BZ82: 0.2 | CA82: 0.2 | CB82: 0.2 | CC82: 0.2 | CD82: 0.1 | CE82: 0.2 | CF82: 0.2 | CG82: 0.2 | CH82: 0.3 | CI82: 0.3 | CJ82: 0.3 | CK82: 0.3 | CL82: 0.4 | CM82: 0.3 | CN82: 0.3 | CO82: 0.4 | CP82: 0.3 | CQ82: 0.3 | CR82: 0.5 | CS82: 0.5 | CT82: 0.5 | CU82: 0.6 | CV82: 0.5 | CW82: 0.7 | CX82: 0.7 | CY82: 0.6 | CZ82: 0.5 | DA82: 0.7 | DB82: 0.9 | DC82: 0.7 | DD82: 0.7 | DE82: 0.9 | DF82: 0.9 | DG82: 1 | DH82: 1.4 | DI82: 1.4 | DJ82: 1.4 | DK82: 1.2 | DL82: 1.4 | DM82: 1.1 | DN82: 1 | DO82: 1.1 | DP82: 1.3 | DQ82: 2 | DR82: 1.9 | DS82: 1.7 | DT82: 1.9 | DU82: 2.1 | DV82: 2.7 | DW82: 1.5 | DX82: 2.3 | DY82: 2.2 | DZ82: 2 | EA82: 1.7 | EB82: 2.6 | EC82: 3.2 | ED82: 3.5 | EE82: 3.2 | EF82: 3.4 | EG82: 3.7 | EH82: 4.3 | EI82: 2.6 | EJ82: 2.4 | EK82: 2.3 | EL82: 2.2 | EM82: 3.7 | EN82: 3.4 | EO82: 4.3 | EP82: 2.9 | EQ82: 3.4 | ER82: 4.6 | ES82: 4.6 | ET82: 3.7 | EU82: 4.7 | EV82: 3.6 | EW82: 3.7 | EX82: 3.5 | EY82: 2.9 | EZ82: 4.9 | FA82: 5.9 | FB82: 6.4 | FC82: 6.7 | FD82: 5.2 | FE82: 4.5 | FF82: 6.6 | FG82: 5 | FH82: 3.7 | FI82: 3.6 | FJ82: 2.9 | FK82: 4.2 | FL82: 5.7 | FM82: 6.1 | FN82: 6.9 | FO82: 8 | FP82: 5.4 | FQ82: 6.1 | FR82: 7.9 | FS82: 5.3 | FT82: 5.2 | FU82: 4.6 | FV82: 5.6 | FW82: 5.8 | FX82: 8.2 | FY82: 7.3 | FZ82: 8.2 | GA82: 8.3 | GB82: 8.3 | GC82: 8.2 | GD82: 9.9 | GE82: 7.6 | GF82: 6 | GG82: 7.3 | GH82: 8.1 | GI82: 6.2 | GJ82: 9.3 | GK82: 9 | GL82: 10.2 | GM82: 6.4 | GN82: 8.6 | GO82: 12 | GP82: 10.3 | GQ82: 8.1 | GR82: 6.4 | GS82: 4.9 | GT82: 10.4 | GU82: 6.8 | GV82: 11 | GW82: 10.6 | GX82: 9.3 | GY82: 8.8 | GZ82: 13.2 | HA82: 13.3 | HB82: 6.5 | HC82: 12 | HD82: 8.2 | HE82: 8 | HF82: 11.1 | HG82: 9.2 | HH82: 8.4 | HI82: 11.5 | HJ82: 9.6 | HK82: 10.5 | HL82: 8.5 | HM82: 17.1 | HN82: 14.6 | HO82: 7.9 | HP82: 9.3 | HQ82: 8.7 | HR82: 8.7 | HS82: 9.6 | HT82: 11 | HU82: 14.8 | HV82: 14.9 | HW82: 13.9 | HX82: 14.8 | HY82: 14.5 | HZ82: 15.3 | IA82: 13.3 | IB82: 10.8 | IC82: 10.3 | ID82: 10.1 | IE82: 11.5 | IF82: 14.5 | IG82: 21.8 | IH82: 20.8 | II82: 17.3 | IJ82: 20.1 | IK82: 19 | IL82: 12.6 | IM82: 17 | IN82: 12 | IO82: 11.5 | IP82: 12.9 | IQ82: 10.5 | IR82: 17.9 | IS82: 19 | IT82: 19.1 | IU82: 16.3 | IV82: 18.3 | IW82: 19.7 | IX82: 16.5 | IY82: 15.3 | IZ82: 13.8 | JA82: 14.4 | JB82: 12.5 | JC82: 10.7 | JD82: 15 | JE82: 17.8 | JF82: 20.2 | JG82: 15.2 | JH82: 20.3 | JI82: 16.8 | JJ82: 24.9 | JK82: 17.3 | JL82: 15.8 | JM82: 13.2 | JN82: 13.9 | JO82: 18.5 | JP82: 14.5 | JQ82: 21.4 | JR82: 23.7 | JS82: 26.6 | JT82: 24.5 | JU82: 25.3 | JV82: 21.1 | JW82: 19.6 | JX82: 19.2 | JY82: 12.3 | JZ82: 15.9 | KA82: 15.4 | KB82: 19 | KC82: 29.5 | KD82: 21.7 | KE82: 28.5 | KF82: 27.3 | KG82: 23.2 | KH82: 19.7 | KI82: 20.4 | KJ82: 16.1 | KK82: 16.3 | KL82: 13.8 | KM82: 10.2 | KN82: 16.5 | KO82: 25.2 | KP82: 21.5 | KQ82: 20.9 | KR82: 26.8 | KS82: 22 | KT82: 19.9 | KU82: 23.9 | KV82: 13.9 | KW82: 12.7 | KX82: 15 | KY82: 15 | KZ82: 19.7 | LA82: 18.6 | LB82: 17.2 | LC82: 25.9 | LD82: 29.4 | LE82: 24.6 | LF82: 21.3 | LG82: 20 | LH82: 16.6 | LI82: 16.1 | LJ82: 17.4 | LK82: 13.4 | LL82: 11.5 | LM82: 18.8 | LN82: 12.9 | LO82: 19.9 | LP82: 24.6 | LQ82: 23.4 | LR82: 22.8 | LS82: 18 | LT82: 15.1 | LU82: 15.5 | LV82: 16.2 | LW82: 14.8 | LX82: 15.8 | LY82: 18.3 | LZ82: 24.9 | MA82: 24.3 | MB82: 22.3 | MC82: 33.1 | MD82: 22.4 | ME82: 17.1 | MF82: 13.8 | MG82: 12.1 | MH82: 14.6 | MI82: 12.2 | MJ82: 20.5 | MK82: 21.4 | ML82: 21 | MM82: 25.5 | MN82: - | MO82: - | MP82: - | MQ82: - | MR82: - | MS82: - | MT82: - | MU82: - | MV82: - | MW82: - | MX82: -
B83: Solar fotovoltaica | C83: - | D83: - | E83: - | F83: - | G83: - | H83: - | I83: - | J83: - | K83: - | L83: - | M83: - | N83: - | O83: - | P83: - | Q83: - | R83: - | S83: - | T83: - | U83: - | V83: - | W83: - | X83: - | Y83: - | Z83: - | AA83: 0 | AB83: 0 | AC83: 0 | AD83: 0 | AE83: 0 | AF83: 0 | AG83: 0 | AH83: 0 | AI83: 0 | AJ83: 0 | AK83: 0 | AL83: 0 | AM83: 0 | AN83: 0 | AO83: 0 | AP83: 0 | AQ83: 0 | AR83: 0 | AS83: 0 | AT83: 0 | AU83: 0 | AV83: 0 | AW83: 0 | AX83: 0 | AY83: 0 | AZ83: 0 | BA83: 0 | BB83: 0 | BC83: 0 | BD83: 0 | BE83: 0 | BF83: 0 | BG83: 0 | BH83: 0 | BI83: 0 | BJ83: 0 | BK83: 0 | BL83: 0 | BM83: 0 | BN83: 0 | BO83: 0 | BP83: 0 | BQ83: 0 | BR83: 0 | BS83: 0 | BT83: 0 | BU83: 0 | BV83: 0 | BW83: 0 | BX83: 0 | BY83: 0 | BZ83: 0 | CA83: 0 | CB83: 0 | CC83: 0 | CD83: 0 | CE83: 0 | CF83: 0 | CG83: 0 | CH83: 0 | CI83: 0 | CJ83: 0 | CK83: 0 | CL83: 0 | CM83: 0 | CN83: 0 | CO83: 0 | CP83: 0 | CQ83: 0 | CR83: 0 | CS83: 0 | CT83: 0 | CU83: 0 | CV83: 0 | CW83: 0 | CX83: 0 | CY83: 0 | CZ83: 0 | DA83: 0 | DB83: 0 | DC83: 0 | DD83: 0 | DE83: 0 | DF83: 0 | DG83: 0 | DH83: 0 | DI83: 0 | DJ83: 0 | DK83: 0 | DL83: 0 | DM83: 0 | DN83: 0 | DO83: 0 | DP83: 0 | DQ83: 0 | DR83: 0 | DS83: 0 | DT83: 0 | DU83: 0 | DV83: 0 | DW83: 0 | DX83: 0 | DY83: 0 | DZ83: 0 | EA83: 0 | EB83: 0 | EC83: 0 | ED83: 0 | EE83: 0 | EF83: 0 | EG83: 0 | EH83: 0 | EI83: 0 | EJ83: 0 | EK83: 0 | EL83: 0 | EM83: 0 | EN83: 0 | EO83: 0 | EP83: 0 | EQ83: 0 | ER83: 0 | ES83: 0 | ET83: 0 | EU83: 0 | EV83: 0 | EW83: 0 | EX83: 0 | EY83: 0 | EZ83: 0 | FA83: 0 | FB83: 0 | FC83: 0 | FD83: 0 | FE83: 0 | FF83: 0 | FG83: 0 | FH83: 0 | FI83: 0 | FJ83: 0 | FK83: 0 | FL83: 0 | FM83: 0 | FN83: 0 | FO83: 0 | FP83: 0 | FQ83: 0 | FR83: 0 | FS83: 0 | FT83: 0 | FU83: 0 | FV83: 0 | FW83: 0 | FX83: 0 | FY83: 0 | FZ83: 0 | GA83: 0 | GB83: 0 | GC83: 0 | GD83: 0 | GE83: 0 | GF83: 0 | GG83: 0 | GH83: 0 | GI83: 0 | GJ83: 0 | GK83: 0 | GL83: 0 | GM83: 0 | GN83: 0 | GO83: 0 | GP83: 0 | GQ83: 0 | GR83: 0 | GS83: 0 | GT83: 0.1 | GU83: 0.1 | GV83: 0 | GW83: 0 | GX83: 0 | GY83: 0 | GZ83: 0.1 | HA83: 0.1 | HB83: 0.1 | HC83: 0.2 | HD83: 0.2 | HE83: 0.2 | HF83: 0.2 | HG83: 0.3 | HH83: 0.2 | HI83: 0.2 | HJ83: 0.2 | HK83: 0.2 | HL83: 0.3 | HM83: 0.4 | HN83: 0.5 | HO83: 0.6 | HP83: 0.8 | HQ83: 1 | HR83: 1.3 | HS83: 1.4 | HT83: 1.4 | HU83: 1.4 | HV83: 1 | HW83: 1 | HX83: 1.7 | HY83: 2.4 | HZ83: 2.7 | IA83: 3.2 | IB83: 2.9 | IC83: 2.9 | ID83: 2.9 | IE83: 2.3 | IF83: 2.2 | IG83: 1.6 | IH83: 1 | II83: 1 | IJ83: 1.3 | IK83: 1.9 | IL83: 2.7 | IM83: 3.2 | IN83: 3.1 | IO83: 3.1 | IP83: 3.1 | IQ83: 2.8 | IR83: 2.4 | IS83: 1.6 | IT83: 1.2 | IU83: 1.3 | IV83: 2.2 | IW83: 2.1 | IX83: 3.1 | IY83: 3.5 | IZ83: 3.7 | JA83: 3.7 | JB83: 3.5 | JC83: 3.3 | JD83: 2.9 | JE83: 1.6 | JF83: 1.8 | JG83: 2 | JH83: 2.6 | JI83: 3.2 | JJ83: 3 | JK83: 3.8 | JL83: 3.9 | JM83: 4 | JN83: 3.7 | JO83: 3.1 | JP83: 2.6 | JQ83: 1.6 | JR83: 1.6 | JS83: 1.8 | JT83: 2.3 | JU83: 2.3 | JV83: 3.5 | JW83: 4.1 | JX83: 4.4 | JY83: 4 | JZ83: 4 | KA83: 3.5 | KB83: 2.9 | KC83: 2.3 | KD83: 1.8 | KE83: 1.5 | KF83: 1.9 | KG83: 3.2 | KH83: 3.8 | KI83: 4.4 | KJ83: 4.3 | KK83: 4.1 | KL83: 4.2 | KM83: 3.1 | KN83: 3 | KO83: 1.8 | KP83: 1.9 | KQ83: 2.1 | KR83: 2.1 | KS83: 3.1 | KT83: 3.7 | KU83: 4.4 | KV83: 4.1 | KW83: 3.7 | KX83: 3.7 | KY83: 3.4 | KZ83: 2.6 | LA83: 2.5 | LB83: 1.8 | LC83: 1.6 | LD83: 2.2 | LE83: 3.1 | LF83: 3.3 | LG83: 3.9 | LH83: 4.5 | LI83: 4.1 | LJ83: 4.1 | LK83: 3.7 | LL83: 2.7 | LM83: 1.9 | LN83: 1.7 | LO83: 1.9 | LP83: 2.1 | LQ83: 3.4 | LR83: 4.4 | LS83: 4.4 | LT83: 4 | LU83: 4.1 | LV83: 3.8 | LW83: 3.9 | LX83: 3.2 | LY83: 2.4 | LZ83: 1.8 | MA83: 1.9 | MB83: 2.3 | MC83: 2.4 | MD83: 3.4 | ME83: 4.1 | MF83: 4.2 | MG83: 4.3 | MH83: 3.8 | MI83: 3.5 | MJ83: 2.6 | MK83: 1.7 | ML83: 2 | MM83: 2 | MN83: - | MO83: - | MP83: - | MQ83: - | MR83: - | MS83: - | MT83: - | MU83: - | MV83: - | MW83: - | MX83: -
B84: Solar térmica | C84: - | D84: - | E84: - | F84: - | G84: - | H84: - | I84: - | J84: - | K84: - | L84: - | M84: - | N84: - | O84: - | P84: - | Q84: - | R84: - | S84: - | T84: - | U84: - | V84: - | W84: - | X84: - | Y84: - | Z84: - | AA84: - | AB84: - | AC84: - | AD84: - | AE84: - | AF84: - | AG84: - | AH84: - | AI84: - | AJ84: - | AK84: - | AL84: - | AM84: - | AN84: - | AO84: - | AP84: - | AQ84: - | AR84: - | AS84: - | AT84: - | AU84: - | AV84: - | AW84: - | AX84: - | AY84: - | AZ84: - | BA84: - | BB84: - | BC84: - | BD84: - | BE84: - | BF84: - | BG84: - | BH84: - | BI84: - | BJ84: - | BK84: - | BL84: - | BM84: - | BN84: - | BO84: - | BP84: - | BQ84: - | BR84: - | BS84: - | BT84: - | BU84: - | BV84: - | BW84: - | BX84: - | BY84: - | BZ84: - | CA84: - | CB84: - | CC84: - | CD84: - | CE84: - | CF84: - | CG84: - | CH84: - | CI84: - | CJ84: - | CK84: - | CL84: - | CM84: - | CN84: - | CO84: - | CP84: - | CQ84: - | CR84: - | CS84: - | CT84: - | CU84: - | CV84: - | CW84: - | CX84: - | CY84: - | CZ84: - | DA84: - | DB84: - | DC84: - | DD84: - | DE84: - | DF84: - | DG84: - | DH84: - | DI84: - | DJ84: - | DK84: - | DL84: - | DM84: - | DN84: - | DO84: - | DP84: - | DQ84: - | DR84: - | DS84: - | DT84: - | DU84: - | DV84: - | DW84: - | DX84: - | DY84: - | DZ84: - | EA84: - | EB84: - | EC84: - | ED84: - | EE84: - | EF84: - | EG84: - | EH84: - | EI84: - | EJ84: - | EK84: - | EL84: - | EM84: - | EN84: - | EO84: - | EP84: - | EQ84: - | ER84: - | ES84: - | ET84: - | EU84: - | EV84: - | EW84: - | EX84: - | EY84: - | EZ84: - | FA84: - | FB84: - | FC84: - | FD84: - | FE84: - | FF84: - | FG84: - | FH84: - | FI84: - | FJ84: - | FK84: - | FL84: - | FM84: - | FN84: - | FO84: - | FP84: - | FQ84: - | FR84: - | FS84: - | FT84: - | FU84: - | FV84: - | FW84: - | FX84: - | FY84: - | FZ84: - | GA84: - | GB84: - | GC84: - | GD84: - | GE84: - | GF84: - | GG84: - | GH84: - | GI84: - | GJ84: - | GK84: - | GL84: - | GM84: 0 | GN84: 0 | GO84: 0 | GP84: 0 | GQ84: 0 | GR84: 0 | GS84: 0 | GT84: 0 | GU84: 0 | GV84: 0 | GW84: 0 | GX84: 0 | GY84: 0 | GZ84: 0 | HA84: 0 | HB84: 0 | HC84: 0 | HD84: 0 | HE84: 0 | HF84: 0 | HG84: 0 | HH84: 0 | HI84: 0 | HJ84: 0 | HK84: 0 | HL84: 0 | HM84: 0 | HN84: 0 | HO84: 0 | HP84: 0 | HQ84: 0 | HR84: 0 | HS84: 0 | HT84: 0 | HU84: 0 | HV84: 0 | HW84: 0 | HX84: 0 | HY84: 0 | HZ84: 0 | IA84: 0 | IB84: 0 | IC84: 0.1 | ID84: 0.1 | IE84: 0.1 | IF84: 0.1 | IG84: 0.1 | IH84: 0 | II84: 0.1 | IJ84: 0.1 | IK84: 0.1 | IL84: 0.2 | IM84: 0.3 | IN84: 0.3 | IO84: 0.4 | IP84: 0.5 | IQ84: 0.5 | IR84: 0.3 | IS84: 0.1 | IT84: 0.1 | IU84: 0.2 | IV84: 0.4 | IW84: 0.4 | IX84: 0.7 | IY84: 0.8 | IZ84: 1.2 | JA84: 1.3 | JB84: 1.1 | JC84: 1.1 | JD84: 0.8 | JE84: 0.4 | JF84: 0.4 | JG84: 0.5 | JH84: 0.8 | JI84: 1 | JJ84: 0.8 | JK84: 1.6 | JL84: 1.9 | JM84: 2.4 | JN84: 2.2 | JO84: 1.7 | JP84: 1.3 | JQ84: 0.6 | JR84: 0.6 | JS84: 0.5 | JT84: 0.9 | JU84: 0.6 | JV84: 1.4 | JW84: 2.5 | JX84: 3.2 | JY84: 3.3 | JZ84: 3.1 | KA84: 2.3 | KB84: 1.4 | KC84: 0.9 | KD84: 0.7 | KE84: 0.3 | KF84: 0.5 | KG84: 1.8 | KH84: 2.2 | KI84: 3.6 | KJ84: 3.4 | KK84: 3.7 | KL84: 4 | KM84: 1.9 | KN84: 1.4 | KO84: 0.4 | KP84: 0.6 | KQ84: 0.8 | KR84: 0.9 | KS84: 1.9 | KT84: 2 | KU84: 3.5 | KV84: 3.6 | KW84: 3.7 | KX84: 2.8 | KY84: 2.4 | KZ84: 1 | LA84: 1.1 | LB84: 0.4 | LC84: 0.3 | LD84: 0.6 | LE84: 1.8 | LF84: 2 | LG84: 2.6 | LH84: 4.2 | LI84: 3.8 | LJ84: 3.9 | LK84: 3 | LL84: 1.4 | LM84: 0.7 | LN84: 0.6 | LO84: 0.6 | LP84: 0.4 | LQ84: 1.7 | LR84: 2.9 | LS84: 3.2 | LT84: 3.7 | LU84: 3.8 | LV84: 3.4 | LW84: 3.2 | LX84: 2 | LY84: 1 | LZ84: 0.6 | MA84: 0.5 | MB84: 1.1 | MC84: 1 | MD84: 1.7 | ME84: 2.5 | MF84: 3 | MG84: 4.2 | MH84: 3.3 | MI84: 2.4 | MJ84: 1.4 | MK84: 0.4 | ML84: 0.5 | MM84: 0.7 | MN84: - | MO84: - | MP84: - | MQ84: - | MR84: - | MS84: - | MT84: - | MU84: - | MV84: - | MW84: - | MX84: -
B85: Térmica renovable/Otras renovables | C85: - | D85: - | E85: - | F85: - | G85: - | H85: - | I85: - | J85: - | K85: - | L85: - | M85: - | N85: - | O85: - | P85: - | Q85: - | R85: - | S85: - | T85: - | U85: - | V85: - | W85: - | X85: 0 | Y85: 0 | Z85: 0 | AA85: 0 | AB85: 0 | AC85: 0 | AD85: 0 | AE85: 0 | AF85: 0 | AG85: 0 | AH85: 0 | AI85: 0 | AJ85: 0 | AK85: 0 | AL85: 0 | AM85: 0 | AN85: 0 | AO85: 0 | AP85: 0 | AQ85: 0 | AR85: 0 | AS85: 0 | AT85: 0 | AU85: 0 | AV85: 0.1 | AW85: 0.1 | AX85: 0 | AY85: 0 | AZ85: 0 | BA85: 0.1 | BB85: 0.1 | BC85: 0.2 | BD85: 0.1 | BE85: 0.2 | BF85: 0.3 | BG85: 0.3 | BH85: 0.3 | BI85: 0.5 | BJ85: 0.5 | BK85: 0.4 | BL85: 0.5 | BM85: 0.5 | BN85: 0.5 | BO85: 0.5 | BP85: 0.3 | BQ85: 0.4 | BR85: 0.5 | BS85: 0.5 | BT85: 0.5 | BU85: 0.4 | BV85: 0.5 | BW85: 0.4 | BX85: 0.4 | BY85: 0.5 | BZ85: 0.6 | CA85: 0.5 | CB85: 0.6 | CC85: 0.6 | CD85: 0.6 | CE85: 0.6 | CF85: 0.5 | CG85: 0.4 | CH85: 0.4 | CI85: 0.4 | CJ85: 0.4 | CK85: 0.4 | CL85: 0.4 | CM85: 0.4 | CN85: 0.3 | CO85: 0.4 | CP85: 0.4 | CQ85: 0.4 | CR85: 0.4 | CS85: 0.4 | CT85: 0.4 | CU85: 0.2 | CV85: 0.4 | CW85: 0.4 | CX85: 0.5 | CY85: 0.5 | CZ85: 0.5 | DA85: 0.5 | DB85: 0.5 | DC85: 0.4 | DD85: 0.5 | DE85: 0.5 | DF85: 0.4 | DG85: 0.4 | DH85: 0.5 | DI85: 0.5 | DJ85: 0.5 | DK85: 0.5 | DL85: 0.4 | DM85: 0.5 | DN85: 0.5 | DO85: 0.6 | DP85: 0.6 | DQ85: 0.5 | DR85: 0.4 | DS85: 0.4 | DT85: 0.5 | DU85: 0.5 | DV85: 0.5 | DW85: 0.4 | DX85: 0.4 | DY85: 0.5 | DZ85: 0.5 | EA85: 0.5 | EB85: 0.6 | EC85: 0.6 | ED85: 0.6 | EE85: 0.6 | EF85: 0.6 | EG85: 0.7 | EH85: 0.7 | EI85: 0.7 | EJ85: 1 | EK85: 0.9 | EL85: 0.9 | EM85: 1.1 | EN85: 1.1 | EO85: 1 | EP85: 1 | EQ85: 0.5 | ER85: 0.6 | ES85: 0.7 | ET85: 0.7 | EU85: 0.7 | EV85: 0.6 | EW85: 0.7 | EX85: 0.8 | EY85: 0.7 | EZ85: 0.7 | FA85: 0.7 | FB85: 0.8 | FC85: 0.6 | FD85: 0.7 | FE85: 0.8 | FF85: 0.8 | FG85: 0.8 | FH85: 0.7 | FI85: 0.7 | FJ85: 0.8 | FK85: 0.8 | FL85: 0.9 | FM85: 0.8 | FN85: 0.8 | FO85: 0.8 | FP85: 0.7 | FQ85: 0.8 | FR85: 0.8 | FS85: 0.8 | FT85: 0.7 | FU85: 0.7 | FV85: 0.7 | FW85: 0.8 | FX85: 0.8 | FY85: 0.7 | FZ85: 0.7 | GA85: 0.8 | GB85: 0.7 | GC85: 0.8 | GD85: 0.8 | GE85: 0.9 | GF85: 0.8 | GG85: 0.8 | GH85: 0.9 | GI85: 0.8 | GJ85: 0.8 | GK85: 0.8 | GL85: 0.7 | GM85: 0.7 | GN85: 0.7 | GO85: 0.8 | GP85: 0.9 | GQ85: 0.9 | GR85: 0.9 | GS85: 0.8 | GT85: 0.9 | GU85: 0.8 | GV85: 0.9 | GW85: 0.8 | GX85: 0.8 | GY85: 0.8 | GZ85: 0.8 | HA85: 0.8 | HB85: 0.9 | HC85: 0.9 | HD85: 0.9 | HE85: 0.9 | HF85: 0.9 | HG85: 0.9 | HH85: 1 | HI85: 0.9 | HJ85: 0.9 | HK85: 0.9 | HL85: 0.9 | HM85: 0.9 | HN85: 1 | HO85: 1 | HP85: 1 | HQ85: 0.9 | HR85: 1 | HS85: 1 | HT85: 1 | HU85: 1 | HV85: 0.9 | HW85: 1 | HX85: 1.1 | HY85: 1.2 | HZ85: 1.4 | IA85: 1.2 | IB85: 1.1 | IC85: 1 | ID85: 1.1 | IE85: 1.2 | IF85: 1.5 | IG85: 1.1 | IH85: 1.1 | II85: 1 | IJ85: 1 | IK85: 1 | IL85: 1.2 | IM85: 1.3 | IN85: 1.3 | IO85: 1.1 | IP85: 1.2 | IQ85: 1.2 | IR85: 1.3 | IS85: 1.2 | IT85: 1.2 | IU85: 1.3 | IV85: 1.3 | IW85: 1.3 | IX85: 1.5 | IY85: 1.5 | IZ85: 1.3 | JA85: 1.4 | JB85: 1.4 | JC85: 1.5 | JD85: 1.5 | JE85: 1.5 | JF85: 1.4 | JG85: 1.3 | JH85: 1.3 | JI85: 1.4 | JJ85: 1.4 | JK85: 1.5 | JL85: 1.5 | JM85: 1.4 | JN85: 1.3 | JO85: 1.3 | JP85: 1.4 | JQ85: 1.5 | JR85: 1.5 | JS85: 1.5 | JT85: 1.5 | JU85: 1.6 | JV85: 1.7 | JW85: 1.8 | JX85: 1.7 | JY85: 1.7 | JZ85: 1.7 | KA85: 1.7 | KB85: 1.7 | KC85: 1.6 | KD85: 1.7 | KE85: 1.7 | KF85: 1.4 | KG85: 1.4 | KH85: 1.3 | KI85: 1.6 | KJ85: 1.6 | KK85: 1.5 | KL85: 1.7 | KM85: 1.6 | KN85: 1.5 | KO85: 1.4 | KP85: 1.3 | KQ85: 1.3 | KR85: 1.1 | KS85: 1.2 | KT85: 1 | KU85: 1.4 | KV85: 1.4 | KW85: 1.3 | KX85: 1.5 | KY85: 1.5 | KZ85: 1.6 | LA85: 1.5 | LB85: 1.4 | LC85: 1.2 | LD85: 1.3 | LE85: 1.2 | LF85: 1 | LG85: 1.4 | LH85: 1.5 | LI85: 1.4 | LJ85: 1.6 | LK85: 1.5 | LL85: 1.5 | LM85: 1.5 | LN85: 1.5 | LO85: 1.4 | LP85: 1.4 | LQ85: 1.3 | LR85: 1.3 | LS85: 1.6 | LT85: 1.4 | LU85: 1.5 | LV85: 1.6 | LW85: 1.6 | LX85: 1.5 | LY85: 1.4 | LZ85: 1.3 | MA85: 1.4 | MB85: 1.4 | MC85: 1.2 | MD85: 1.2 | ME85: 1.5 | MF85: 1.6 | MG85: 1.6 | MH85: 1.5 | MI85: 1.6 | MJ85: 1.4 | MK85: 1.4 | ML85: 1.5 | MM85: 1.3 | MN85: - | MO85: - | MP85: - | MQ85: - | MR85: - | MS85: - | MT85: - | MU85: - | MV85: - | MW85: - | MX85: -
B86: Residuos renovables | C86: - | D86: - | E86: - | F86: - | G86: - | H86: - | I86: - | J86: - | K86: - | L86: - | M86: - | N86: - | O86: - | P86: - | Q86: - | R86: - | S86: - | T86: - | U86: - | V86: - | W86: - | X86: - | Y86: - | Z86: - | AA86: - | AB86: - | AC86: - | AD86: - | AE86: - | AF86: - | AG86: - | AH86: - | AI86: - | AJ86: - | AK86: - | AL86: - | AM86: - | AN86: - | AO86: - | AP86: - | AQ86: - | AR86: - | AS86: - | AT86: - | AU86: - | AV86: - | AW86: - | AX86: - | AY86: - | AZ86: - | BA86: - | BB86: - | BC86: - | BD86: - | BE86: - | BF86: - | BG86: - | BH86: - | BI86: - | BJ86: - | BK86: - | BL86: - | BM86: - | BN86: - | BO86: - | BP86: - | BQ86: - | BR86: - | BS86: - | BT86: - | BU86: - | BV86: - | BW86: - | BX86: - | BY86: - | BZ86: - | CA86: - | CB86: - | CC86: - | CD86: - | CE86: - | CF86: - | CG86: - | CH86: - | CI86: - | CJ86: - | CK86: - | CL86: - | CM86: - | CN86: - | CO86: - | CP86: - | CQ86: - | CR86: - | CS86: - | CT86: - | CU86: - | CV86: - | CW86: - | CX86: - | CY86: - | CZ86: - | DA86: - | DB86: - | DC86: - | DD86: - | DE86: - | DF86: - | DG86: - | DH86: - | DI86: - | DJ86: - | DK86: - | DL86: - | DM86: - | DN86: - | DO86: - | DP86: - | DQ86: - | DR86: - | DS86: - | DT86: - | DU86: - | DV86: - | DW86: - | DX86: - | DY86: - | DZ86: - | EA86: - | EB86: - | EC86: - | ED86: - | EE86: - | EF86: - | EG86: - | EH86: - | EI86: - | EJ86: - | EK86: - | EL86: - | EM86: - | EN86: - | EO86: - | EP86: - | EQ86: - | ER86: - | ES86: - | ET86: - | EU86: - | EV86: - | EW86: - | EX86: - | EY86: - | EZ86: - | FA86: - | FB86: - | FC86: - | FD86: - | FE86: - | FF86: - | FG86: - | FH86: - | FI86: - | FJ86: - | FK86: - | FL86: - | FM86: - | FN86: - | FO86: - | FP86: - | FQ86: - | FR86: - | FS86: - | FT86: - | FU86: - | FV86: - | FW86: - | FX86: - | FY86: - | FZ86: - | GA86: - | GB86: - | GC86: - | GD86: - | GE86: - | GF86: - | GG86: - | GH86: - | GI86: - | GJ86: - | GK86: - | GL86: - | GM86: - | GN86: - | GO86: - | GP86: - | GQ86: - | GR86: - | GS86: - | GT86: - | GU86: - | GV86: - | GW86: - | GX86: - | GY86: - | GZ86: - | HA86: - | HB86: - | HC86: - | HD86: - | HE86: - | HF86: - | HG86: - | HH86: - | HI86: - | HJ86: - | HK86: - | HL86: - | HM86: - | HN86: - | HO86: - | HP86: - | HQ86: - | HR86: - | HS86: - | HT86: - | HU86: - | HV86: - | HW86: - | HX86: - | HY86: - | HZ86: - | IA86: - | IB86: - | IC86: - | ID86: - | IE86: - | IF86: - | IG86: - | IH86: - | II86: - | IJ86: - | IK86: - | IL86: - | IM86: - | IN86: - | IO86: - | IP86: - | IQ86: - | IR86: - | IS86: - | IT86: - | IU86: 0.2 | IV86: 0.2 | IW86: 0.1 | IX86: 0.2 | IY86: 0.2 | IZ86: 0.3 | JA86: 0.3 | JB86: 0.2 | JC86: 0.2 | JD86: 0.3 | JE86: 0.2 | JF86: 0.2 | JG86: 0.2 | JH86: 0.2 | JI86: 0.1 | JJ86: 0.2 | JK86: 0.2 | JL86: 0.3 | JM86: 0.3 | JN86: 0.2 | JO86: 0.2 | JP86: 0.3 | JQ86: 0.2 | JR86: 0.2 | JS86: 0.2 | JT86: 0.2 | JU86: 0.2 | JV86: 0.1 | JW86: 0.1 | JX86: 0.1 | JY86: 0.1 | JZ86: 0.2 | KA86: 0.2 | KB86: 0.2 | KC86: 0.2 | KD86: 0.2 | KE86: 0.2 | KF86: 0.1 | KG86: 0.1 | KH86: 0.2 | KI86: 0.3 | KJ86: 0.2 | KK86: 0.2 | KL86: 0.2 | KM86: 0.3 | KN86: 0.2 | KO86: 0.3 | KP86: 0.3 | KQ86: 0.2 | KR86: 0.2 | KS86: 0.3 | KT86: 0.2 | KU86: 0.2 | KV86: 0.3 | KW86: 0.3 | KX86: 0.3 | KY86: 0.3 | KZ86: 0.3 | LA86: 0.3 | LB86: 0.3 | LC86: 0.3 | LD86: 0.2 | LE86: 0.3 | LF86: 0.1 | LG86: 0.1 | LH86: 0.3 | LI86: 0.3 | LJ86: 0.3 | LK86: 0.3 | LL86: 0.3 | LM86: 0.3 | LN86: 0.3 | LO86: 0.3 | LP86: 0.3 | LQ86: 0.3 | LR86: 0.3 | LS86: 0.2 | LT86: 0.3 | LU86: 0.3 | LV86: 0.3 | LW86: 0.3 | LX86: 0.3 | LY86: 0.3 | LZ86: 0.3 | MA86: 0.3 | MB86: 0.3 | MC86: 0.3 | MD86: 0.3 | ME86: 0.1 | MF86: 0.3 | MG86: 0.3 | MH86: 0.3 | MI86: 0.3 | MJ86: 0.3 | MK86: 0.3 | ML86: 0.3 | MM86: 0.3 | MN86: - | MO86: - | MP86: - | MQ86: - | MR86: - | MS86: - | MT86: - | MU86: - | MV86: - | MW86: - | MX86: -
B87: Generación renovable | C87: 30 | D87: 31.1 | E87: 21.3 | F87: 16.6 | G87: 17.4 | H87: 16.8 | I87: 13.8 | J87: 12 | K87: 11.1 | L87: 12.7 | M87: 16.8 | N87: 15.2 | O87: 19.6 | P87: 16.6 | Q87: 32.6 | R87: 31.1 | S87: 25.3 | T87: 19.2 | U87: 14.4 | V87: 10.8 | W87: 9.8 | X87: 13.1 | Y87: 16.3 | Z87: 14.9 | AA87: 9.7 | AB87: 6.3 | AC87: 6.4 | AD87: 14 | AE87: 13.3 | AF87: 14.9 | AG87: 13.7 | AH87: 10.6 | AI87: 10.7 | AJ87: 15.7 | AK87: 18.8 | AL87: 23.4 | AM87: 16.6 | AN87: 12.8 | AO87: 11.8 | AP87: 10.6 | AQ87: 17 | AR87: 20 | AS87: 16.1 | AT87: 11.5 | AU87: 10.6 | AV87: 24.1 | AW87: 28.1 | AX87: 21.3 | AY87: 28.7 | AZ87: 25.7 | BA87: 23.6 | BB87: 20.9 | BC87: 22.9 | BD87: 20.6 | BE87: 14.6 | BF87: 11.9 | BG87: 11 | BH87: 13.7 | BI87: 20 | BJ87: 15 | BK87: 21.2 | BL87: 23.5 | BM87: 25.3 | BN87: 17 | BO87: 15 | BP87: 14.8 | BQ87: 13.1 | BR87: 9.7 | BS87: 8.3 | BT87: 8.7 | BU87: 10.5 | BV87: 18.9 | BW87: 40.1 | BX87: 40.8 | BY87: 27.9 | BZ87: 33 | CA87: 32.4 | CB87: 24.4 | CC87: 18.4 | CD87: 14.1 | CE87: 15.6 | CF87: 14.7 | CG87: 17.6 | CH87: 31.3 | CI87: 37.3 | CJ87: 28.8 | CK87: 21.4 | CL87: 18.5 | CM87: 17.7 | CN87: 18.8 | CO87: 15.5 | CP87: 13.8 | CQ87: 12.6 | CR87: 11.8 | CS87: 25.7 | CT87: 36.1 | CU87: 40.3 | CV87: 31.1 | CW87: 20.7 | CX87: 27.4 | CY87: 31.5 | CZ87: 26 | DA87: 18.3 | DB87: 16.5 | DC87: 14.1 | DD87: 15.5 | DE87: 12 | DF87: 9.6 | DG87: 10.2 | DH87: 11.1 | DI87: 15.4 | DJ87: 18.2 | DK87: 22.4 | DL87: 19.1 | DM87: 14.1 | DN87: 11.7 | DO87: 12 | DP87: 13.6 | DQ87: 20.4 | DR87: 19.4 | DS87: 16.5 | DT87: 12.9 | DU87: 12.1 | DV87: 17.9 | DW87: 23.6 | DX87: 17.3 | DY87: 13.2 | DZ87: 13.7 | EA87: 13.8 | EB87: 14.2 | EC87: 18.7 | ED87: 29.9 | EE87: 37.7 | EF87: 38.9 | EG87: 42.2 | EH87: 34.1 | EI87: 24.4 | EJ87: 18.7 | EK87: 15.1 | EL87: 14.7 | EM87: 13.9 | EN87: 15 | EO87: 16.8 | EP87: 12.4 | EQ87: 10.8 | ER87: 12.3 | ES87: 16.3 | ET87: 15.7 | EU87: 16.8 | EV87: 15.2 | EW87: 11.8 | EX87: 10.5 | EY87: 9.7 | EZ87: 12.4 | FA87: 17.7 | FB87: 29.7 | FC87: 34.6 | FD87: 29 | FE87: 30 | FF87: 30.1 | FG87: 26.6 | FH87: 16.9 | FI87: 14.1 | FJ87: 11.4 | FK87: 14 | FL87: 17.2 | FM87: 24 | FN87: 31.9 | FO87: 26.8 | FP87: 23 | FQ87: 21.9 | FR87: 24.5 | FS87: 23.6 | FT87: 19.6 | FU87: 15.2 | FV87: 15.2 | FW87: 14.4 | FX87: 17.8 | FY87: 19.5 | FZ87: 17.4 | GA87: 16 | GB87: 16.3 | GC87: 17.4 | GD87: 21.5 | GE87: 19.6 | GF87: 15.5 | GG87: 14 | GH87: 14.6 | GI87: 11 | GJ87: 14.3 | GK87: 16.2 | GL87: 18.2 | GM87: 13.8 | GN87: 14.6 | GO87: 25.8 | GP87: 25.6 | GQ87: 19.3 | GR87: 14.3 | GS87: 12 | GT87: 16.3 | GU87: 12.9 | GV87: 19.6 | GW87: 25.3 | GX87: 31 | GY87: 18.9 | GZ87: 27.9 | HA87: 31.1 | HB87: 21.3 | HC87: 26.1 | HD87: 20 | HE87: 19.6 | HF87: 20.3 | HG87: 16.6 | HH87: 17.1 | HI87: 18.2 | HJ87: 15.6 | HK87: 17.1 | HL87: 13.8 | HM87: 22.9 | HN87: 28 | HO87: 24.9 | HP87: 25.3 | HQ87: 19.5 | HR87: 17.8 | HS87: 17.9 | HT87: 18.3 | HU87: 24 | HV87: 27 | HW87: 24.9 | HX87: 33.6 | HY87: 31.2 | HZ87: 30.4 | IA87: 30.4 | IB87: 24.7 | IC87: 21.7 | ID87: 20.7 | IE87: 19.7 | IF87: 24.1 | IG87: 33.8 | IH87: 36.5 | II87: 40.3 | IJ87: 40.2 | IK87: 46.3 | IL87: 39.2 | IM87: 40 | IN87: 33.2 | IO87: 28 | IP87: 26.8 | IQ87: 22 | IR87: 29.1 | IS87: 33.3 | IT87: 38 | IU87: 40.1 | IV87: 36 | IW87: 40 | IX87: 39.2 | IY87: 34.8 | IZ87: 30 | JA87: 28.5 | JB87: 25.6 | JC87: 22.4 | JD87: 26.5 | JE87: 31.6 | JF87: 33.6 | JG87: 26 | JH87: 30.1 | JI87: 28.4 | JJ87: 38.5 | JK87: 36.2 | JL87: 33.1 | JM87: 28.7 | JN87: 27.2 | JO87: 29.6 | JP87: 26.5 | JQ87: 34.5 | JR87: 39.2 | JS87: 43.3 | JT87: 45.7 | JU87: 50.2 | JV87: 53.7 | JW87: 47.1 | JX87: 44.7 | JY87: 33.2 | JZ87: 34.9 | KA87: 31.9 | KB87: 34.2 | KC87: 47.4 | KD87: 36.8 | KE87: 50.8 | KF87: 57.9 | KG87: 54.1 | KH87: 52.1 | KI87: 44.3 | KJ87: 37.8 | KK87: 36.5 | KL87: 33.7 | KM87: 25.7 | KN87: 30.6 | KO87: 41.3 | KP87: 40.4 | KQ87: 36.2 | KR87: 47.2 | KS87: 45.9 | KT87: 40.4 | KU87: 48.2 | KV87: 35.4 | KW87: 30.3 | KX87: 30.9 | KY87: 30.6 | KZ87: 33.6 | LA87: 33.5 | LB87: 28.1 | LC87: 45.2 | LD87: 53.3 | LE87: 50.9 | LF87: 53.1 | LG87: 54.1 | LH87: 42.3 | LI87: 36.2 | LJ87: 37.2 | LK87: 30.2 | LL87: 25.3 | LM87: 30.4 | LN87: 25.9 | LO87: 32.6 | LP87: 38.6 | LQ87: 43.6 | LR87: 42.1 | LS87: 37.6 | LT87: 32.4 | LU87: 30.8 | LV87: 30.6 | LW87: 29.8 | LX87: 26.6 | LY87: 27.3 | LZ87: 34.3 | MA87: 38.5 | MB87: 38.9 | MC87: 57 | MD87: 53 | ME87: 43.8 | MF87: 42.8 | MG87: 37.3 | MH87: 33.5 | MI87: 29.7 | MJ87: 33.2 | MK87: 35.4 | ML87: 37.4 | MM87: 38.9 | MN87: - | MO87: - | MP87: - | MQ87: - | MR87: - | MS87: - | MT87: - | MU87: - | MV87: - | MW87: - | MX87: -
B89: Estructura de generación renovable mensual Islas Baleares (%) | C89: 2006-01-01 | D89: 2006-02-01 | E89: 2006-03-01 | F89: 2006-04-01 | G89: 2006-05-01 | H89: 2006-06-01 | I89: 2006-07-01 | J89: 2006-08-01 | K89: 2006-09-01 | L89: 2006-10-01 | M89: 2006-11-01 | N89: 2006-12-01 | O89: 2007-01-01 | P89: 2007-02-01 | Q89: 2007-03-01 | R89: 2007-04-01 | S89: 2007-05-01 | T89: 2007-06-01 | U89: 2007-07-01 | V89: 2007-08-01 | W89: 2007-09-01 | X89: 2007-10-01 | Y89: 2007-11-01 | Z89: 2007-12-01 | AA89: 2008-01-01 | AB89: 2008-02-01 | AC89: 2008-03-01 | AD89: 2008-04-01 | AE89: 2008-05-01 | AF89: 2008-06-01 | AG89: 2008-07-01 | AH89: 2008-08-01 | AI89: 2008-09-01 | AJ89: 2008-10-01 | AK89: 2008-11-01 | AL89: 2008-12-01 | AM89: 2009-01-01 | AN89: 2009-02-01 | AO89: 2009-03-01 | AP89: 2009-04-01 | AQ89: 2009-05-01 | AR89: 2009-06-01 | AS89: 2009-07-01 | AT89: 2009-08-01 | AU89: 2009-09-01 | AV89: 2009-10-01 | AW89: 2009-11-01 | AX89: 2009-12-01 | AY89: 2010-01-01 | AZ89: 2010-02-01 | BA89: 2010-03-01 | BB89: 2010-04-01 | BC89: 2010-05-01 | BD89: 2010-06-01 | BE89: 2010-07-01 | BF89: 2010-08-01 | BG89: 2010-09-01 | BH89: 2010-10-01 | BI89: 2010-11-01 | BJ89: 2010-12-01 | BK89: 2011-01-01 | BL89: 2011-02-01 | BM89: 2011-03-01 | BN89: 2011-04-01 | BO89: 2011-05-01 | BP89: 2011-06-01 | BQ89: 2011-07-01 | BR89: 2011-08-01 | BS89: 2011-09-01 | BT89: 2011-10-01 | BU89: 2011-11-01 | BV89: 2011-12-01 | BW89: 2012-01-01 | BX89: 2012-02-01 | BY89: 2012-03-01 | BZ89: 2012-04-01 | CA89: 2012-05-01 | CB89: 2012-06-01 | CC89: 2012-07-01 | CD89: 2012-08-01 | CE89: 2012-09-01 | CF89: 2012-10-01 | CG89: 2012-11-01 | CH89: 2012-12-01 | CI89: 2013-01-01 | CJ89: 2013-02-01 | CK89: 2013-03-01 | CL89: 2013-04-01 | CM89: 2013-05-01 | CN89: 2013-06-01 | CO89: 2013-07-01 | CP89: 2013-08-01 | CQ89: 2013-09-01 | CR89: 2013-10-01 | CS89: 2013-11-01 | CT89: 2013-12-01 | CU89: 2014-01-01 | CV89: 2014-02-01 | CW89: 2014-03-01 | CX89: 2014-04-01 | CY89: 2014-05-01 | CZ89: 2014-06-01 | DA89: 2014-07-01 | DB89: 2014-08-01 | DC89: 2014-09-01 | DD89: 2014-10-01 | DE89: 2014-11-01 | DF89: 2014-12-01 | DG89: 2015-01-01 | DH89: 2015-02-01 | DI89: 2015-03-01 | DJ89: 2015-04-01 | DK89: 2015-05-01 | DL89: 2015-06-01 | DM89: 2015-07-01 | DN89: 2015-08-01 | DO89: 2015-09-01 | DP89: 2015-10-01 | DQ89: 2015-11-01 | DR89: 2015-12-01 | DS89: 2016-01-01 | DT89: 2016-02-01 | DU89: 2016-03-01 | DV89: 2016-04-01 | DW89: 2016-05-01 | DX89: 2016-06-01 | DY89: 2016-07-01 | DZ89: 2016-08-01 | EA89: 2016-09-01 | EB89: 2016-10-01 | EC89: 2016-11-01 | ED89: 2016-12-01 | EE89: 2017-01-01 | EF89: 2017-02-01 | EG89: 2017-03-01 | EH89: 2017-04-01 | EI89: 2017-05-01 | EJ89: 2017-06-01 | EK89: 2017-07-01 | EL89: 2017-08-01 | EM89: 2017-09-01 | EN89: 2017-10-01 | EO89: 2017-11-01 | EP89: 2017-12-01 | EQ89: 2018-01-01 | ER89: 2018-02-01 | ES89: 2018-03-01 | ET89: 2018-04-01 | EU89: 2018-05-01 | EV89: 2018-06-01 | EW89: 2018-07-01 | EX89: 2018-08-01 | EY89: 2018-09-01 | EZ89: 2018-10-01 | FA89: 2018-11-01 | FB89: 2018-12-01 | FC89: 2019-01-01 | FD89: 2019-02-01 | FE89: 2019-03-01 | FF89: 2019-04-01 | FG89: 2019-05-01 | FH89: 2019-06-01 | FI89: 2019-07-01 | FJ89: 2019-08-01 | FK89: 2019-09-01 | FL89: 2019-10-01 | FM89: 2019-11-01 | FN89: 2019-12-01
B90: Eólica | C90: 0.1 | D90: 0.1 | E90: 0.1 | F90: 0.1 | G90: 0.1 | H90: 0.1 | I90: 0 | J90: 0.1 | K90: 0.1 | L90: 0.1 | M90: 0.1 | N90: 0.1 | O90: 0.1 | P90: 0.1 | Q90: 0.1 | R90: 0.1 | S90: 0.1 | T90: 0.1 | U90: 0.1 | V90: 0.1 | W90: 0.1 | X90: 0.1 | Y90: 0.2 | Z90: 0.2 | AA90: 0.1 | AB90: 0.1 | AC90: 0.1 | AD90: 0.2 | AE90: 0 | AF90: 0.1 | AG90: 0 | AH90: 0.1 | AI90: 0.1 | AJ90: 0.1 | AK90: 0.1 | AL90: 0.1 | AM90: 0.1 | AN90: 0.2 | AO90: 0.1 | AP90: 0.1 | AQ90: 0.1 | AR90: 0.1 | AS90: 0 | AT90: 0 | AU90: 0.1 | AV90: 0.1 | AW90: 0.1 | AX90: 0.2 | AY90: 0.1 | AZ90: 0.2 | BA90: 0.1 | BB90: 0.1 | BC90: 0.1 | BD90: 0.1 | BE90: 0.1 | BF90: 0.1 | BG90: 0.1 | BH90: 0.1 | BI90: 0.1 | BJ90: 0.1 | BK90: 0.1 | BL90: 0.1 | BM90: 0.1 | BN90: 0.1 | BO90: 0.1 | BP90: 0.1 | BQ90: 0.1 | BR90: 0.1 | BS90: 0 | BT90: 0.1 | BU90: 0.1 | BV90: 0.1 | BW90: 0.1 | BX90: 0.2 | BY90: 0.1 | BZ90: 0.2 | CA90: 0.1 | CB90: 0.1 | CC90: 0.1 | CD90: 0 | CE90: 0.2 | CF90: 0.1 | CG90: 0.2 | CH90: 0.2 | CI90: 0.2 | CJ90: 0.2 | CK90: 0.2 | CL90: 0.2 | CM90: 0.1 | CN90: 0.1 | CO90: 0 | CP90: 0.1 | CQ90: 0.1 | CR90: 0.1 | CS90: 0.3 | CT90: 0.1 | CU90: 0.2 | CV90: 0.2 | CW90: 0.2 | CX90: 0.1 | CY90: 0.1 | CZ90: 0.1 | DA90: 0.1 | DB90: 0.1 | DC90: 0.1 | DD90: 0.1 | DE90: 0.2 | DF90: 0.2 | DG90: 0.2 | DH90: 0.2 | DI90: 0.2 | DJ90: 0.1 | DK90: 0.2 | DL90: 0.1 | DM90: 0.1 | DN90: 0 | DO90: 0.1 | DP90: 0.2 | DQ90: 0.1 | DR90: 0 | DS90: 0.2 | DT90: 0.2 | DU90: 0.2 | DV90: 0.2 | DW90: 0.1 | DX90: 0.1 | DY90: 0.1 | DZ90: 0.1 | EA90: 0 | EB90: 0.1 | EC90: 0.1 | ED90: 0.1 | EE90: 0.1 | EF90: 0.1 | EG90: 0.1 | EH90: 0.1 | EI90: 0 | EJ90: 0 | EK90: 0 | EL90: 0 | EM90: 0 | EN90: 0.1 | EO90: 0.1 | EP90: 0.1 | EQ90: 0.1 | ER90: 0.1 | ES90: 0.1 | ET90: 0.1 | EU90: 0.1 | EV90: 0 | EW90: 0 | EX90: 0 | EY90: 0 | EZ90: 0.2 | FA90: 0.2 | FB90: 0.1 | FC90: 0.2 | FD90: - | FE90: - | FF90: - | FG90: - | FH90: - | FI90: - | FJ90: - | FK90: - | FL90: - | FM90: - | FN90: -
B91: Solar fotovoltaica | C91: 0 | D91: 0 | E91: 0 | F91: 0 | G91: 0 | H91: 0 | I91: 0 | J91: 0 | K91: 0 | L91: 0 | M91: 0 | N91: 0 | O91: 0 | P91: 0 | Q91: 0 | R91: 0 | S91: 0 | T91: 0 | U91: 0 | V91: 0 | W91: 0 | X91: 0 | Y91: 0 | Z91: 0 | AA91: 0 | AB91: 0 | AC91: 0.1 | AD91: 0.2 | AE91: 0.2 | AF91: 0.3 | AG91: 0.4 | AH91: 0.7 | AI91: 0.9 | AJ91: 0.9 | AK91: 0.8 | AL91: 0.8 | AM91: 0.7 | AN91: 1.1 | AO91: 1.6 | AP91: 1.6 | AQ91: 1.9 | AR91: 1.7 | AS91: 1.4 | AT91: 1.3 | AU91: 1.3 | AV91: 1.4 | AW91: 1.3 | AX91: 0.8 | AY91: 0.8 | AZ91: 1.1 | BA91: 1.5 | BB91: 2 | BC91: 2.1 | BD91: 1.9 | BE91: 1.7 | BF91: 1.6 | BG91: 1.6 | BH91: 1.5 | BI91: 1.4 | BJ91: 1 | BK91: 1.1 | BL91: 1.6 | BM91: 1.8 | BN91: 2.5 | BO91: 2.4 | BP91: 2.1 | BQ91: 1.7 | BR91: 1.8 | BS91: 1.7 | BT91: 1.9 | BU91: 1.4 | BV91: 1.3 | BW91: 1.4 | BX91: 1.5 | BY91: 2.5 | BZ91: 2.8 | CA91: 2.9 | CB91: 2.4 | CC91: 2.2 | CD91: 2 | CE91: 2.5 | CF91: 2.5 | CG91: 2 | CH91: 2 | CI91: 2.2 | CJ91: 2.2 | CK91: 3.4 | CL91: 3.6 | CM91: 3.5 | CN91: 3.8 | CO91: 3 | CP91: 2.7 | CQ91: 2.7 | CR91: 2.5 | CS91: 1.8 | CT91: 1.7 | CU91: 1.8 | CV91: 2.8 | CW91: 3.4 | CX91: 4.1 | CY91: 3.6 | CZ91: 3.5 | DA91: 3 | DB91: 2.7 | DC91: 2.4 | DD91: 2.9 | DE91: 2.4 | DF91: 1.7 | DG91: 2 | DH91: 2.2 | DI91: 3 | DJ91: 4.1 | DK91: 3.5 | DL91: 3.4 | DM91: 2.7 | DN91: 2.5 | DO91: 2.4 | DP91: 2.6 | DQ91: 2.7 | DR91: 2 | DS91: 2.2 | DT91: 2.4 | DU91: 3.2 | DV91: 3.4 | DW91: 3.4 | DX91: 3.2 | DY91: 2.8 | DZ91: 2.7 | EA91: 2.3 | EB91: 2.2 | EC91: 2 | ED91: 1.7 | EE91: 1.5 | EF91: 2.2 | EG91: 3.7 | EH91: 3.5 | EI91: 3.3 | EJ91: 2.9 | EK91: 2.5 | EL91: 2.3 | EM91: 2.5 | EN91: 2.5 | EO91: 2.2 | EP91: 1.5 | EQ91: 2 | ER91: 1.5 | ES91: 2.7 | ET91: 3.2 | EU91: 3.1 | EV91: 2.9 | EW91: 2.5 | EX91: 2 | EY91: 1.9 | EZ91: 2 | FA91: 1.8 | FB91: 2.1 | FC91: 2.1 | FD91: - | FE91: - | FF91: - | FG91: - | FH91: - | FI91: - | FJ91: - | FK91: - | FL91: - | FM91: - | FN91: -
B92: Térmica renovable/Otras renovables | C92: - | D92: - | E92: - | F92: - | G92: - | H92: - | I92: - | J92: - | K92: - | L92: - | M92: - | N92: - | O92: - | P92: - | Q92: - | R92: - | S92: - | T92: - | U92: - | V92: - | W92: - | X92: - | Y92: - | Z92: - | AA92: - | AB92: - | AC92: - | AD92: - | AE92: - | AF92: - | AG92: - | AH92: - | AI92: - | AJ92: - | AK92: - | AL92: - | AM92: - | AN92: - | AO92: - | AP92: - | AQ92: - | AR92: - | AS92: - | AT92: - | AU92: - | AV92: - | AW92: - | AX92: - | AY92: - | AZ92: - | BA92: - | BB92: - | BC92: - | BD92: - | BE92: - | BF92: - | BG92: - | BH92: - | BI92: - | BJ92: - | BK92: - | BL92: - | BM92: - | BN92: - | BO92: - | BP92: - | BQ92: - | BR92: - | BS92: - | BT92: 0 | BU92: 0 | BV92: 0 | BW92: 0 | BX92: 0 | BY92: 0 | BZ92: 0 | CA92: 0 | CB92: 0 | CC92: 0 | CD92: 0 | CE92: 0 | CF92: 0 | CG92: 0 | CH92: 0 | CI92: 0 | CJ92: 0 | CK92: 0 | CL92: 0 | CM92: 0 | CN92: 0 | CO92: 0 | CP92: 0 | CQ92: 0 | CR92: 0 | CS92: 0 | CT92: 0 | CU92: 0 | CV92: 0.1 | CW92: 0.1 | CX92: 0.1 | CY92: 0.1 | CZ92: 0 | DA92: 0 | DB92: 0 | DC92: 0 | DD92: 0 | DE92: 0.1 | DF92: 0.1 | DG92: 0.1 | DH92: 0.1 | DI92: 0 | DJ92: 0.1 | DK92: 0 | DL92: 0 | DM92: 0 | DN92: 0 | DO92: 0 | DP92: 0 | DQ92: 0 | DR92: 0.1 | DS92: 0.1 | DT92: 0.1 | DU92: 0.1 | DV92: 0 | DW92: 0 | DX92: 0 | DY92: 0 | DZ92: 0 | EA92: 0 | EB92: 0 | EC92: 0 | ED92: 0 | EE92: 0 | EF92: 0.1 | EG92: 0 | EH92: 0.1 | EI92: 0.1 | EJ92: 0 | EK92: 0 | EL92: 0 | EM92: 0 | EN92: 0 | EO92: 0 | EP92: 0 | EQ92: 0.1 | ER92: 0 | ES92: 0 | ET92: 0 | EU92: 0 | EV92: 0 | EW92: 0 | EX92: 0 | EY92: 0 | EZ92: 0 | FA92: 0 | FB92: 0 | FC92: 0 | FD92: - | FE92: - | FF92: - | FG92: - | FH92: - | FI92: - | FJ92: - | FK92: - | FL92: - | FM92: - | FN92: -
B93: Residuos renovables | C93: - | D93: - | E93: - | F93: - | G93: - | H93: - | I93: - | J93: - | K93: - | L93: - | M93: - | N93: - | O93: - | P93: - | Q93: - | R93: - | S93: - | T93: - | U93: - | V93: - | W93: - | X93: - | Y93: - | Z93: - | AA93: - | AB93: - | AC93: - | AD93: - | AE93: - | AF93: - | AG93: - | AH93: - | AI93: - | AJ93: - | AK93: - | AL93: - | AM93: - | AN93: - | AO93: - | AP93: - | AQ93: - | AR93: - | AS93: - | AT93: - | AU93: - | AV93: - | AW93: - | AX93: - | AY93: - | AZ93: - | BA93: - | BB93: - | BC93: - | BD93: - | BE93: - | BF93: - | BG93: - | BH93: - | BI93: - | BJ93: - | BK93: 1.5 | BL93: 1.5 | BM93: 1.4 | BN93: 2.3 | BO93: 1.3 | BP93: 2.4 | BQ93: 2.2 | BR93: 2.1 | BS93: 2.5 | BT93: 2.9 | BU93: 2.8 | BV93: 3.1 | BW93: 2.4 | BX93: 1.7 | BY93: 2.4 | BZ93: 2.5 | CA93: 2.7 | CB93: 2 | CC93: 2.3 | CD93: 2.2 | CE93: 2.4 | CF93: 1.9 | CG93: 2.3 | CH93: 3.9 | CI93: 2.6 | CJ93: 1.8 | CK93: 2.4 | CL93: 2.5 | CM93: 2.3 | CN93: 3.2 | CO93: 2.3 | CP93: 2.4 | CQ93: 3.5 | CR93: 2.7 | CS93: 2.6 | CT93: 2.5 | CU93: 2.4 | CV93: 2.2 | CW93: 2.9 | CX93: 3.8 | CY93: 1.5 | CZ93: 3.4 | DA93: 3.3 | DB93: 2.4 | DC93: 3.3 | DD93: 4.1 | DE93: 3.1 | DF93: 3.4 | DG93: 2.7 | DH93: 2.2 | DI93: 3.4 | DJ93: 4.4 | DK93: 3.8 | DL93: 3.4 | DM93: 2.5 | DN93: 2.6 | DO93: 3.7 | DP93: 4.2 | DQ93: 4.8 | DR93: 4 | DS93: 2.7 | DT93: 1.6 | DU93: 2.6 | DV93: 3.7 | DW93: 4 | DX93: 3.3 | DY93: 2.3 | DZ93: 2.5 | EA93: 2.7 | EB93: 3.5 | EC93: 2.8 | ED93: 2.7 | EE93: 2 | EF93: 2.2 | EG93: 3.2 | EH93: 4.1 | EI93: 2.8 | EJ93: 3 | EK93: 2.7 | EL93: 2.7 | EM93: 3.6 | EN93: 3.7 | EO93: 3.4 | EP93: 2.7 | EQ93: 2.1 | ER93: 1.2 | ES93: 3 | ET93: 2.9 | EU93: 2.7 | EV93: 3.5 | EW93: 2.8 | EX93: 2.7 | EY93: 2.9 | EZ93: 3.6 | FA93: 2.1 | FB93: 4.3 | FC93: 2.8 | FD93: - | FE93: - | FF93: - | FG93: - | FH93: - | FI93: - | FJ93: - | FK93: - | FL93: - | FM93: - | FN93: -
B94: Generación renovable | C94: 0.1 | D94: 0.1 | E94: 0.1 | F94: 0.1 | G94: 0.1 | H94: 0.1 | I94: 0 | J94: 0.1 | K94: 0.1 | L94: 0.1 | M94: 0.1 | N94: 0.1 | O94: 0.1 | P94: 0.1 | Q94: 0.1 | R94: 0.1 | S94: 0.1 | T94: 0.1 | U94: 0.1 | V94: 0.1 | W94: 0.1 | X94: 0.1 | Y94: 0.2 | Z94: 0.2 | AA94: 0.1 | AB94: 0.1 | AC94: 0.2 | AD94: 0.4 | AE94: 0.2 | AF94: 0.4 | AG94: 0.4 | AH94: 0.8 | AI94: 1 | AJ94: 1 | AK94: 0.9 | AL94: 0.9 | AM94: 0.8 | AN94: 1.3 | AO94: 1.7 | AP94: 1.7 | AQ94: 2 | AR94: 1.8 | AS94: 1.4 | AT94: 1.3 | AU94: 1.4 | AV94: 1.5 | AW94: 1.4 | AX94: 1 | AY94: 0.9 | AZ94: 1.3 | BA94: 1.6 | BB94: 2.1 | BC94: 2.2 | BD94: 2 | BE94: 1.8 | BF94: 1.7 | BG94: 1.7 | BH94: 1.6 | BI94: 1.5 | BJ94: 1.1 | BK94: 2.7 | BL94: 3.2 | BM94: 3.3 | BN94: 4.9 | BO94: 3.8 | BP94: 4.6 | BQ94: 4 | BR94: 4 | BS94: 4.2 | BT94: 4.9 | BU94: 4.3 | BV94: 4.5 | BW94: 3.9 | BX94: 3.4 | BY94: 5 | BZ94: 5.5 | CA94: 5.7 | CB94: 4.5 | CC94: 4.6 | CD94: 4.2 | CE94: 5.1 | CF94: 4.5 | CG94: 4.5 | CH94: 6.1 | CI94: 5 | CJ94: 4.2 | CK94: 6 | CL94: 6.3 | CM94: 5.9 | CN94: 7.1 | CO94: 5.3 | CP94: 5.2 | CQ94: 6.3 | CR94: 5.3 | CS94: 4.7 | CT94: 4.3 | CU94: 4.4 | CV94: 5.3 | CW94: 6.6 | CX94: 8.1 | CY94: 5.3 | CZ94: 7 | DA94: 6.4 | DB94: 5.2 | DC94: 5.8 | DD94: 7.1 | DE94: 5.8 | DF94: 5.4 | DG94: 5 | DH94: 4.7 | DI94: 6.6 | DJ94: 8.7 | DK94: 7.5 | DL94: 6.9 | DM94: 5.3 | DN94: 5.1 | DO94: 6.2 | DP94: 7 | DQ94: 7.6 | DR94: 6.1 | DS94: 5.2 | DT94: 4.3 | DU94: 6.1 | DV94: 7.3 | DW94: 7.5 | DX94: 6.6 | DY94: 5.2 | DZ94: 5.3 | EA94: 5 | EB94: 5.8 | EC94: 4.9 | ED94: 4.5 | EE94: 3.6 | EF94: 4.6 | EG94: 7 | EH94: 7.8 | EI94: 6.2 | EJ94: 5.9 | EK94: 5.2 | EL94: 5 | EM94: 6.1 | EN94: 6.3 | EO94: 5.7 | EP94: 4.3 | EQ94: 4.3 | ER94: 2.8 | ES94: 5.8 | ET94: 6.2 | EU94: 5.9 | EV94: 6.4 | EW94: 5.3 | EX94: 4.7 | EY94: 4.8 | EZ94: 5.8 | FA94: 4.1 | FB94: 6.5 | FC94: 5.1 | FD94: - | FE94: - | FF94: - | FG94: - | FH94: - | FI94: - | FJ94: - | FK94: - | FL94: - | FM94: - | FN94: -
B96: Estructura de generación renovable mensual Islas Canarias (%) | C96: 2006-01-01 | D96: 2006-02-01 | E96: 2006-03-01 | F96: 2006-04-01 | G96: 2006-05-01 | H96: 2006-06-01 | I96: 2006-07-01 | J96: 2006-08-01 | K96: 2006-09-01 | L96: 2006-10-01 | M96: 2006-11-01 | N96: 2006-12-01 | O96: 2007-01-01 | P96: 2007-02-01 | Q96: 2007-03-01 | R96: 2007-04-01 | S96: 2007-05-01 | T96: 2007-06-01 | U96: 2007-07-01 | V96: 2007-08-01 | W96: 2007-09-01 | X96: 2007-10-01 | Y96: 2007-11-01 | Z96: 2007-12-01 | AA96: 2008-01-01 | AB96: 2008-02-01 | AC96: 2008-03-01 | AD96: 2008-04-01 | AE96: 2008-05-01 | AF96: 2008-06-01 | AG96: 2008-07-01 | AH96: 2008-08-01 | AI96: 2008-09-01 | AJ96: 2008-10-01 | AK96: 2008-11-01 | AL96: 2008-12-01 | AM96: 2009-01-01 | AN96: 2009-02-01 | AO96: 2009-03-01 | AP96: 2009-04-01 | AQ96: 2009-05-01 | AR96: 2009-06-01 | AS96: 2009-07-01 | AT96: 2009-08-01 | AU96: 2009-09-01 | AV96: 2009-10-01 | AW96: 2009-11-01 | AX96: 2009-12-01 | AY96: 2010-01-01 | AZ96: 2010-02-01 | BA96: 2010-03-01 | BB96: 2010-04-01 | BC96: 2010-05-01 | BD96: 2010-06-01 | BE96: 2010-07-01 | BF96: 2010-08-01 | BG96: 2010-09-01 | BH96: 2010-10-01 | BI96: 2010-11-01 | BJ96: 2010-12-01 | BK96: 2011-01-01 | BL96: 2011-02-01 | BM96: 2011-03-01 | BN96: 2011-04-01 | BO96: 2011-05-01 | BP96: 2011-06-01 | BQ96: 2011-07-01 | BR96: 2011-08-01 | BS96: 2011-09-01 | BT96: 2011-10-01 | BU96: 2011-11-01 | BV96: 2011-12-01 | BW96: 2012-01-01 | BX96: 2012-02-01 | BY96: 2012-03-01 | BZ96: 2012-04-01 | CA96: 2012-05-01 | CB96: 2012-06-01 | CC96: 2012-07-01 | CD96: 2012-08-01 | CE96: 2012-09-01 | CF96: 2012-10-01 | CG96: 2012-11-01 | CH96: 2012-12-01 | CI96: 2013-01-01 | CJ96: 2013-02-01 | CK96: 2013-03-01 | CL96: 2013-04-01 | CM96: 2013-05-01 | CN96: 2013-06-01 | CO96: 2013-07-01 | CP96: 2013-08-01 | CQ96: 2013-09-01 | CR96: 2013-10-01 | CS96: 2013-11-01 | CT96: 2013-12-01 | CU96: 2014-01-01 | CV96: 2014-02-01 | CW96: 2014-03-01 | CX96: 2014-04-01 | CY96: 2014-05-01 | CZ96: 2014-06-01 | DA96: 2014-07-01 | DB96: 2014-08-01 | DC96: 2014-09-01 | DD96: 2014-10-01 | DE96: 2014-11-01 | DF96: 2014-12-01 | DG96: 2015-01-01 | DH96: 2015-02-01 | DI96: 2015-03-01 | DJ96: 2015-04-01 | DK96: 2015-05-01 | DL96: 2015-06-01 | DM96: 2015-07-01 | DN96: 2015-08-01 | DO96: 2015-09-01 | DP96: 2015-10-01 | DQ96: 2015-11-01 | DR96: 2015-12-01 | DS96: 2016-01-01 | DT96: 2016-02-01 | DU96: 2016-03-01 | DV96: 2016-04-01 | DW96: 2016-05-01 | DX96: 2016-06-01 | DY96: 2016-07-01 | DZ96: 2016-08-01 | EA96: 2016-09-01 | EB96: 2016-10-01 | EC96: 2016-11-01 | ED96: 2016-12-01 | EE96: 2017-01-01 | EF96: 2017-02-01 | EG96: 2017-03-01 | EH96: 2017-04-01 | EI96: 2017-05-01 | EJ96: 2017-06-01 | EK96: 2017-07-01 | EL96: 2017-08-01 | EM96: 2017-09-01 | EN96: 2017-10-01 | EO96: 2017-11-01 | EP96: 2017-12-01 | EQ96: 2018-01-01 | ER96: 2018-02-01 | ES96: 2018-03-01 | ET96: 2018-04-01 | EU96: 2018-05-01 | EV96: 2018-06-01 | EW96: 2018-07-01 | EX96: 2018-08-01 | EY96: 2018-09-01 | EZ96: 2018-10-01 | FA96: 2018-11-01 | FB96: 2018-12-01 | FC96: 2019-01-01 | FD96: 2019-02-01 | FE96: 2019-03-01 | FF96: 2019-04-01 | FG96: 2019-05-01 | FH96: 2019-06-01 | FI96: 2019-07-01 | FJ96: 2019-08-01 | FK96: 2019-09-01 | FL96: 2019-10-01 | FM96: 2019-11-01 | FN96: 2019-12-01
B97: Hidráulica | C97: - | D97: - | E97: - | F97: - | G97: - | H97: - | I97: - | J97: - | K97: - | L97: - | M97: - | N97: - | O97: - | P97: - | Q97: - | R97: - | S97: - | T97: - | U97: 0 | V97: 0 | W97: 0 | X97: 0 | Y97: 0 | Z97: 0 | AA97: 0 | AB97: 0 | AC97: 0 | AD97: - | AE97: 0 | AF97: 0 | AG97: 0 | AH97: 0 | AI97: - | AJ97: - | AK97: - | AL97: - | AM97: 0 | AN97: 0 | AO97: 0 | AP97: 0 | AQ97: - | AR97: - | AS97: - | AT97: - | AU97: - | AV97: - | AW97: - | AX97: - | AY97: - | AZ97: - | BA97: - | BB97: - | BC97: - | BD97: - | BE97: - | BF97: - | BG97: - | BH97: - | BI97: - | BJ97: - | BK97: 0 | BL97: 0 | BM97: 0 | BN97: 0 | BO97: 0 | BP97: 0 | BQ97: 0 | BR97: 0 | BS97: 0 | BT97: 0 | BU97: 0 | BV97: 0 | BW97: 0 | BX97: 0 | BY97: 0 | BZ97: 0 | CA97: 0 | CB97: 0 | CC97: 0 | CD97: 0 | CE97: 0 | CF97: 0 | CG97: 0 | CH97: 0 | CI97: 0 | CJ97: 0 | CK97: 0 | CL97: 0 | CM97: 0 | CN97: 0 | CO97: 0 | CP97: 0 | CQ97: 0 | CR97: 0 | CS97: 0 | CT97: 0 | CU97: 0 | CV97: 0 | CW97: 0 | CX97: 0 | CY97: 0 | CZ97: 0 | DA97: 0 | DB97: 0 | DC97: 0 | DD97: 0 | DE97: 0 | DF97: 0 | DG97: 0 | DH97: 0 | DI97: 0 | DJ97: 0 | DK97: 0 | DL97: 0 | DM97: 0 | DN97: 0 | DO97: 0 | DP97: 0 | DQ97: 0 | DR97: 0 | DS97: 0 | DT97: 0 | DU97: 0 | DV97: 0 | DW97: 0 | DX97: 0 | DY97: 0 | DZ97: 0 | EA97: 0 | EB97: 0 | EC97: 0 | ED97: 0 | EE97: 0 | EF97: 0 | EG97: 0 | EH97: 0 | EI97: 0 | EJ97: 0 | EK97: 0 | EL97: 0 | EM97: 0 | EN97: 0 | EO97: 0 | EP97: 0 | EQ97: 0 | ER97: 0 | ES97: 0 | ET97: 0 | EU97: 0 | EV97: 0 | EW97: 0 | EX97: 0 | EY97: 0 | EZ97: 0 | FA97: 0 | FB97: 0 | FC97: 0 | FD97: - | FE97: - | FF97: - | FG97: - | FH97: - | FI97: - | FJ97: - | FK97: - | FL97: - | FM97: - | FN97: -
B98: Hidroeólica | C98: - | D98: - | E98: - | F98: - | G98: - | H98: - | I98: - | J98: - | K98: - | L98: - | M98: - | N98: - | O98: - | P98: - | Q98: - | R98: - | S98: - | T98: - | U98: - | V98: - | W98: - | X98: - | Y98: - | Z98: - | AA98: - | AB98: - | AC98: - | AD98: - | AE98: - | AF98: - | AG98: - | AH98: - | AI98: - | AJ98: - | AK98: - | AL98: - | AM98: - | AN98: - | AO98: - | AP98: - | AQ98: - | AR98: - | AS98: - | AT98: - | AU98: - | AV98: - | AW98: - | AX98: - | AY98: - | AZ98: - | BA98: - | BB98: - | BC98: - | BD98: - | BE98: - | BF98: - | BG98: - | BH98: - | BI98: - | BJ98: - | BK98: - | BL98: - | BM98: - | BN98: - | BO98: - | BP98: - | BQ98: - | BR98: - | BS98: - | BT98: - | BU98: - | BV98: - | BW98: - | BX98: - | BY98: - | BZ98: - | CA98: - | CB98: - | CC98: - | CD98: - | CE98: - | CF98: - | CG98: - | CH98: - | CI98: - | CJ98: - | CK98: - | CL98: - | CM98: - | CN98: - | CO98: - | CP98: - | CQ98: - | CR98: - | CS98: - | CT98: - | CU98: - | CV98: - | CW98: - | CX98: - | CY98: - | CZ98: 0 | DA98: 0 | DB98: 0 | DC98: 0 | DD98: 0 | DE98: 0 | DF98: 0 | DG98: 0.1 | DH98: 0.1 | DI98: 0 | DJ98: 0 | DK98: 0 | DL98: 0 | DM98: 0.3 | DN98: 0.3 | DO98: 0.1 | DP98: 0.1 | DQ98: 0.1 | DR98: 0.1 | DS98: 0.1 | DT98: 0.3 | DU98: 0.2 | DV98: 0.2 | DW98: 0.1 | DX98: 0.3 | DY98: 0.3 | DZ98: 0.3 | EA98: 0.3 | EB98: 0.1 | EC98: 0.1 | ED98: 0.1 | EE98: 0.1 | EF98: 0.2 | EG98: 0.3 | EH98: 0.1 | EI98: 0.2 | EJ98: 0.3 | EK98: 0.4 | EL98: 0.3 | EM98: 0.3 | EN98: 0.1 | EO98: 0.1 | EP98: 0.2 | EQ98: 0.3 | ER98: 0.3 | ES98: 0.2 | ET98: 0.3 | EU98: 0.3 | EV98: 0.3 | EW98: 0.5 | EX98: 0.4 | EY98: 0.3 | EZ98: 0.1 | FA98: 0.1 | FB98: 0.1 | FC98: 0.1 | FD98: - | FE98: - | FF98: - | FG98: - | FH98: - | FI98: - | FJ98: - | FK98: - | FL98: - | FM98: - | FN98: -
B99: Eólica | C99: 2.4 | D99: 2.9 | E99: 3.1 | F99: 4.1 | G99: 4.9 | H99: 3.6 | I99: 7.4 | J99: 4.9 | K99: 2.9 | L99: 2.5 | M99: 2.1 | N99: 3.4 | O99: 2.3 | P99: 3.3 | Q99: 4.8 | R99: 3.6 | S99: 4.6 | T99: 4.3 | U99: 7.2 | V99: 6 | W99: 3.4 | X99: 2.4 | Y99: 2.1 | Z99: 2.4 | AA99: 1.6 | AB99: 2.2 | AC99: 5.1 | AD99: 4.7 | AE99: 4.1 | AF99: 5.3 | AG99: 7.5 | AH99: 7.5 | AI99: 2.2 | AJ99: 4.3 | AK99: 2.9 | AL99: 3.2 | AM99: 3.1 | AN99: 2.5 | AO99: 3.2 | AP99: 6.5 | AQ99: 4.4 | AR99: 2.8 | AS99: 6.9 | AT99: 7.1 | AU99: 3 | AV99: 1.6 | AW99: 3.3 | AX99: 2.7 | AY99: 1.6 | AZ99: 2.2 | BA99: 3.1 | BB99: 4.5 | BC99: 5 | BD99: 5.4 | BE99: 6.3 | BF99: 5.4 | BG99: 4.7 | BH99: 1.8 | BI99: 2.4 | BJ99: 2.2 | BK99: 1.5 | BL99: 3.6 | BM99: 3.1 | BN99: 3.4 | BO99: 2.7 | BP99: 5.2 | BQ99: 7.3 | BR99: 6.7 | BS99: 4.2 | BT99: 3.3 | BU99: 2.2 | BV99: 4.5 | BW99: 2.5 | BX99: 4.8 | BY99: 4.5 | BZ99: 4.4 | CA99: 3.7 | CB99: 6.1 | CC99: 7.5 | CD99: 6.9 | CE99: 1.7 | CF99: 2.2 | CG99: 2.3 | CH99: 2.1 | CI99: 3.4 | CJ99: 4.3 | CK99: 1.9 | CL99: 4 | CM99: 5.4 | CN99: 7.1 | CO99: 5.5 | CP99: 5.5 | CQ99: 3.4 | CR99: 3.3 | CS99: 4.1 | CT99: 3.3 | CU99: 4.1 | CV99: 5 | CW99: 6.5 | CX99: 4.1 | CY99: 6.1 | CZ99: 5.1 | DA99: 6.2 | DB99: 7.9 | DC99: 1.7 | DD99: 2.2 | DE99: 2.9 | DF99: 3.3 | DG99: 5.7 | DH99: 6.6 | DI99: 5.9 | DJ99: 4.3 | DK99: 5.7 | DL99: 4.5 | DM99: 7.8 | DN99: 6.5 | DO99: 2.3 | DP99: 1.4 | DQ99: 3.4 | DR99: 1.2 | DS99: 2.6 | DT99: 6 | DU99: 4.7 | DV99: 3.8 | DW99: 4.4 | DX99: 6.3 | DY99: 7.5 | DZ99: 6.1 | EA99: 6.2 | EB99: 1.7 | EC99: 2.5 | ED99: 2.1 | EE99: 2 | EF99: 3.4 | EG99: 4.9 | EH99: 2.6 | EI99: 3.5 | EJ99: 5.5 | EK99: 6.5 | EL99: 5.9 | EM99: 7.2 | EN99: 2.7 | EO99: 3.2 | EP99: 5.3 | EQ99: 7.5 | ER99: 6.8 | ES99: 6.9 | ET99: 6.5 | EU99: 7.7 | EV99: 8 | EW99: 12.5 | EX99: 8.3 | EY99: 6.8 | EZ99: 2.9 | FA99: 4.5 | FB99: 5.8 | FC99: 7.4 | FD99: - | FE99: - | FF99: - | FG99: - | FH99: - | FI99: - | FJ99: - | FK99: - | FL99: - | FM99: - | FN99: -
B100: Solar fotovoltaica | C100: 0 | D100: 0 | E100: 0 | F100: 0 | G100: 0 | H100: 0 | I100: 0 | J100: 0.1 | K100: 0.1 | L100: 0.1 | M100: 0.1 | N100: 0.1 | O100: 0.1 | P100: 0.1 | Q100: 0.2 | R100: 0.2 | S100: 0.2 | T100: 0.2 | U100: 0.3 | V100: 0.3 | W100: 0.3 | X100: 0.2 | Y100: 0.2 | Z100: 0.2 | AA100: 0.3 | AB100: 0.4 | AC100: 0.5 | AD100: 0.5 | AE100: 0.6 | AF100: 0.7 | AG100: 0.7 | AH100: 0.7 | AI100: 0.8 | AJ100: 1.2 | AK100: 1 | AL100: 0.9 | AM100: 1.1 | AN100: 1.6 | AO100: 1.7 | AP100: 2.3 | AQ100: 2.2 | AR100: 2.2 | AS100: 2.2 | AT100: 2.2 | AU100: 1.6 | AV100: 1.7 | AW100: 1.5 | AX100: 1.2 | AY100: 1.4 | AZ100: 1.5 | BA100: 2.2 | BB100: 2.3 | BC100: 2.7 | BD100: 2.7 | BE100: 3 | BF100: 2.8 | BG100: 2.3 | BH100: 2.1 | BI100: 1.7 | BJ100: 1.7 | BK100: 2 | BL100: 2.5 | BM100: 2.7 | BN100: 2.8 | BO100: 2.9 | BP100: 3.2 | BQ100: 3.1 | BR100: 3.2 | BS100: 2.8 | BT100: 2.3 | BU100: 2 | BV100: 2 | BW100: 2.1 | BX100: 2.5 | BY100: 3.1 | BZ100: 3 | CA100: 3.5 | CB100: 3.4 | CC100: 3.4 | CD100: 3.3 | CE100: 3 | CF100: 2.5 | CG100: 2.2 | CH100: 2.5 | CI100: 2.8 | CJ100: 2.9 | CK100: 3.3 | CL100: 3.9 | CM100: 3.9 | CN100: 4.5 | CO100: 4.1 | CP100: 3.5 | CQ100: 3.3 | CR100: 3 | CS100: 2.6 | CT100: 2.3 | CU100: 2.6 | CV100: 3.1 | CW100: 3.9 | CX100: 3.8 | CY100: 4.2 | CZ100: 4 | DA100: 3.8 | DB100: 4 | DC100: 2.9 | DD100: 2.9 | DE100: 2.4 | DF100: 2.3 | DG100: 2.5 | DH100: 2.7 | DI100: 3.6 | DJ100: 3.7 | DK100: 4.3 | DL100: 4 | DM100: 4 | DN100: 3.4 | DO100: 2.8 | DP100: 2.4 | DQ100: 2.6 | DR100: 2.5 | DS100: 2.7 | DT100: 2.9 | DU100: 3.3 | DV100: 3.5 | DW100: 3.6 | DX100: 4.2 | DY100: 3.8 | DZ100: 3.5 | EA100: 3.4 | EB100: 2.7 | EC100: 2.4 | ED100: 2.1 | EE100: 2.4 | EF100: 2.9 | EG100: 3.4 | EH100: 3.7 | EI100: 3.5 | EJ100: 3.8 | EK100: 3.8 | EL100: 3.3 | EM100: 3 | EN100: 2.5 | EO100: 2.2 | EP100: 2.3 | EQ100: 2.5 | ER100: 2.6 | ES100: 3.4 | ET100: 3.6 | EU100: 3.2 | EV100: 3.7 | EW100: 3.9 | EX100: 3.5 | EY100: 3.2 | EZ100: 2.5 | FA100: 2.2 | FB100: 2.5 | FC100: 2.3 | FD100: - | FE100: - | FF100: - | FG100: - | FH100: - | FI100: - | FJ100: - | FK100: - | FL100: - | FM100: - | FN100: -
B101: Térmica renovable/Otras renovables | C101: 1.2 | D101: 1.7 | E101: 2.9 | F101: 3 | G101: 2.7 | H101: 2.9 | I101: 2.8 | J101: 2.5 | K101: 1.7 | L101: 2.8 | M101: 2.4 | N101: 3 | O101: 2.7 | P101: 2.9 | Q101: 0.7 | R101: 2.4 | S101: 2.1 | T101: 2.1 | U101: 2.4 | V101: 2.6 | W101: 2.5 | X101: 2.3 | Y101: 2.3 | Z101: 2.9 | AA101: 2.8 | AB101: 2.7 | AC101: 2.6 | AD101: 2.6 | AE101: 2.8 | AF101: 2 | AG101: 0 | AH101: 2.6 | AI101: 1.8 | AJ101: 2.2 | AK101: 3 | AL101: 2.9 | AM101: 3 | AN101: 3.2 | AO101: 1.6 | AP101: 3.5 | AQ101: 3.2 | AR101: 3.3 | AS101: 3 | AT101: 3 | AU101: 3.1 | AV101: 2.8 | AW101: 3.1 | AX101: 3.2 | AY101: 3.2 | AZ101: 2.8 | BA101: 2.2 | BB101: 3.4 | BC101: 3.5 | BD101: 2.7 | BE101: 1.3 | BF101: 0.8 | BG101: 0.7 | BH101: 0.7 | BI101: 0.5 | BJ101: 0.3 | BK101: 0.1 | BL101: 0.1 | BM101: 0.1 | BN101: 0.1 | BO101: 0.1 | BP101: 0.1 | BQ101: 0.1 | BR101: 0.1 | BS101: 0.1 | BT101: 0.1 | BU101: 0.1 | BV101: 0.1 | BW101: 0.1 | BX101: 0.1 | BY101: 0.1 | BZ101: 0.1 | CA101: 0.1 | CB101: 0.1 | CC101: 0.1 | CD101: 0.1 | CE101: 0.1 | CF101: 0.1 | CG101: 0.1 | CH101: 0.1 | CI101: 0.1 | CJ101: 0.1 | CK101: 0.1 | CL101: 0.1 | CM101: 0.1 | CN101: 0.1 | CO101: 0.1 | CP101: 0.1 | CQ101: 0.1 | CR101: 0.1 | CS101: 0.1 | CT101: 0.1 | CU101: 0.1 | CV101: 0.1 | CW101: 0.1 | CX101: 0.1 | CY101: 0.1 | CZ101: 0.1 | DA101: 0.1 | DB101: 0.1 | DC101: 0.1 | DD101: 0.1 | DE101: 0.1 | DF101: 0.1 | DG101: 0.1 | DH101: 0.1 | DI101: 0.1 | DJ101: 0.1 | DK101: 0.1 | DL101: 0.1 | DM101: 0.1 | DN101: 0.1 | DO101: 0.1 | DP101: 0.1 | DQ101: 0.1 | DR101: 0.1 | DS101: 0.1 | DT101: 0.1 | DU101: 0.1 | DV101: 0.1 | DW101: 0.1 | DX101: 0.1 | DY101: 0.1 | DZ101: 0.1 | EA101: 0.1 | EB101: 0.1 | EC101: 0.1 | ED101: 0.1 | EE101: 0.1 | EF101: 0.1 | EG101: 0.1 | EH101: 0.1 | EI101: 0.1 | EJ101: 0.1 | EK101: 0.1 | EL101: 0.1 | EM101: 0.1 | EN101: 0.1 | EO101: 0.1 | EP101: 0.1 | EQ101: 0.1 | ER101: 0.1 | ES101: 0.1 | ET101: 0.1 | EU101: 0.1 | EV101: 0.1 | EW101: 0.1 | EX101: 0.1 | EY101: 0.1 | EZ101: 0.1 | FA101: 0.1 | FB101: 0.1 | FC101: 0.1 | FD101: - | FE101: - | FF101: - | FG101: - | FH101: - | FI101: - | FJ101: - | FK101: - | FL101: - | FM101: - | FN101: -
B102: Generación renovable | C102: 3.6 | D102: 4.6 | E102: 6 | F102: 7.1 | G102: 7.6 | H102: 6.5 | I102: 10.2 | J102: 7.5 | K102: 4.7 | L102: 5.4 | M102: 4.6 | N102: 6.5 | O102: 5.1 | P102: 6.3 | Q102: 5.7 | R102: 6.2 | S102: 6.9 | T102: 6.6 | U102: 9.9 | V102: 8.9 | W102: 6.2 | X102: 4.9 | Y102: 4.6 | Z102: 5.5 | AA102: 4.7 | AB102: 5.3 | AC102: 8.2 | AD102: 7.8 | AE102: 7.5 | AF102: 8 | AG102: 8.2 | AH102: 10.8 | AI102: 4.8 | AJ102: 7.7 | AK102: 6.9 | AL102: 7 | AM102: 7.2 | AN102: 7.3 | AO102: 6.5 | AP102: 12.3 | AQ102: 9.8 | AR102: 8.3 | AS102: 12.1 | AT102: 12.3 | AU102: 7.7 | AV102: 6.1 | AW102: 7.9 | AX102: 7.1 | AY102: 6.2 | AZ102: 6.5 | BA102: 7.5 | BB102: 10.2 | BC102: 11.2 | BD102: 10.8 | BE102: 10.6 | BF102: 9 | BG102: 7.7 | BH102: 4.6 | BI102: 4.6 | BJ102: 4.2 | BK102: 3.6 | BL102: 6.2 | BM102: 5.9 | BN102: 6.3 | BO102: 5.7 | BP102: 8.5 | BQ102: 10.5 | BR102: 10 | BS102: 7.1 | BT102: 5.7 | BU102: 4.3 | BV102: 6.6 | BW102: 4.7 | BX102: 7.4 | BY102: 7.7 | BZ102: 7.5 | CA102: 7.3 | CB102: 9.6 | CC102: 11 | CD102: 10.3 | CE102: 4.8 | CF102: 4.8 | CG102: 4.6 | CH102: 4.7 | CI102: 6.3 | CJ102: 7.3 | CK102: 5.3 | CL102: 8 | CM102: 9.4 | CN102: 11.7 | CO102: 9.7 | CP102: 9.1 | CQ102: 6.8 | CR102: 6.4 | CS102: 6.8 | CT102: 5.7 | CU102: 6.8 | CV102: 8.2 | CW102: 10.5 | CX102: 8 | CY102: 10.4 | CZ102: 9.2 | DA102: 10.1 | DB102: 12 | DC102: 4.7 | DD102: 5.2 | DE102: 5.4 | DF102: 5.7 | DG102: 8.4 | DH102: 9.5 | DI102: 9.6 | DJ102: 8.1 | DK102: 10.1 | DL102: 8.6 | DM102: 12.2 | DN102: 10.3 | DO102: 5.3 | DP102: 4 | DQ102: 6.2 | DR102: 3.9 | DS102: 5.5 | DT102: 9.3 | DU102: 8.3 | DV102: 7.6 | DW102: 8.2 | DX102: 10.9 | DY102: 11.7 | DZ102: 10 | EA102: 10 | EB102: 4.6 | EC102: 5.1 | ED102: 4.4 | EE102: 4.6 | EF102: 6.6 | EG102: 8.7 | EH102: 6.5 | EI102: 7.3 | EJ102: 9.7 | EK102: 10.8 | EL102: 9.6 | EM102: 10.6 | EN102: 5.4 | EO102: 5.6 | EP102: 7.9 | EQ102: 10.4 | ER102: 9.8 | ES102: 10.6 | ET102: 10.5 | EU102: 11.3 | EV102: 12.1 | EW102: 17 | EX102: 12.3 | EY102: 10.4 | EZ102: 5.6 | FA102: 6.9 | FB102: 8.5 | FC102: 9.9 | FD102: - | FE102: - | FF102: - | FG102: - | FH102: - | FI102: - | FJ102: - | FK102: - | FL102: - | FM102: - | FN102: -
B104: Estructura de generación renovable mensual Melilla (%) | C104: 2007-01-01 | D104: 2007-02-01 | E104: 2007-03-01 | F104: 2007-04-01 | G104: 2007-05-01 | H104: 2007-06-01 | I104: 2007-07-01 | J104: 2007-08-01 | K104: 2007-09-01 | L104: 2007-10-01 | M104: 2007-11-01 | N104: 2007-12-01 | O104: 2008-01-01 | P104: 2008-02-01 | Q104: 2008-03-01 | R104: 2008-04-01 | S104: 2008-05-01 | T104: 2008-06-01 | U104: 2008-07-01 | V104: 2008-08-01 | W104: 2008-09-01 | X104: 2008-10-01 | Y104: 2008-11-01 | Z104: 2008-12-01 | AA104: 2009-01-01 | AB104: 2009-02-01 | AC104: 2009-03-01 | AD104: 2009-04-01 | AE104: 2009-05-01 | AF104: 2009-06-01 | AG104: 2009-07-01 | AH104: 2009-08-01 | AI104: 2009-09-01 | AJ104: 2009-10-01 | AK104: 2009-11-01 | AL104: 2009-12-01 | AM104: 2010-01-01 | AN104: 2010-02-01 | AO104: 2010-03-01 | AP104: 2010-04-01 | AQ104: 2010-05-01 | AR104: 2010-06-01 | AS104: 2010-07-01 | AT104: 2010-08-01 | AU104: 2010-09-01 | AV104: 2010-10-01 | AW104: 2010-11-01 | AX104: 2010-12-01 | AY104: 2011-01-01 | AZ104: 2011-02-01 | BA104: 2011-03-01 | BB104: 2011-04-01 | BC104: 2011-05-01 | BD104: 2011-06-01 | BE104: 2011-07-01 | BF104: 2011-08-01 | BG104: 2011-09-01 | BH104: 2011-10-01 | BI104: 2011-11-01 | BJ104: 2011-12-01 | BK104: 2012-01-01 | BL104: 2012-02-01 | BM104: 2012-03-01 | BN104: 2012-04-01 | BO104: 2012-05-01 | BP104: 2012-06-01 | BQ104: 2012-07-01 | BR104: 2012-08-01 | BS104: 2012-09-01 | BT104: 2012-10-01 | BU104: 2012-11-01 | BV104: 2012-12-01 | BW104: 2013-01-01 | BX104: 2013-02-01 | BY104: 2013-03-01 | BZ104: 2013-04-01 | CA104: 2013-05-01 | CB104: 2013-06-01 | CC104: 2013-07-01 | CD104: 2013-08-01 | CE104: 2013-09-01 | CF104: 2013-10-01 | CG104: 2013-11-01 | CH104: 2013-12-01 | CI104: 2014-01-01 | CJ104: 2014-02-01 | CK104: 2014-03-01 | CL104: 2014-04-01 | CM104: 2014-05-01 | CN104: 2014-06-01 | CO104: 2014-07-01 | CP104: 2014-08-01 | CQ104: 2014-09-01 | CR104: 2014-10-01 | CS104: 2014-11-01 | CT104: 2014-12-01 | CU104: 2015-01-01 | CV104: 2015-02-01 | CW104: 2015-03-01 | CX104: 2015-04-01 | CY104: 2015-05-01 | CZ104: 2015-06-01 | DA104: 2015-07-01 | DB104: 2015-08-01 | DC104: 2015-09-01 | DD104: 2015-10-01 | DE104: 2015-11-01 | DF104: 2015-12-01 | DG104: 2016-01-01 | DH104: 2016-02-01 | DI104: 2016-03-01 | DJ104: 2016-04-01 | DK104: 2016-05-01 | DL104: 2016-06-01 | DM104: 2016-07-01 | DN104: 2016-08-01 | DO104: 2016-09-01 | DP104: 2016-10-01 | DQ104: 2016-11-01 | DR104: 2016-12-01 | DS104: 2017-01-01 | DT104: 2017-02-01 | DU104: 2017-03-01 | DV104: 2017-04-01 | DW104: 2017-05-01 | DX104: 2017-06-01 | DY104: 2017-07-01 | DZ104: 2017-08-01 | EA104: 2017-09-01 | EB104: 2017-10-01 | EC104: 2017-11-01 | ED104: 2017-12-01 | EE104: 2018-01-01 | EF104: 2018-02-01 | EG104: 2018-03-01 | EH104: 2018-04-01 | EI104: 2018-05-01 | EJ104: 2018-06-01 | EK104: 2018-07-01 | EL104: 2018-08-01 | EM104: 2018-09-01 | EN104: 2018-10-01 | EO104: 2018-11-01 | EP104: 2018-12-01 | EQ104: 2019-01-01 | ER104: 2019-02-01 | ES104: 2019-03-01 | ET104: 2019-04-01 | EU104: 2019-05-01 | EV104: 2019-06-01 | EW104: 2019-07-01 | EX104: 2019-08-01 | EY104: 2019-09-01 | EZ104: 2019-10-01 | FA104: 2019-11-01 | FB104: 2019-12-01
B105: Solar fotovoltaica | C105: - | D105: - | E105: - | F105: - | G105: - | H105: - | I105: - | J105: - | K105: - | L105: - | M105: - | N105: - | O105: 0.01 | P105: - | Q105: - | R105: - | S105: - | T105: 0.01 | U105: 0.01 | V105: 0.01 | W105: 0.01 | X105: - | Y105: 0.01 | Z105: - | AA105: 0.04 | AB105: 0.11 | AC105: 0.13 | AD105: 0.18 | AE105: 0.06 | AF105: 0.05 | AG105: 0.04 | AH105: 0.04 | AI105: 0.04 | AJ105: 0.03 | AK105: - | AL105: 0.01 | AM105: 0.01 | AN105: 0.03 | AO105: 0.03 | AP105: 0.04 | AQ105: 0.05 | AR105: 0.01 | AS105: 0.04 | AT105: 0.04 | AU105: 0.04 | AV105: 0.03 | AW105: 0.03 | AX105: 0.02 | AY105: 0.02 | AZ105: 0.04 | BA105: 0.04 | BB105: 0.04 | BC105: 0.05 | BD105: 0.05 | BE105: 0.04 | BF105: 0.03 | BG105: 0.03 | BH105: 0.03 | BI105: 0.02 | BJ105: 0.02 | BK105: 0.03 | BL105: 0.04 | BM105: 0.04 | BN105: 0.06 | BO105: 0.05 | BP105: 0.05 | BQ105: 0.04 | BR105: 0.04 | BS105: 0.04 | BT105: 0.04 | BU105: 0.02 | BV105: 0.02 | BW105: 0.03 | BX105: 0.03 | BY105: 0.04 | BZ105: 0.05 | CA105: 0.06 | CB105: 0.05 | CC105: 0.04 | CD105: 0.04 | CE105: 0.04 | CF105: 0.04 | CG105: 0.03 | CH105: 0.02 | CI105: 0.02 | CJ105: 0.04 | CK105: 0.05 | CL105: 0.05 | CM105: 0.05 | CN105: 0.05 | CO105: 0.05 | CP105: 0.04 | CQ105: 0.03 | CR105: 0.04 | CS105: 0.03 | CT105: 0.02 | CU105: 0.03 | CV105: 0.03 | CW105: 0.05 | CX105: 0.04 | CY105: 0.05 | CZ105: 0.05 | DA105: 0.04 | DB105: 0.03 | DC105: 0.04 | DD105: 0.04 | DE105: 0.03 | DF105: 0.02 | DG105: 0.03 | DH105: 0.03 | DI105: 0.05 | DJ105: 0.05 | DK105: 0.05 | DL105: 0.05 | DM105: 0.04 | DN105: 0.04 | DO105: 0.04 | DP105: 0.03 | DQ105: 0.03 | DR105: 0.02 | DS105: 0.02 | DT105: 0.03 | DU105: 0.04 | DV105: 0.05 | DW105: 0.05 | DX105: 0.04 | DY105: 0.04 | DZ105: 0.03 | EA105: 0.04 | EB105: 0.04 | EC105: 0.03 | ED105: 0.02 | EE105: 0.02 | EF105: 0.03 | EG105: 0.05 | EH105: 0.04 | EI105: 0.05 | EJ105: 0.04 | EK105: 0.03 | EL105: 0.04 | EM105: 0.03 | EN105: 0.03 | EO105: 0.03 | EP105: 0.02 | EQ105: 0.03 | ER105: - | ES105: - | ET105: - | EU105: - | EV105: - | EW105: - | EX105: - | EY105: - | EZ105: - | FA105: - | FB105: -
B106: Residuos renovables | C106: - | D106: - | E106: - | F106: - | G106: - | H106: - | I106: - | J106: - | K106: - | L106: - | M106: - | N106: - | O106: - | P106: - | Q106: - | R106: - | S106: - | T106: - | U106: - | V106: - | W106: - | X106: - | Y106: - | Z106: - | AA106: - | AB106: - | AC106: - | AD106: - | AE106: - | AF106: - | AG106: - | AH106: - | AI106: - | AJ106: - | AK106: - | AL106: - | AM106: - | AN106: - | AO106: - | AP106: - | AQ106: - | AR106: - | AS106: - | AT106: - | AU106: - | AV106: - | AW106: - | AX106: - | AY106: 2.57 | AZ106: 2.42 | BA106: 2.5 | BB106: 2.38 | BC106: 1.99 | BD106: 1.85 | BE106: 1.95 | BF106: 1.62 | BG106: 1.85 | BH106: 0.59 | BI106: 0.05 | BJ106: - | BK106: - | BL106: - | BM106: - | BN106: 0.19 | BO106: - | BP106: - | BQ106: - | BR106: 0.4 | BS106: 1.51 | BT106: 0.13 | BU106: 2.06 | BV106: 2.3 | BW106: 2.18 | BX106: 2 | BY106: 1.84 | BZ106: 2.28 | CA106: 1.88 | CB106: 2.4 | CC106: 1.8 | CD106: 1.59 | CE106: 1.67 | CF106: 2.51 | CG106: 0.49 | CH106: 2.41 | CI106: 2.44 | CJ106: 2.65 | CK106: 2.65 | CL106: 2.49 | CM106: 2.06 | CN106: 1.91 | CO106: 2.06 | CP106: 1.77 | CQ106: 1.92 | CR106: 2.23 | CS106: 0.54 | CT106: 2.77 | CU106: 2.2 | CV106: 2.28 | CW106: 2.4 | CX106: 2.44 | CY106: 2.4 | CZ106: 2.11 | DA106: 1.41 | DB106: 1.56 | DC106: 1.97 | DD106: 2.43 | DE106: 0.68 | DF106: 2.54 | DG106: 2.85 | DH106: 2.56 | DI106: 2.37 | DJ106: 2.87 | DK106: 2.26 | DL106: 2.35 | DM106: 2.1 | DN106: 1.96 | DO106: 2.22 | DP106: 2.87 | DQ106: 0.67 | DR106: 2.95 | DS106: 2.43 | DT106: 2.73 | DU106: 2.66 | DV106: 2.79 | DW106: 2.74 | DX106: 2.41 | DY106: 2.16 | DZ106: 1.64 | EA106: 2.52 | EB106: 2.85 | EC106: 0.53 | ED106: 3.08 | EE106: 2.87 | EF106: 2.84 | EG106: 3.14 | EH106: 2.88 | EI106: 2.89 | EJ106: 2.47 | EK106: 2.42 | EL106: 2.2 | EM106: 2.22 | EN106: 2.34 | EO106: 0.66 | EP106: 3.31 | EQ106: 2.97 | ER106: - | ES106: - | ET106: - | EU106: - | EV106: - | EW106: - | EX106: - | EY106: - | EZ106: - | FA106: - | FB106: -
B107: Generación renovable | C107: - | D107: - | E107: - | F107: - | G107: - | H107: - | I107: - | J107: - | K107: - | L107: - | M107: - | N107: - | O107: 0.01 | P107: 0 | Q107: 0 | R107: 0 | S107: 0 | T107: 0.01 | U107: 0.01 | V107: 0.01 | W107: 0.01 | X107: 0 | Y107: 0.01 | Z107: 0 | AA107: 0.04 | AB107: 0.11 | AC107: 0.13 | AD107: 0.18 | AE107: 0.06 | AF107: 0.05 | AG107: 0.04 | AH107: 0.04 | AI107: 0.04 | AJ107: 0.03 | AK107: 0 | AL107: 0.01 | AM107: 0.01 | AN107: 0.03 | AO107: 0.03 | AP107: 0.04 | AQ107: 0.05 | AR107: 0.01 | AS107: 0.04 | AT107: 0.04 | AU107: 0.04 | AV107: 0.03 | AW107: 0.03 | AX107: 0.02 | AY107: 2.59 | AZ107: 2.46 | BA107: 2.54 | BB107: 2.42 | BC107: 2.04 | BD107: 1.9 | BE107: 1.99 | BF107: 1.65 | BG107: 1.88 | BH107: 0.62 | BI107: 0.07 | BJ107: 0.02 | BK107: 0.03 | BL107: 0.04 | BM107: 0.04 | BN107: 0.25 | BO107: 0.05 | BP107: 0.05 | BQ107: 0.04 | BR107: 0.44 | BS107: 1.55 | BT107: 0.17 | BU107: 2.08 | BV107: 2.32 | BW107: 2.21 | BX107: 2.03 | BY107: 1.88 | BZ107: 2.33 | CA107: 1.94 | CB107: 2.45 | CC107: 1.84 | CD107: 1.63 | CE107: 1.71 | CF107: 2.55 | CG107: 0.52 | CH107: 2.43 | CI107: 2.46 | CJ107: 2.69 | CK107: 2.7 | CL107: 2.54 | CM107: 2.11 | CN107: 1.96 | CO107: 2.11 | CP107: 1.81 | CQ107: 1.95 | CR107: 2.27 | CS107: 0.57 | CT107: 2.79 | CU107: 2.23 | CV107: 2.31 | CW107: 2.45 | CX107: 2.48 | CY107: 2.45 | CZ107: 2.16 | DA107: 1.45 | DB107: 1.59 | DC107: 2.01 | DD107: 2.47 | DE107: 0.71 | DF107: 2.56 | DG107: 2.88 | DH107: 2.59 | DI107: 2.42 | DJ107: 2.92 | DK107: 2.31 | DL107: 2.4 | DM107: 2.14 | DN107: 2 | DO107: 2.26 | DP107: 2.9 | DQ107: 0.7 | DR107: 2.97 | DS107: 2.45 | DT107: 2.76 | DU107: 2.7 | DV107: 2.84 | DW107: 2.79 | DX107: 2.45 | DY107: 2.2 | DZ107: 1.67 | EA107: 2.56 | EB107: 2.89 | EC107: 0.56 | ED107: 3.1 | EE107: 2.89 | EF107: 2.87 | EG107: 3.19 | EH107: 2.92 | EI107: 2.94 | EJ107: 2.51 | EK107: 2.45 | EL107: 2.24 | EM107: 2.25 | EN107: 2.37 | EO107: 0.69 | EP107: 3.33 | EQ107: 3 | ER107: - | ES107: - | ET107: - | EU107: - | EV107: - | EW107: - | EX107: - | EY107: - | EZ107: - | FA107: - | FB107: -
